Workbook

Sheet B17
B1: SERVICIO DE SALUD / ESTABLECIMIENTO MUNICIPAL
B2: COMUNA: ( )
B3: ESTABLECIMIENTO/ESTRATEGIA: ( )
B4: MES: ENERO ()
B5: AÑO: 2025
B6: REM-B17. ACTIVIDADES DE APOYO DIAGNÓSTICO y TERAPEUTICO
B8: SECCION A: CONSULTAS Y ATENCIONES
B9: CÓDIGOS | C9: IDENTIFICACIÓN DE PRESTACIONES | D9: TOTAL | E9: TOTAL BENEFICIARIOS MAI
C10: CONSULTAS Y ATENCIÓN MÉDICA | D10: =SUM(D11:D17) -> 822481 | E10: =SUM(E11:E17) -> 812691
A11: 99100120 | C11: Consulta Médica general | D11: =B!D58 -> 75285 | E11: =B!F58 -> 75285
A12: '17400010 | C12: Consulta Médica de Especialidades | D12: =SUM(B!D12:D57) -> 422026 | E12: =SUM(B!F12:F57) -> 420921
A13: '17400020 | C13: Consulta en Unidades de Urgencia Hospitalaria | D13: =B!D60 -> 305700 | E13: =B!F60 -> 297642
A14: '17400030 | C14: Atención médica del recién nacido en sala de parto o pabellón quirúrgico c/s reanimación cardio-respiratoria | D14: =B!D59 -> 1705 | E14: =B!F59 -> 1265
A15: '17400040 | C15: Telemedicina/ Teleconsulta por profesional médico | D15: =SUM(B!D75:D120) -> 16812 | E15: =SUM(B!F75:F120) -> 16625
A16: '17400060 | C16: Teleinterconsulta (Telemedicina) | D16: =B!D124 -> 218 | E16: =B!F124 -> 218
A17: '99000130 | B17: 0903006 | C17: Consultoría de salud mental por psiquiatra (sesión 4 hrs.) (mínimo 8 pacientes) | D17: =B!D1194 -> 735 | E17: =B!F1194 -> 735
C18: CONSULTAS POR OTROS PROFESIONALES DE LA SALUD | D18: =SUM(D19:D29) -> 366247 | E18: =SUM(E19:E29) -> 365198
A19: '17400070 | B19: 0102008 | C19: Consulta o control por enfermera/o | D19: =B!D66 -> 119545 | E19: =B!F66 -> 118975
A20: '99000150 | B20: 0102002 | C20: Control de salud niño con EDP por enfermera/o | D20: =B!D63 -> 4535 | E20: =B!F63 -> 4535
A21: '99000160 | B21: 0102003 | C21: Consulta o control por auxiliar de enfermería | D21: =B!D64 -> 27210 | E21: =B!F64 -> 27209
A22: '99000170 | B22: 0102005 | C22: Consulta por fonoaudiólogo/a | D22: =B!D65 -> 20862 | E22: =B!F65 -> 20854
A23: '17400080 | B23: 0102009 | C23: Consulta o control por matrón/a | D23: =B!D67 -> 66469 | E23: =B!F67 -> 66218
A24: '17400090 | B24: 0102010 | C24: Consulta o control por nutricionista | D24: =B!D68 -> 33635 | E24: =B!F68 -> 33548
A25: '99000200 | B25: 0903002 | C25: Consulta o control psicológico clínico | D25: =B!D1190 -> 36573 | E25: =B!F1190 -> 36550
A26: '99000210 | B26: 0903003 | C26: Consulta de salud mental por otros profesionales | D26: =B!D1191 -> 47326 | E26: =B!F1191 -> 47319
A27: '99000220 | B27: 0903004 | C27: Intervención psicosocial grupal (4 a 8 pacientes, familiares o cuidadores) | D27: =B!D1192 -> 10092 | E27: =B!F1192 -> 9990
B28: 0903005 | C28: Psicoterapia de grupo (por psicólogo o psiquiatra) (4 a 8 pacientes)
A29: '17400050 | C29: Telemedicina/ Teleconsulta por profesional no médico | D29: =B!D121 -> 0 | E29: =B!F121 -> 0
C30: OTRAS CONSULTAS Y ATENCIÓN MEDICA | D30: =SUM(D31:D32) -> 50134
A31: '99100170 | C31: Consulta por otros profesionales | D31: =B!D70 -> 33312
A32: '17200390 | C32: Consulta por Trabajador/a Social | D32: =B!D71 -> 16822
C33: PROGRAMA DE REHABILITACIÓN | D33: =SUM(D34:D35) -> 404 | E33: =SUM(E34:E35) -> 404
A34: '99000240 | B34: 0903007 | C34: Programa de rehabilitación tipo 1 (mensual, grupo 6 a 10 pers.) | D34: =B!D1195 -> 0 | E34: =B!F1195 -> 0
A35: '99000250 | B35: 0903008 | C35: Programa de rehabilitación tipo 2 (mensual, grupo 5 a 7 pers.) | D35: =B!D1196 -> 404 | E35: =B!F1196 -> 404
C36: OTROS PROGRAMAS | D36: =D37 -> 130
A37: '99100210 | B37: 0901003 | C37: Sesión de terapia electroconvulsivante (hasta 6 sesiones por ciclo o sesiones de mantención) c/ sesión | D37: =B!D1203 -> 130
C38: EDUCACION DE GRUPO | D38: =SUM(D39:D44) -> 40922 | E38: =SUM(E39:E44) -> 40785
A39: '99000260 | B39: 0103001 | C39: Educación de grupo por médico | D39: =B!D128 -> 246 | E39: =B!F128 -> 246
A40: '99000270 | B40: 0103005 | C40: Educación de grupo por enfermera | D40: =B!D131 -> 38,861 | E40: =B!F131 -> 38,724
A41: '99000280 | B41: 0103003 | C41: Educación de grupo por Trabajador/a Social | D41: =B!D129 -> 289 | E41: =B!F129 -> 289
A42: '99000290 | B42: 0103004 | C42: Educación de grupo por auxiliar de enfermería | D42: =B!D130 -> 238 | E42: =B!F130 -> 238
A43: '17400100 | B43: 0103006 | C43: Educación de grupo por matrona | D43: =B!D132 -> 1,115 | E43: =B!F132 -> 1,115
A44: '17400110 | B44: 0103007 | C44: Educación de grupo por nutricionista | D44: =B!D133 -> 173 | E44: =B!F133 -> 173
C45: OTRA EDUCACIÓN DE GRUPO | D45: =D46 -> 3,352
A46: '99100220 | C46: Educación de grupo por otro integrante del equipo de salud | D46: =B!D134 -> 3,352
C47: VISITAS DOMICILIARIAS | D47: =SUM(D48:D52) -> 45,876 | E47: =SUM(E48:E52) -> 45,824
A48: '17400120 | B48: 0104004 | C48: Visita a domicilio por enfermera | D48: =B!D139 -> 28,616 | E48: =B!F139 -> 28,567
A49: '99000310 | B49: 0104002 | C49: Visita a domicilio por asistente social | D49: =B!D137 -> 2,666 | E49: =B!F137 -> 2,663
A50: '99000320 | B50: 0104003 | C50: Visita a domicilio por auxiliar de enfermería | D50: =B!D138 -> 13,223 | E50: =B!F138 -> 13,223
A51: '17400130 | B51: 0104005 | C51: Visita a domicilio por matrona | D51: =B!D140 -> 161 | E51: =B!F140 -> 161
A52: '17400140 | B52: 0104006 | C52: Visita a domicilio por nutricionista | D52: =B!D141 -> 1,210 | E52: =B!F141 -> 1,210
C53: OTRAS VISITAS DOMICILIARIAS | D53: =SUM(D54:D55) -> 41,106
A54: '99100230 | C54: Visita a domicilio por otro integrante del equipo de salud | D54: =B!D142 -> 25,122
A55: '99100240 | C55: Visita domiciliaria por profesional y técnico paramédico | D55: =B!D143 -> 15,984
C56: TOTAL | D56: =D10+D18+D33+D38+D47+D30+D36+D45+D53 -> 1,370,652 | E56: =E10+E18+E33+E38+E47 -> 1,264,902
B57: SECCION B: ATENCIÓN CERRADA, DIAS DE HOSPITALIZACION
B58: CÓDIGOS | C58: IDENTIFICACIÓN DE PRESTACIONES | D58: TOTAL | E58: TOTAL BENEFICIARIOS MAI
C59: ATENCIÓN CERRADA
A60: '17400150 | B60: 0201010 | C60: Dia Cama de Hospitalización Integral Cuidados Básicos | D60: =B!D190 -> 41751 | E60: =B!F190 -> 41296
A61: '17400160 | B61: 0201110 | C61: Dia Cama de Hospitalización Integral Cuidados Medios | D61: =B!D191 -> 192133 | E61: =B!F191 -> 188582
A62: '17400170 | B62: 0201301 | C62: Día Cama de Hospitalización Integral Adulto en Unidad de Tratamiento Intermedio (U.T.I) | D62: =B!D192 -> 33009 | E62: =B!F192 -> 32818
A63: '17400180 | B63: 0201302 | C63: Día Cama de Hospitalización Integral Pediátrica en Unidad de Tratamiento Intermedio (U.T.I) | D63: =B!D193 -> 3633 | E63: =B!F193 -> 3576
A64: '17400190 | B64: 0201303 | C64: Día Cama de Hospitalización Integral Neonatal en Unidad de Tratamiento Intermedio (U.T.I) | D64: =B!D194 -> 4842 | E64: =B!F194 -> 4839
A65: '17400200 | B65: 0201201 | C65: Día Cama de Hospitalización Integral Adulto en Unidad de Cuidado Intensivo (U.C.I.) | D65: =B!D195 -> 14849 | E65: =B!F195 -> 14717
A66: '17400210 | B66: 0201202 | C66: Día Cama de Hospitalización Integral Pediátrica en Unidad de Cuidado Intensivo (U.C.I). | D66: =B!D196 -> 576 | E66: =B!F196 -> 561
A67: '17400220 | B67: 0201203 | C67: Día Cama de Hospitalización Integral Neonatal en Unidad de Cuidado Intensivo (U.C.I.) | D67: =B!D197 -> 2381 | E67: =B!F197 -> 2371
A68: '17400230 | B68: 0201410 | C68: Día Cama de Hospitalización Integral Obstetricia | D68: =B!D198 -> 17509 | E68: =B!F198 -> 17217
A69: '17400240 | B69: 0201403 | C69: Día Cama de Hospitalización Integral Sala Cuna | D69: =B!D199 -> 3499 | E69: =B!F199 -> 3476
A70: '17400250 | B70: 0201404 | C70: Día Cama de Hospitalización Integral Incubadora | D70: =B!D200 -> 896 | E70: =B!F200 -> 883
A71: '17400270 | B71: 0201406 | C71: Día Cama de Hospitalización Integral Psiquiatría Cuidados Medios | D71: =B!D202 -> 13998 | E71: =B!F202 -> 13951
A72: '17400280 | B72: 0201407 | C72: Día Cama de Hospitalizacion Integral de Observación - Ambulatorio | D72: =B!D203 -> 71498 | E72: =B!F203 -> 71498
A73: '17400290 | B73: 0201501 | C73: Dia Cama Hospitalizacion Domiciliaria Cuidados Básicos | D73: =B!D204 -> 5988 | E73: =B!F204 -> 5988
A74: '17400300 | B74: 0201502 | C74: Dia Cama Hospitalizacion Domiciliaria Cuidados Medios | D74: =B!D205 -> 29258 | E74: =B!F205 -> 29194
A75: '17400310 | B75: 0201503 | C75: Dia Cama Hospitalizacion Domiciliaria Cuidados Alta Complejidad | D75: =B!D206 -> 8986 | E75: =B!F206 -> 8937
C76: TOTAL | D76: =SUM(D60:D75) -> 444806 | E76: =SUM(E60:E75) -> 439904
B77: SECCIÓN C:TRATAMIENTO ABREVIADO DE LA TUBERCULOSIS
B78: CÓDIGOS | C78: TRATAMIENTO ABREVIADO DE LA TUBERCULOSIS | D78: TOTAL | E78: TOTAL BENEFICIARIOS MAI
A79: '99001860 | B79: 3003001 | C79: TBC, Esquema primario (mensual) | D79: =B!D3074 -> 20 | E79: =B!F3074 -> 20
A80: '99001870 | B80: 3003002 | C80: TBC, Esquema primario simplificado (mensual) | D80: =B!D3075 -> 0 | E80: =B!F3075 -> 0
A81: '99001880 | B81: 3003003 | C81: TBC, Esquema secundario (mensual) | D81: =B!D3076 -> 4 | E81: =B!F3076 -> 4
A82: '99001890 | B82: 3003004 | C82: TBC, Esquema normado de retratamiento (mensual) | D82: =B!D3077 -> 0 | E82: =B!F3077 -> 0
A83: '99001900 | B83: 3003005 | C83: TBC, Esquema especial de retratamiento (mensual) | D83: =B!D3078 -> 0 | E83: =B!F3078 -> 0
C84: TOTAL | D84: =SUM(D79:D83) -> 24 | E84: =SUM(E79:E83) -> 24
B85: SECCIÓN D:TRASLADO, RESCATES Y RONDAS RURALES
B86: CÓDIGOS | C86: TRASLADO, RESCATES Y RONDAS RURALES | D86: TOTAL | E86: TOTAL BENEFICIARIOS MAI
A87: '99001910 | B87: 2401061 | C87: Rescate simple y/o traslado en móvil 1 | D87: =B!D2849 -> 3,388 | E87: =B!F2849 -> 3,382
A88: '99001920 | B88: 2401062 | C88: Rescate profesionalizado y/o traslado paciente complejo móvil 2 | D88: =B!D2850 -> 2,380 | E88: =B!F2850 -> 2,328
A89: '99001930 | B89: 2401063 | C89: Rescate medicalizado y/o traslado paciente critico en móvil 3 | D89: =B!D2851 -> 328 | E89: =B!F2851 -> 328
A90: '99001940 | B90: 2401064 | C90: Traslado en ambulancia | D90: =B!D2852 -> 25,073 | E90: =B!F2852 -> 25,271
A91: '99001950 | B91: 2401065 | C91: Ronda rural terrestre, c/ km recorrido | D91: =B!D2853 -> 73,740 | E91: =B!F2853 -> 81,772
A92: '99001960 | B92: 2401066 | C92: Ronda rural aérea, c/ hora de vuelo | D92: =B!D2854 -> 0 | E92: =B!F2854 -> 0
A93: '99001970 | B93: 2401067 | C93: Ronda rural marítima, c/ hora de navegación | D93: =B!D2855 -> 0 | E93: =B!F2855 -> 0
C94: TOTAL | D94: =SUM(D87:D93) -> 104909 | E94: =SUM(E87:E93) -> 113081
B95: SECCION E: PARTOS
B96: CÓDIGOS | C96: IDENTIFICACION DE PRESTACIONES | D96: TOTAL | E96: TOTAL BENEFICIARIOS MAI
A97: '99000740 | B97: 2004103 | C97: Parto normal | D97: =B!D2554 -> 2195 | E97: =B!F2554 -> 2023
A98: '99000750 | B98: 2004113 | C98: Parto distósico vaginal | D98: =B!D2555 -> 37 | E98: =B!F2555 -> 32
C99: TOTAL | D99: =SUM(D97:D98) -> 2232 | E99: =SUM(E97:E98) -> 2055
B100: SECCION F: ATENCIÓN ODONTOLOGICA
B101: CÓDIGOS | C101: PRESTACIONES | D101: TOTAL | E101: TOTAL BENEFICIARIOS MAI
A102: '17400320 | B102: 2701XXX | C102: Consulta y atención odontológica | D102: =B!D2874 -> 161693 | E102: =B!F2874 -> 161630
A103: '17400330 | B103: 2702XXX | C103: Exámenes imagenológicos odontológico | D103: =B!D2893 -> 25364 | E103: =B!F2893 -> 25353
A104: '17400340 | B104: 2703XXX | C104: Odontología general: Actividades preventivas y recuperativas | D104: =B!D2911 -> 70061 | E104: =B!F2911 -> 70044
A105: '17400350 | B105: 2704XXX | C105: Especialidades | D105: =B!D2945 -> 19073 | E105: =B!F2945 -> 19066
A106: '17400360 | B106: 2705XXX | C106: Cirugías | D106: =SUM(B!D2947:D3018) -> 12912 | E106: =SUM(B!F2947:F3018) -> 319
A107: '99100440 | C107: Otras prestaciones odontológicas | D107: =B!D3060 -> 0
C108: TOTAL | D108: =SUM(D102:D107) -> 289103 | E108: =SUM(E102:E106) -> 276412
B109: SECCION G: LENTES, AUDIFONOS
B110: CÓDIGOS | C110: IDENTIFICACIÓN DE PRESTACIONES | D110: TOTAL | E110: TOTAL BENEFICIARIOS MAI
A111: '99001470 | B111: 3001001 | C111: Lentes ópticos | D111: =B!D3062 -> 20023 | E111: =B!F3062 -> 20022
A112: '99001480 | B112: 3001002 | C112: Audífonos | D112: =B!D3063 -> 3673 | E112: =B!F3063 -> 3673
C113: TOTAL | D113: =SUM(D111:D112) -> 23696 | E113: =SUM(E111:E112) -> 23695
B114: SECCIÓN H: MEDICINA TRANSFUSIONAL
B115: CÓDIGOS | C115: IDENTIFICACIÓN DE PRESTACIONES | D115: TOTAL | E115: TOTAL BENEFICIARIOS MAI
A116: '99001490 | B116: Grupo 07 | C116: Medicina Transfusional | D116: =B!D1172 -> 153120 | E116: =B!F1172 -> 152197
B117: SECCION I: EXÁMENES DE DIAGNÓSTICO
B118: TIPO DE EXAMEN | D118: TOTAL | E118: EXAMENES REALIZADOS | I118: PROCEDENCIA | L118: PRODUCCION INTRA HOSPITAL | O118: OPERATIVO | P118: COMPRAS REALIZADAS | R118: VENTAS DE SERVICIOS | S118: TOTAL DE PROCEDIMIENTOS INFORMADOS
E119: TOTAL Beneficiarios | F119: Beneficiarios | H119: NO Beneficiarios | I119: Atención Cerrada | J119: Atención Abierta | K119: Emergencia | L119: Por Honorarios | M119: Por Convenios | N119: Por Consultores de llamada | P119: Al Sistema | Q119: Extrasistema
F120: MAI | G120: MLE
B121: TOTAL EXÁMENES LABORATORIO | D121: =+D122+D123+D124+D125+D126+D127+D131+D132+D133 -> 4682967 | E121: 4649792 | F121: 4648990 | G121: 802 | H121: 33175 | I121: 1495072 | J121: 1939051 | K121: 1240164 | L121: 0 | M121: 72781 | N121: 0 | O121: 0 | P121: 12275 | Q121: 25830 | R121: 182793
A122: 17010100 | B122: I | C122: Hematológicos | D122: =IFERROR(VLOOKUP($A122,Filtro!$A$4:$AM$2264,2,FALSE),0) -> 1319261 | E122: =IFERROR(VLOOKUP($A122,Filtro!$A$4:$AM$2264,3,FALSE),0) -> 1309006 | F122: =IFERROR(VLOOKUP($A122,Filtro!$A$4:$AM$2264,4,FALSE),0) -> 1308779 | G122: =IFERROR(VLOOKUP($A122,Filtro!$A$4:$AM$2264,5,FALSE),0) -> 227 | H122: =IFERROR(VLOOKUP($A122,Filtro!$A$4:$AM$2264,6,FALSE),0) -> 10255 | I122: =IFERROR(VLOOKUP($A122,Filtro!$A$4:$AM$2264,7,FALSE),0) -> 452699 | J122: =IFERROR(VLOOKUP($A122,Filtro!$A$4:$AM$2264,8,FALSE),0) -> 484438 | K122: =IFERROR(VLOOKUP($A122,Filtro!$A$4:$AM$2264,9,FALSE),0) -> 380404 | L122: =IFERROR(VLOOKUP($A122,Filtro!$A$4:$AM$2264,10,FALSE),0) -> 0 | M122: =IFERROR(VLOOKUP($A122,Filtro!$A$4:$AM$2264,11,FALSE),0) -> 10611 | N122: =IFERROR(VLOOKUP($A122,Filtro!$A$4:$AM$2264,12,FALSE),0) -> 0 | O122: =IFERROR(VLOOKUP($A122,Filtro!$A$4:$AM$2264,13,FALSE),0) -> 0 | P122: =IFERROR(VLOOKUP($A122,Filtro!$A$4:$AM$2264,14,FALSE),0) -> 2474 | Q122: =IFERROR(VLOOKUP($A122,Filtro!$A$4:$AM$2264,15,FALSE),0) -> 9033 | R122: =IFERROR(VLOOKUP($A122,Filtro!$A$4:$AM$2264,16,FALSE),0) -> 46012 | AB122: Beneficiarios no puede ser mayor al TOTAL | AG122: 1
A123: 17010200 | B123: II | C123: Bioquímicos | D123: =IFERROR(VLOOKUP($A123,Filtro!$A$4:$AM$2264,2,FALSE),0) -> 2541627 | E123: =IFERROR(VLOOKUP($A123,Filtro!$A$4:$AM$2264,3,FALSE),0) -> 2523644 | F123: =IFERROR(VLOOKUP($A123,Filtro!$A$4:$AM$2264,4,FALSE),0) -> 2523598 | G123: =IFERROR(VLOOKUP($A123,Filtro!$A$4:$AM$2264,5,FALSE),0) -> 46 | H123: =IFERROR(VLOOKUP($A123,Filtro!$A$4:$AM$2264,6,FALSE),0) -> 17983 | I123: =IFERROR(VLOOKUP($A123,Filtro!$A$4:$AM$2264,7,FALSE),0) -> 850787 | J123: =IFERROR(VLOOKUP($A123,Filtro!$A$4:$AM$2264,8,FALSE),0) -> 1014436 | K123: =IFERROR(VLOOKUP($A123,Filtro!$A$4:$AM$2264,9,FALSE),0) -> 672302 | L123: =IFERROR(VLOOKUP($A123,Filtro!$A$4:$AM$2264,10,FALSE),0) -> 0 | M123: =IFERROR(VLOOKUP($A123,Filtro!$A$4:$AM$2264,11,FALSE),0) -> 44215 | N123: =IFERROR(VLOOKUP($A123,Filtro!$A$4:$AM$2264,12,FALSE),0) -> 0 | O123: =IFERROR(VLOOKUP($A123,Filtro!$A$4:$AM$2264,13,FALSE),0) -> 0 | P123: =IFERROR(VLOOKUP($A123,Filtro!$A$4:$AM$2264,14,FALSE),0) -> 790 | Q123: =IFERROR(VLOOKUP($A123,Filtro!$A$4:$AM$2264,15,FALSE),0) -> 645 | R123: =IFERROR(VLOOKUP($A123,Filtro!$A$4:$AM$2264,16,FALSE),0) -> 89012 | AB123: Beneficiarios no puede ser mayor al TOTAL | AG123: 1
A124: '17010300 | B124: III | C124: Hormonales | D124: =IFERROR(VLOOKUP($A124,Filtro!$A$4:$AM$2264,2,FALSE),0) -> 0 | E124: =IFERROR(VLOOKUP($A124,Filtro!$A$4:$AM$2264,3,FALSE),0) -> 0 | F124: =IFERROR(VLOOKUP($A124,Filtro!$A$4:$AM$2264,4,FALSE),0) -> 0 | G124: =IFERROR(VLOOKUP($A124,Filtro!$A$4:$AM$2264,5,FALSE),0) -> 0 | H124: =IFERROR(VLOOKUP($A124,Filtro!$A$4:$AM$2264,6,FALSE),0) -> 0 | I124: =IFERROR(VLOOKUP($A124,Filtro!$A$4:$AM$2264,7,FALSE),0) -> 0 | J124: =IFERROR(VLOOKUP($A124,Filtro!$A$4:$AM$2264,8,FALSE),0) -> 0 | K124: =IFERROR(VLOOKUP($A124,Filtro!$A$4:$AM$2264,9,FALSE),0) -> 0 | L124: =IFERROR(VLOOKUP($A124,Filtro!$A$4:$AM$2264,10,FALSE),0) -> 0 | M124: =IFERROR(VLOOKUP($A124,Filtro!$A$4:$AM$2264,11,FALSE),0) -> 0 | N124: =IFERROR(VLOOKUP($A124,Filtro!$A$4:$AM$2264,12,FALSE),0) -> 0 | O124: =IFERROR(VLOOKUP($A124,Filtro!$A$4:$AM$2264,13,FALSE),0) -> 0 | P124: =IFERROR(VLOOKUP($A124,Filtro!$A$4:$AM$2264,14,FALSE),0) -> 0 | Q124: =IFERROR(VLOOKUP($A124,Filtro!$A$4:$AM$2264,15,FALSE),0) -> 0 | R124: =IFERROR(VLOOKUP($A124,Filtro!$A$4:$AM$2264,16,FALSE),0) -> 0 | AB124: Beneficiarios no puede ser mayor al TOTAL | AG124: 1
A125: 17010400 | B125: IV | C125: Genética | D125: =IFERROR(VLOOKUP($A125,Filtro!$A$4:$AM$2264,2,FALSE),0) -> 1 | E125: =IFERROR(VLOOKUP($A125,Filtro!$A$4:$AM$2264,3,FALSE),0) -> 1 | F125: =IFERROR(VLOOKUP($A125,Filtro!$A$4:$AM$2264,4,FALSE),0) -> 1 | G125: =IFERROR(VLOOKUP($A125,Filtro!$A$4:$AM$2264,5,FALSE),0) -> 0 | H125: =IFERROR(VLOOKUP($A125,Filtro!$A$4:$AM$2264,6,FALSE),0) -> 0 | I125: =IFERROR(VLOOKUP($A125,Filtro!$A$4:$AM$2264,7,FALSE),0) -> 0 | J125: =IFERROR(VLOOKUP($A125,Filtro!$A$4:$AM$2264,8,FALSE),0) -> 1 | K125: =IFERROR(VLOOKUP($A125,Filtro!$A$4:$AM$2264,9,FALSE),0) -> 0 | L125: =IFERROR(VLOOKUP($A125,Filtro!$A$4:$AM$2264,10,FALSE),0) -> 0 | M125: =IFERROR(VLOOKUP($A125,Filtro!$A$4:$AM$2264,11,FALSE),0) -> 0 | N125: =IFERROR(VLOOKUP($A125,Filtro!$A$4:$AM$2264,12,FALSE),0) -> 0 | O125: =IFERROR(VLOOKUP($A125,Filtro!$A$4:$AM$2264,13,FALSE),0) -> 0 | P125: =IFERROR(VLOOKUP($A125,Filtro!$A$4:$AM$2264,14,FALSE),0) -> 6 | Q125: =IFERROR(VLOOKUP($A125,Filtro!$A$4:$AM$2264,15,FALSE),0) -> 301 | R125: =IFERROR(VLOOKUP($A125,Filtro!$A$4:$AM$2264,16,FALSE),0) -> 0 | S125: =IFERROR(VLOOKUP($A125,Filtro!$A$4:$AM$2264,17,FALSE),0) -> 0 | AB125: Beneficiarios no puede ser mayor al TOTAL | AG125: 1
A126: 17010500 | B126: V | C126: Inmunológicos | D126: =IFERROR(VLOOKUP($A126,Filtro!$A$4:$AM$2264,2,FALSE),0) -> 226441 | E126: =IFERROR(VLOOKUP($A126,Filtro!$A$4:$AM$2264,3,FALSE),0) -> 224620 | F126: =IFERROR(VLOOKUP($A126,Filtro!$A$4:$AM$2264,4,FALSE),0) -> 224609 | G126: =IFERROR(VLOOKUP($A126,Filtro!$A$4:$AM$2264,5,FALSE),0) -> 11 | H126: =IFERROR(VLOOKUP($A126,Filtro!$A$4:$AM$2264,6,FALSE),0) -> 1821 | I126: =IFERROR(VLOOKUP($A126,Filtro!$A$4:$AM$2264,7,FALSE),0) -> 76032 | J126: =IFERROR(VLOOKUP($A126,Filtro!$A$4:$AM$2264,8,FALSE),0) -> 76111 | K126: =IFERROR(VLOOKUP($A126,Filtro!$A$4:$AM$2264,9,FALSE),0) -> 73892 | L126: =IFERROR(VLOOKUP($A126,Filtro!$A$4:$AM$2264,10,FALSE),0) -> 0 | M126: =IFERROR(VLOOKUP($A126,Filtro!$A$4:$AM$2264,11,FALSE),0) -> 1299 | N126: =IFERROR(VLOOKUP($A126,Filtro!$A$4:$AM$2264,12,FALSE),0) -> 0 | O126: =IFERROR(VLOOKUP($A126,Filtro!$A$4:$AM$2264,13,FALSE),0) -> 0 | P126: =IFERROR(VLOOKUP($A126,Filtro!$A$4:$AM$2264,14,FALSE),0) -> 6848 | Q126: =IFERROR(VLOOKUP($A126,Filtro!$A$4:$AM$2264,15,FALSE),0) -> 11872 | R126: =IFERROR(VLOOKUP($A126,Filtro!$A$4:$AM$2264,16,FALSE),0) -> 1801 | AB126: Beneficiarios no puede ser mayor al TOTAL | AG126: 1
B127: VI | C127: Microbiológicos | D127: =SUM(D128:D130) -> 314612 | E127: 312657 | F127: 312160 | G127: 497 | H127: 1955 | I127: 69739 | J127: 179058 | K127: 64713 | L127: 0 | M127: 3744 | N127: 0 | O127: 0 | P127: 2016 | Q127: 1725 | R127: 6487 | AG127: 0
A128: 17010601 | C128: a) Bacterias y Hongos | D128: =IFERROR(VLOOKUP($A128,Filtro!$A$4:$AM$2264,2,FALSE),0) -> 177905 | E128: =IFERROR(VLOOKUP($A128,Filtro!$A$4:$AM$2264,3,FALSE),0) -> 176730 | F128: =IFERROR(VLOOKUP($A128,Filtro!$A$4:$AM$2264,4,FALSE),0) -> 176263 | G128: =IFERROR(VLOOKUP($A128,Filtro!$A$4:$AM$2264,5,FALSE),0) -> 467 | H128: =IFERROR(VLOOKUP($A128,Filtro!$A$4:$AM$2264,6,FALSE),0) -> 1175 | I128: =IFERROR(VLOOKUP($A128,Filtro!$A$4:$AM$2264,7,FALSE),0) -> 54965 | J128: =IFERROR(VLOOKUP($A128,Filtro!$A$4:$AM$2264,8,FALSE),0) -> 76278 | K128: =IFERROR(VLOOKUP($A128,Filtro!$A$4:$AM$2264,9,FALSE),0) -> 46175 | L128: =IFERROR(VLOOKUP($A128,Filtro!$A$4:$AM$2264,10,FALSE),0) -> 0 | M128: =IFERROR(VLOOKUP($A128,Filtro!$A$4:$AM$2264,11,FALSE),0) -> 3252 | N128: =IFERROR(VLOOKUP($A128,Filtro!$A$4:$AM$2264,12,FALSE),0) -> 0 | O128: =IFERROR(VLOOKUP($A128,Filtro!$A$4:$AM$2264,13,FALSE),0) -> 0 | P128: =IFERROR(VLOOKUP($A128,Filtro!$A$4:$AM$2264,14,FALSE),0) -> 147 | Q128: =IFERROR(VLOOKUP($A128,Filtro!$A$4:$AM$2264,15,FALSE),0) -> 1093 | R128: =IFERROR(VLOOKUP($A128,Filtro!$A$4:$AM$2264,16,FALSE),0) -> 5214 | AB128: Beneficiarios no puede ser mayor al TOTAL | AG128: 1
A129: 17010602 | C129: b) Parásitos | D129: =IFERROR(VLOOKUP($A129,Filtro!$A$4:$AM$2264,2,FALSE),0) -> 46099 | E129: =IFERROR(VLOOKUP($A129,Filtro!$A$4:$AM$2264,3,FALSE),0) -> 45949 | F129: =IFERROR(VLOOKUP($A129,Filtro!$A$4:$AM$2264,4,FALSE),0) -> 45944 | G129: =IFERROR(VLOOKUP($A129,Filtro!$A$4:$AM$2264,5,FALSE),0) -> 5 | H129: =IFERROR(VLOOKUP($A129,Filtro!$A$4:$AM$2264,6,FALSE),0) -> 150 | I129: =IFERROR(VLOOKUP($A129,Filtro!$A$4:$AM$2264,7,FALSE),0) -> 2054 | J129: =IFERROR(VLOOKUP($A129,Filtro!$A$4:$AM$2264,8,FALSE),0) -> 43218 | K129: =IFERROR(VLOOKUP($A129,Filtro!$A$4:$AM$2264,9,FALSE),0) -> 226 | L129: =IFERROR(VLOOKUP($A129,Filtro!$A$4:$AM$2264,10,FALSE),0) -> 0 | M129: =IFERROR(VLOOKUP($A129,Filtro!$A$4:$AM$2264,11,FALSE),0) -> 490 | N129: =IFERROR(VLOOKUP($A129,Filtro!$A$4:$AM$2264,12,FALSE),0) -> 0 | O129: =IFERROR(VLOOKUP($A129,Filtro!$A$4:$AM$2264,13,FALSE),0) -> 0 | P129: =IFERROR(VLOOKUP($A129,Filtro!$A$4:$AM$2264,14,FALSE),0) -> 151 | Q129: =IFERROR(VLOOKUP($A129,Filtro!$A$4:$AM$2264,15,FALSE),0) -> 118 | R129: =IFERROR(VLOOKUP($A129,Filtro!$A$4:$AM$2264,16,FALSE),0) -> 1092 | AB129: Beneficiarios no puede ser mayor al TOTAL | AG129: 1
A130: 17010603 | C130: c) Virus | D130: =IFERROR(VLOOKUP($A130,Filtro!$A$4:$AM$2264,2,FALSE),0) -> 90608 | E130: =IFERROR(VLOOKUP($A130,Filtro!$A$4:$AM$2264,3,FALSE),0) -> 89978 | F130: =IFERROR(VLOOKUP($A130,Filtro!$A$4:$AM$2264,4,FALSE),0) -> 89953 | G130: =IFERROR(VLOOKUP($A130,Filtro!$A$4:$AM$2264,5,FALSE),0) -> 25 | H130: =IFERROR(VLOOKUP($A130,Filtro!$A$4:$AM$2264,6,FALSE),0) -> 630 | I130: =IFERROR(VLOOKUP($A130,Filtro!$A$4:$AM$2264,7,FALSE),0) -> 12720 | J130: =IFERROR(VLOOKUP($A130,Filtro!$A$4:$AM$2264,8,FALSE),0) -> 59562 | K130: =IFERROR(VLOOKUP($A130,Filtro!$A$4:$AM$2264,9,FALSE),0) -> 18312 | L130: =IFERROR(VLOOKUP($A130,Filtro!$A$4:$AM$2264,10,FALSE),0) -> 0 | M130: =IFERROR(VLOOKUP($A130,Filtro!$A$4:$AM$2264,11,FALSE),0) -> 2 | N130: =IFERROR(VLOOKUP($A130,Filtro!$A$4:$AM$2264,12,FALSE),0) -> 0 | O130: =IFERROR(VLOOKUP($A130,Filtro!$A$4:$AM$2264,13,FALSE),0) -> 0 | P130: =IFERROR(VLOOKUP($A130,Filtro!$A$4:$AM$2264,14,FALSE),0) -> 1718 | Q130: =IFERROR(VLOOKUP($A130,Filtro!$A$4:$AM$2264,15,FALSE),0) -> 514 | R130: =IFERROR(VLOOKUP($A130,Filtro!$A$4:$AM$2264,16,FALSE),0) -> 181 | AB130: Beneficiarios no puede ser mayor al TOTAL | AG130: 1
A131: 17010700 | B131: VII | C131: Procedimiento o Determinación Directa c/Paciente | D131: =IFERROR(VLOOKUP($A131,Filtro!$A$4:$AM$2264,2,FALSE),0) -> 16225 | E131: =IFERROR(VLOOKUP($A131,Filtro!$A$4:$AM$2264,3,FALSE),0) -> 16225 | F131: =IFERROR(VLOOKUP($A131,Filtro!$A$4:$AM$2264,4,FALSE),0) -> 16225 | G131: =IFERROR(VLOOKUP($A131,Filtro!$A$4:$AM$2264,5,FALSE),0) -> 0 | H131: =IFERROR(VLOOKUP($A131,Filtro!$A$4:$AM$2264,6,FALSE),0) -> 0 | I131: =IFERROR(VLOOKUP($A131,Filtro!$A$4:$AM$2264,7,FALSE),0) -> 15086 | J131: =IFERROR(VLOOKUP($A131,Filtro!$A$4:$AM$2264,8,FALSE),0) -> 508 | K131: =IFERROR(VLOOKUP($A131,Filtro!$A$4:$AM$2264,9,FALSE),0) -> 605 | L131: =IFERROR(VLOOKUP($A131,Filtro!$A$4:$AM$2264,10,FALSE),0) -> 0 | M131: =IFERROR(VLOOKUP($A131,Filtro!$A$4:$AM$2264,11,FALSE),0) -> 0 | N131: =IFERROR(VLOOKUP($A131,Filtro!$A$4:$AM$2264,12,FALSE),0) -> 0 | O131: =IFERROR(VLOOKUP($A131,Filtro!$A$4:$AM$2264,13,FALSE),0) -> 0 | P131: =IFERROR(VLOOKUP($A131,Filtro!$A$4:$AM$2264,14,FALSE),0) -> 0 | Q131: =IFERROR(VLOOKUP($A131,Filtro!$A$4:$AM$2264,15,FALSE),0) -> 0 | R131: =IFERROR(VLOOKUP($A131,Filtro!$A$4:$AM$2264,16,FALSE),0) -> 0 | AB131: Beneficiarios no puede ser mayor al TOTAL | AG131: 1
A132: 17010800 | B132: VIII | C132: Ex. De Deposiciones Exudados. Secrec. y Otros Liq. | D132: =IFERROR(VLOOKUP($A132,Filtro!$A$4:$AM$2264,2,FALSE),0) -> 14399 | E132: =IFERROR(VLOOKUP($A132,Filtro!$A$4:$AM$2264,3,FALSE),0) -> 14293 | F132: =IFERROR(VLOOKUP($A132,Filtro!$A$4:$AM$2264,4,FALSE),0) -> 14292 | G132: =IFERROR(VLOOKUP($A132,Filtro!$A$4:$AM$2264,5,FALSE),0) -> 1 | H132: =IFERROR(VLOOKUP($A132,Filtro!$A$4:$AM$2264,6,FALSE),0) -> 106 | I132: =IFERROR(VLOOKUP($A132,Filtro!$A$4:$AM$2264,7,FALSE),0) -> 6577 | J132: =IFERROR(VLOOKUP($A132,Filtro!$A$4:$AM$2264,8,FALSE),0) -> 4311 | K132: =IFERROR(VLOOKUP($A132,Filtro!$A$4:$AM$2264,9,FALSE),0) -> 3507 | L132: =IFERROR(VLOOKUP($A132,Filtro!$A$4:$AM$2264,10,FALSE),0) -> 0 | M132: =IFERROR(VLOOKUP($A132,Filtro!$A$4:$AM$2264,11,FALSE),0) -> 86 | N132: =IFERROR(VLOOKUP($A132,Filtro!$A$4:$AM$2264,12,FALSE),0) -> 0 | O132: =IFERROR(VLOOKUP($A132,Filtro!$A$4:$AM$2264,13,FALSE),0) -> 0 | P132: =IFERROR(VLOOKUP($A132,Filtro!$A$4:$AM$2264,14,FALSE),0) -> 85 | Q132: =IFERROR(VLOOKUP($A132,Filtro!$A$4:$AM$2264,15,FALSE),0) -> 520 | R132: =IFERROR(VLOOKUP($A132,Filtro!$A$4:$AM$2264,16,FALSE),0) -> 170 | AB132: Beneficiarios no puede ser mayor al TOTAL | AG132: 1
A133: 17010900 | B133: IX | C133: Orina | D133: =IFERROR(VLOOKUP($A133,Filtro!$A$4:$AM$2264,2,FALSE),0) -> 250401 | E133: =IFERROR(VLOOKUP($A133,Filtro!$A$4:$AM$2264,3,FALSE),0) -> 249346 | F133: =IFERROR(VLOOKUP($A133,Filtro!$A$4:$AM$2264,4,FALSE),0) -> 249326 | G133: =IFERROR(VLOOKUP($A133,Filtro!$A$4:$AM$2264,5,FALSE),0) -> 20 | H133: =IFERROR(VLOOKUP($A133,Filtro!$A$4:$AM$2264,6,FALSE),0) -> 1055 | I133: =IFERROR(VLOOKUP($A133,Filtro!$A$4:$AM$2264,7,FALSE),0) -> 24152 | J133: =IFERROR(VLOOKUP($A133,Filtro!$A$4:$AM$2264,8,FALSE),0) -> 180188 | K133: =IFERROR(VLOOKUP($A133,Filtro!$A$4:$AM$2264,9,FALSE),0) -> 44741 | L133: =IFERROR(VLOOKUP($A133,Filtro!$A$4:$AM$2264,10,FALSE),0) -> 0 | M133: =IFERROR(VLOOKUP($A133,Filtro!$A$4:$AM$2264,11,FALSE),0) -> 12826 | N133: =IFERROR(VLOOKUP($A133,Filtro!$A$4:$AM$2264,12,FALSE),0) -> 0 | O133: =IFERROR(VLOOKUP($A133,Filtro!$A$4:$AM$2264,13,FALSE),0) -> 0 | P133: =IFERROR(VLOOKUP($A133,Filtro!$A$4:$AM$2264,14,FALSE),0) -> 56 | Q133: =IFERROR(VLOOKUP($A133,Filtro!$A$4:$AM$2264,15,FALSE),0) -> 1734 | R133: =IFERROR(VLOOKUP($A133,Filtro!$A$4:$AM$2264,16,FALSE),0) -> 39311 | AB133: Beneficiarios no puede ser mayor al TOTAL | AG133: 1
B134: TOTAL EXAMENES IMAGENOLOGIA | D134: =+D135+D136+D137+D138+D142+D143 -> 441607 | E134: =+E135+E136+E137+E138+E142+E143 -> 436949 | F134: 435554 | G134: 1395 | H134: 4658 | I134: 54022 | J134: 175592 | K134: 211425 | L134: 1882 | M134: 0 | N134: 122 | O134: 620 | P134: 0 | Q134: 2225 | R134: 99 | S134: 133825
A135: 17011001 | B135: I. a) | C135: Ex. Radiológicos Simples | D135: =IFERROR(VLOOKUP($A135,Filtro!$A$4:$AM$2264,2,FALSE),0) -> 254685 | E135: =IFERROR(VLOOKUP($A135,Filtro!$A$4:$AM$2264,3,FALSE),0) -> 251534 | F135: =IFERROR(VLOOKUP($A135,Filtro!$A$4:$AM$2264,4,FALSE),0) -> 250527 | G135: =IFERROR(VLOOKUP($A135,Filtro!$A$4:$AM$2264,5,FALSE),0) -> 1007 | H135: =IFERROR(VLOOKUP($A135,Filtro!$A$4:$AM$2264,6,FALSE),0) -> 3151 | I135: =IFERROR(VLOOKUP($A135,Filtro!$A$4:$AM$2264,7,FALSE),0) -> 25367 | J135: =IFERROR(VLOOKUP($A135,Filtro!$A$4:$AM$2264,8,FALSE),0) -> 90167 | K135: =IFERROR(VLOOKUP($A135,Filtro!$A$4:$AM$2264,9,FALSE),0) -> 138985 | L135: =IFERROR(VLOOKUP($A135,Filtro!$A$4:$AM$2264,10,FALSE),0) -> 82 | M135: =IFERROR(VLOOKUP($A135,Filtro!$A$4:$AM$2264,11,FALSE),0) -> 0 | N135: =IFERROR(VLOOKUP($A135,Filtro!$A$4:$AM$2264,12,FALSE),0) -> 82 | O135: =IFERROR(VLOOKUP($A135,Filtro!$A$4:$AM$2264,13,FALSE),0) -> 267 | P135: =IFERROR(VLOOKUP($A135,Filtro!$A$4:$AM$2264,14,FALSE),0) -> 0 | Q135: =IFERROR(VLOOKUP($A135,Filtro!$A$4:$AM$2264,15,FALSE),0) -> 604 | R135: =IFERROR(VLOOKUP($A135,Filtro!$A$4:$AM$2264,16,FALSE),0) -> 99 | S135: =IFERROR(VLOOKUP($A135,Filtro!$A$4:$AM$2264,17,FALSE),0) -> 58280 | AB135: Beneficiarios no puede ser mayor al TOTAL | AG135: 1
A136: 17011002 | B136: I. b) | C136: Ex. Radiológicos Complejos | D136: =IFERROR(VLOOKUP($A136,Filtro!$A$4:$AM$2264,2,FALSE),0) -> 570 | E136: =IFERROR(VLOOKUP($A136,Filtro!$A$4:$AM$2264,3,FALSE),0) -> 565 | F136: =IFERROR(VLOOKUP($A136,Filtro!$A$4:$AM$2264,4,FALSE),0) -> 564 | G136: =IFERROR(VLOOKUP($A136,Filtro!$A$4:$AM$2264,5,FALSE),0) -> 1 | H136: =IFERROR(VLOOKUP($A136,Filtro!$A$4:$AM$2264,6,FALSE),0) -> 5 | I136: =IFERROR(VLOOKUP($A136,Filtro!$A$4:$AM$2264,7,FALSE),0) -> 342 | J136: =IFERROR(VLOOKUP($A136,Filtro!$A$4:$AM$2264,8,FALSE),0) -> 222 | K136: =IFERROR(VLOOKUP($A136,Filtro!$A$4:$AM$2264,9,FALSE),0) -> 6 | L136: =IFERROR(VLOOKUP($A136,Filtro!$A$4:$AM$2264,10,FALSE),0) -> 20 | M136: =IFERROR(VLOOKUP($A136,Filtro!$A$4:$AM$2264,11,FALSE),0) -> 0 | N136: =IFERROR(VLOOKUP($A136,Filtro!$A$4:$AM$2264,12,FALSE),0) -> 3 | O136: =IFERROR(VLOOKUP($A136,Filtro!$A$4:$AM$2264,13,FALSE),0) -> 0 | P136: =IFERROR(VLOOKUP($A136,Filtro!$A$4:$AM$2264,14,FALSE),0) -> 0 | Q136: =IFERROR(VLOOKUP($A136,Filtro!$A$4:$AM$2264,15,FALSE),0) -> 1 | R136: =IFERROR(VLOOKUP($A136,Filtro!$A$4:$AM$2264,16,FALSE),0) -> 0 | S136: =IFERROR(VLOOKUP($A136,Filtro!$A$4:$AM$2264,17,FALSE),0) -> 352 | AB136: Beneficiarios no puede ser mayor al TOTAL | AG136: 1
A137: 17011003 | B137: II. | C137: Tomografía Axial Comp. | D137: =IFERROR(VLOOKUP($A137,Filtro!$A$4:$AM$2264,2,FALSE),0) -> 92168 | E137: =IFERROR(VLOOKUP($A137,Filtro!$A$4:$AM$2264,3,FALSE),0) -> 91134 | F137: =IFERROR(VLOOKUP($A137,Filtro!$A$4:$AM$2264,4,FALSE),0) -> 91134 | G137: =IFERROR(VLOOKUP($A137,Filtro!$A$4:$AM$2264,5,FALSE),0) -> 0 | H137: =IFERROR(VLOOKUP($A137,Filtro!$A$4:$AM$2264,6,FALSE),0) -> 1034 | I137: =IFERROR(VLOOKUP($A137,Filtro!$A$4:$AM$2264,7,FALSE),0) -> 17235 | J137: =IFERROR(VLOOKUP($A137,Filtro!$A$4:$AM$2264,8,FALSE),0) -> 24718 | K137: =IFERROR(VLOOKUP($A137,Filtro!$A$4:$AM$2264,9,FALSE),0) -> 50214 | L137: =IFERROR(VLOOKUP($A137,Filtro!$A$4:$AM$2264,10,FALSE),0) -> 0 | M137: =IFERROR(VLOOKUP($A137,Filtro!$A$4:$AM$2264,11,FALSE),0) -> 0 | N137: =IFERROR(VLOOKUP($A137,Filtro!$A$4:$AM$2264,12,FALSE),0) -> 0 | O137: =IFERROR(VLOOKUP($A137,Filtro!$A$4:$AM$2264,13,FALSE),0) -> 0 | P137: =IFERROR(VLOOKUP($A137,Filtro!$A$4:$AM$2264,14,FALSE),0) -> 0 | Q137: =IFERROR(VLOOKUP($A137,Filtro!$A$4:$AM$2264,15,FALSE),0) -> 1 | R137: =IFERROR(VLOOKUP($A137,Filtro!$A$4:$AM$2264,16,FALSE),0) -> 0 | S137: =IFERROR(VLOOKUP($A137,Filtro!$A$4:$AM$2264,17,FALSE),0) -> 31899 | AB137: Beneficiarios no puede ser mayor al TOTAL | AG137: 1
B138: III | C138: Ultrasonografía | D138: =SUM(D139:D141) -> 84788 | E138: 84320 | F138: 83933 | G138: 387 | H138: 468 | I138: 8638 | J138: 54277 | K138: 21472 | L138: 1780 | M138: 0 | N138: 37 | O138: 353 | P138: 0 | Q138: 825 | R138: 0 | S138: 38864 | AG138: 0
A139: 17011004 | C139: Ecotomografias ( Sin Ecografía Obstetr. Y Abdominal ) | D139: =IFERROR(VLOOKUP($A139,Filtro!$A$4:$AM$2264,2,FALSE),0) -> 61592 | E139: =IFERROR(VLOOKUP($A139,Filtro!$A$4:$AM$2264,3,FALSE),0) -> 61247 | F139: =IFERROR(VLOOKUP($A139,Filtro!$A$4:$AM$2264,4,FALSE),0) -> 60885 | G139: =IFERROR(VLOOKUP($A139,Filtro!$A$4:$AM$2264,5,FALSE),0) -> 362 | H139: =IFERROR(VLOOKUP($A139,Filtro!$A$4:$AM$2264,6,FALSE),0) -> 345 | I139: =IFERROR(VLOOKUP($A139,Filtro!$A$4:$AM$2264,7,FALSE),0) -> 6709 | J139: =IFERROR(VLOOKUP($A139,Filtro!$A$4:$AM$2264,8,FALSE),0) -> 41833 | K139: =IFERROR(VLOOKUP($A139,Filtro!$A$4:$AM$2264,9,FALSE),0) -> 12918 | L139: =IFERROR(VLOOKUP($A139,Filtro!$A$4:$AM$2264,10,FALSE),0) -> 1453 | M139: =IFERROR(VLOOKUP($A139,Filtro!$A$4:$AM$2264,11,FALSE),0) -> 0 | N139: =IFERROR(VLOOKUP($A139,Filtro!$A$4:$AM$2264,12,FALSE),0) -> 37 | O139: =IFERROR(VLOOKUP($A139,Filtro!$A$4:$AM$2264,13,FALSE),0) -> 173 | P139: =IFERROR(VLOOKUP($A139,Filtro!$A$4:$AM$2264,14,FALSE),0) -> 0 | Q139: =IFERROR(VLOOKUP($A139,Filtro!$A$4:$AM$2264,15,FALSE),0) -> 416 | R139: =IFERROR(VLOOKUP($A139,Filtro!$A$4:$AM$2264,16,FALSE),0) -> 0 | S139: =IFERROR(VLOOKUP($A139,Filtro!$A$4:$AM$2264,17,FALSE),0) -> 30258 | AB139: Beneficiarios no puede ser mayor al TOTAL | AG139: 1
A140: 17011005 | C140: Ecografías Obstétricas | D140: =IFERROR(VLOOKUP($A140,Filtro!$A$4:$AM$2264,2,FALSE),0) -> 15381 | E140: =IFERROR(VLOOKUP($A140,Filtro!$A$4:$AM$2264,3,FALSE),0) -> 15311 | F140: =IFERROR(VLOOKUP($A140,Filtro!$A$4:$AM$2264,4,FALSE),0) -> 15311 | G140: =IFERROR(VLOOKUP($A140,Filtro!$A$4:$AM$2264,5,FALSE),0) -> 0 | H140: =IFERROR(VLOOKUP($A140,Filtro!$A$4:$AM$2264,6,FALSE),0) -> 70 | I140: =IFERROR(VLOOKUP($A140,Filtro!$A$4:$AM$2264,7,FALSE),0) -> 512 | J140: =IFERROR(VLOOKUP($A140,Filtro!$A$4:$AM$2264,8,FALSE),0) -> 7722 | K140: =IFERROR(VLOOKUP($A140,Filtro!$A$4:$AM$2264,9,FALSE),0) -> 6878 | L140: =IFERROR(VLOOKUP($A140,Filtro!$A$4:$AM$2264,10,FALSE),0) -> 0 | M140: =IFERROR(VLOOKUP($A140,Filtro!$A$4:$AM$2264,11,FALSE),0) -> 0 | N140: =IFERROR(VLOOKUP($A140,Filtro!$A$4:$AM$2264,12,FALSE),0) -> 0 | O140: =IFERROR(VLOOKUP($A140,Filtro!$A$4:$AM$2264,13,FALSE),0) -> 0 | P140: =IFERROR(VLOOKUP($A140,Filtro!$A$4:$AM$2264,14,FALSE),0) -> 0 | Q140: =IFERROR(VLOOKUP($A140,Filtro!$A$4:$AM$2264,15,FALSE),0) -> 34 | R140: =IFERROR(VLOOKUP($A140,Filtro!$A$4:$AM$2264,16,FALSE),0) -> 0 | S140: =IFERROR(VLOOKUP($A140,Filtro!$A$4:$AM$2264,17,FALSE),0) -> 4918 | AB140: Beneficiarios no puede ser mayor al TOTAL | AG140: 1
A141: 17181000 | C141: Ecotomografias abdominal | D141: =IFERROR(VLOOKUP($A141,Filtro!$A$4:$AM$2264,2,FALSE),0) -> 7815 | E141: =IFERROR(VLOOKUP($A141,Filtro!$A$4:$AM$2264,3,FALSE),0) -> 7762 | F141: =IFERROR(VLOOKUP($A141,Filtro!$A$4:$AM$2264,4,FALSE),0) -> 7737 | G141: =IFERROR(VLOOKUP($A141,Filtro!$A$4:$AM$2264,5,FALSE),0) -> 25 | H141: =IFERROR(VLOOKUP($A141,Filtro!$A$4:$AM$2264,6,FALSE),0) -> 53 | I141: =IFERROR(VLOOKUP($A141,Filtro!$A$4:$AM$2264,7,FALSE),0) -> 1417 | J141: =IFERROR(VLOOKUP($A141,Filtro!$A$4:$AM$2264,8,FALSE),0) -> 4722 | K141: =IFERROR(VLOOKUP($A141,Filtro!$A$4:$AM$2264,9,FALSE),0) -> 1676 | L141: =IFERROR(VLOOKUP($A141,Filtro!$A$4:$AM$2264,10,FALSE),0) -> 327 | M141: =IFERROR(VLOOKUP($A141,Filtro!$A$4:$AM$2264,11,FALSE),0) -> 0 | N141: =IFERROR(VLOOKUP($A141,Filtro!$A$4:$AM$2264,12,FALSE),0) -> 0 | O141: =IFERROR(VLOOKUP($A141,Filtro!$A$4:$AM$2264,13,FALSE),0) -> 180 | P141: =IFERROR(VLOOKUP($A141,Filtro!$A$4:$AM$2264,14,FALSE),0) -> 0 | Q141: =IFERROR(VLOOKUP($A141,Filtro!$A$4:$AM$2264,15,FALSE),0) -> 375 | R141: =IFERROR(VLOOKUP($A141,Filtro!$A$4:$AM$2264,16,FALSE),0) -> 0 | S141: =IFERROR(VLOOKUP($A141,Filtro!$A$4:$AM$2264,17,FALSE),0) -> 3688 | AB141: Beneficiarios no puede ser mayor al TOTAL | AG141: 1
A142: 17019999 | B142: IV | C142: Resonancia Magnética | D142: =IFERROR(VLOOKUP($A142,Filtro!$A$4:$AM$2264,2,FALSE),0) -> 9021 | E142: =IFERROR(VLOOKUP($A142,Filtro!$A$4:$AM$2264,3,FALSE),0) -> 9021 | F142: =IFERROR(VLOOKUP($A142,Filtro!$A$4:$AM$2264,4,FALSE),0) -> 9021 | G142: =IFERROR(VLOOKUP($A142,Filtro!$A$4:$AM$2264,5,FALSE),0) -> 0 | H142: =IFERROR(VLOOKUP($A142,Filtro!$A$4:$AM$2264,6,FALSE),0) -> 0 | I142: =IFERROR(VLOOKUP($A142,Filtro!$A$4:$AM$2264,7,FALSE),0) -> 2425 | J142: =IFERROR(VLOOKUP($A142,Filtro!$A$4:$AM$2264,8,FALSE),0) -> 5848 | K142: =IFERROR(VLOOKUP($A142,Filtro!$A$4:$AM$2264,9,FALSE),0) -> 748 | L142: =IFERROR(VLOOKUP($A142,Filtro!$A$4:$AM$2264,10,FALSE),0) -> 0 | M142: =IFERROR(VLOOKUP($A142,Filtro!$A$4:$AM$2264,11,FALSE),0) -> 0 | N142: =IFERROR(VLOOKUP($A142,Filtro!$A$4:$AM$2264,12,FALSE),0) -> 0 | O142: =IFERROR(VLOOKUP($A142,Filtro!$A$4:$AM$2264,13,FALSE),0) -> 0 | P142: =IFERROR(VLOOKUP($A142,Filtro!$A$4:$AM$2264,14,FALSE),0) -> 0 | Q142: =IFERROR(VLOOKUP($A142,Filtro!$A$4:$AM$2264,15,FALSE),0) -> 794 | R142: =IFERROR(VLOOKUP($A142,Filtro!$A$4:$AM$2264,16,FALSE),0) -> 0 | S142: =IFERROR(VLOOKUP($A142,Filtro!$A$4:$AM$2264,17,FALSE),0) -> 4430 | AB142: Beneficiarios no puede ser mayor al TOTAL | AG142: 1
A143: 17200110 | C143: Otros Exámenes de Imágenes | D143: =IFERROR(VLOOKUP($A143,Filtro!$A$4:$AM$2264,2,FALSE),0) -> 375 | E143: =IFERROR(VLOOKUP($A143,Filtro!$A$4:$AM$2264,3,FALSE),0) -> 375 | F143: =IFERROR(VLOOKUP($A143,Filtro!$A$4:$AM$2264,4,FALSE),0) -> 375 | G143: =IFERROR(VLOOKUP($A143,Filtro!$A$4:$AM$2264,5,FALSE),0) -> 0 | H143: =IFERROR(VLOOKUP($A143,Filtro!$A$4:$AM$2264,6,FALSE),0) -> 0 | I143: =IFERROR(VLOOKUP($A143,Filtro!$A$4:$AM$2264,7,FALSE),0) -> 15 | J143: =IFERROR(VLOOKUP($A143,Filtro!$A$4:$AM$2264,8,FALSE),0) -> 360 | K143: =IFERROR(VLOOKUP($A143,Filtro!$A$4:$AM$2264,9,FALSE),0) -> 0 | L143: =IFERROR(VLOOKUP($A143,Filtro!$A$4:$AM$2264,10,FALSE),0) -> 0 | M143: =IFERROR(VLOOKUP($A143,Filtro!$A$4:$AM$2264,11,FALSE),0) -> 0 | N143: =IFERROR(VLOOKUP($A143,Filtro!$A$4:$AM$2264,12,FALSE),0) -> 0 | O143: =IFERROR(VLOOKUP($A143,Filtro!$A$4:$AM$2264,13,FALSE),0) -> 0 | P143: =IFERROR(VLOOKUP($A143,Filtro!$A$4:$AM$2264,14,FALSE),0) -> 0 | Q143: =IFERROR(VLOOKUP($A143,Filtro!$A$4:$AM$2264,15,FALSE),0) -> 0 | R143: =IFERROR(VLOOKUP($A143,Filtro!$A$4:$AM$2264,16,FALSE),0) -> 0 | AB143: Beneficiarios no puede ser mayor al TOTAL | AG143: 1
A144: 17200120 | B144: Toma de Muestras | D144: =IFERROR(VLOOKUP($A144,Filtro!$A$4:$AM$2264,2,FALSE),0) -> 171503 | E144: =IFERROR(VLOOKUP($A144,Filtro!$A$4:$AM$2264,3,FALSE),0) -> 171015 | F144: =IFERROR(VLOOKUP($A144,Filtro!$A$4:$AM$2264,4,FALSE),0) -> 170770 | G144: =IFERROR(VLOOKUP($A144,Filtro!$A$4:$AM$2264,5,FALSE),0) -> 245 | H144: =IFERROR(VLOOKUP($A144,Filtro!$A$4:$AM$2264,6,FALSE),0) -> 488 | I144: =IFERROR(VLOOKUP($A144,Filtro!$A$4:$AM$2264,7,FALSE),0) -> 10422 | J144: =IFERROR(VLOOKUP($A144,Filtro!$A$4:$AM$2264,8,FALSE),0) -> 147880 | K144: =IFERROR(VLOOKUP($A144,Filtro!$A$4:$AM$2264,9,FALSE),0) -> 10930 | L144: =IFERROR(VLOOKUP($A144,Filtro!$A$4:$AM$2264,10,FALSE),0) -> 0 | M144: =IFERROR(VLOOKUP($A144,Filtro!$A$4:$AM$2264,11,FALSE),0) -> 0 | N144: =IFERROR(VLOOKUP($A144,Filtro!$A$4:$AM$2264,12,FALSE),0) -> 0 | O144: =IFERROR(VLOOKUP($A144,Filtro!$A$4:$AM$2264,13,FALSE),0) -> 0 | P144: =IFERROR(VLOOKUP($A144,Filtro!$A$4:$AM$2264,14,FALSE),0) -> 0 | Q144: =IFERROR(VLOOKUP($A144,Filtro!$A$4:$AM$2264,15,FALSE),0) -> 0 | R144: =IFERROR(VLOOKUP($A144,Filtro!$A$4:$AM$2264,16,FALSE),0) -> 0 | AB144: Beneficiarios no puede ser mayor al TOTAL | AG144: 1
A145: 99999991 | B145: Exámenes Anatomía Patológica | D145: =IFERROR(VLOOKUP($A145,Filtro!$A$4:$AM$2264,2,FALSE),0) -> 120349 | E145: =IFERROR(VLOOKUP($A145,Filtro!$A$4:$AM$2264,3,FALSE),0) -> 120327 | F145: =IFERROR(VLOOKUP($A145,Filtro!$A$4:$AM$2264,4,FALSE),0) -> 120327 | G145: =IFERROR(VLOOKUP($A145,Filtro!$A$4:$AM$2264,5,FALSE),0) -> 0 | H145: =IFERROR(VLOOKUP($A145,Filtro!$A$4:$AM$2264,6,FALSE),0) -> 22 | I145: =IFERROR(VLOOKUP($A145,Filtro!$A$4:$AM$2264,7,FALSE),0) -> 24134 | J145: =IFERROR(VLOOKUP($A145,Filtro!$A$4:$AM$2264,8,FALSE),0) -> 96147 | K145: =IFERROR(VLOOKUP($A145,Filtro!$A$4:$AM$2264,9,FALSE),0) -> 57 | L145: =IFERROR(VLOOKUP($A145,Filtro!$A$4:$AM$2264,10,FALSE),0) -> 1607 | M145: =IFERROR(VLOOKUP($A145,Filtro!$A$4:$AM$2264,11,FALSE),0) -> 2 | N145: =IFERROR(VLOOKUP($A145,Filtro!$A$4:$AM$2264,12,FALSE),0) -> 0 | O145: =IFERROR(VLOOKUP($A145,Filtro!$A$4:$AM$2264,13,FALSE),0) -> 0 | P145: =IFERROR(VLOOKUP($A145,Filtro!$A$4:$AM$2264,14,FALSE),0) -> 4209 | Q145: =IFERROR(VLOOKUP($A145,Filtro!$A$4:$AM$2264,15,FALSE),0) -> 1132 | R145: =IFERROR(VLOOKUP($A145,Filtro!$A$4:$AM$2264,16,FALSE),0) -> 0 | AB145: Beneficiarios no puede ser mayor al TOTAL | AG145: 1
B146: SECCION J: MEDICINA NUCLEAR Y RADIOTERAPIA
B147: TIPO DE PROCEDIMIENTO | D147: TOTAL | E147: PROCEDIMIENTOS | I147: PROCEDENCIA | L147: PRODUCCION INTRA HOSPITAL | O147: OPERATIVO | P147: COMPRAS REALIZADAS | R147: VENTAS DE SERVICIOS
E148: TOTAL Beneficiarios | F148: Beneficiarios | H148: No Beneficiarios | I148: Atención Cerrada | J148: Atención Abierta | K148: Emergencia | L148: Por Honorarios | M148: Por Convenios | N148: Por Consultores de llamada | P148: Al Sistema | Q148: Extrasistema
F149: MAI | G149: MLE
A150: 17400370 | B150: Medicina Nuclear | D150: =IFERROR(VLOOKUP($A150,Filtro!$A$4:$AM$2264,2,FALSE),0) -> 0 | E150: =IFERROR(VLOOKUP($A150,Filtro!$A$4:$AM$2264,3,FALSE),0) -> 0 | F150: =IFERROR(VLOOKUP($A150,Filtro!$A$4:$AM$2264,4,FALSE),0) -> 0 | G150: =IFERROR(VLOOKUP($A150,Filtro!$A$4:$AM$2264,5,FALSE),0) -> 0 | H150: =IFERROR(VLOOKUP($A150,Filtro!$A$4:$AM$2264,6,FALSE),0) -> 0 | I150: =IFERROR(VLOOKUP($A150,Filtro!$A$4:$AM$2264,7,FALSE),0) -> 0 | J150: =IFERROR(VLOOKUP($A150,Filtro!$A$4:$AM$2264,8,FALSE),0) -> 0 | K150: =IFERROR(VLOOKUP($A150,Filtro!$A$4:$AM$2264,9,FALSE),0) -> 0 | L150: =IFERROR(VLOOKUP($A150,Filtro!$A$4:$AM$2264,10,FALSE),0) -> 0 | M150: =IFERROR(VLOOKUP($A150,Filtro!$A$4:$AM$2264,11,FALSE),0) -> 0 | N150: =IFERROR(VLOOKUP($A150,Filtro!$A$4:$AM$2264,12,FALSE),0) -> 0 | O150: =IFERROR(VLOOKUP($A150,Filtro!$A$4:$AM$2264,13,FALSE),0) -> 0 | P150: =IFERROR(VLOOKUP($A150,Filtro!$A$4:$AM$2264,14,FALSE),0) -> 0 | Q150: =IFERROR(VLOOKUP($A150,Filtro!$A$4:$AM$2264,15,FALSE),0) -> 929 | R150: =IFERROR(VLOOKUP($A150,Filtro!$A$4:$AM$2264,16,FALSE),0) -> 0 | S150: =IFERROR(VLOOKUP($A150,Filtro!$A$4:$AM$2264,16,FALSE),0) -> 0
A151: 17020301 | B151: Braquiterapia | D151: =IFERROR(VLOOKUP($A151,Filtro!$A$4:$AM$2264,2,FALSE),0) -> 0 | E151: =IFERROR(VLOOKUP($A151,Filtro!$A$4:$AM$2264,3,FALSE),0) -> 0 | F151: =IFERROR(VLOOKUP($A151,Filtro!$A$4:$AM$2264,4,FALSE),0) -> 0 | G151: =IFERROR(VLOOKUP($A151,Filtro!$A$4:$AM$2264,5,FALSE),0) -> 0 | H151: =IFERROR(VLOOKUP($A151,Filtro!$A$4:$AM$2264,6,FALSE),0) -> 0 | I151: =IFERROR(VLOOKUP($A151,Filtro!$A$4:$AM$2264,7,FALSE),0) -> 0 | J151: =IFERROR(VLOOKUP($A151,Filtro!$A$4:$AM$2264,8,FALSE),0) -> 0 | K151: =IFERROR(VLOOKUP($A151,Filtro!$A$4:$AM$2264,9,FALSE),0) -> 0 | L151: =IFERROR(VLOOKUP($A151,Filtro!$A$4:$AM$2264,10,FALSE),0) -> 0 | M151: =IFERROR(VLOOKUP($A151,Filtro!$A$4:$AM$2264,11,FALSE),0) -> 0 | N151: =IFERROR(VLOOKUP($A151,Filtro!$A$4:$AM$2264,12,FALSE),0) -> 0 | O151: =IFERROR(VLOOKUP($A151,Filtro!$A$4:$AM$2264,13,FALSE),0) -> 0 | P151: =IFERROR(VLOOKUP($A151,Filtro!$A$4:$AM$2264,14,FALSE),0) -> 0 | Q151: =IFERROR(VLOOKUP($A151,Filtro!$A$4:$AM$2264,15,FALSE),0) -> 0 | R151: =IFERROR(VLOOKUP($A151,Filtro!$A$4:$AM$2264,16,FALSE),0) -> 0 | S151: =IFERROR(VLOOKUP($A151,Filtro!$A$4:$AM$2264,15,FALSE),0) -> 0
A152: '99200140 | B152: Radioterapia | D152: =IFERROR(VLOOKUP($A152,Filtro!$A$4:$AM$2264,2,FALSE),0) -> 0 | E152: =IFERROR(VLOOKUP($A152,Filtro!$A$4:$AM$2264,3,FALSE),0) -> 0 | F152: =IFERROR(VLOOKUP($A152,Filtro!$A$4:$AM$2264,4,FALSE),0) -> 0 | G152: =IFERROR(VLOOKUP($A152,Filtro!$A$4:$AM$2264,5,FALSE),0) -> 0 | H152: =IFERROR(VLOOKUP($A152,Filtro!$A$4:$AM$2264,6,FALSE),0) -> 0 | I152: =IFERROR(VLOOKUP($A152,Filtro!$A$4:$AM$2264,7,FALSE),0) -> 0 | J152: =IFERROR(VLOOKUP($A152,Filtro!$A$4:$AM$2264,8,FALSE),0) -> 0 | K152: =IFERROR(VLOOKUP($A152,Filtro!$A$4:$AM$2264,9,FALSE),0) -> 0 | L152: =IFERROR(VLOOKUP($A152,Filtro!$A$4:$AM$2264,10,FALSE),0) -> 0 | M152: =IFERROR(VLOOKUP($A152,Filtro!$A$4:$AM$2264,11,FALSE),0) -> 0 | N152: =IFERROR(VLOOKUP($A152,Filtro!$A$4:$AM$2264,12,FALSE),0) -> 0 | O152: =IFERROR(VLOOKUP($A152,Filtro!$A$4:$AM$2264,13,FALSE),0) -> 0 | P152: =IFERROR(VLOOKUP($A152,Filtro!$A$4:$AM$2264,14,FALSE),0) -> 0 | Q152: =IFERROR(VLOOKUP($A152,Filtro!$A$4:$AM$2264,15,FALSE),0) -> 0 | R152: =IFERROR(VLOOKUP($A152,Filtro!$A$4:$AM$2264,16,FALSE),0) -> 0
A153: 17400381 | B153: Quimioterapia | D153: =IFERROR(VLOOKUP($A153,Filtro!$A$4:$AM$2264,2,FALSE),0) -> 2452 | E153: =IFERROR(VLOOKUP($A153,Filtro!$A$4:$AM$2264,3,FALSE),0) -> 2445 | F153: =IFERROR(VLOOKUP($A153,Filtro!$A$4:$AM$2264,4,FALSE),0) -> 2445 | G153: =IFERROR(VLOOKUP($A153,Filtro!$A$4:$AM$2264,5,FALSE),0) -> 0 | H153: =IFERROR(VLOOKUP($A153,Filtro!$A$4:$AM$2264,6,FALSE),0) -> 7 | I153: =IFERROR(VLOOKUP($A153,Filtro!$A$4:$AM$2264,7,FALSE),0) -> 4 | J153: =IFERROR(VLOOKUP($A153,Filtro!$A$4:$AM$2264,8,FALSE),0) -> 2448 | K153: =IFERROR(VLOOKUP($A153,Filtro!$A$4:$AM$2264,9,FALSE),0) -> 0 | L153: =IFERROR(VLOOKUP($A153,Filtro!$A$4:$AM$2264,10,FALSE),0) -> 0 | M153: =IFERROR(VLOOKUP($A153,Filtro!$A$4:$AM$2264,11,FALSE),0) -> 0 | N153: =IFERROR(VLOOKUP($A153,Filtro!$A$4:$AM$2264,12,FALSE),0) -> 0 | O153: =IFERROR(VLOOKUP($A153,Filtro!$A$4:$AM$2264,13,FALSE),0) -> 0 | P153: =IFERROR(VLOOKUP($A153,Filtro!$A$4:$AM$2264,14,FALSE),0) -> 0 | Q153: =IFERROR(VLOOKUP($A153,Filtro!$A$4:$AM$2264,15,FALSE),0) -> 0 | R153: =IFERROR(VLOOKUP($A153,Filtro!$A$4:$AM$2264,16,FALSE),0) -> 0
A154: 99200150 | B154: Radiocirugía | D154: =IFERROR(VLOOKUP($A154,Filtro!$A$4:$AM$2264,2,FALSE),0) -> 0 | E154: =IFERROR(VLOOKUP($A154,Filtro!$A$4:$AM$2264,3,FALSE),0) -> 0 | F154: =IFERROR(VLOOKUP($A154,Filtro!$A$4:$AM$2264,4,FALSE),0) -> 0 | G154: =IFERROR(VLOOKUP($A154,Filtro!$A$4:$AM$2264,5,FALSE),0) -> 0 | H154: =IFERROR(VLOOKUP($A154,Filtro!$A$4:$AM$2264,6,FALSE),0) -> 0 | I154: =IFERROR(VLOOKUP($A154,Filtro!$A$4:$AM$2264,7,FALSE),0) -> 0 | J154: =IFERROR(VLOOKUP($A154,Filtro!$A$4:$AM$2264,8,FALSE),0) -> 0 | K154: =IFERROR(VLOOKUP($A154,Filtro!$A$4:$AM$2264,9,FALSE),0) -> 0 | L154: =IFERROR(VLOOKUP($A154,Filtro!$A$4:$AM$2264,10,FALSE),0) -> 0 | M154: =IFERROR(VLOOKUP($A154,Filtro!$A$4:$AM$2264,11,FALSE),0) -> 0 | N154: =IFERROR(VLOOKUP($A154,Filtro!$A$4:$AM$2264,12,FALSE),0) -> 0 | O154: =IFERROR(VLOOKUP($A154,Filtro!$A$4:$AM$2264,13,FALSE),0) -> 0 | P154: =IFERROR(VLOOKUP($A154,Filtro!$A$4:$AM$2264,14,FALSE),0) -> 0 | Q154: =IFERROR(VLOOKUP($A154,Filtro!$A$4:$AM$2264,15,FALSE),0) -> 0 | R154: =IFERROR(VLOOKUP($A154,Filtro!$A$4:$AM$2264,16,FALSE),0) -> 0
B155: TOTAL | D155: =SUM(D150:D154) -> 2452 | E155: =SUM(E150:E154) -> 2445 | F155: 2445 | G155: 0 | H155: 7 | I155: 4 | J155: 2448 | K155: 0 | L155: 0 | M155: 0 | N155: 0 | O155: 0 | P155: 0 | Q155: 929 | R155: 0
B156: SECCION K: HEMODIÁLISIS
B157: HEMODIÁLISIS | D157: TOTAL | E157: PROCEDIMIENTOS | I157: PROCEDENCIA | L157: PRODUCCION INTRA HOSPITAL | O157: OPERATIVO | P157: COMPRAS REALIZADAS | R157: VENTAS DE SERVICIOS
E158: TOTAL Beneficiarios | F158: Beneficiarios | H158: No Beneficiarios | I158: Atención Cerrada | J158: Atención Abierta | K158: Emergencia | L158: Por Honorarios | M158: Por Convenios | N158: Por Consultores de llamada | P158: Al Sistema | Q158: Extrasistema
F159: MAI | G159: MLE
A160: 17040200 | B160: 1901025 | C160: Peritoneodiálisis por sesión (incluye insumos) | D160: =IFERROR(VLOOKUP($A160,Filtro!$A$4:$AM$2264,2,FALSE),0) -> 561 | E160: =IFERROR(VLOOKUP($A160,Filtro!$A$4:$AM$2264,3,FALSE),0) -> 561 | F160: =IFERROR(VLOOKUP($A160,Filtro!$A$4:$AM$2264,4,FALSE),0) -> 561 | G160: =IFERROR(VLOOKUP($A160,Filtro!$A$4:$AM$2264,5,FALSE),0) -> 0 | H160: =IFERROR(VLOOKUP($A160,Filtro!$A$4:$AM$2264,6,FALSE),0) -> 0 | I160: =IFERROR(VLOOKUP($A160,Filtro!$A$4:$AM$2264,7,FALSE),0) -> 0 | J160: =IFERROR(VLOOKUP($A160,Filtro!$A$4:$AM$2264,8,FALSE),0) -> 561 | K160: =IFERROR(VLOOKUP($A160,Filtro!$A$4:$AM$2264,9,FALSE),0) -> 0 | L160: =IFERROR(VLOOKUP($A160,Filtro!$A$4:$AM$2264,10,FALSE),0) -> 0 | M160: =IFERROR(VLOOKUP($A160,Filtro!$A$4:$AM$2264,11,FALSE),0) -> 0 | N160: =IFERROR(VLOOKUP($A160,Filtro!$A$4:$AM$2264,12,FALSE),0) -> 0 | O160: =IFERROR(VLOOKUP($A160,Filtro!$A$4:$AM$2264,13,FALSE),0) -> 0 | P160: =IFERROR(VLOOKUP($A160,Filtro!$A$4:$AM$2264,14,FALSE),0) -> 0 | Q160: =IFERROR(VLOOKUP($A160,Filtro!$A$4:$AM$2264,15,FALSE),0) -> 0 | R160: =IFERROR(VLOOKUP($A160,Filtro!$A$4:$AM$2264,16,FALSE),0) -> 0
A161: 17200140 | B161: 1901026 | C161: Peritoneodiálisis continua en paciente crónico (adulto o niños) (tratamiento mensual) | D161: =IFERROR(VLOOKUP($A161,Filtro!$A$4:$AM$2264,2,FALSE),0) -> 265 | E161: =IFERROR(VLOOKUP($A161,Filtro!$A$4:$AM$2264,3,FALSE),0) -> 265 | F161: =IFERROR(VLOOKUP($A161,Filtro!$A$4:$AM$2264,4,FALSE),0) -> 265 | G161: =IFERROR(VLOOKUP($A161,Filtro!$A$4:$AM$2264,5,FALSE),0) -> 0 | H161: =IFERROR(VLOOKUP($A161,Filtro!$A$4:$AM$2264,6,FALSE),0) -> 0 | I161: =IFERROR(VLOOKUP($A161,Filtro!$A$4:$AM$2264,7,FALSE),0) -> 0 | J161: =IFERROR(VLOOKUP($A161,Filtro!$A$4:$AM$2264,8,FALSE),0) -> 265 | K161: =IFERROR(VLOOKUP($A161,Filtro!$A$4:$AM$2264,9,FALSE),0) -> 0 | L161: =IFERROR(VLOOKUP($A161,Filtro!$A$4:$AM$2264,10,FALSE),0) -> 0 | M161: =IFERROR(VLOOKUP($A161,Filtro!$A$4:$AM$2264,11,FALSE),0) -> 0 | N161: =IFERROR(VLOOKUP($A161,Filtro!$A$4:$AM$2264,12,FALSE),0) -> 0 | O161: =IFERROR(VLOOKUP($A161,Filtro!$A$4:$AM$2264,13,FALSE),0) -> 0 | P161: =IFERROR(VLOOKUP($A161,Filtro!$A$4:$AM$2264,14,FALSE),0) -> 0 | Q161: =IFERROR(VLOOKUP($A161,Filtro!$A$4:$AM$2264,15,FALSE),0) -> 0 | R161: =IFERROR(VLOOKUP($A161,Filtro!$A$4:$AM$2264,16,FALSE),0) -> 0
A162: 17190440 | B162: 1901126 | C162: Instalación de Catéter para Peritoneodiálisis | D162: =IFERROR(VLOOKUP($A162,Filtro!$A$4:$AM$2264,2,FALSE),0) -> 6 | E162: =IFERROR(VLOOKUP($A162,Filtro!$A$4:$AM$2264,3,FALSE),0) -> 6 | F162: =IFERROR(VLOOKUP($A162,Filtro!$A$4:$AM$2264,4,FALSE),0) -> 6 | G162: =IFERROR(VLOOKUP($A162,Filtro!$A$4:$AM$2264,5,FALSE),0) -> 0 | H162: =IFERROR(VLOOKUP($A162,Filtro!$A$4:$AM$2264,6,FALSE),0) -> 0 | I162: =IFERROR(VLOOKUP($A162,Filtro!$A$4:$AM$2264,7,FALSE),0) -> 3 | J162: =IFERROR(VLOOKUP($A162,Filtro!$A$4:$AM$2264,8,FALSE),0) -> 1 | K162: =IFERROR(VLOOKUP($A162,Filtro!$A$4:$AM$2264,9,FALSE),0) -> 2 | L162: =IFERROR(VLOOKUP($A162,Filtro!$A$4:$AM$2264,10,FALSE),0) -> 0 | M162: =IFERROR(VLOOKUP($A162,Filtro!$A$4:$AM$2264,11,FALSE),0) -> 0 | N162: =IFERROR(VLOOKUP($A162,Filtro!$A$4:$AM$2264,12,FALSE),0) -> 0 | O162: =IFERROR(VLOOKUP($A162,Filtro!$A$4:$AM$2264,13,FALSE),0) -> 0 | P162: =IFERROR(VLOOKUP($A162,Filtro!$A$4:$AM$2264,14,FALSE),0) -> 0 | Q162: =IFERROR(VLOOKUP($A162,Filtro!$A$4:$AM$2264,15,FALSE),0) -> 0 | R162: =IFERROR(VLOOKUP($A162,Filtro!$A$4:$AM$2264,16,FALSE),0) -> 0
A163: 17040500 | B163: 1901028 | C163: Hemodiálisis con bicarbonato con insumos (por sesión, incluye traslado paciente) | D163: =IFERROR(VLOOKUP($A163,Filtro!$A$4:$AM$2264,2,FALSE),0) -> 18290 | E163: =IFERROR(VLOOKUP($A163,Filtro!$A$4:$AM$2264,3,FALSE),0) -> 18290 | F163: =IFERROR(VLOOKUP($A163,Filtro!$A$4:$AM$2264,4,FALSE),0) -> 18290 | G163: =IFERROR(VLOOKUP($A163,Filtro!$A$4:$AM$2264,5,FALSE),0) -> 0 | H163: =IFERROR(VLOOKUP($A163,Filtro!$A$4:$AM$2264,6,FALSE),0) -> 0 | I163: =IFERROR(VLOOKUP($A163,Filtro!$A$4:$AM$2264,7,FALSE),0) -> 2236 | J163: =IFERROR(VLOOKUP($A163,Filtro!$A$4:$AM$2264,8,FALSE),0) -> 15976 | K163: =IFERROR(VLOOKUP($A163,Filtro!$A$4:$AM$2264,9,FALSE),0) -> 78 | L163: =IFERROR(VLOOKUP($A163,Filtro!$A$4:$AM$2264,10,FALSE),0) -> 0 | M163: =IFERROR(VLOOKUP($A163,Filtro!$A$4:$AM$2264,11,FALSE),0) -> 0 | N163: =IFERROR(VLOOKUP($A163,Filtro!$A$4:$AM$2264,12,FALSE),0) -> 0 | O163: =IFERROR(VLOOKUP($A163,Filtro!$A$4:$AM$2264,13,FALSE),0) -> 0 | P163: =IFERROR(VLOOKUP($A163,Filtro!$A$4:$AM$2264,14,FALSE),0) -> 0 | Q163: =IFERROR(VLOOKUP($A163,Filtro!$A$4:$AM$2264,15,FALSE),0) -> 0 | R163: =IFERROR(VLOOKUP($A163,Filtro!$A$4:$AM$2264,16,FALSE),0) -> 0
A164: '17500010 | B164: 1901128 | C164: Hemodiálisis con bicarbonato con insumos (por sesión, sin traslado paciente) | D164: =IFERROR(VLOOKUP($A164,Filtro!$A$4:$AM$2264,2,FALSE),0) -> 0 | E164: =IFERROR(VLOOKUP($A164,Filtro!$A$4:$AM$2264,3,FALSE),0) -> 0 | F164: =IFERROR(VLOOKUP($A164,Filtro!$A$4:$AM$2264,4,FALSE),0) -> 0 | G164: =IFERROR(VLOOKUP($A164,Filtro!$A$4:$AM$2264,5,FALSE),0) -> 0 | H164: =IFERROR(VLOOKUP($A164,Filtro!$A$4:$AM$2264,6,FALSE),0) -> 0 | I164: =IFERROR(VLOOKUP($A164,Filtro!$A$4:$AM$2264,7,FALSE),0) -> 0 | J164: =IFERROR(VLOOKUP($A164,Filtro!$A$4:$AM$2264,8,FALSE),0) -> 0 | K164: =IFERROR(VLOOKUP($A164,Filtro!$A$4:$AM$2264,9,FALSE),0) -> 0 | L164: =IFERROR(VLOOKUP($A164,Filtro!$A$4:$AM$2264,10,FALSE),0) -> 0 | M164: =IFERROR(VLOOKUP($A164,Filtro!$A$4:$AM$2264,11,FALSE),0) -> 0 | N164: =IFERROR(VLOOKUP($A164,Filtro!$A$4:$AM$2264,12,FALSE),0) -> 0 | O164: =IFERROR(VLOOKUP($A164,Filtro!$A$4:$AM$2264,13,FALSE),0) -> 0 | P164: =IFERROR(VLOOKUP($A164,Filtro!$A$4:$AM$2264,14,FALSE),0) -> 0 | Q164: =IFERROR(VLOOKUP($A164,Filtro!$A$4:$AM$2264,15,FALSE),0) -> 0 | R164: =IFERROR(VLOOKUP($A164,Filtro!$A$4:$AM$2264,16,FALSE),0) -> 0
A165: 17200150 | B165: 1901029 | C165: Hemodiálisis con bicarbonato con insumos (tratamiento mensual) | D165: =IFERROR(VLOOKUP($A165,Filtro!$A$4:$AM$2264,2,FALSE),0) -> 2669 | E165: =IFERROR(VLOOKUP($A165,Filtro!$A$4:$AM$2264,3,FALSE),0) -> 2666 | F165: =IFERROR(VLOOKUP($A165,Filtro!$A$4:$AM$2264,4,FALSE),0) -> 2666 | G165: =IFERROR(VLOOKUP($A165,Filtro!$A$4:$AM$2264,5,FALSE),0) -> 0 | H165: =IFERROR(VLOOKUP($A165,Filtro!$A$4:$AM$2264,6,FALSE),0) -> 3 | I165: =IFERROR(VLOOKUP($A165,Filtro!$A$4:$AM$2264,7,FALSE),0) -> 17 | J165: =IFERROR(VLOOKUP($A165,Filtro!$A$4:$AM$2264,8,FALSE),0) -> 2652 | K165: =IFERROR(VLOOKUP($A165,Filtro!$A$4:$AM$2264,9,FALSE),0) -> 0 | L165: =IFERROR(VLOOKUP($A165,Filtro!$A$4:$AM$2264,10,FALSE),0) -> 0 | M165: =IFERROR(VLOOKUP($A165,Filtro!$A$4:$AM$2264,11,FALSE),0) -> 0 | N165: =IFERROR(VLOOKUP($A165,Filtro!$A$4:$AM$2264,12,FALSE),0) -> 0 | O165: =IFERROR(VLOOKUP($A165,Filtro!$A$4:$AM$2264,13,FALSE),0) -> 0 | P165: =IFERROR(VLOOKUP($A165,Filtro!$A$4:$AM$2264,14,FALSE),0) -> 0 | Q165: =IFERROR(VLOOKUP($A165,Filtro!$A$4:$AM$2264,15,FALSE),0) -> 1 | R165: =IFERROR(VLOOKUP($A165,Filtro!$A$4:$AM$2264,16,FALSE),0) -> 0
A166: 17400382 | B166: 1901031 | C166: Instalación de catéter de peritoneodiálisis laparoscopia | D166: =IFERROR(VLOOKUP($A166,Filtro!$A$4:$AM$2264,2,FALSE),0) -> 33 | E166: =IFERROR(VLOOKUP($A166,Filtro!$A$4:$AM$2264,3,FALSE),0) -> 33 | F166: =IFERROR(VLOOKUP($A166,Filtro!$A$4:$AM$2264,4,FALSE),0) -> 33 | G166: =IFERROR(VLOOKUP($A166,Filtro!$A$4:$AM$2264,5,FALSE),0) -> 0 | H166: =IFERROR(VLOOKUP($A166,Filtro!$A$4:$AM$2264,6,FALSE),0) -> 0 | I166: =IFERROR(VLOOKUP($A166,Filtro!$A$4:$AM$2264,7,FALSE),0) -> 29 | J166: =IFERROR(VLOOKUP($A166,Filtro!$A$4:$AM$2264,8,FALSE),0) -> 4 | K166: =IFERROR(VLOOKUP($A166,Filtro!$A$4:$AM$2264,9,FALSE),0) -> 0 | L166: =IFERROR(VLOOKUP($A166,Filtro!$A$4:$AM$2264,10,FALSE),0) -> 0 | M166: =IFERROR(VLOOKUP($A166,Filtro!$A$4:$AM$2264,11,FALSE),0) -> 0 | N166: =IFERROR(VLOOKUP($A166,Filtro!$A$4:$AM$2264,12,FALSE),0) -> 0 | O166: =IFERROR(VLOOKUP($A166,Filtro!$A$4:$AM$2264,13,FALSE),0) -> 0 | P166: =IFERROR(VLOOKUP($A166,Filtro!$A$4:$AM$2264,14,FALSE),0) -> 0 | Q166: =IFERROR(VLOOKUP($A166,Filtro!$A$4:$AM$2264,15,FALSE),0) -> 0 | R166: =IFERROR(VLOOKUP($A166,Filtro!$A$4:$AM$2264,16,FALSE),0) -> 0
A167: 17400383 | B167: 1901032 | C167: Retiro de catéter de peritoneodiálisis | D167: =IFERROR(VLOOKUP($A167,Filtro!$A$4:$AM$2264,2,FALSE),0) -> 16 | E167: =IFERROR(VLOOKUP($A167,Filtro!$A$4:$AM$2264,3,FALSE),0) -> 16 | F167: =IFERROR(VLOOKUP($A167,Filtro!$A$4:$AM$2264,4,FALSE),0) -> 16 | G167: =IFERROR(VLOOKUP($A167,Filtro!$A$4:$AM$2264,5,FALSE),0) -> 0 | H167: =IFERROR(VLOOKUP($A167,Filtro!$A$4:$AM$2264,6,FALSE),0) -> 0 | I167: =IFERROR(VLOOKUP($A167,Filtro!$A$4:$AM$2264,7,FALSE),0) -> 9 | J167: =IFERROR(VLOOKUP($A167,Filtro!$A$4:$AM$2264,8,FALSE),0) -> 7 | K167: =IFERROR(VLOOKUP($A167,Filtro!$A$4:$AM$2264,9,FALSE),0) -> 0 | L167: =IFERROR(VLOOKUP($A167,Filtro!$A$4:$AM$2264,10,FALSE),0) -> 0 | M167: =IFERROR(VLOOKUP($A167,Filtro!$A$4:$AM$2264,11,FALSE),0) -> 0 | N167: =IFERROR(VLOOKUP($A167,Filtro!$A$4:$AM$2264,12,FALSE),0) -> 0 | O167: =IFERROR(VLOOKUP($A167,Filtro!$A$4:$AM$2264,13,FALSE),0) -> 0 | P167: =IFERROR(VLOOKUP($A167,Filtro!$A$4:$AM$2264,14,FALSE),0) -> 0 | Q167: =IFERROR(VLOOKUP($A167,Filtro!$A$4:$AM$2264,15,FALSE),0) -> 0 | R167: =IFERROR(VLOOKUP($A167,Filtro!$A$4:$AM$2264,16,FALSE),0) -> 0
A168: 17400384 | B168: 1901033 | C168: Revisión de catéter de peritoneodiálisis laparoscopia | D168: =IFERROR(VLOOKUP($A168,Filtro!$A$4:$AM$2264,2,FALSE),0) -> 7 | E168: =IFERROR(VLOOKUP($A168,Filtro!$A$4:$AM$2264,3,FALSE),0) -> 7 | F168: =IFERROR(VLOOKUP($A168,Filtro!$A$4:$AM$2264,4,FALSE),0) -> 7 | G168: =IFERROR(VLOOKUP($A168,Filtro!$A$4:$AM$2264,5,FALSE),0) -> 0 | H168: =IFERROR(VLOOKUP($A168,Filtro!$A$4:$AM$2264,6,FALSE),0) -> 0 | I168: =IFERROR(VLOOKUP($A168,Filtro!$A$4:$AM$2264,7,FALSE),0) -> 7 | J168: =IFERROR(VLOOKUP($A168,Filtro!$A$4:$AM$2264,8,FALSE),0) -> 0 | K168: =IFERROR(VLOOKUP($A168,Filtro!$A$4:$AM$2264,9,FALSE),0) -> 0 | L168: =IFERROR(VLOOKUP($A168,Filtro!$A$4:$AM$2264,10,FALSE),0) -> 0 | M168: =IFERROR(VLOOKUP($A168,Filtro!$A$4:$AM$2264,11,FALSE),0) -> 0 | N168: =IFERROR(VLOOKUP($A168,Filtro!$A$4:$AM$2264,12,FALSE),0) -> 0 | O168: =IFERROR(VLOOKUP($A168,Filtro!$A$4:$AM$2264,13,FALSE),0) -> 0 | P168: =IFERROR(VLOOKUP($A168,Filtro!$A$4:$AM$2264,14,FALSE),0) -> 0 | Q168: =IFERROR(VLOOKUP($A168,Filtro!$A$4:$AM$2264,15,FALSE),0) -> 0 | R168: =IFERROR(VLOOKUP($A168,Filtro!$A$4:$AM$2264,16,FALSE),0) -> 0
B169: TOTAL | D169: =SUM(D160:D168) -> 21847 | E169: =SUM(E160:E168) -> 21844 | F169: 21844 | G169: 0 | H169: 3 | I169: 2301 | J169: 19466 | K169: 80 | L169: 0 | M169: 0 | N169: 0 | O169: 0 | P169: 0 | Q169: 1 | R169: 0
B170: SECCION L: INTERVENCIONES QUIRÚRGICAS
B171: TIPO DE INTERVENCIÓN QUIRÚRGICA | D171: TOTAL | E171: TOTAL Beneficiarios | F171: INTERVENCIONES QUIRÚRGICAS | L171: CIRUGÍAS MENORES | M171: PRODUCCION INTRA HOSPITAL | P171: OPERATIVO | Q171: COMPRAS REALIZADAS | S171: VENTAS DE SERVICIOS
F172: PRINCIPAL | I172: SECUNDARIA
F173: MAI | G173: MLE | H173: No Beneficiarios | I173: MAI | J173: MLE | K173: No Beneficiarios | M173: Por Honorarios | N173: Por Convenios | O173: Por Consultores de llamada | Q173: Al sistema | R173: Extrasistema
A174: 17050100 | B174: Neurocirugía | D174: =IFERROR(VLOOKUP($A174,Filtro!$A$4:$AM$2264,2,FALSE),0) -> 1,464 | E174: =IFERROR(VLOOKUP($A174,Filtro!$A$4:$AM$2264,3,FALSE),0) -> 1,189 | F174: =IFERROR(VLOOKUP($A174,Filtro!$A$4:$AM$2264,4,FALSE),0) -> 1,189 | G174: =IFERROR(VLOOKUP($A174,Filtro!$A$4:$AM$2264,5,FALSE),0) -> 0 | H174: =IFERROR(VLOOKUP($A174,Filtro!$A$4:$AM$2264,6,FALSE),0) -> 31 | I174: =IFERROR(VLOOKUP($A174,Filtro!$A$4:$AM$2264,7,FALSE),0) -> 235 | J174: =IFERROR(VLOOKUP($A174,Filtro!$A$4:$AM$2264,8,FALSE),0) -> 0 | K174: =IFERROR(VLOOKUP($A174,Filtro!$A$4:$AM$2264,9,FALSE),0) -> 9 | L174: =IFERROR(VLOOKUP($A174,Filtro!$A$4:$AM$2264,10,FALSE),0) -> 11 | M174: =IFERROR(VLOOKUP($A174,Filtro!$A$4:$AM$2264,11,FALSE),0) -> 0 | N174: =IFERROR(VLOOKUP($A174,Filtro!$A$4:$AM$2264,12,FALSE),0) -> 0 | O174: =IFERROR(VLOOKUP($A174,Filtro!$A$4:$AM$2264,13,FALSE),0) -> 0 | P174: =IFERROR(VLOOKUP($A174,Filtro!$A$4:$AM$2264,14,FALSE),0) -> 0 | Q174: =IFERROR(VLOOKUP($A174,Filtro!$A$4:$AM$2264,15,FALSE),0) -> 0 | R174: =IFERROR(VLOOKUP($A174,Filtro!$A$4:$AM$2264,16,FALSE),0) -> 0 | S174: =IFERROR(VLOOKUP($A174,Filtro!$A$4:$AM$2264,17,FALSE),0) -> 0 | AB174: Beneficiarios no puede ser mayor al TOTAL | AG174: 1
A175: 17050200 | B175: Cirugía Oftalmológica | D175: =IFERROR(VLOOKUP($A175,Filtro!$A$4:$AM$2264,2,FALSE),0) -> 7,602 | E175: =IFERROR(VLOOKUP($A175,Filtro!$A$4:$AM$2264,3,FALSE),0) -> 6,351 | F175: =IFERROR(VLOOKUP($A175,Filtro!$A$4:$AM$2264,4,FALSE),0) -> 6,351 | G175: =IFERROR(VLOOKUP($A175,Filtro!$A$4:$AM$2264,5,FALSE),0) -> 0 | H175: =IFERROR(VLOOKUP($A175,Filtro!$A$4:$AM$2264,6,FALSE),0) -> 9 | I175: =IFERROR(VLOOKUP($A175,Filtro!$A$4:$AM$2264,7,FALSE),0) -> 1,239 | J175: =IFERROR(VLOOKUP($A175,Filtro!$A$4:$AM$2264,8,FALSE),0) -> 0 | K175: =IFERROR(VLOOKUP($A175,Filtro!$A$4:$AM$2264,9,FALSE),0) -> 3 | L175: =IFERROR(VLOOKUP($A175,Filtro!$A$4:$AM$2264,10,FALSE),0) -> 1,840 | M175: =IFERROR(VLOOKUP($A175,Filtro!$A$4:$AM$2264,11,FALSE),0) -> 658 | N175: =IFERROR(VLOOKUP($A175,Filtro!$A$4:$AM$2264,12,FALSE),0) -> 0 | O175: =IFERROR(VLOOKUP($A175,Filtro!$A$4:$AM$2264,13,FALSE),0) -> 25 | P175: =IFERROR(VLOOKUP($A175,Filtro!$A$4:$AM$2264,14,FALSE),0) -> 0 | Q175: =IFERROR(VLOOKUP($A175,Filtro!$A$4:$AM$2264,15,FALSE),0) -> 0 | R175: =IFERROR(VLOOKUP($A175,Filtro!$A$4:$AM$2264,16,FALSE),0) -> 0 | S175: =IFERROR(VLOOKUP($A175,Filtro!$A$4:$AM$2264,17,FALSE),0) -> 0 | AB175: Beneficiarios no puede ser mayor al TOTAL | AG175: 1
A176: 17050300 | B176: Cirugía Otorrinológica | D176: =IFERROR(VLOOKUP($A176,Filtro!$A$4:$AM$2264,2,FALSE),0) -> 2,436 | E176: =IFERROR(VLOOKUP($A176,Filtro!$A$4:$AM$2264,3,FALSE),0) -> 1,907 | F176: =IFERROR(VLOOKUP($A176,Filtro!$A$4:$AM$2264,4,FALSE),0) -> 1,907 | G176: =IFERROR(VLOOKUP($A176,Filtro!$A$4:$AM$2264,5,FALSE),0) -> 0 | H176: =IFERROR(VLOOKUP($A176,Filtro!$A$4:$AM$2264,6,FALSE),0) -> 11 | I176: =IFERROR(VLOOKUP($A176,Filtro!$A$4:$AM$2264,7,FALSE),0) -> 516 | J176: =IFERROR(VLOOKUP($A176,Filtro!$A$4:$AM$2264,8,FALSE),0) -> 1 | K176: =IFERROR(VLOOKUP($A176,Filtro!$A$4:$AM$2264,9,FALSE),0) -> 1 | L176: =IFERROR(VLOOKUP($A176,Filtro!$A$4:$AM$2264,10,FALSE),0) -> 833 | M176: =IFERROR(VLOOKUP($A176,Filtro!$A$4:$AM$2264,11,FALSE),0) -> 11 | N176: =IFERROR(VLOOKUP($A176,Filtro!$A$4:$AM$2264,12,FALSE),0) -> 0 | O176: =IFERROR(VLOOKUP($A176,Filtro!$A$4:$AM$2264,13,FALSE),0) -> 5 | P176: =IFERROR(VLOOKUP($A176,Filtro!$A$4:$AM$2264,14,FALSE),0) -> 0 | Q176: =IFERROR(VLOOKUP($A176,Filtro!$A$4:$AM$2264,15,FALSE),0) -> 0 | R176: =IFERROR(VLOOKUP($A176,Filtro!$A$4:$AM$2264,16,FALSE),0) -> 0 | S176: =IFERROR(VLOOKUP($A176,Filtro!$A$4:$AM$2264,17,FALSE),0) -> 0 | AB176: Beneficiarios no puede ser mayor al TOTAL | AG176: 1
A177: 17050400 | B177: Cirugía de Cabeza y Cuello | D177: =IFERROR(VLOOKUP($A177,Filtro!$A$4:$AM$2264,2,FALSE),0) -> 632 | E177: =IFERROR(VLOOKUP($A177,Filtro!$A$4:$AM$2264,3,FALSE),0) -> 480 | F177: =IFERROR(VLOOKUP($A177,Filtro!$A$4:$AM$2264,4,FALSE),0) -> 480 | G177: =IFERROR(VLOOKUP($A177,Filtro!$A$4:$AM$2264,5,FALSE),0) -> 0 | H177: =IFERROR(VLOOKUP($A177,Filtro!$A$4:$AM$2264,6,FALSE),0) -> 4 | I177: =IFERROR(VLOOKUP($A177,Filtro!$A$4:$AM$2264,7,FALSE),0) -> 143 | J177: =IFERROR(VLOOKUP($A177,Filtro!$A$4:$AM$2264,8,FALSE),0) -> 0 | K177: =IFERROR(VLOOKUP($A177,Filtro!$A$4:$AM$2264,9,FALSE),0) -> 5 | L177: =IFERROR(VLOOKUP($A177,Filtro!$A$4:$AM$2264,10,FALSE),0) -> 172 | M177: =IFERROR(VLOOKUP($A177,Filtro!$A$4:$AM$2264,11,FALSE),0) -> 2 | N177: =IFERROR(VLOOKUP($A177,Filtro!$A$4:$AM$2264,12,FALSE),0) -> 0 | O177: =IFERROR(VLOOKUP($A177,Filtro!$A$4:$AM$2264,13,FALSE),0) -> 6 | P177: =IFERROR(VLOOKUP($A177,Filtro!$A$4:$AM$2264,14,FALSE),0) -> 0 | Q177: =IFERROR(VLOOKUP($A177,Filtro!$A$4:$AM$2264,15,FALSE),0) -> 0 | R177: =IFERROR(VLOOKUP($A177,Filtro!$A$4:$AM$2264,16,FALSE),0) -> 1 | S177: =IFERROR(VLOOKUP($A177,Filtro!$A$4:$AM$2264,17,FALSE),0) -> 0 | AB177: Beneficiarios no puede ser mayor al TOTAL | AG177: 1
A178: 17050500 | B178: Cirugía Plástica y Reparadora | D178: =IFERROR(VLOOKUP($A178,Filtro!$A$4:$AM$2264,2,FALSE),0) -> 1,603 | E178: =IFERROR(VLOOKUP($A178,Filtro!$A$4:$AM$2264,3,FALSE),0) -> 1,225 | F178: =IFERROR(VLOOKUP($A178,Filtro!$A$4:$AM$2264,4,FALSE),0) -> 1,225 | G178: =IFERROR(VLOOKUP($A178,Filtro!$A$4:$AM$2264,5,FALSE),0) -> 0 | H178: =IFERROR(VLOOKUP($A178,Filtro!$A$4:$AM$2264,6,FALSE),0) -> 27 | I178: =IFERROR(VLOOKUP($A178,Filtro!$A$4:$AM$2264,7,FALSE),0) -> 340 | J178: =IFERROR(VLOOKUP($A178,Filtro!$A$4:$AM$2264,8,FALSE),0) -> 0 | K178: =IFERROR(VLOOKUP($A178,Filtro!$A$4:$AM$2264,9,FALSE),0) -> 11 | L178: =IFERROR(VLOOKUP($A178,Filtro!$A$4:$AM$2264,10,FALSE),0) -> 774 | M178: =IFERROR(VLOOKUP($A178,Filtro!$A$4:$AM$2264,11,FALSE),0) -> 6 | N178: =IFERROR(VLOOKUP($A178,Filtro!$A$4:$AM$2264,12,FALSE),0) -> 0 | O178: =IFERROR(VLOOKUP($A178,Filtro!$A$4:$AM$2264,13,FALSE),0) -> 27 | P178: =IFERROR(VLOOKUP($A178,Filtro!$A$4:$AM$2264,14,FALSE),0) -> 0 | Q178: =IFERROR(VLOOKUP($A178,Filtro!$A$4:$AM$2264,15,FALSE),0) -> 0 | R178: =IFERROR(VLOOKUP($A178,Filtro!$A$4:$AM$2264,16,FALSE),0) -> 0 | S178: =IFERROR(VLOOKUP($A178,Filtro!$A$4:$AM$2264,17,FALSE),0) -> 0 | AB178: Beneficiarios no puede ser mayor al TOTAL | AG178: 1
A179: 17050600 | B179: Dermatología y Tegumentos | D179: =IFERROR(VLOOKUP($A179,Filtro!$A$4:$AM$2264,2,FALSE),0) -> 4,540 | E179: =IFERROR(VLOOKUP($A179,Filtro!$A$4:$AM$2264,3,FALSE),0) -> 3,966 | F179: =IFERROR(VLOOKUP($A179,Filtro!$A$4:$AM$2264,4,FALSE),0) -> 3,961 | G179: =IFERROR(VLOOKUP($A179,Filtro!$A$4:$AM$2264,5,FALSE),0) -> 5 | H179: =IFERROR(VLOOKUP($A179,Filtro!$A$4:$AM$2264,6,FALSE),0) -> 39 | I179: =IFERROR(VLOOKUP($A179,Filtro!$A$4:$AM$2264,7,FALSE),0) -> 527 | J179: =IFERROR(VLOOKUP($A179,Filtro!$A$4:$AM$2264,8,FALSE),0) -> 0 | K179: =IFERROR(VLOOKUP($A179,Filtro!$A$4:$AM$2264,9,FALSE),0) -> 8 | L179: =IFERROR(VLOOKUP($A179,Filtro!$A$4:$AM$2264,10,FALSE),0) -> 4,501 | M179: =IFERROR(VLOOKUP($A179,Filtro!$A$4:$AM$2264,11,FALSE),0) -> 2 | N179: =IFERROR(VLOOKUP($A179,Filtro!$A$4:$AM$2264,12,FALSE),0) -> 0 | O179: =IFERROR(VLOOKUP($A179,Filtro!$A$4:$AM$2264,13,FALSE),0) -> 48 | P179: =IFERROR(VLOOKUP($A179,Filtro!$A$4:$AM$2264,14,FALSE),0) -> 0 | Q179: =IFERROR(VLOOKUP($A179,Filtro!$A$4:$AM$2264,15,FALSE),0) -> 0 | R179: =IFERROR(VLOOKUP($A179,Filtro!$A$4:$AM$2264,16,FALSE),0) -> 0 | S179: =IFERROR(VLOOKUP($A179,Filtro!$A$4:$AM$2264,17,FALSE),0) -> 0 | AB179: Beneficiarios no puede ser mayor al TOTAL | AG179: 1
A180: 17050700 | B180: Cirugía Cardiovascular | D180: =IFERROR(VLOOKUP($A180,Filtro!$A$4:$AM$2264,2,FALSE),0) -> 2,189 | E180: =IFERROR(VLOOKUP($A180,Filtro!$A$4:$AM$2264,3,FALSE),0) -> 1,854 | F180: =IFERROR(VLOOKUP($A180,Filtro!$A$4:$AM$2264,4,FALSE),0) -> 1,849 | G180: =IFERROR(VLOOKUP($A180,Filtro!$A$4:$AM$2264,5,FALSE),0) -> 5 | H180: =IFERROR(VLOOKUP($A180,Filtro!$A$4:$AM$2264,6,FALSE),0) -> 27 | I180: =IFERROR(VLOOKUP($A180,Filtro!$A$4:$AM$2264,7,FALSE),0) -> 301 | J180: =IFERROR(VLOOKUP($A180,Filtro!$A$4:$AM$2264,8,FALSE),0) -> 6 | K180: =IFERROR(VLOOKUP($A180,Filtro!$A$4:$AM$2264,9,FALSE),0) -> 1 | L180: =IFERROR(VLOOKUP($A180,Filtro!$A$4:$AM$2264,10,FALSE),0) -> 211 | M180: =IFERROR(VLOOKUP($A180,Filtro!$A$4:$AM$2264,11,FALSE),0) -> 70 | N180: =IFERROR(VLOOKUP($A180,Filtro!$A$4:$AM$2264,12,FALSE),0) -> 0 | O180: =IFERROR(VLOOKUP($A180,Filtro!$A$4:$AM$2264,13,FALSE),0) -> 56 | P180: =IFERROR(VLOOKUP($A180,Filtro!$A$4:$AM$2264,14,FALSE),0) -> 0 | Q180: =IFERROR(VLOOKUP($A180,Filtro!$A$4:$AM$2264,15,FALSE),0) -> 0 | R180: =IFERROR(VLOOKUP($A180,Filtro!$A$4:$AM$2264,16,FALSE),0) -> 0 | S180: =IFERROR(VLOOKUP($A180,Filtro!$A$4:$AM$2264,17,FALSE),0) -> 0 | AB180: Beneficiarios no puede ser mayor al TOTAL | AG180: 1
A181: 17050800 | B181: Cirugía de Tórax | D181: =IFERROR(VLOOKUP($A181,Filtro!$A$4:$AM$2264,2,FALSE),0) -> 606 | E181: =IFERROR(VLOOKUP($A181,Filtro!$A$4:$AM$2264,3,FALSE),0) -> 489 | F181: =IFERROR(VLOOKUP($A181,Filtro!$A$4:$AM$2264,4,FALSE),0) -> 489 | G181: =IFERROR(VLOOKUP($A181,Filtro!$A$4:$AM$2264,5,FALSE),0) -> 0 | H181: =IFERROR(VLOOKUP($A181,Filtro!$A$4:$AM$2264,6,FALSE),0) -> 11 | I181: =IFERROR(VLOOKUP($A181,Filtro!$A$4:$AM$2264,7,FALSE),0) -> 103 | J181: =IFERROR(VLOOKUP($A181,Filtro!$A$4:$AM$2264,8,FALSE),0) -> 0 | K181: =IFERROR(VLOOKUP($A181,Filtro!$A$4:$AM$2264,9,FALSE),0) -> 3 | L181: =IFERROR(VLOOKUP($A181,Filtro!$A$4:$AM$2264,10,FALSE),0) -> 47 | M181: =IFERROR(VLOOKUP($A181,Filtro!$A$4:$AM$2264,11,FALSE),0) -> 5 | N181: =IFERROR(VLOOKUP($A181,Filtro!$A$4:$AM$2264,12,FALSE),0) -> 1 | O181: =IFERROR(VLOOKUP($A181,Filtro!$A$4:$AM$2264,13,FALSE),0) -> 9 | P181: =IFERROR(VLOOKUP($A181,Filtro!$A$4:$AM$2264,14,FALSE),0) -> 0 | Q181: =IFERROR(VLOOKUP($A181,Filtro!$A$4:$AM$2264,15,FALSE),0) -> 0 | R181: =IFERROR(VLOOKUP($A181,Filtro!$A$4:$AM$2264,16,FALSE),0) -> 0 | S181: =IFERROR(VLOOKUP($A181,Filtro!$A$4:$AM$2264,17,FALSE),0) -> 0 | AB181: Beneficiarios no puede ser mayor al TOTAL | AG181: 1
A182: 17050900 | B182: Cirugía Abdominal | D182: =IFERROR(VLOOKUP($A182,Filtro!$A$4:$AM$2264,2,FALSE),0) -> 7,414 | E182: =IFERROR(VLOOKUP($A182,Filtro!$A$4:$AM$2264,3,FALSE),0) -> 6,258 | F182: =IFERROR(VLOOKUP($A182,Filtro!$A$4:$AM$2264,4,FALSE),0) -> 6,193 | G182: =IFERROR(VLOOKUP($A182,Filtro!$A$4:$AM$2264,5,FALSE),0) -> 65 | H182: =IFERROR(VLOOKUP($A182,Filtro!$A$4:$AM$2264,6,FALSE),0) -> 80 | I182: =IFERROR(VLOOKUP($A182,Filtro!$A$4:$AM$2264,7,FALSE),0) -> 1,053 | J182: =IFERROR(VLOOKUP($A182,Filtro!$A$4:$AM$2264,8,FALSE),0) -> 5 | K182: =IFERROR(VLOOKUP($A182,Filtro!$A$4:$AM$2264,9,FALSE),0) -> 18 | L182: =IFERROR(VLOOKUP($A182,Filtro!$A$4:$AM$2264,10,FALSE),0) -> 41 | M182: =IFERROR(VLOOKUP($A182,Filtro!$A$4:$AM$2264,11,FALSE),0) -> 437 | N182: =IFERROR(VLOOKUP($A182,Filtro!$A$4:$AM$2264,12,FALSE),0) -> 77 | O182: =IFERROR(VLOOKUP($A182,Filtro!$A$4:$AM$2264,13,FALSE),0) -> 316 | P182: =IFERROR(VLOOKUP($A182,Filtro!$A$4:$AM$2264,14,FALSE),0) -> 0 | Q182: =IFERROR(VLOOKUP($A182,Filtro!$A$4:$AM$2264,15,FALSE),0) -> 0 | R182: =IFERROR(VLOOKUP($A182,Filtro!$A$4:$AM$2264,16,FALSE),0) -> 0 | S182: =IFERROR(VLOOKUP($A182,Filtro!$A$4:$AM$2264,17,FALSE),0) -> 0 | AB182: Beneficiarios no puede ser mayor al TOTAL | AG182: 1
A183: 17051000 | B183: Cirugía Proctológica | D183: =IFERROR(VLOOKUP($A183,Filtro!$A$4:$AM$2264,2,FALSE),0) -> 573 | E183: =IFERROR(VLOOKUP($A183,Filtro!$A$4:$AM$2264,3,FALSE),0) -> 496 | F183: =IFERROR(VLOOKUP($A183,Filtro!$A$4:$AM$2264,4,FALSE),0) -> 493 | G183: =IFERROR(VLOOKUP($A183,Filtro!$A$4:$AM$2264,5,FALSE),0) -> 3 | H183: =IFERROR(VLOOKUP($A183,Filtro!$A$4:$AM$2264,6,FALSE),0) -> 10 | I183: =IFERROR(VLOOKUP($A183,Filtro!$A$4:$AM$2264,7,FALSE),0) -> 64 | J183: =IFERROR(VLOOKUP($A183,Filtro!$A$4:$AM$2264,8,FALSE),0) -> 0 | K183: =IFERROR(VLOOKUP($A183,Filtro!$A$4:$AM$2264,9,FALSE),0) -> 3 | L183: =IFERROR(VLOOKUP($A183,Filtro!$A$4:$AM$2264,10,FALSE),0) -> 108 | M183: =IFERROR(VLOOKUP($A183,Filtro!$A$4:$AM$2264,11,FALSE),0) -> 0 | N183: =IFERROR(VLOOKUP($A183,Filtro!$A$4:$AM$2264,12,FALSE),0) -> 0 | O183: =IFERROR(VLOOKUP($A183,Filtro!$A$4:$AM$2264,13,FALSE),0) -> 10 | P183: =IFERROR(VLOOKUP($A183,Filtro!$A$4:$AM$2264,14,FALSE),0) -> 0 | Q183: =IFERROR(VLOOKUP($A183,Filtro!$A$4:$AM$2264,15,FALSE),0) -> 0 | R183: =IFERROR(VLOOKUP($A183,Filtro!$A$4:$AM$2264,16,FALSE),0) -> 0 | S183: =IFERROR(VLOOKUP($A183,Filtro!$A$4:$AM$2264,17,FALSE),0) -> 0 | AB183: Beneficiarios no puede ser mayor al TOTAL | AG183: 1
A184: 17051100 | B184: Cirugía Urológica y Suprarrenal | D184: =IFERROR(VLOOKUP($A184,Filtro!$A$4:$AM$2264,2,FALSE),0) -> 4,053 | E184: =IFERROR(VLOOKUP($A184,Filtro!$A$4:$AM$2264,3,FALSE),0) -> 2,831 | F184: =IFERROR(VLOOKUP($A184,Filtro!$A$4:$AM$2264,4,FALSE),0) -> 2,762 | G184: =IFERROR(VLOOKUP($A184,Filtro!$A$4:$AM$2264,5,FALSE),0) -> 69 | H184: =IFERROR(VLOOKUP($A184,Filtro!$A$4:$AM$2264,6,FALSE),0) -> 42 | I184: =IFERROR(VLOOKUP($A184,Filtro!$A$4:$AM$2264,7,FALSE),0) -> 1,157 | J184: =IFERROR(VLOOKUP($A184,Filtro!$A$4:$AM$2264,8,FALSE),0) -> 9 | K184: =IFERROR(VLOOKUP($A184,Filtro!$A$4:$AM$2264,9,FALSE),0) -> 14 | L184: =IFERROR(VLOOKUP($A184,Filtro!$A$4:$AM$2264,10,FALSE),0) -> 19 | M184: =IFERROR(VLOOKUP($A184,Filtro!$A$4:$AM$2264,11,FALSE),0) -> 245 | N184: =IFERROR(VLOOKUP($A184,Filtro!$A$4:$AM$2264,12,FALSE),0) -> 0 | O184: =IFERROR(VLOOKUP($A184,Filtro!$A$4:$AM$2264,13,FALSE),0) -> 394 | P184: =IFERROR(VLOOKUP($A184,Filtro!$A$4:$AM$2264,14,FALSE),0) -> 0 | Q184: =IFERROR(VLOOKUP($A184,Filtro!$A$4:$AM$2264,15,FALSE),0) -> 0 | R184: =IFERROR(VLOOKUP($A184,Filtro!$A$4:$AM$2264,16,FALSE),0) -> 0 | S184: =IFERROR(VLOOKUP($A184,Filtro!$A$4:$AM$2264,17,FALSE),0) -> 0 | AB184: Beneficiarios no puede ser mayor al TOTAL | AG184: 1
A185: 17051200 | B185: Cirugía de la Mama | D185: =IFERROR(VLOOKUP($A185,Filtro!$A$4:$AM$2264,2,FALSE),0) -> 634 | E185: =IFERROR(VLOOKUP($A185,Filtro!$A$4:$AM$2264,3,FALSE),0) -> 463 | F185: =IFERROR(VLOOKUP($A185,Filtro!$A$4:$AM$2264,4,FALSE),0) -> 463 | G185: =IFERROR(VLOOKUP($A185,Filtro!$A$4:$AM$2264,5,FALSE),0) -> 0 | H185: =IFERROR(VLOOKUP($A185,Filtro!$A$4:$AM$2264,6,FALSE),0) -> 3 | I185: =IFERROR(VLOOKUP($A185,Filtro!$A$4:$AM$2264,7,FALSE),0) -> 166 | J185: =IFERROR(VLOOKUP($A185,Filtro!$A$4:$AM$2264,8,FALSE),0) -> 0 | K185: =IFERROR(VLOOKUP($A185,Filtro!$A$4:$AM$2264,9,FALSE),0) -> 2 | L185: =IFERROR(VLOOKUP($A185,Filtro!$A$4:$AM$2264,10,FALSE),0) -> 52 | M185: =IFERROR(VLOOKUP($A185,Filtro!$A$4:$AM$2264,11,FALSE),0) -> 0 | N185: =IFERROR(VLOOKUP($A185,Filtro!$A$4:$AM$2264,12,FALSE),0) -> 0 | O185: =IFERROR(VLOOKUP($A185,Filtro!$A$4:$AM$2264,13,FALSE),0) -> 3 | P185: =IFERROR(VLOOKUP($A185,Filtro!$A$4:$AM$2264,14,FALSE),0) -> 0 | Q185: =IFERROR(VLOOKUP($A185,Filtro!$A$4:$AM$2264,15,FALSE),0) -> 0 | R185: =IFERROR(VLOOKUP($A185,Filtro!$A$4:$AM$2264,16,FALSE),0) -> 0 | S185: =IFERROR(VLOOKUP($A185,Filtro!$A$4:$AM$2264,17,FALSE),0) -> 0 | AB185: Beneficiarios no puede ser mayor al TOTAL | AG185: 1
A186: 17051300 | B186: Cirugía Ginecológica | D186: =IFERROR(VLOOKUP($A186,Filtro!$A$4:$AM$2264,2,FALSE),0) -> 3,061 | E186: =IFERROR(VLOOKUP($A186,Filtro!$A$4:$AM$2264,3,FALSE),0) -> 2,411 | F186: =IFERROR(VLOOKUP($A186,Filtro!$A$4:$AM$2264,4,FALSE),0) -> 2,397 | G186: =IFERROR(VLOOKUP($A186,Filtro!$A$4:$AM$2264,5,FALSE),0) -> 14 | H186: =IFERROR(VLOOKUP($A186,Filtro!$A$4:$AM$2264,6,FALSE),0) -> 27 | I186: =IFERROR(VLOOKUP($A186,Filtro!$A$4:$AM$2264,7,FALSE),0) -> 618 | J186: =IFERROR(VLOOKUP($A186,Filtro!$A$4:$AM$2264,8,FALSE),0) -> 3 | K186: =IFERROR(VLOOKUP($A186,Filtro!$A$4:$AM$2264,9,FALSE),0) -> 2 | L186: =IFERROR(VLOOKUP($A186,Filtro!$A$4:$AM$2264,10,FALSE),0) -> 197 | M186: =IFERROR(VLOOKUP($A186,Filtro!$A$4:$AM$2264,11,FALSE),0) -> 5 | N186: =IFERROR(VLOOKUP($A186,Filtro!$A$4:$AM$2264,12,FALSE),0) -> 0 | O186: =IFERROR(VLOOKUP($A186,Filtro!$A$4:$AM$2264,13,FALSE),0) -> 2 | P186: =IFERROR(VLOOKUP($A186,Filtro!$A$4:$AM$2264,14,FALSE),0) -> 0 | Q186: =IFERROR(VLOOKUP($A186,Filtro!$A$4:$AM$2264,15,FALSE),0) -> 0 | R186: =IFERROR(VLOOKUP($A186,Filtro!$A$4:$AM$2264,16,FALSE),0) -> 0 | S186: =IFERROR(VLOOKUP($A186,Filtro!$A$4:$AM$2264,17,FALSE),0) -> 0 | AB186: Beneficiarios no puede ser mayor al TOTAL | AG186: 1
A187: 17051400 | B187: Cirugía Obstétrica | C187: Total | D187: =IFERROR(VLOOKUP($A187,Filtro!$A$4:$AM$2264,2,FALSE),0) -> 2,951 | E187: =IFERROR(VLOOKUP($A187,Filtro!$A$4:$AM$2264,3,FALSE),0) -> 2,789 | F187: =IFERROR(VLOOKUP($A187,Filtro!$A$4:$AM$2264,4,FALSE),0) -> 2,109 | G187: =IFERROR(VLOOKUP($A187,Filtro!$A$4:$AM$2264,5,FALSE),0) -> 680 | H187: =IFERROR(VLOOKUP($A187,Filtro!$A$4:$AM$2264,6,FALSE),0) -> 62 | I187: =IFERROR(VLOOKUP($A187,Filtro!$A$4:$AM$2264,7,FALSE),0) -> 91 | J187: =IFERROR(VLOOKUP($A187,Filtro!$A$4:$AM$2264,8,FALSE),0) -> 6 | K187: =IFERROR(VLOOKUP($A187,Filtro!$A$4:$AM$2264,9,FALSE),0) -> 3 | M187: =IFERROR(VLOOKUP($A187,Filtro!$A$4:$AM$2264,11,FALSE),0) -> 0 | N187: =IFERROR(VLOOKUP($A187,Filtro!$A$4:$AM$2264,12,FALSE),0) -> 0 | O187: =IFERROR(VLOOKUP($A187,Filtro!$A$4:$AM$2264,13,FALSE),0) -> 0 | P187: =IFERROR(VLOOKUP($A187,Filtro!$A$4:$AM$2264,14,FALSE),0) -> 0 | Q187: =IFERROR(VLOOKUP($A187,Filtro!$A$4:$AM$2264,15,FALSE),0) -> 0 | R187: =IFERROR(VLOOKUP($A187,Filtro!$A$4:$AM$2264,16,FALSE),0) -> 0 | S187: =IFERROR(VLOOKUP($A187,Filtro!$A$4:$AM$2264,17,FALSE),0) -> 0 | AB187: Beneficiarios no puede ser mayor al TOTAL | AG187: 1
A188: 99200160 | C188: Cesárea c/s salpingoligadura o salpingectomía | D188: =IFERROR(VLOOKUP($A188,Filtro!$A$4:$AM$2264,2,FALSE),0) -> 2,937 | E188: =IFERROR(VLOOKUP($A188,Filtro!$A$4:$AM$2264,3,FALSE),0) -> 2,775 | F188: =IFERROR(VLOOKUP($A188,Filtro!$A$4:$AM$2264,4,FALSE),0) -> 2,095 | G188: =IFERROR(VLOOKUP($A188,Filtro!$A$4:$AM$2264,5,FALSE),0) -> 680 | H188: =IFERROR(VLOOKUP($A188,Filtro!$A$4:$AM$2264,6,FALSE),0) -> 62 | I188: =IFERROR(VLOOKUP($A188,Filtro!$A$4:$AM$2264,7,FALSE),0) -> 91 | J188: =IFERROR(VLOOKUP($A188,Filtro!$A$4:$AM$2264,8,FALSE),0) -> 6 | K188: =IFERROR(VLOOKUP($A188,Filtro!$A$4:$AM$2264,9,FALSE),0) -> 3 | M188: =IFERROR(VLOOKUP($A188,Filtro!$A$4:$AM$2264,11,FALSE),0) -> 0 | N188: =IFERROR(VLOOKUP($A188,Filtro!$A$4:$AM$2264,12,FALSE),0) -> 0 | O188: =IFERROR(VLOOKUP($A188,Filtro!$A$4:$AM$2264,13,FALSE),0) -> 0 | P188: =IFERROR(VLOOKUP($A188,Filtro!$A$4:$AM$2264,14,FALSE),0) -> 0 | Q188: =IFERROR(VLOOKUP($A188,Filtro!$A$4:$AM$2264,15,FALSE),0) -> 0 | R188: =IFERROR(VLOOKUP($A188,Filtro!$A$4:$AM$2264,16,FALSE),0) -> 0 | S188: =IFERROR(VLOOKUP($A188,Filtro!$A$4:$AM$2264,17,FALSE),0) -> 0 | AB188: Beneficiarios no puede ser mayor al TOTAL | AG188: 1
A189: 99200170 | C189: Cesárea con histerectomía | D189: =IFERROR(VLOOKUP($A189,Filtro!$A$4:$AM$2264,2,FALSE),0) -> 8 | E189: =IFERROR(VLOOKUP($A189,Filtro!$A$4:$AM$2264,3,FALSE),0) -> 8 | F189: =IFERROR(VLOOKUP($A189,Filtro!$A$4:$AM$2264,4,FALSE),0) -> 8 | G189: =IFERROR(VLOOKUP($A189,Filtro!$A$4:$AM$2264,5,FALSE),0) -> 0 | H189: =IFERROR(VLOOKUP($A189,Filtro!$A$4:$AM$2264,6,FALSE),0) -> 0 | I189: =IFERROR(VLOOKUP($A189,Filtro!$A$4:$AM$2264,7,FALSE),0) -> 0 | J189: =IFERROR(VLOOKUP($A189,Filtro!$A$4:$AM$2264,8,FALSE),0) -> 0 | K189: =IFERROR(VLOOKUP($A189,Filtro!$A$4:$AM$2264,9,FALSE),0) -> 0 | M189: =IFERROR(VLOOKUP($A189,Filtro!$A$4:$AM$2264,11,FALSE),0) -> 0 | N189: =IFERROR(VLOOKUP($A189,Filtro!$A$4:$AM$2264,12,FALSE),0) -> 0 | O189: =IFERROR(VLOOKUP($A189,Filtro!$A$4:$AM$2264,13,FALSE),0) -> 0 | P189: =IFERROR(VLOOKUP($A189,Filtro!$A$4:$AM$2264,14,FALSE),0) -> 0 | Q189: =IFERROR(VLOOKUP($A189,Filtro!$A$4:$AM$2264,15,FALSE),0) -> 0 | R189: =IFERROR(VLOOKUP($A189,Filtro!$A$4:$AM$2264,16,FALSE),0) -> 0 | S189: =IFERROR(VLOOKUP($A189,Filtro!$A$4:$AM$2264,17,FALSE),0) -> 0 | AB189: Beneficiarios no puede ser mayor al TOTAL | AG189: 1
A190: 17300020 | C190: Otras cirugías obstétricas | D190: =IFERROR(VLOOKUP($A190,Filtro!$A$4:$AM$2264,2,FALSE),0) -> 6 | E190: =IFERROR(VLOOKUP($A190,Filtro!$A$4:$AM$2264,3,FALSE),0) -> 6 | F190: =IFERROR(VLOOKUP($A190,Filtro!$A$4:$AM$2264,4,FALSE),0) -> 6 | G190: =IFERROR(VLOOKUP($A190,Filtro!$A$4:$AM$2264,5,FALSE),0) -> 0 | H190: =IFERROR(VLOOKUP($A190,Filtro!$A$4:$AM$2264,6,FALSE),0) -> 0 | I190: =IFERROR(VLOOKUP($A190,Filtro!$A$4:$AM$2264,7,FALSE),0) -> 0 | J190: =IFERROR(VLOOKUP($A190,Filtro!$A$4:$AM$2264,8,FALSE),0) -> 0 | K190: =IFERROR(VLOOKUP($A190,Filtro!$A$4:$AM$2264,9,FALSE),0) -> 0 | M190: =IFERROR(VLOOKUP($A190,Filtro!$A$4:$AM$2264,11,FALSE),0) -> 0 | N190: =IFERROR(VLOOKUP($A190,Filtro!$A$4:$AM$2264,12,FALSE),0) -> 0 | O190: =IFERROR(VLOOKUP($A190,Filtro!$A$4:$AM$2264,13,FALSE),0) -> 0 | P190: =IFERROR(VLOOKUP($A190,Filtro!$A$4:$AM$2264,14,FALSE),0) -> 0 | Q190: =IFERROR(VLOOKUP($A190,Filtro!$A$4:$AM$2264,15,FALSE),0) -> 0 | R190: =IFERROR(VLOOKUP($A190,Filtro!$A$4:$AM$2264,16,FALSE),0) -> 0 | S190: =IFERROR(VLOOKUP($A190,Filtro!$A$4:$AM$2264,17,FALSE),0) -> 0 | AB190: Beneficiarios no puede ser mayor al TOTAL | AG190: 1
A191: 17051500 | B191: Traumatología | D191: =IFERROR(VLOOKUP($A191,Filtro!$A$4:$AM$2264,2,FALSE),0) -> 4,819 | E191: =IFERROR(VLOOKUP($A191,Filtro!$A$4:$AM$2264,3,FALSE),0) -> 4,163 | F191: =IFERROR(VLOOKUP($A191,Filtro!$A$4:$AM$2264,4,FALSE),0) -> 4,163 | G191: =IFERROR(VLOOKUP($A191,Filtro!$A$4:$AM$2264,5,FALSE),0) -> 0 | H191: =IFERROR(VLOOKUP($A191,Filtro!$A$4:$AM$2264,6,FALSE),0) -> 119 | I191: =IFERROR(VLOOKUP($A191,Filtro!$A$4:$AM$2264,7,FALSE),0) -> 515 | J191: =IFERROR(VLOOKUP($A191,Filtro!$A$4:$AM$2264,8,FALSE),0) -> 0 | K191: =IFERROR(VLOOKUP($A191,Filtro!$A$4:$AM$2264,9,FALSE),0) -> 22 | L191: =IFERROR(VLOOKUP($A191,Filtro!$A$4:$AM$2264,10,FALSE),0) -> 602 | M191: =IFERROR(VLOOKUP($A191,Filtro!$A$4:$AM$2264,11,FALSE),0) -> 208 | N191: =IFERROR(VLOOKUP($A191,Filtro!$A$4:$AM$2264,12,FALSE),0) -> 0 | O191: =IFERROR(VLOOKUP($A191,Filtro!$A$4:$AM$2264,13,FALSE),0) -> 216 | P191: =IFERROR(VLOOKUP($A191,Filtro!$A$4:$AM$2264,14,FALSE),0) -> 0 | Q191: =IFERROR(VLOOKUP($A191,Filtro!$A$4:$AM$2264,15,FALSE),0) -> 0 | R191: =IFERROR(VLOOKUP($A191,Filtro!$A$4:$AM$2264,16,FALSE),0) -> 0 | S191: =IFERROR(VLOOKUP($A191,Filtro!$A$4:$AM$2264,17,FALSE),0) -> 0 | AB191: Beneficiarios no puede ser mayor al TOTAL | AG191: 1
A192: 17051600 | B192: Odontología | D192: =IFERROR(VLOOKUP($A192,Filtro!$A$4:$AM$2264,2,FALSE),0) -> 12,637 | E192: =IFERROR(VLOOKUP($A192,Filtro!$A$4:$AM$2264,3,FALSE),0) -> 9,790 | F192: =IFERROR(VLOOKUP($A192,Filtro!$A$4:$AM$2264,4,FALSE),0) -> 9,766 | G192: =IFERROR(VLOOKUP($A192,Filtro!$A$4:$AM$2264,5,FALSE),0) -> 24 | H192: =IFERROR(VLOOKUP($A192,Filtro!$A$4:$AM$2264,6,FALSE),0) -> 18 | I192: =IFERROR(VLOOKUP($A192,Filtro!$A$4:$AM$2264,7,FALSE),0) -> 2,806 | J192: =IFERROR(VLOOKUP($A192,Filtro!$A$4:$AM$2264,8,FALSE),0) -> 0 | K192: =IFERROR(VLOOKUP($A192,Filtro!$A$4:$AM$2264,9,FALSE),0) -> 23 | L192: =IFERROR(VLOOKUP($A192,Filtro!$A$4:$AM$2264,10,FALSE),0) -> 9,101 | M192: =IFERROR(VLOOKUP($A192,Filtro!$A$4:$AM$2264,11,FALSE),0) -> 14 | N192: =IFERROR(VLOOKUP($A192,Filtro!$A$4:$AM$2264,12,FALSE),0) -> 0 | O192: =IFERROR(VLOOKUP($A192,Filtro!$A$4:$AM$2264,13,FALSE),0) -> 0 | P192: =IFERROR(VLOOKUP($A192,Filtro!$A$4:$AM$2264,14,FALSE),0) -> 0 | Q192: =IFERROR(VLOOKUP($A192,Filtro!$A$4:$AM$2264,15,FALSE),0) -> 0 | R192: =IFERROR(VLOOKUP($A192,Filtro!$A$4:$AM$2264,16,FALSE),0) -> 0 | S192: =IFERROR(VLOOKUP($A192,Filtro!$A$4:$AM$2264,17,FALSE),0) -> 0 | AB192: Beneficiarios no puede ser mayor al TOTAL | AG192: 1
A193: 17051700 | B193: Retiro Elementos Osteosíntesis | D193: =IFERROR(VLOOKUP($A193,Filtro!$A$4:$AM$2264,2,FALSE),0) -> 417 | E193: =IFERROR(VLOOKUP($A193,Filtro!$A$4:$AM$2264,3,FALSE),0) -> 296 | F193: =IFERROR(VLOOKUP($A193,Filtro!$A$4:$AM$2264,4,FALSE),0) -> 296 | G193: =IFERROR(VLOOKUP($A193,Filtro!$A$4:$AM$2264,5,FALSE),0) -> 0 | H193: =IFERROR(VLOOKUP($A193,Filtro!$A$4:$AM$2264,6,FALSE),0) -> 1 | I193: =IFERROR(VLOOKUP($A193,Filtro!$A$4:$AM$2264,7,FALSE),0) -> 110 | J193: =IFERROR(VLOOKUP($A193,Filtro!$A$4:$AM$2264,8,FALSE),0) -> 0 | K193: =IFERROR(VLOOKUP($A193,Filtro!$A$4:$AM$2264,9,FALSE),0) -> 10 | M193: =IFERROR(VLOOKUP($A193,Filtro!$A$4:$AM$2264,11,FALSE),0) -> 8 | N193: =IFERROR(VLOOKUP($A193,Filtro!$A$4:$AM$2264,12,FALSE),0) -> 0 | O193: =IFERROR(VLOOKUP($A193,Filtro!$A$4:$AM$2264,13,FALSE),0) -> 1 | P193: =IFERROR(VLOOKUP($A193,Filtro!$A$4:$AM$2264,14,FALSE),0) -> 0 | Q193: =IFERROR(VLOOKUP($A193,Filtro!$A$4:$AM$2264,15,FALSE),0) -> 0 | R193: =IFERROR(VLOOKUP($A193,Filtro!$A$4:$AM$2264,16,FALSE),0) -> 0 | S193: =IFERROR(VLOOKUP($A193,Filtro!$A$4:$AM$2264,17,FALSE),0) -> 0 | AB193: Beneficiarios no puede ser mayor al TOTAL | AG193: 1
B194: TOTAL | D194: =SUM(D174:D187)+D191+D192+D193 -> 57,631 | E194: =SUM(E174:E187)+E191+E192+E193 -> 46,958 | F194: 46,093 | G194: 865 | H194: 521 | I194: 9,984 | J194: 30 | K194: 138 | L194: 18,509 | M194: 1,671 | N194: 78 | O194: 1,118 | P194: 0 | Q194: 0 | R194: 1 | S194: 0
B195: SECCIÓN M: INTERVENCIONES QUIRÚRGICAS POR TIPO DE INTERVENCIÓN
B196: TIPO DE INTERVENCIÓN | D196: TOTAL | E196: Beneficiarios MAI | F196: < 15 AÑOS | G196: 15 Y MÁS AÑOS | H196: COMPRAS REALIZADAS AL SISTEMA | I196: COMPRAS REALIZADAS AL SISTEMA | J196: COMPRAS REALIZADAS AL EXTRASISTEMA | K196: COMPRAS REALIZADAS AL EXTRASISTEMA
H197: < 15 años | I197: 15 y más años | J197: < 15 años | K197: 15 y más años
A198: 17200810 | B198: Electivas Mayores No Ambulatorias | D198: =IFERROR(VLOOKUP($A198,Filtro!$A$4:$AM$2264,2,FALSE),0) -> 11,666 | E198: =IFERROR(VLOOKUP($A198,Filtro!$A$4:$AM$2264,3,FALSE),0) -> 10114 | F198: =IFERROR(VLOOKUP($A198,Filtro!$A$4:$AM$2264,4,FALSE),0) -> 574 | G198: =IFERROR(VLOOKUP($A198,Filtro!$A$4:$AM$2264,5,FALSE),0) -> 11092 | H198: =IFERROR(VLOOKUP($A198,Filtro!$A$4:$AM$2264,6,FALSE),0) -> 4 | I198: =IFERROR(VLOOKUP($A198,Filtro!$A$4:$AM$2264,7,FALSE),0) -> 266 | J198: =IFERROR(VLOOKUP($A198,Filtro!$A$4:$AM$2264,8,FALSE),0) -> 0 | K198: =IFERROR(VLOOKUP($A198,Filtro!$A$4:$AM$2264,9,FALSE),0) -> 0 | L198: BeneficiariosMAI no puede ser mayor al TOTAL | AB198: BeneficiariosMAI no puede ser mayor al TOTAL | AG198: 1
A199: 17200820 | B199: Electivas Mayores Ambulatorias | D199: =IFERROR(VLOOKUP($A199,Filtro!$A$4:$AM$2264,2,FALSE),0) -> 15,928 | E199: =IFERROR(VLOOKUP($A199,Filtro!$A$4:$AM$2264,3,FALSE),0) -> 15032 | F199: =IFERROR(VLOOKUP($A199,Filtro!$A$4:$AM$2264,4,FALSE),0) -> 1,999 | G199: =IFERROR(VLOOKUP($A199,Filtro!$A$4:$AM$2264,5,FALSE),0) -> 13929 | H199: =IFERROR(VLOOKUP($A199,Filtro!$A$4:$AM$2264,6,FALSE),0) -> 15 | I199: =IFERROR(VLOOKUP($A199,Filtro!$A$4:$AM$2264,7,FALSE),0) -> 1226 | J199: =IFERROR(VLOOKUP($A199,Filtro!$A$4:$AM$2264,8,FALSE),0) -> 0 | K199: =IFERROR(VLOOKUP($A199,Filtro!$A$4:$AM$2264,9,FALSE),0) -> 0 | L199: BeneficiariosMAI no puede ser mayor al TOTAL | AB199: BeneficiariosMAI no puede ser mayor al TOTAL | AG199: 1
A200: 17200830 | B200: Urgencia | C200: Mayor No Ambulatorias | D200: =IFERROR(VLOOKUP($A200,Filtro!$A$4:$AM$2264,2,FALSE),0) -> 9,176 | E200: =IFERROR(VLOOKUP($A200,Filtro!$A$4:$AM$2264,3,FALSE),0) -> 8245 | F200: =IFERROR(VLOOKUP($A200,Filtro!$A$4:$AM$2264,4,FALSE),0) -> 642 | G200: =IFERROR(VLOOKUP($A200,Filtro!$A$4:$AM$2264,5,FALSE),0) -> 8534 | H200: =IFERROR(VLOOKUP($A200,Filtro!$A$4:$AM$2264,6,FALSE),0) -> 28 | I200: =IFERROR(VLOOKUP($A200,Filtro!$A$4:$AM$2264,7,FALSE),0) -> 791 | J200: =IFERROR(VLOOKUP($A200,Filtro!$A$4:$AM$2264,8,FALSE),0) -> 0 | K200: =IFERROR(VLOOKUP($A200,Filtro!$A$4:$AM$2264,9,FALSE),0) -> 0 | L200: BeneficiariosMAI no puede ser mayor al TOTAL | AB200: BeneficiariosMAI no puede ser mayor al TOTAL | AG200: 1
A201: 17200840 | C201: Mayor Ambulatorias | D201: =IFERROR(VLOOKUP($A201,Filtro!$A$4:$AM$2264,2,FALSE),0) -> 1,037 | E201: =IFERROR(VLOOKUP($A201,Filtro!$A$4:$AM$2264,3,FALSE),0) -> 942 | F201: =IFERROR(VLOOKUP($A201,Filtro!$A$4:$AM$2264,4,FALSE),0) -> 177 | G201: =IFERROR(VLOOKUP($A201,Filtro!$A$4:$AM$2264,5,FALSE),0) -> 860 | H201: =IFERROR(VLOOKUP($A201,Filtro!$A$4:$AM$2264,6,FALSE),0) -> 18 | I201: =IFERROR(VLOOKUP($A201,Filtro!$A$4:$AM$2264,7,FALSE),0) -> 196 | J201: =IFERROR(VLOOKUP($A201,Filtro!$A$4:$AM$2264,8,FALSE),0) -> 0 | K201: =IFERROR(VLOOKUP($A201,Filtro!$A$4:$AM$2264,9,FALSE),0) -> 0 | L201: BeneficiariosMAI no puede ser mayor al TOTAL | AB201: BeneficiariosMAI no puede ser mayor al TOTAL | AG201: 1
... 93 more rows

Sheet B
B2: COMUNA: ( )
B3: ESTABLECIMIENTO/ESTRATEGIA: ( )
B4: MES: ENERO ()
B5: AÑO: 2025
B6: REM-B: CONSULTAS Y ATENCIÓN MEDICA
B8: CÓDIGO | C8: GLOSA | D8: TOTAL | E8: ACTIVIDADES | I8: INTERVENCIONES QUIRÚRGICAS | P8: INTERVENCIONES QUIRÚRGICAS MAYORES NO AMBULATORIAS ELECTIVAS | S8: INTERVENCIONES QUIRÚRGICAS MAYORES AMBULATORIAS ELECTIVA | V8: INTERVENCIONES QUIRÚRGICAS MAYORES AMBULATORIAS URGENCIA | Y8: INTERVENCIONES QUIRÚRGICAS MAYORES NO AMBULATORIAS URGENCIA | AB8: PROCEDENCIA | AE8: PRODUCCIÓN INTRAHOSPITAL | AH8: OPERATIVO | AI8: COMPRAS REALIZADAS | AK8: VENTAS DE SERVICIOS | AL8: PROCEDIMIENTOS EN USUARIOS CON REQUERIMIENTOS ESPECIALES
E9: Total Beneficiarios | F9: Beneficiarios | H9: No Beneficiarios | I9: Total Beneficiarios | J9: Principal | M9: Secundaria | S9: < 15 AÑOS | V9: < 15 AÑOS | Y9: < 15 AÑOS
F10: MAI | G10: MLE | J10: MAI | K10: MLE | L10: No Beneficiarios | M10: MAI | N10: MLE | O10: No Beneficiarios | P10: Total | Q10: < 15 años | R10: 15 años y más | S10: Total | T10: < 15 años | U10: 15 años y más | V10: Total | W10: < 15 años | X10: 15 años y más | Y10: Total | Z10: < 15 años | AA10: 15 años y más | AB10: Atención Cerrada | AC10: Atención Abierta | AD10: Emergencia | AE10: Honorarios | AF10: Convenios | AG10: Consultores de llamada | AI10: Al Sistema | AJ10: Extrasistema | AL10: Quirófano Cirugía Mayor | AM10: Asistencia Anestésica
B11: CONSULTAS Y ATENCIÓN MEDICA
A12: 01014275 | B12: 0101201 | C12: Consulta Médica de Especialidad en Dermatología | D12: =IFERROR(VLOOKUP($A12,Filtro!$A$4:$AM$2264,2,FALSE),0) -> 7541 | E12: =IFERROR(VLOOKUP($A12,Filtro!$A$4:$AM$2264,3,FALSE),0) -> 7540 | F12: =IFERROR(VLOOKUP($A12,Filtro!$A$4:$AM$2264,4,FALSE),0) -> 7540 | G12: =IFERROR(VLOOKUP($A12,Filtro!$A$4:$AM$2264,5,FALSE),0) -> 0 | H12: =IFERROR(VLOOKUP($A12,Filtro!$A$4:$AM$2264,6,FALSE),0) -> 1 | AB12: =IFERROR(VLOOKUP($A12,Filtro!$A$4:$AM$2264,26,FALSE),0) -> 0 | AC12: =IFERROR(VLOOKUP($A12,Filtro!$A$4:$AM$2264,27,FALSE),0) -> 7541 | AD12: =IFERROR(VLOOKUP($A12,Filtro!$A$4:$AM$2264,28,FALSE),0) -> 0 | AE12: =IFERROR(VLOOKUP($A12,Filtro!$A$4:$AM$2264,29,FALSE),0) -> 0 | AF12: =IFERROR(VLOOKUP($A12,Filtro!$A$4:$AM$2264,30,FALSE),0) -> 0 | AG12: =IFERROR(VLOOKUP($A12,Filtro!$A$4:$AM$2264,31,FALSE),0) -> 0 | AH12: =IFERROR(VLOOKUP($A12,Filtro!$A$4:$AM$2264,32,FALSE),0) -> 0 | AI12: =IFERROR(VLOOKUP($A12,Filtro!$A$4:$AM$2264,33,FALSE),0) -> 0 | AJ12: =IFERROR(VLOOKUP($A12,Filtro!$A$4:$AM$2264,34,FALSE),0) -> 0 | AK12: =IFERROR(VLOOKUP($A12,Filtro!$A$4:$AM$2264,35,FALSE),0) -> 0 | CQ12: 0 | CR12: 0 | CS12: 0 | CU12: 0 | CV12: 0 | CW12: 0 | CY12: 0 | CZ12: 0
A13: 01014276 | B13: 0101202 | C13: Consulta Médica de Especialidad en Geriatría | D13: =IFERROR(VLOOKUP($A13,Filtro!$A$4:$AM$2264,2,FALSE),0) -> 1826 | E13: =IFERROR(VLOOKUP($A13,Filtro!$A$4:$AM$2264,3,FALSE),0) -> 1826 | F13: =IFERROR(VLOOKUP($A13,Filtro!$A$4:$AM$2264,4,FALSE),0) -> 1826 | G13: =IFERROR(VLOOKUP($A13,Filtro!$A$4:$AM$2264,5,FALSE),0) -> 0 | H13: =IFERROR(VLOOKUP($A13,Filtro!$A$4:$AM$2264,6,FALSE),0) -> 0 | AB13: =IFERROR(VLOOKUP($A13,Filtro!$A$4:$AM$2264,26,FALSE),0) -> 0 | AC13: =IFERROR(VLOOKUP($A13,Filtro!$A$4:$AM$2264,27,FALSE),0) -> 1826 | AD13: =IFERROR(VLOOKUP($A13,Filtro!$A$4:$AM$2264,28,FALSE),0) -> 0 | AE13: =IFERROR(VLOOKUP($A13,Filtro!$A$4:$AM$2264,29,FALSE),0) -> 0 | AF13: =IFERROR(VLOOKUP($A13,Filtro!$A$4:$AM$2264,30,FALSE),0) -> 0 | AG13: =IFERROR(VLOOKUP($A13,Filtro!$A$4:$AM$2264,31,FALSE),0) -> 0 | AH13: =IFERROR(VLOOKUP($A13,Filtro!$A$4:$AM$2264,32,FALSE),0) -> 0 | AI13: =IFERROR(VLOOKUP($A13,Filtro!$A$4:$AM$2264,33,FALSE),0) -> 0 | AJ13: =IFERROR(VLOOKUP($A13,Filtro!$A$4:$AM$2264,34,FALSE),0) -> 0 | AK13: =IFERROR(VLOOKUP($A13,Filtro!$A$4:$AM$2264,35,FALSE),0) -> 0 | CQ13: 0 | CR13: 0 | CS13: 0 | CU13: 0 | CV13: 0 | CW13: 0 | CY13: 0 | CZ13: 0
A14: 01014277 | B14: 0101203 | C14: Consulta Médica de Especialidad en Neurocirugía | D14: =IFERROR(VLOOKUP($A14,Filtro!$A$4:$AM$2264,2,FALSE),0) -> 6309 | E14: =IFERROR(VLOOKUP($A14,Filtro!$A$4:$AM$2264,3,FALSE),0) -> 6309 | F14: =IFERROR(VLOOKUP($A14,Filtro!$A$4:$AM$2264,4,FALSE),0) -> 6309 | G14: =IFERROR(VLOOKUP($A14,Filtro!$A$4:$AM$2264,5,FALSE),0) -> 0 | H14: =IFERROR(VLOOKUP($A14,Filtro!$A$4:$AM$2264,6,FALSE),0) -> 0 | AB14: =IFERROR(VLOOKUP($A14,Filtro!$A$4:$AM$2264,26,FALSE),0) -> 0 | AC14: =IFERROR(VLOOKUP($A14,Filtro!$A$4:$AM$2264,27,FALSE),0) -> 6309 | AD14: =IFERROR(VLOOKUP($A14,Filtro!$A$4:$AM$2264,28,FALSE),0) -> 0 | AE14: =IFERROR(VLOOKUP($A14,Filtro!$A$4:$AM$2264,29,FALSE),0) -> 0 | AF14: =IFERROR(VLOOKUP($A14,Filtro!$A$4:$AM$2264,30,FALSE),0) -> 0 | AG14: =IFERROR(VLOOKUP($A14,Filtro!$A$4:$AM$2264,31,FALSE),0) -> 0 | AH14: =IFERROR(VLOOKUP($A14,Filtro!$A$4:$AM$2264,32,FALSE),0) -> 0 | AI14: =IFERROR(VLOOKUP($A14,Filtro!$A$4:$AM$2264,33,FALSE),0) -> 0 | AJ14: =IFERROR(VLOOKUP($A14,Filtro!$A$4:$AM$2264,34,FALSE),0) -> 0 | AK14: =IFERROR(VLOOKUP($A14,Filtro!$A$4:$AM$2264,35,FALSE),0) -> 0 | CQ14: 0 | CR14: 0 | CS14: 0 | CU14: 0 | CV14: 0 | CW14: 0 | CY14: 0 | CZ14: 0
A15: 01014278 | B15: 0101204 | C15: Consulta Médica de Especialidad en Oftalmología | D15: =IFERROR(VLOOKUP($A15,Filtro!$A$4:$AM$2264,2,FALSE),0) -> 20877 | E15: =IFERROR(VLOOKUP($A15,Filtro!$A$4:$AM$2264,3,FALSE),0) -> 20833 | F15: =IFERROR(VLOOKUP($A15,Filtro!$A$4:$AM$2264,4,FALSE),0) -> 20833 | G15: =IFERROR(VLOOKUP($A15,Filtro!$A$4:$AM$2264,5,FALSE),0) -> 0 | H15: =IFERROR(VLOOKUP($A15,Filtro!$A$4:$AM$2264,6,FALSE),0) -> 44 | AB15: =IFERROR(VLOOKUP($A15,Filtro!$A$4:$AM$2264,26,FALSE),0) -> 0 | AC15: =IFERROR(VLOOKUP($A15,Filtro!$A$4:$AM$2264,27,FALSE),0) -> 20877 | AD15: =IFERROR(VLOOKUP($A15,Filtro!$A$4:$AM$2264,28,FALSE),0) -> 0 | AE15: =IFERROR(VLOOKUP($A15,Filtro!$A$4:$AM$2264,29,FALSE),0) -> 910 | AF15: =IFERROR(VLOOKUP($A15,Filtro!$A$4:$AM$2264,30,FALSE),0) -> 1273 | AG15: =IFERROR(VLOOKUP($A15,Filtro!$A$4:$AM$2264,31,FALSE),0) -> 0 | AH15: =IFERROR(VLOOKUP($A15,Filtro!$A$4:$AM$2264,32,FALSE),0) -> 0 | AI15: =IFERROR(VLOOKUP($A15,Filtro!$A$4:$AM$2264,33,FALSE),0) -> 0 | AJ15: =IFERROR(VLOOKUP($A15,Filtro!$A$4:$AM$2264,34,FALSE),0) -> 0 | AK15: =IFERROR(VLOOKUP($A15,Filtro!$A$4:$AM$2264,35,FALSE),0) -> 0 | CQ15: 0 | CR15: 0 | CS15: 0 | CU15: 0 | CV15: 0 | CW15: 0 | CY15: 0 | CZ15: 0
A16: 01014279 | B16: 0101205 | C16: Consulta Médica de Especialidad en Otorrinolaringología | D16: =IFERROR(VLOOKUP($A16,Filtro!$A$4:$AM$2264,2,FALSE),0) -> 29157 | E16: =IFERROR(VLOOKUP($A16,Filtro!$A$4:$AM$2264,3,FALSE),0) -> 29059 | F16: =IFERROR(VLOOKUP($A16,Filtro!$A$4:$AM$2264,4,FALSE),0) -> 29059 | G16: =IFERROR(VLOOKUP($A16,Filtro!$A$4:$AM$2264,5,FALSE),0) -> 0 | H16: =IFERROR(VLOOKUP($A16,Filtro!$A$4:$AM$2264,6,FALSE),0) -> 98 | AB16: =IFERROR(VLOOKUP($A16,Filtro!$A$4:$AM$2264,26,FALSE),0) -> 0 | AC16: =IFERROR(VLOOKUP($A16,Filtro!$A$4:$AM$2264,27,FALSE),0) -> 29157 | AD16: =IFERROR(VLOOKUP($A16,Filtro!$A$4:$AM$2264,28,FALSE),0) -> 0 | AE16: =IFERROR(VLOOKUP($A16,Filtro!$A$4:$AM$2264,29,FALSE),0) -> 1711 | AF16: =IFERROR(VLOOKUP($A16,Filtro!$A$4:$AM$2264,30,FALSE),0) -> 93 | AG16: =IFERROR(VLOOKUP($A16,Filtro!$A$4:$AM$2264,31,FALSE),0) -> 0 | AH16: =IFERROR(VLOOKUP($A16,Filtro!$A$4:$AM$2264,32,FALSE),0) -> 0 | AI16: =IFERROR(VLOOKUP($A16,Filtro!$A$4:$AM$2264,33,FALSE),0) -> 0 | AJ16: =IFERROR(VLOOKUP($A16,Filtro!$A$4:$AM$2264,34,FALSE),0) -> 0 | AK16: =IFERROR(VLOOKUP($A16,Filtro!$A$4:$AM$2264,35,FALSE),0) -> 0 | CQ16: 0 | CR16: 0 | CS16: 0 | CU16: 0 | CV16: 0 | CW16: 0 | CY16: 0 | CZ16: 0
A17: 01014280 | B17: 0101206 | C17: Consulta Médica de Especialidad en Reumatología | D17: =IFERROR(VLOOKUP($A17,Filtro!$A$4:$AM$2264,2,FALSE),0) -> 6039 | E17: =IFERROR(VLOOKUP($A17,Filtro!$A$4:$AM$2264,3,FALSE),0) -> 5989 | F17: =IFERROR(VLOOKUP($A17,Filtro!$A$4:$AM$2264,4,FALSE),0) -> 5989 | G17: =IFERROR(VLOOKUP($A17,Filtro!$A$4:$AM$2264,5,FALSE),0) -> 0 | H17: =IFERROR(VLOOKUP($A17,Filtro!$A$4:$AM$2264,6,FALSE),0) -> 50 | AB17: =IFERROR(VLOOKUP($A17,Filtro!$A$4:$AM$2264,26,FALSE),0) -> 0 | AC17: =IFERROR(VLOOKUP($A17,Filtro!$A$4:$AM$2264,27,FALSE),0) -> 6039 | AD17: =IFERROR(VLOOKUP($A17,Filtro!$A$4:$AM$2264,28,FALSE),0) -> 0 | AE17: =IFERROR(VLOOKUP($A17,Filtro!$A$4:$AM$2264,29,FALSE),0) -> 0 | AF17: =IFERROR(VLOOKUP($A17,Filtro!$A$4:$AM$2264,30,FALSE),0) -> 0 | AG17: =IFERROR(VLOOKUP($A17,Filtro!$A$4:$AM$2264,31,FALSE),0) -> 0 | AH17: =IFERROR(VLOOKUP($A17,Filtro!$A$4:$AM$2264,32,FALSE),0) -> 0 | AI17: =IFERROR(VLOOKUP($A17,Filtro!$A$4:$AM$2264,33,FALSE),0) -> 0 | AJ17: =IFERROR(VLOOKUP($A17,Filtro!$A$4:$AM$2264,34,FALSE),0) -> 0 | AK17: =IFERROR(VLOOKUP($A17,Filtro!$A$4:$AM$2264,35,FALSE),0) -> 0 | CQ17: 0 | CR17: 0 | CS17: 0 | CU17: 0 | CV17: 0 | CW17: 0 | CY17: 0 | CZ17: 0
A18: 01014281 | B18: 0101207 | C18: Consulta Médica de Especialidad en Endocrinología Adulto | D18: =IFERROR(VLOOKUP($A18,Filtro!$A$4:$AM$2264,2,FALSE),0) -> 7450 | E18: =IFERROR(VLOOKUP($A18,Filtro!$A$4:$AM$2264,3,FALSE),0) -> 7444 | F18: =IFERROR(VLOOKUP($A18,Filtro!$A$4:$AM$2264,4,FALSE),0) -> 7444 | G18: =IFERROR(VLOOKUP($A18,Filtro!$A$4:$AM$2264,5,FALSE),0) -> 0 | H18: =IFERROR(VLOOKUP($A18,Filtro!$A$4:$AM$2264,6,FALSE),0) -> 6 | AB18: =IFERROR(VLOOKUP($A18,Filtro!$A$4:$AM$2264,26,FALSE),0) -> 0 | AC18: =IFERROR(VLOOKUP($A18,Filtro!$A$4:$AM$2264,27,FALSE),0) -> 7450 | AD18: =IFERROR(VLOOKUP($A18,Filtro!$A$4:$AM$2264,28,FALSE),0) -> 0 | AE18: =IFERROR(VLOOKUP($A18,Filtro!$A$4:$AM$2264,29,FALSE),0) -> 0 | AF18: =IFERROR(VLOOKUP($A18,Filtro!$A$4:$AM$2264,30,FALSE),0) -> 0 | AG18: =IFERROR(VLOOKUP($A18,Filtro!$A$4:$AM$2264,31,FALSE),0) -> 0 | AH18: =IFERROR(VLOOKUP($A18,Filtro!$A$4:$AM$2264,32,FALSE),0) -> 0 | AI18: =IFERROR(VLOOKUP($A18,Filtro!$A$4:$AM$2264,33,FALSE),0) -> 0 | AJ18: =IFERROR(VLOOKUP($A18,Filtro!$A$4:$AM$2264,34,FALSE),0) -> 0 | AK18: =IFERROR(VLOOKUP($A18,Filtro!$A$4:$AM$2264,35,FALSE),0) -> 0 | CQ18: 0 | CR18: 0 | CS18: 0 | CU18: 0 | CV18: 0 | CW18: 0 | CY18: 0 | CZ18: 0
A19: 01014282 | B19: 0101208 | C19: Consulta Médica de Especialidad en Endocrinología Pediátrica | D19: =IFERROR(VLOOKUP($A19,Filtro!$A$4:$AM$2264,2,FALSE),0) -> 4472 | E19: =IFERROR(VLOOKUP($A19,Filtro!$A$4:$AM$2264,3,FALSE),0) -> 4465 | F19: =IFERROR(VLOOKUP($A19,Filtro!$A$4:$AM$2264,4,FALSE),0) -> 4465 | G19: =IFERROR(VLOOKUP($A19,Filtro!$A$4:$AM$2264,5,FALSE),0) -> 0 | H19: =IFERROR(VLOOKUP($A19,Filtro!$A$4:$AM$2264,6,FALSE),0) -> 7 | AB19: =IFERROR(VLOOKUP($A19,Filtro!$A$4:$AM$2264,26,FALSE),0) -> 0 | AC19: =IFERROR(VLOOKUP($A19,Filtro!$A$4:$AM$2264,27,FALSE),0) -> 4472 | AD19: =IFERROR(VLOOKUP($A19,Filtro!$A$4:$AM$2264,28,FALSE),0) -> 0 | AE19: =IFERROR(VLOOKUP($A19,Filtro!$A$4:$AM$2264,29,FALSE),0) -> 0 | AF19: =IFERROR(VLOOKUP($A19,Filtro!$A$4:$AM$2264,30,FALSE),0) -> 0 | AG19: =IFERROR(VLOOKUP($A19,Filtro!$A$4:$AM$2264,31,FALSE),0) -> 0 | AH19: =IFERROR(VLOOKUP($A19,Filtro!$A$4:$AM$2264,32,FALSE),0) -> 0 | AI19: =IFERROR(VLOOKUP($A19,Filtro!$A$4:$AM$2264,33,FALSE),0) -> 0 | AJ19: =IFERROR(VLOOKUP($A19,Filtro!$A$4:$AM$2264,34,FALSE),0) -> 0 | AK19: =IFERROR(VLOOKUP($A19,Filtro!$A$4:$AM$2264,35,FALSE),0) -> 0 | CQ19: 0 | CR19: 0 | CS19: 0 | CU19: 0 | CV19: 0 | CW19: 0 | CY19: 0 | CZ19: 0
A20: 01014283 | B20: 0101209 | C20: Consulta Médica de Especialidad en Neurología Adultos | D20: =IFERROR(VLOOKUP($A20,Filtro!$A$4:$AM$2264,2,FALSE),0) -> 9754 | E20: =IFERROR(VLOOKUP($A20,Filtro!$A$4:$AM$2264,3,FALSE),0) -> 9740 | F20: =IFERROR(VLOOKUP($A20,Filtro!$A$4:$AM$2264,4,FALSE),0) -> 9740 | G20: =IFERROR(VLOOKUP($A20,Filtro!$A$4:$AM$2264,5,FALSE),0) -> 0 | H20: =IFERROR(VLOOKUP($A20,Filtro!$A$4:$AM$2264,6,FALSE),0) -> 14 | AB20: =IFERROR(VLOOKUP($A20,Filtro!$A$4:$AM$2264,26,FALSE),0) -> 0 | AC20: =IFERROR(VLOOKUP($A20,Filtro!$A$4:$AM$2264,27,FALSE),0) -> 9754 | AD20: =IFERROR(VLOOKUP($A20,Filtro!$A$4:$AM$2264,28,FALSE),0) -> 0 | AE20: =IFERROR(VLOOKUP($A20,Filtro!$A$4:$AM$2264,29,FALSE),0) -> 644 | AF20: =IFERROR(VLOOKUP($A20,Filtro!$A$4:$AM$2264,30,FALSE),0) -> 163 | AG20: =IFERROR(VLOOKUP($A20,Filtro!$A$4:$AM$2264,31,FALSE),0) -> 0 | AH20: =IFERROR(VLOOKUP($A20,Filtro!$A$4:$AM$2264,32,FALSE),0) -> 0 | AI20: =IFERROR(VLOOKUP($A20,Filtro!$A$4:$AM$2264,33,FALSE),0) -> 0 | AJ20: =IFERROR(VLOOKUP($A20,Filtro!$A$4:$AM$2264,34,FALSE),0) -> 0 | AK20: =IFERROR(VLOOKUP($A20,Filtro!$A$4:$AM$2264,35,FALSE),0) -> 0 | CQ20: 0 | CR20: 0 | CS20: 0 | CU20: 0 | CV20: 0 | CW20: 0 | CY20: 0 | CZ20: 0
A21: 01014284 | B21: 0101210 | C21: Consulta Médica de Especialidad en Neurología Pediátrica | D21: =IFERROR(VLOOKUP($A21,Filtro!$A$4:$AM$2264,2,FALSE),0) -> 5929 | E21: =IFERROR(VLOOKUP($A21,Filtro!$A$4:$AM$2264,3,FALSE),0) -> 5916 | F21: =IFERROR(VLOOKUP($A21,Filtro!$A$4:$AM$2264,4,FALSE),0) -> 5916 | G21: =IFERROR(VLOOKUP($A21,Filtro!$A$4:$AM$2264,5,FALSE),0) -> 0 | H21: =IFERROR(VLOOKUP($A21,Filtro!$A$4:$AM$2264,6,FALSE),0) -> 13 | AB21: =IFERROR(VLOOKUP($A21,Filtro!$A$4:$AM$2264,26,FALSE),0) -> 0 | AC21: =IFERROR(VLOOKUP($A21,Filtro!$A$4:$AM$2264,27,FALSE),0) -> 5929 | AD21: =IFERROR(VLOOKUP($A21,Filtro!$A$4:$AM$2264,28,FALSE),0) -> 0 | AE21: =IFERROR(VLOOKUP($A21,Filtro!$A$4:$AM$2264,29,FALSE),0) -> 193 | AF21: =IFERROR(VLOOKUP($A21,Filtro!$A$4:$AM$2264,30,FALSE),0) -> 0 | AG21: =IFERROR(VLOOKUP($A21,Filtro!$A$4:$AM$2264,31,FALSE),0) -> 0 | AH21: =IFERROR(VLOOKUP($A21,Filtro!$A$4:$AM$2264,32,FALSE),0) -> 0 | AI21: =IFERROR(VLOOKUP($A21,Filtro!$A$4:$AM$2264,33,FALSE),0) -> 0 | AJ21: =IFERROR(VLOOKUP($A21,Filtro!$A$4:$AM$2264,34,FALSE),0) -> 0 | AK21: =IFERROR(VLOOKUP($A21,Filtro!$A$4:$AM$2264,35,FALSE),0) -> 0 | CQ21: 0 | CR21: 0 | CS21: 0 | CU21: 0 | CV21: 0 | CW21: 0 | CY21: 0 | CZ21: 0
A22: 01014285 | B22: 0101211 | C22: Consulta Médica de Especialidad en Oncología Médica | D22: =IFERROR(VLOOKUP($A22,Filtro!$A$4:$AM$2264,2,FALSE),0) -> 8514 | E22: =IFERROR(VLOOKUP($A22,Filtro!$A$4:$AM$2264,3,FALSE),0) -> 8477 | F22: =IFERROR(VLOOKUP($A22,Filtro!$A$4:$AM$2264,4,FALSE),0) -> 8477 | G22: =IFERROR(VLOOKUP($A22,Filtro!$A$4:$AM$2264,5,FALSE),0) -> 0 | H22: =IFERROR(VLOOKUP($A22,Filtro!$A$4:$AM$2264,6,FALSE),0) -> 37 | AB22: =IFERROR(VLOOKUP($A22,Filtro!$A$4:$AM$2264,26,FALSE),0) -> 0 | AC22: =IFERROR(VLOOKUP($A22,Filtro!$A$4:$AM$2264,27,FALSE),0) -> 8514 | AD22: =IFERROR(VLOOKUP($A22,Filtro!$A$4:$AM$2264,28,FALSE),0) -> 0 | AE22: =IFERROR(VLOOKUP($A22,Filtro!$A$4:$AM$2264,29,FALSE),0) -> 0 | AF22: =IFERROR(VLOOKUP($A22,Filtro!$A$4:$AM$2264,30,FALSE),0) -> 17 | AG22: =IFERROR(VLOOKUP($A22,Filtro!$A$4:$AM$2264,31,FALSE),0) -> 0 | AH22: =IFERROR(VLOOKUP($A22,Filtro!$A$4:$AM$2264,32,FALSE),0) -> 0 | AI22: =IFERROR(VLOOKUP($A22,Filtro!$A$4:$AM$2264,33,FALSE),0) -> 0 | AJ22: =IFERROR(VLOOKUP($A22,Filtro!$A$4:$AM$2264,34,FALSE),0) -> 0 | AK22: =IFERROR(VLOOKUP($A22,Filtro!$A$4:$AM$2264,35,FALSE),0) -> 0 | CQ22: 0 | CR22: 0 | CS22: 0 | CU22: 0 | CV22: 0 | CW22: 0 | CY22: 0 | CZ22: 0
A23: 01014286 | B23: 0101212 | C23: Consulta Médica de Especialidad en Psiquiatría adultos | D23: =IFERROR(VLOOKUP($A23,Filtro!$A$4:$AM$2264,2,FALSE),0) -> 20546 | E23: =IFERROR(VLOOKUP($A23,Filtro!$A$4:$AM$2264,3,FALSE),0) -> 20500 | F23: =IFERROR(VLOOKUP($A23,Filtro!$A$4:$AM$2264,4,FALSE),0) -> 20500 | G23: =IFERROR(VLOOKUP($A23,Filtro!$A$4:$AM$2264,5,FALSE),0) -> 0 | H23: =IFERROR(VLOOKUP($A23,Filtro!$A$4:$AM$2264,6,FALSE),0) -> 46 | AB23: =IFERROR(VLOOKUP($A23,Filtro!$A$4:$AM$2264,26,FALSE),0) -> 0 | AC23: =IFERROR(VLOOKUP($A23,Filtro!$A$4:$AM$2264,27,FALSE),0) -> 20546 | AD23: =IFERROR(VLOOKUP($A23,Filtro!$A$4:$AM$2264,28,FALSE),0) -> 0 | AE23: =IFERROR(VLOOKUP($A23,Filtro!$A$4:$AM$2264,29,FALSE),0) -> 0 | AF23: =IFERROR(VLOOKUP($A23,Filtro!$A$4:$AM$2264,30,FALSE),0) -> 0 | AG23: =IFERROR(VLOOKUP($A23,Filtro!$A$4:$AM$2264,31,FALSE),0) -> 0 | AH23: =IFERROR(VLOOKUP($A23,Filtro!$A$4:$AM$2264,32,FALSE),0) -> 0 | AI23: =IFERROR(VLOOKUP($A23,Filtro!$A$4:$AM$2264,33,FALSE),0) -> 0 | AJ23: =IFERROR(VLOOKUP($A23,Filtro!$A$4:$AM$2264,34,FALSE),0) -> 0 | AK23: =IFERROR(VLOOKUP($A23,Filtro!$A$4:$AM$2264,35,FALSE),0) -> 0 | CQ23: 0 | CR23: 0 | CS23: 0 | CU23: 0 | CV23: 0 | CW23: 0 | CY23: 0 | CZ23: 0
A24: 01014287 | B24: 0101213 | C24: Consulta Médica de Especialidad en Psiquiatría pediátrica y de la adolescencia | D24: =IFERROR(VLOOKUP($A24,Filtro!$A$4:$AM$2264,2,FALSE),0) -> 7290 | E24: =IFERROR(VLOOKUP($A24,Filtro!$A$4:$AM$2264,3,FALSE),0) -> 7286 | F24: =IFERROR(VLOOKUP($A24,Filtro!$A$4:$AM$2264,4,FALSE),0) -> 7286 | G24: =IFERROR(VLOOKUP($A24,Filtro!$A$4:$AM$2264,5,FALSE),0) -> 0 | H24: =IFERROR(VLOOKUP($A24,Filtro!$A$4:$AM$2264,6,FALSE),0) -> 4 | AB24: =IFERROR(VLOOKUP($A24,Filtro!$A$4:$AM$2264,26,FALSE),0) -> 0 | AC24: =IFERROR(VLOOKUP($A24,Filtro!$A$4:$AM$2264,27,FALSE),0) -> 7287 | AD24: =IFERROR(VLOOKUP($A24,Filtro!$A$4:$AM$2264,28,FALSE),0) -> 0 | AE24: =IFERROR(VLOOKUP($A24,Filtro!$A$4:$AM$2264,29,FALSE),0) -> 0 | AF24: =IFERROR(VLOOKUP($A24,Filtro!$A$4:$AM$2264,30,FALSE),0) -> 0 | AG24: =IFERROR(VLOOKUP($A24,Filtro!$A$4:$AM$2264,31,FALSE),0) -> 0 | AH24: =IFERROR(VLOOKUP($A24,Filtro!$A$4:$AM$2264,32,FALSE),0) -> 0 | AI24: =IFERROR(VLOOKUP($A24,Filtro!$A$4:$AM$2264,33,FALSE),0) -> 0 | AJ24: =IFERROR(VLOOKUP($A24,Filtro!$A$4:$AM$2264,34,FALSE),0) -> 3 | AK24: =IFERROR(VLOOKUP($A24,Filtro!$A$4:$AM$2264,35,FALSE),0) -> 0 | CQ24: 0 | CR24: 0 | CS24: 0 | CU24: 0 | CV24: 0 | CW24: 0 | CY24: 0 | CZ24: 0
A25: 01014288 | B25: 0101300 | C25: Consulta Médica otras Especialidades | D25: =IFERROR(VLOOKUP($A25,Filtro!$A$4:$AM$2264,2,FALSE),0) -> 10415 | E25: =IFERROR(VLOOKUP($A25,Filtro!$A$4:$AM$2264,3,FALSE),0) -> 10411 | F25: =IFERROR(VLOOKUP($A25,Filtro!$A$4:$AM$2264,4,FALSE),0) -> 10411 | G25: =IFERROR(VLOOKUP($A25,Filtro!$A$4:$AM$2264,5,FALSE),0) -> 0 | H25: =IFERROR(VLOOKUP($A25,Filtro!$A$4:$AM$2264,6,FALSE),0) -> 4 | AB25: =IFERROR(VLOOKUP($A25,Filtro!$A$4:$AM$2264,26,FALSE),0) -> 0 | AC25: =IFERROR(VLOOKUP($A25,Filtro!$A$4:$AM$2264,27,FALSE),0) -> 10415 | AD25: =IFERROR(VLOOKUP($A25,Filtro!$A$4:$AM$2264,28,FALSE),0) -> 0 | AE25: =IFERROR(VLOOKUP($A25,Filtro!$A$4:$AM$2264,29,FALSE),0) -> 0 | AF25: =IFERROR(VLOOKUP($A25,Filtro!$A$4:$AM$2264,30,FALSE),0) -> 0 | AG25: =IFERROR(VLOOKUP($A25,Filtro!$A$4:$AM$2264,31,FALSE),0) -> 0 | AH25: =IFERROR(VLOOKUP($A25,Filtro!$A$4:$AM$2264,32,FALSE),0) -> 0 | AI25: =IFERROR(VLOOKUP($A25,Filtro!$A$4:$AM$2264,33,FALSE),0) -> 0 | AJ25: =IFERROR(VLOOKUP($A25,Filtro!$A$4:$AM$2264,34,FALSE),0) -> 0 | AK25: =IFERROR(VLOOKUP($A25,Filtro!$A$4:$AM$2264,35,FALSE),0) -> 0 | CQ25: 0 | CR25: 0 | CS25: 0 | CU25: 0 | CV25: 0 | CW25: 0 | CY25: 0 | CZ25: 0
A26: 01014289 | B26: 0101301 | C26: Consulta Médica de Especialidad en Cardiología | D26: =IFERROR(VLOOKUP($A26,Filtro!$A$4:$AM$2264,2,FALSE),0) -> 15146 | E26: =IFERROR(VLOOKUP($A26,Filtro!$A$4:$AM$2264,3,FALSE),0) -> 15118 | F26: =IFERROR(VLOOKUP($A26,Filtro!$A$4:$AM$2264,4,FALSE),0) -> 15118 | G26: =IFERROR(VLOOKUP($A26,Filtro!$A$4:$AM$2264,5,FALSE),0) -> 0 | H26: =IFERROR(VLOOKUP($A26,Filtro!$A$4:$AM$2264,6,FALSE),0) -> 28 | AB26: =IFERROR(VLOOKUP($A26,Filtro!$A$4:$AM$2264,26,FALSE),0) -> 0 | AC26: =IFERROR(VLOOKUP($A26,Filtro!$A$4:$AM$2264,27,FALSE),0) -> 15146 | AD26: =IFERROR(VLOOKUP($A26,Filtro!$A$4:$AM$2264,28,FALSE),0) -> 0 | AE26: =IFERROR(VLOOKUP($A26,Filtro!$A$4:$AM$2264,29,FALSE),0) -> 0 | AF26: =IFERROR(VLOOKUP($A26,Filtro!$A$4:$AM$2264,30,FALSE),0) -> 74 | AG26: =IFERROR(VLOOKUP($A26,Filtro!$A$4:$AM$2264,31,FALSE),0) -> 0 | AH26: =IFERROR(VLOOKUP($A26,Filtro!$A$4:$AM$2264,32,FALSE),0) -> 0 | AI26: =IFERROR(VLOOKUP($A26,Filtro!$A$4:$AM$2264,33,FALSE),0) -> 0 | AJ26: =IFERROR(VLOOKUP($A26,Filtro!$A$4:$AM$2264,34,FALSE),0) -> 0 | AK26: =IFERROR(VLOOKUP($A26,Filtro!$A$4:$AM$2264,35,FALSE),0) -> 0 | CQ26: 0 | CR26: 0 | CS26: 0 | CU26: 0 | CV26: 0 | CW26: 0 | CY26: 0 | CZ26: 0
A27: 01014290 | B27: 0101302 | C27: Consulta Médica de Especialidad en Hematología | D27: =IFERROR(VLOOKUP($A27,Filtro!$A$4:$AM$2264,2,FALSE),0) -> 8595 | E27: =IFERROR(VLOOKUP($A27,Filtro!$A$4:$AM$2264,3,FALSE),0) -> 8576 | F27: =IFERROR(VLOOKUP($A27,Filtro!$A$4:$AM$2264,4,FALSE),0) -> 8576 | G27: =IFERROR(VLOOKUP($A27,Filtro!$A$4:$AM$2264,5,FALSE),0) -> 0 | H27: =IFERROR(VLOOKUP($A27,Filtro!$A$4:$AM$2264,6,FALSE),0) -> 19 | AB27: =IFERROR(VLOOKUP($A27,Filtro!$A$4:$AM$2264,26,FALSE),0) -> 0 | AC27: =IFERROR(VLOOKUP($A27,Filtro!$A$4:$AM$2264,27,FALSE),0) -> 8595 | AD27: =IFERROR(VLOOKUP($A27,Filtro!$A$4:$AM$2264,28,FALSE),0) -> 0 | AE27: =IFERROR(VLOOKUP($A27,Filtro!$A$4:$AM$2264,29,FALSE),0) -> 0 | AF27: =IFERROR(VLOOKUP($A27,Filtro!$A$4:$AM$2264,30,FALSE),0) -> 0 | AG27: =IFERROR(VLOOKUP($A27,Filtro!$A$4:$AM$2264,31,FALSE),0) -> 0 | AH27: =IFERROR(VLOOKUP($A27,Filtro!$A$4:$AM$2264,32,FALSE),0) -> 0 | AI27: =IFERROR(VLOOKUP($A27,Filtro!$A$4:$AM$2264,33,FALSE),0) -> 0 | AJ27: =IFERROR(VLOOKUP($A27,Filtro!$A$4:$AM$2264,34,FALSE),0) -> 0 | AK27: =IFERROR(VLOOKUP($A27,Filtro!$A$4:$AM$2264,35,FALSE),0) -> 0 | CQ27: 0 | CR27: 0 | CS27: 0 | CU27: 0 | CV27: 0 | CW27: 0 | CY27: 0 | CZ27: 0
A28: 01014291 | B28: 0101303 | C28: Consulta Médica de Especialidad en Infectología | D28: =IFERROR(VLOOKUP($A28,Filtro!$A$4:$AM$2264,2,FALSE),0) -> 7077 | E28: =IFERROR(VLOOKUP($A28,Filtro!$A$4:$AM$2264,3,FALSE),0) -> 7039 | F28: =IFERROR(VLOOKUP($A28,Filtro!$A$4:$AM$2264,4,FALSE),0) -> 7039 | G28: =IFERROR(VLOOKUP($A28,Filtro!$A$4:$AM$2264,5,FALSE),0) -> 0 | H28: =IFERROR(VLOOKUP($A28,Filtro!$A$4:$AM$2264,6,FALSE),0) -> 38 | AB28: =IFERROR(VLOOKUP($A28,Filtro!$A$4:$AM$2264,26,FALSE),0) -> 0 | AC28: =IFERROR(VLOOKUP($A28,Filtro!$A$4:$AM$2264,27,FALSE),0) -> 7077 | AD28: =IFERROR(VLOOKUP($A28,Filtro!$A$4:$AM$2264,28,FALSE),0) -> 0 | AE28: =IFERROR(VLOOKUP($A28,Filtro!$A$4:$AM$2264,29,FALSE),0) -> 0 | AF28: =IFERROR(VLOOKUP($A28,Filtro!$A$4:$AM$2264,30,FALSE),0) -> 0 | AG28: =IFERROR(VLOOKUP($A28,Filtro!$A$4:$AM$2264,31,FALSE),0) -> 0 | AH28: =IFERROR(VLOOKUP($A28,Filtro!$A$4:$AM$2264,32,FALSE),0) -> 0 | AI28: =IFERROR(VLOOKUP($A28,Filtro!$A$4:$AM$2264,33,FALSE),0) -> 0 | AJ28: =IFERROR(VLOOKUP($A28,Filtro!$A$4:$AM$2264,34,FALSE),0) -> 0 | AK28: =IFERROR(VLOOKUP($A28,Filtro!$A$4:$AM$2264,35,FALSE),0) -> 0 | CQ28: 0 | CR28: 0 | CS28: 0 | CU28: 0 | CV28: 0 | CW28: 0 | CY28: 0 | CZ28: 0
A29: 01014292 | B29: 0101304 | C29: Consulta Médica de Especialidad en Inmunología | D29: =IFERROR(VLOOKUP($A29,Filtro!$A$4:$AM$2264,2,FALSE),0) -> 1917 | E29: =IFERROR(VLOOKUP($A29,Filtro!$A$4:$AM$2264,3,FALSE),0) -> 1915 | F29: =IFERROR(VLOOKUP($A29,Filtro!$A$4:$AM$2264,4,FALSE),0) -> 1915 | G29: =IFERROR(VLOOKUP($A29,Filtro!$A$4:$AM$2264,5,FALSE),0) -> 0 | H29: =IFERROR(VLOOKUP($A29,Filtro!$A$4:$AM$2264,6,FALSE),0) -> 2 | AB29: =IFERROR(VLOOKUP($A29,Filtro!$A$4:$AM$2264,26,FALSE),0) -> 0 | AC29: =IFERROR(VLOOKUP($A29,Filtro!$A$4:$AM$2264,27,FALSE),0) -> 1917 | AD29: =IFERROR(VLOOKUP($A29,Filtro!$A$4:$AM$2264,28,FALSE),0) -> 0 | AE29: =IFERROR(VLOOKUP($A29,Filtro!$A$4:$AM$2264,29,FALSE),0) -> 0 | AF29: =IFERROR(VLOOKUP($A29,Filtro!$A$4:$AM$2264,30,FALSE),0) -> 0 | AG29: =IFERROR(VLOOKUP($A29,Filtro!$A$4:$AM$2264,31,FALSE),0) -> 0 | AH29: =IFERROR(VLOOKUP($A29,Filtro!$A$4:$AM$2264,32,FALSE),0) -> 0 | AI29: =IFERROR(VLOOKUP($A29,Filtro!$A$4:$AM$2264,33,FALSE),0) -> 0 | AJ29: =IFERROR(VLOOKUP($A29,Filtro!$A$4:$AM$2264,34,FALSE),0) -> 0 | AK29: =IFERROR(VLOOKUP($A29,Filtro!$A$4:$AM$2264,35,FALSE),0) -> 0 | CQ29: 0 | CR29: 0 | CS29: 0 | CU29: 0 | CV29: 0 | CW29: 0 | CY29: 0 | CZ29: 0
A30: 01014293 | B30: 0101305 | C30: Consulta Médica de Especialidad en Medicina Familiar | D30: =IFERROR(VLOOKUP($A30,Filtro!$A$4:$AM$2264,2,FALSE),0) -> 698 | E30: =IFERROR(VLOOKUP($A30,Filtro!$A$4:$AM$2264,3,FALSE),0) -> 696 | F30: =IFERROR(VLOOKUP($A30,Filtro!$A$4:$AM$2264,4,FALSE),0) -> 696 | G30: =IFERROR(VLOOKUP($A30,Filtro!$A$4:$AM$2264,5,FALSE),0) -> 0 | H30: =IFERROR(VLOOKUP($A30,Filtro!$A$4:$AM$2264,6,FALSE),0) -> 2 | AB30: =IFERROR(VLOOKUP($A30,Filtro!$A$4:$AM$2264,26,FALSE),0) -> 0 | AC30: =IFERROR(VLOOKUP($A30,Filtro!$A$4:$AM$2264,27,FALSE),0) -> 698 | AD30: =IFERROR(VLOOKUP($A30,Filtro!$A$4:$AM$2264,28,FALSE),0) -> 0 | AE30: =IFERROR(VLOOKUP($A30,Filtro!$A$4:$AM$2264,29,FALSE),0) -> 0 | AF30: =IFERROR(VLOOKUP($A30,Filtro!$A$4:$AM$2264,30,FALSE),0) -> 0 | AG30: =IFERROR(VLOOKUP($A30,Filtro!$A$4:$AM$2264,31,FALSE),0) -> 0 | AH30: =IFERROR(VLOOKUP($A30,Filtro!$A$4:$AM$2264,32,FALSE),0) -> 0 | AI30: =IFERROR(VLOOKUP($A30,Filtro!$A$4:$AM$2264,33,FALSE),0) -> 0 | AJ30: =IFERROR(VLOOKUP($A30,Filtro!$A$4:$AM$2264,34,FALSE),0) -> 0 | AK30: =IFERROR(VLOOKUP($A30,Filtro!$A$4:$AM$2264,35,FALSE),0) -> 0 | CQ30: 0 | CR30: 0 | CS30: 0 | CU30: 0 | CV30: 0 | CW30: 0 | CY30: 0 | CZ30: 0
A31: 01014294 | B31: 0101306 | C31: Consulta Médica de Especialidad en Medicina Física y Rehabilitación | D31: =IFERROR(VLOOKUP($A31,Filtro!$A$4:$AM$2264,2,FALSE),0) -> 10126 | E31: =IFERROR(VLOOKUP($A31,Filtro!$A$4:$AM$2264,3,FALSE),0) -> 10110 | F31: =IFERROR(VLOOKUP($A31,Filtro!$A$4:$AM$2264,4,FALSE),0) -> 10110 | G31: =IFERROR(VLOOKUP($A31,Filtro!$A$4:$AM$2264,5,FALSE),0) -> 0 | H31: =IFERROR(VLOOKUP($A31,Filtro!$A$4:$AM$2264,6,FALSE),0) -> 16 | AB31: =IFERROR(VLOOKUP($A31,Filtro!$A$4:$AM$2264,26,FALSE),0) -> 0 | AC31: =IFERROR(VLOOKUP($A31,Filtro!$A$4:$AM$2264,27,FALSE),0) -> 10126 | AD31: =IFERROR(VLOOKUP($A31,Filtro!$A$4:$AM$2264,28,FALSE),0) -> 0 | AE31: =IFERROR(VLOOKUP($A31,Filtro!$A$4:$AM$2264,29,FALSE),0) -> 0 | AF31: =IFERROR(VLOOKUP($A31,Filtro!$A$4:$AM$2264,30,FALSE),0) -> 313 | AG31: =IFERROR(VLOOKUP($A31,Filtro!$A$4:$AM$2264,31,FALSE),0) -> 0 | AH31: =IFERROR(VLOOKUP($A31,Filtro!$A$4:$AM$2264,32,FALSE),0) -> 0 | AI31: =IFERROR(VLOOKUP($A31,Filtro!$A$4:$AM$2264,33,FALSE),0) -> 0 | AJ31: =IFERROR(VLOOKUP($A31,Filtro!$A$4:$AM$2264,34,FALSE),0) -> 0 | AK31: =IFERROR(VLOOKUP($A31,Filtro!$A$4:$AM$2264,35,FALSE),0) -> 0 | CQ31: 0 | CR31: 0 | CS31: 0 | CU31: 0 | CV31: 0 | CW31: 0 | CY31: 0 | CZ31: 0
A32: 01014295 | B32: 0101307 | C32: Consulta Médica de Especialidad en Medicina Interna | D32: =IFERROR(VLOOKUP($A32,Filtro!$A$4:$AM$2264,2,FALSE),0) -> 37605 | E32: =IFERROR(VLOOKUP($A32,Filtro!$A$4:$AM$2264,3,FALSE),0) -> 37417 | F32: =IFERROR(VLOOKUP($A32,Filtro!$A$4:$AM$2264,4,FALSE),0) -> 37417 | G32: =IFERROR(VLOOKUP($A32,Filtro!$A$4:$AM$2264,5,FALSE),0) -> 0 | H32: =IFERROR(VLOOKUP($A32,Filtro!$A$4:$AM$2264,6,FALSE),0) -> 188 | AB32: =IFERROR(VLOOKUP($A32,Filtro!$A$4:$AM$2264,26,FALSE),0) -> 0 | AC32: =IFERROR(VLOOKUP($A32,Filtro!$A$4:$AM$2264,27,FALSE),0) -> 37605 | AD32: =IFERROR(VLOOKUP($A32,Filtro!$A$4:$AM$2264,28,FALSE),0) -> 0 | AE32: =IFERROR(VLOOKUP($A32,Filtro!$A$4:$AM$2264,29,FALSE),0) -> 1780 | AF32: =IFERROR(VLOOKUP($A32,Filtro!$A$4:$AM$2264,30,FALSE),0) -> 0 | AG32: =IFERROR(VLOOKUP($A32,Filtro!$A$4:$AM$2264,31,FALSE),0) -> 0 | AH32: =IFERROR(VLOOKUP($A32,Filtro!$A$4:$AM$2264,32,FALSE),0) -> 0 | AI32: =IFERROR(VLOOKUP($A32,Filtro!$A$4:$AM$2264,33,FALSE),0) -> 0 | AJ32: =IFERROR(VLOOKUP($A32,Filtro!$A$4:$AM$2264,34,FALSE),0) -> 0 | AK32: =IFERROR(VLOOKUP($A32,Filtro!$A$4:$AM$2264,35,FALSE),0) -> 0 | CQ32: 0 | CR32: 0 | CS32: 0 | CU32: 0 | CV32: 0 | CW32: 0 | CY32: 0 | CZ32: 0
A33: 01012816 | B33: 0101308 | C33: Consulta Médica de Especialidad en Obstetricia y Ginecología | D33: =IFERROR(VLOOKUP($A33,Filtro!$A$4:$AM$2264,2,FALSE),0) -> 48332 | E33: =IFERROR(VLOOKUP($A33,Filtro!$A$4:$AM$2264,3,FALSE),0) -> 48313 | F33: =IFERROR(VLOOKUP($A33,Filtro!$A$4:$AM$2264,4,FALSE),0) -> 48313 | G33: =IFERROR(VLOOKUP($A33,Filtro!$A$4:$AM$2264,5,FALSE),0) -> 0 | H33: =IFERROR(VLOOKUP($A33,Filtro!$A$4:$AM$2264,6,FALSE),0) -> 19 | AB33: =IFERROR(VLOOKUP($A33,Filtro!$A$4:$AM$2264,26,FALSE),0) -> 0 | AC33: =IFERROR(VLOOKUP($A33,Filtro!$A$4:$AM$2264,27,FALSE),0) -> 48332 | AD33: =IFERROR(VLOOKUP($A33,Filtro!$A$4:$AM$2264,28,FALSE),0) -> 0 | AE33: =IFERROR(VLOOKUP($A33,Filtro!$A$4:$AM$2264,29,FALSE),0) -> 117 | AF33: =IFERROR(VLOOKUP($A33,Filtro!$A$4:$AM$2264,30,FALSE),0) -> 113 | AG33: =IFERROR(VLOOKUP($A33,Filtro!$A$4:$AM$2264,31,FALSE),0) -> 0 | AH33: =IFERROR(VLOOKUP($A33,Filtro!$A$4:$AM$2264,32,FALSE),0) -> 0 | AI33: =IFERROR(VLOOKUP($A33,Filtro!$A$4:$AM$2264,33,FALSE),0) -> 0 | AJ33: =IFERROR(VLOOKUP($A33,Filtro!$A$4:$AM$2264,34,FALSE),0) -> 0 | AK33: =IFERROR(VLOOKUP($A33,Filtro!$A$4:$AM$2264,35,FALSE),0) -> 0 | CQ33: 0 | CR33: 0 | CS33: 0 | CU33: 0 | CV33: 0 | CW33: 0 | CY33: 0 | CZ33: 0
A34: 01014296 | B34: 0101309 | C34: Consulta Médica de Especialidad en Pediatría | D34: =IFERROR(VLOOKUP($A34,Filtro!$A$4:$AM$2264,2,FALSE),0) -> 17045 | E34: =IFERROR(VLOOKUP($A34,Filtro!$A$4:$AM$2264,3,FALSE),0) -> 17029 | F34: =IFERROR(VLOOKUP($A34,Filtro!$A$4:$AM$2264,4,FALSE),0) -> 17029 | G34: =IFERROR(VLOOKUP($A34,Filtro!$A$4:$AM$2264,5,FALSE),0) -> 0 | H34: =IFERROR(VLOOKUP($A34,Filtro!$A$4:$AM$2264,6,FALSE),0) -> 16 | AB34: =IFERROR(VLOOKUP($A34,Filtro!$A$4:$AM$2264,26,FALSE),0) -> 0 | AC34: =IFERROR(VLOOKUP($A34,Filtro!$A$4:$AM$2264,27,FALSE),0) -> 17045 | AD34: =IFERROR(VLOOKUP($A34,Filtro!$A$4:$AM$2264,28,FALSE),0) -> 0 | AE34: =IFERROR(VLOOKUP($A34,Filtro!$A$4:$AM$2264,29,FALSE),0) -> 0 | AF34: =IFERROR(VLOOKUP($A34,Filtro!$A$4:$AM$2264,30,FALSE),0) -> 0 | AG34: =IFERROR(VLOOKUP($A34,Filtro!$A$4:$AM$2264,31,FALSE),0) -> 0 | AH34: =IFERROR(VLOOKUP($A34,Filtro!$A$4:$AM$2264,32,FALSE),0) -> 0 | AI34: =IFERROR(VLOOKUP($A34,Filtro!$A$4:$AM$2264,33,FALSE),0) -> 0 | AJ34: =IFERROR(VLOOKUP($A34,Filtro!$A$4:$AM$2264,34,FALSE),0) -> 0 | AK34: =IFERROR(VLOOKUP($A34,Filtro!$A$4:$AM$2264,35,FALSE),0) -> 0 | CQ34: 0 | CR34: 0 | CS34: 0 | CU34: 0 | CV34: 0 | CW34: 0 | CY34: 0 | CZ34: 0
A35: 01014297 | B35: 0101310 | C35: Consulta Médica de Especialidad en Traumatología y Ortopedia | D35: =IFERROR(VLOOKUP($A35,Filtro!$A$4:$AM$2264,2,FALSE),0) -> 30617 | E35: =IFERROR(VLOOKUP($A35,Filtro!$A$4:$AM$2264,3,FALSE),0) -> 30301 | F35: =IFERROR(VLOOKUP($A35,Filtro!$A$4:$AM$2264,4,FALSE),0) -> 30301 | G35: =IFERROR(VLOOKUP($A35,Filtro!$A$4:$AM$2264,5,FALSE),0) -> 0 | H35: =IFERROR(VLOOKUP($A35,Filtro!$A$4:$AM$2264,6,FALSE),0) -> 316 | AB35: =IFERROR(VLOOKUP($A35,Filtro!$A$4:$AM$2264,26,FALSE),0) -> 0 | AC35: =IFERROR(VLOOKUP($A35,Filtro!$A$4:$AM$2264,27,FALSE),0) -> 30617 | AD35: =IFERROR(VLOOKUP($A35,Filtro!$A$4:$AM$2264,28,FALSE),0) -> 0 | AE35: =IFERROR(VLOOKUP($A35,Filtro!$A$4:$AM$2264,29,FALSE),0) -> 473 | AF35: =IFERROR(VLOOKUP($A35,Filtro!$A$4:$AM$2264,30,FALSE),0) -> 0 | AG35: =IFERROR(VLOOKUP($A35,Filtro!$A$4:$AM$2264,31,FALSE),0) -> 0 | AH35: =IFERROR(VLOOKUP($A35,Filtro!$A$4:$AM$2264,32,FALSE),0) -> 0 | AI35: =IFERROR(VLOOKUP($A35,Filtro!$A$4:$AM$2264,33,FALSE),0) -> 0 | AJ35: =IFERROR(VLOOKUP($A35,Filtro!$A$4:$AM$2264,34,FALSE),0) -> 0 | AK35: =IFERROR(VLOOKUP($A35,Filtro!$A$4:$AM$2264,35,FALSE),0) -> 0 | CQ35: 0 | CR35: 0 | CS35: 0 | CU35: 0 | CV35: 0 | CW35: 0 | CY35: 0 | CZ35: 0
A36: 01014298 | B36: 0101311 | C36: Consulta Médica de Especialidad en Urología | D36: =IFERROR(VLOOKUP($A36,Filtro!$A$4:$AM$2264,2,FALSE),0) -> 20766 | E36: =IFERROR(VLOOKUP($A36,Filtro!$A$4:$AM$2264,3,FALSE),0) -> 20744 | F36: =IFERROR(VLOOKUP($A36,Filtro!$A$4:$AM$2264,4,FALSE),0) -> 20744 | G36: =IFERROR(VLOOKUP($A36,Filtro!$A$4:$AM$2264,5,FALSE),0) -> 0 | H36: =IFERROR(VLOOKUP($A36,Filtro!$A$4:$AM$2264,6,FALSE),0) -> 22 | AB36: =IFERROR(VLOOKUP($A36,Filtro!$A$4:$AM$2264,26,FALSE),0) -> 0 | AC36: =IFERROR(VLOOKUP($A36,Filtro!$A$4:$AM$2264,27,FALSE),0) -> 20766 | AD36: =IFERROR(VLOOKUP($A36,Filtro!$A$4:$AM$2264,28,FALSE),0) -> 0 | AE36: =IFERROR(VLOOKUP($A36,Filtro!$A$4:$AM$2264,29,FALSE),0) -> 2351 | AF36: =IFERROR(VLOOKUP($A36,Filtro!$A$4:$AM$2264,30,FALSE),0) -> 669 | AG36: =IFERROR(VLOOKUP($A36,Filtro!$A$4:$AM$2264,31,FALSE),0) -> 0 | AH36: =IFERROR(VLOOKUP($A36,Filtro!$A$4:$AM$2264,32,FALSE),0) -> 0 | AI36: =IFERROR(VLOOKUP($A36,Filtro!$A$4:$AM$2264,33,FALSE),0) -> 0 | AJ36: =IFERROR(VLOOKUP($A36,Filtro!$A$4:$AM$2264,34,FALSE),0) -> 0 | AK36: =IFERROR(VLOOKUP($A36,Filtro!$A$4:$AM$2264,35,FALSE),0) -> 0 | CQ36: 0 | CR36: 0 | CS36: 0 | CU36: 0 | CV36: 0 | CW36: 0 | CY36: 0 | CZ36: 0
A37: 01014299 | B37: 0101312 | C37: Consulta Médica de Especialidad en Cirugía General | D37: =IFERROR(VLOOKUP($A37,Filtro!$A$4:$AM$2264,2,FALSE),0) -> 22083 | E37: =IFERROR(VLOOKUP($A37,Filtro!$A$4:$AM$2264,3,FALSE),0) -> 22062 | F37: =IFERROR(VLOOKUP($A37,Filtro!$A$4:$AM$2264,4,FALSE),0) -> 22062 | G37: =IFERROR(VLOOKUP($A37,Filtro!$A$4:$AM$2264,5,FALSE),0) -> 0 | H37: =IFERROR(VLOOKUP($A37,Filtro!$A$4:$AM$2264,6,FALSE),0) -> 21 | AB37: =IFERROR(VLOOKUP($A37,Filtro!$A$4:$AM$2264,26,FALSE),0) -> 0 | AC37: =IFERROR(VLOOKUP($A37,Filtro!$A$4:$AM$2264,27,FALSE),0) -> 22083 | AD37: =IFERROR(VLOOKUP($A37,Filtro!$A$4:$AM$2264,28,FALSE),0) -> 0 | AE37: =IFERROR(VLOOKUP($A37,Filtro!$A$4:$AM$2264,29,FALSE),0) -> 2320 | AF37: =IFERROR(VLOOKUP($A37,Filtro!$A$4:$AM$2264,30,FALSE),0) -> 56 | AG37: =IFERROR(VLOOKUP($A37,Filtro!$A$4:$AM$2264,31,FALSE),0) -> 0 | AH37: =IFERROR(VLOOKUP($A37,Filtro!$A$4:$AM$2264,32,FALSE),0) -> 0 | AI37: =IFERROR(VLOOKUP($A37,Filtro!$A$4:$AM$2264,33,FALSE),0) -> 0 | AJ37: =IFERROR(VLOOKUP($A37,Filtro!$A$4:$AM$2264,34,FALSE),0) -> 0 | AK37: =IFERROR(VLOOKUP($A37,Filtro!$A$4:$AM$2264,35,FALSE),0) -> 0 | CQ37: 0 | CR37: 0 | CS37: 0 | CU37: 0 | CV37: 0 | CW37: 0 | CY37: 0 | CZ37: 0
A38: 01014300 | B38: 0101313 | C38: Consulta Médica de Especialidad en Cirugía de Cabeza, Cuello y Maxilofacial | D38: =IFERROR(VLOOKUP($A38,Filtro!$A$4:$AM$2264,2,FALSE),0) -> 1305 | E38: =IFERROR(VLOOKUP($A38,Filtro!$A$4:$AM$2264,3,FALSE),0) -> 1304 | F38: =IFERROR(VLOOKUP($A38,Filtro!$A$4:$AM$2264,4,FALSE),0) -> 1304 | G38: =IFERROR(VLOOKUP($A38,Filtro!$A$4:$AM$2264,5,FALSE),0) -> 0 | H38: =IFERROR(VLOOKUP($A38,Filtro!$A$4:$AM$2264,6,FALSE),0) -> 1 | AB38: =IFERROR(VLOOKUP($A38,Filtro!$A$4:$AM$2264,26,FALSE),0) -> 0 | AC38: =IFERROR(VLOOKUP($A38,Filtro!$A$4:$AM$2264,27,FALSE),0) -> 1305 | AD38: =IFERROR(VLOOKUP($A38,Filtro!$A$4:$AM$2264,28,FALSE),0) -> 0 | AE38: =IFERROR(VLOOKUP($A38,Filtro!$A$4:$AM$2264,29,FALSE),0) -> 0 | AF38: =IFERROR(VLOOKUP($A38,Filtro!$A$4:$AM$2264,30,FALSE),0) -> 0 | AG38: =IFERROR(VLOOKUP($A38,Filtro!$A$4:$AM$2264,31,FALSE),0) -> 0 | AH38: =IFERROR(VLOOKUP($A38,Filtro!$A$4:$AM$2264,32,FALSE),0) -> 0 | AI38: =IFERROR(VLOOKUP($A38,Filtro!$A$4:$AM$2264,33,FALSE),0) -> 0 | AJ38: =IFERROR(VLOOKUP($A38,Filtro!$A$4:$AM$2264,34,FALSE),0) -> 0 | AK38: =IFERROR(VLOOKUP($A38,Filtro!$A$4:$AM$2264,35,FALSE),0) -> 0 | CQ38: 0 | CR38: 0 | CS38: 0 | CU38: 0 | CV38: 0 | CW38: 0 | CY38: 0 | CZ38: 0
A39: 01014301 | B39: 0101314 | C39: Consulta Médica de Especialidad en Cirugía Cardiovascular | D39: =IFERROR(VLOOKUP($A39,Filtro!$A$4:$AM$2264,2,FALSE),0) -> 0 | E39: =IFERROR(VLOOKUP($A39,Filtro!$A$4:$AM$2264,3,FALSE),0) -> 0 | F39: =IFERROR(VLOOKUP($A39,Filtro!$A$4:$AM$2264,4,FALSE),0) -> 0 | G39: =IFERROR(VLOOKUP($A39,Filtro!$A$4:$AM$2264,5,FALSE),0) -> 0 | H39: =IFERROR(VLOOKUP($A39,Filtro!$A$4:$AM$2264,6,FALSE),0) -> 0 | AB39: =IFERROR(VLOOKUP($A39,Filtro!$A$4:$AM$2264,26,FALSE),0) -> 0 | AC39: =IFERROR(VLOOKUP($A39,Filtro!$A$4:$AM$2264,27,FALSE),0) -> 0 | AD39: =IFERROR(VLOOKUP($A39,Filtro!$A$4:$AM$2264,28,FALSE),0) -> 0 | AE39: =IFERROR(VLOOKUP($A39,Filtro!$A$4:$AM$2264,29,FALSE),0) -> 0 | AF39: =IFERROR(VLOOKUP($A39,Filtro!$A$4:$AM$2264,30,FALSE),0) -> 0 | AG39: =IFERROR(VLOOKUP($A39,Filtro!$A$4:$AM$2264,31,FALSE),0) -> 0 | AH39: =IFERROR(VLOOKUP($A39,Filtro!$A$4:$AM$2264,32,FALSE),0) -> 0 | AI39: =IFERROR(VLOOKUP($A39,Filtro!$A$4:$AM$2264,33,FALSE),0) -> 0 | AJ39: =IFERROR(VLOOKUP($A39,Filtro!$A$4:$AM$2264,34,FALSE),0) -> 0 | AK39: =IFERROR(VLOOKUP($A39,Filtro!$A$4:$AM$2264,35,FALSE),0) -> 0 | CQ39: 0 | CR39: 0 | CS39: 0 | CU39: 0 | CV39: 0 | CW39: 0 | CY39: 0 | CZ39: 0
A40: 01014302 | B40: 0101315 | C40: Consulta Médica de Especialidad en Cirugía de Tórax | D40: =IFERROR(VLOOKUP($A40,Filtro!$A$4:$AM$2264,2,FALSE),0) -> 1180 | E40: =IFERROR(VLOOKUP($A40,Filtro!$A$4:$AM$2264,3,FALSE),0) -> 1179 | F40: =IFERROR(VLOOKUP($A40,Filtro!$A$4:$AM$2264,4,FALSE),0) -> 1179 | G40: =IFERROR(VLOOKUP($A40,Filtro!$A$4:$AM$2264,5,FALSE),0) -> 0 | H40: =IFERROR(VLOOKUP($A40,Filtro!$A$4:$AM$2264,6,FALSE),0) -> 1 | AB40: =IFERROR(VLOOKUP($A40,Filtro!$A$4:$AM$2264,26,FALSE),0) -> 0 | AC40: =IFERROR(VLOOKUP($A40,Filtro!$A$4:$AM$2264,27,FALSE),0) -> 1180 | AD40: =IFERROR(VLOOKUP($A40,Filtro!$A$4:$AM$2264,28,FALSE),0) -> 0 | AE40: =IFERROR(VLOOKUP($A40,Filtro!$A$4:$AM$2264,29,FALSE),0) -> 0 | AF40: =IFERROR(VLOOKUP($A40,Filtro!$A$4:$AM$2264,30,FALSE),0) -> 0 | AG40: =IFERROR(VLOOKUP($A40,Filtro!$A$4:$AM$2264,31,FALSE),0) -> 0 | AH40: =IFERROR(VLOOKUP($A40,Filtro!$A$4:$AM$2264,32,FALSE),0) -> 0 | AI40: =IFERROR(VLOOKUP($A40,Filtro!$A$4:$AM$2264,33,FALSE),0) -> 0 | AJ40: =IFERROR(VLOOKUP($A40,Filtro!$A$4:$AM$2264,34,FALSE),0) -> 0 | AK40: =IFERROR(VLOOKUP($A40,Filtro!$A$4:$AM$2264,35,FALSE),0) -> 0 | CQ40: 0 | CR40: 0 | CS40: 0 | CU40: 0 | CV40: 0 | CW40: 0 | CY40: 0 | CZ40: 0
A41: 01014303 | B41: 0101316 | C41: Consulta Médica de Especialidad en Cirugía Plástica y Reparadora | D41: =IFERROR(VLOOKUP($A41,Filtro!$A$4:$AM$2264,2,FALSE),0) -> 0 | E41: =IFERROR(VLOOKUP($A41,Filtro!$A$4:$AM$2264,3,FALSE),0) -> 0 | F41: =IFERROR(VLOOKUP($A41,Filtro!$A$4:$AM$2264,4,FALSE),0) -> 0 | G41: =IFERROR(VLOOKUP($A41,Filtro!$A$4:$AM$2264,5,FALSE),0) -> 0 | H41: =IFERROR(VLOOKUP($A41,Filtro!$A$4:$AM$2264,6,FALSE),0) -> 0 | AB41: =IFERROR(VLOOKUP($A41,Filtro!$A$4:$AM$2264,26,FALSE),0) -> 0 | AC41: =IFERROR(VLOOKUP($A41,Filtro!$A$4:$AM$2264,27,FALSE),0) -> 0 | AD41: =IFERROR(VLOOKUP($A41,Filtro!$A$4:$AM$2264,28,FALSE),0) -> 0 | AE41: =IFERROR(VLOOKUP($A41,Filtro!$A$4:$AM$2264,29,FALSE),0) -> 0 | AF41: =IFERROR(VLOOKUP($A41,Filtro!$A$4:$AM$2264,30,FALSE),0) -> 0 | AG41: =IFERROR(VLOOKUP($A41,Filtro!$A$4:$AM$2264,31,FALSE),0) -> 0 | AH41: =IFERROR(VLOOKUP($A41,Filtro!$A$4:$AM$2264,32,FALSE),0) -> 0 | AI41: =IFERROR(VLOOKUP($A41,Filtro!$A$4:$AM$2264,33,FALSE),0) -> 0 | AJ41: =IFERROR(VLOOKUP($A41,Filtro!$A$4:$AM$2264,34,FALSE),0) -> 0 | AK41: =IFERROR(VLOOKUP($A41,Filtro!$A$4:$AM$2264,35,FALSE),0) -> 0 | CQ41: 0 | CR41: 0 | CS41: 0 | CU41: 0 | CV41: 0 | CW41: 0 | CY41: 0 | CZ41: 0
A42: 01014304 | B42: 0101317 | C42: Consulta Médica de Especialidad en Cirugía Pediátrica | D42: =IFERROR(VLOOKUP($A42,Filtro!$A$4:$AM$2264,2,FALSE),0) -> 10328 | E42: =IFERROR(VLOOKUP($A42,Filtro!$A$4:$AM$2264,3,FALSE),0) -> 10299 | F42: =IFERROR(VLOOKUP($A42,Filtro!$A$4:$AM$2264,4,FALSE),0) -> 10299 | G42: =IFERROR(VLOOKUP($A42,Filtro!$A$4:$AM$2264,5,FALSE),0) -> 0 | H42: =IFERROR(VLOOKUP($A42,Filtro!$A$4:$AM$2264,6,FALSE),0) -> 29 | AB42: =IFERROR(VLOOKUP($A42,Filtro!$A$4:$AM$2264,26,FALSE),0) -> 0 | AC42: =IFERROR(VLOOKUP($A42,Filtro!$A$4:$AM$2264,27,FALSE),0) -> 10328 | AD42: =IFERROR(VLOOKUP($A42,Filtro!$A$4:$AM$2264,28,FALSE),0) -> 0 | AE42: =IFERROR(VLOOKUP($A42,Filtro!$A$4:$AM$2264,29,FALSE),0) -> 0 | AF42: =IFERROR(VLOOKUP($A42,Filtro!$A$4:$AM$2264,30,FALSE),0) -> 0 | AG42: =IFERROR(VLOOKUP($A42,Filtro!$A$4:$AM$2264,31,FALSE),0) -> 0 | AH42: =IFERROR(VLOOKUP($A42,Filtro!$A$4:$AM$2264,32,FALSE),0) -> 0 | AI42: =IFERROR(VLOOKUP($A42,Filtro!$A$4:$AM$2264,33,FALSE),0) -> 0 | AJ42: =IFERROR(VLOOKUP($A42,Filtro!$A$4:$AM$2264,34,FALSE),0) -> 0 | AK42: =IFERROR(VLOOKUP($A42,Filtro!$A$4:$AM$2264,35,FALSE),0) -> 0 | CQ42: 0 | CR42: 0 | CS42: 0 | CU42: 0 | CV42: 0 | CW42: 0 | CY42: 0 | CZ42: 0
A43: 01014305 | B43: 0101318 | C43: Consulta Médica de Especialidad en Cirugía Vascular Periférica | D43: =IFERROR(VLOOKUP($A43,Filtro!$A$4:$AM$2264,2,FALSE),0) -> 2654 | E43: =IFERROR(VLOOKUP($A43,Filtro!$A$4:$AM$2264,3,FALSE),0) -> 2653 | F43: =IFERROR(VLOOKUP($A43,Filtro!$A$4:$AM$2264,4,FALSE),0) -> 2653 | G43: =IFERROR(VLOOKUP($A43,Filtro!$A$4:$AM$2264,5,FALSE),0) -> 0 | H43: =IFERROR(VLOOKUP($A43,Filtro!$A$4:$AM$2264,6,FALSE),0) -> 1 | AB43: =IFERROR(VLOOKUP($A43,Filtro!$A$4:$AM$2264,26,FALSE),0) -> 0 | AC43: =IFERROR(VLOOKUP($A43,Filtro!$A$4:$AM$2264,27,FALSE),0) -> 2654 | AD43: =IFERROR(VLOOKUP($A43,Filtro!$A$4:$AM$2264,28,FALSE),0) -> 0 | AE43: =IFERROR(VLOOKUP($A43,Filtro!$A$4:$AM$2264,29,FALSE),0) -> 74 | AF43: =IFERROR(VLOOKUP($A43,Filtro!$A$4:$AM$2264,30,FALSE),0) -> 0 | AG43: =IFERROR(VLOOKUP($A43,Filtro!$A$4:$AM$2264,31,FALSE),0) -> 0 | AH43: =IFERROR(VLOOKUP($A43,Filtro!$A$4:$AM$2264,32,FALSE),0) -> 0 | AI43: =IFERROR(VLOOKUP($A43,Filtro!$A$4:$AM$2264,33,FALSE),0) -> 0 | AJ43: =IFERROR(VLOOKUP($A43,Filtro!$A$4:$AM$2264,34,FALSE),0) -> 0 | AK43: =IFERROR(VLOOKUP($A43,Filtro!$A$4:$AM$2264,35,FALSE),0) -> 0 | CQ43: 0 | CR43: 0 | CS43: 0 | CU43: 0 | CV43: 0 | CW43: 0 | CY43: 0 | CZ43: 0
A44: 01014306 | B44: 0101319 | C44: Consulta Médica de Especialidad en Coloproctología | D44: =IFERROR(VLOOKUP($A44,Filtro!$A$4:$AM$2264,2,FALSE),0) -> 1913 | E44: =IFERROR(VLOOKUP($A44,Filtro!$A$4:$AM$2264,3,FALSE),0) -> 1913 | F44: =IFERROR(VLOOKUP($A44,Filtro!$A$4:$AM$2264,4,FALSE),0) -> 1913 | G44: =IFERROR(VLOOKUP($A44,Filtro!$A$4:$AM$2264,5,FALSE),0) -> 0 | H44: =IFERROR(VLOOKUP($A44,Filtro!$A$4:$AM$2264,6,FALSE),0) -> 0 | AB44: =IFERROR(VLOOKUP($A44,Filtro!$A$4:$AM$2264,26,FALSE),0) -> 0 | AC44: =IFERROR(VLOOKUP($A44,Filtro!$A$4:$AM$2264,27,FALSE),0) -> 1913 | AD44: =IFERROR(VLOOKUP($A44,Filtro!$A$4:$AM$2264,28,FALSE),0) -> 0 | AE44: =IFERROR(VLOOKUP($A44,Filtro!$A$4:$AM$2264,29,FALSE),0) -> 0 | AF44: =IFERROR(VLOOKUP($A44,Filtro!$A$4:$AM$2264,30,FALSE),0) -> 0 | AG44: =IFERROR(VLOOKUP($A44,Filtro!$A$4:$AM$2264,31,FALSE),0) -> 0 | AH44: =IFERROR(VLOOKUP($A44,Filtro!$A$4:$AM$2264,32,FALSE),0) -> 0 | AI44: =IFERROR(VLOOKUP($A44,Filtro!$A$4:$AM$2264,33,FALSE),0) -> 0 | AJ44: =IFERROR(VLOOKUP($A44,Filtro!$A$4:$AM$2264,34,FALSE),0) -> 0 | AK44: =IFERROR(VLOOKUP($A44,Filtro!$A$4:$AM$2264,35,FALSE),0) -> 0 | CQ44: 0 | CR44: 0 | CS44: 0 | CU44: 0 | CV44: 0 | CW44: 0 | CY44: 0 | CZ44: 0
A45: 01014307 | B45: 0101320 | C45: Consulta Médica de Especialidad en Diabetología | D45: =IFERROR(VLOOKUP($A45,Filtro!$A$4:$AM$2264,2,FALSE),0) -> 2160 | E45: =IFERROR(VLOOKUP($A45,Filtro!$A$4:$AM$2264,3,FALSE),0) -> 2159 | F45: =IFERROR(VLOOKUP($A45,Filtro!$A$4:$AM$2264,4,FALSE),0) -> 2159 | G45: =IFERROR(VLOOKUP($A45,Filtro!$A$4:$AM$2264,5,FALSE),0) -> 0 | H45: =IFERROR(VLOOKUP($A45,Filtro!$A$4:$AM$2264,6,FALSE),0) -> 1 | AB45: =IFERROR(VLOOKUP($A45,Filtro!$A$4:$AM$2264,26,FALSE),0) -> 0 | AC45: =IFERROR(VLOOKUP($A45,Filtro!$A$4:$AM$2264,27,FALSE),0) -> 2160 | AD45: =IFERROR(VLOOKUP($A45,Filtro!$A$4:$AM$2264,28,FALSE),0) -> 0 | AE45: =IFERROR(VLOOKUP($A45,Filtro!$A$4:$AM$2264,29,FALSE),0) -> 0 | AF45: =IFERROR(VLOOKUP($A45,Filtro!$A$4:$AM$2264,30,FALSE),0) -> 28 | AG45: =IFERROR(VLOOKUP($A45,Filtro!$A$4:$AM$2264,31,FALSE),0) -> 0 | AH45: =IFERROR(VLOOKUP($A45,Filtro!$A$4:$AM$2264,32,FALSE),0) -> 0 | AI45: =IFERROR(VLOOKUP($A45,Filtro!$A$4:$AM$2264,33,FALSE),0) -> 0 | AJ45: =IFERROR(VLOOKUP($A45,Filtro!$A$4:$AM$2264,34,FALSE),0) -> 0 | AK45: =IFERROR(VLOOKUP($A45,Filtro!$A$4:$AM$2264,35,FALSE),0) -> 0 | CQ45: 0 | CR45: 0 | CS45: 0 | CU45: 0 | CV45: 0 | CW45: 0 | CY45: 0 | CZ45: 0
A46: 01014308 | B46: 0101321 | C46: Consulta Médica de Especialidad en Enfermedades Respiratorias Adulto | D46: =IFERROR(VLOOKUP($A46,Filtro!$A$4:$AM$2264,2,FALSE),0) -> 6414 | E46: =IFERROR(VLOOKUP($A46,Filtro!$A$4:$AM$2264,3,FALSE),0) -> 6410 | F46: =IFERROR(VLOOKUP($A46,Filtro!$A$4:$AM$2264,4,FALSE),0) -> 6410 | G46: =IFERROR(VLOOKUP($A46,Filtro!$A$4:$AM$2264,5,FALSE),0) -> 0 | H46: =IFERROR(VLOOKUP($A46,Filtro!$A$4:$AM$2264,6,FALSE),0) -> 4 | AB46: =IFERROR(VLOOKUP($A46,Filtro!$A$4:$AM$2264,26,FALSE),0) -> 0 | AC46: =IFERROR(VLOOKUP($A46,Filtro!$A$4:$AM$2264,27,FALSE),0) -> 6414 | AD46: =IFERROR(VLOOKUP($A46,Filtro!$A$4:$AM$2264,28,FALSE),0) -> 0 | AE46: =IFERROR(VLOOKUP($A46,Filtro!$A$4:$AM$2264,29,FALSE),0) -> 244 | AF46: =IFERROR(VLOOKUP($A46,Filtro!$A$4:$AM$2264,30,FALSE),0) -> 0 | AG46: =IFERROR(VLOOKUP($A46,Filtro!$A$4:$AM$2264,31,FALSE),0) -> 0 | AH46: =IFERROR(VLOOKUP($A46,Filtro!$A$4:$AM$2264,32,FALSE),0) -> 0 | AI46: =IFERROR(VLOOKUP($A46,Filtro!$A$4:$AM$2264,33,FALSE),0) -> 0 | AJ46: =IFERROR(VLOOKUP($A46,Filtro!$A$4:$AM$2264,34,FALSE),0) -> 0 | AK46: =IFERROR(VLOOKUP($A46,Filtro!$A$4:$AM$2264,35,FALSE),0) -> 0 | CQ46: 0 | CR46: 0 | CS46: 0 | CU46: 0 | CV46: 0 | CW46: 0 | CY46: 0 | CZ46: 0
A47: 01014309 | B47: 0101322 | C47: Consulta Médica de Especialidad en Enfermedades Respiratorias Pediátricas | D47: =IFERROR(VLOOKUP($A47,Filtro!$A$4:$AM$2264,2,FALSE),0) -> 4073 | E47: =IFERROR(VLOOKUP($A47,Filtro!$A$4:$AM$2264,3,FALSE),0) -> 4058 | F47: =IFERROR(VLOOKUP($A47,Filtro!$A$4:$AM$2264,4,FALSE),0) -> 4058 | G47: =IFERROR(VLOOKUP($A47,Filtro!$A$4:$AM$2264,5,FALSE),0) -> 0 | H47: =IFERROR(VLOOKUP($A47,Filtro!$A$4:$AM$2264,6,FALSE),0) -> 15 | AB47: =IFERROR(VLOOKUP($A47,Filtro!$A$4:$AM$2264,26,FALSE),0) -> 0 | AC47: =IFERROR(VLOOKUP($A47,Filtro!$A$4:$AM$2264,27,FALSE),0) -> 4073 | AD47: =IFERROR(VLOOKUP($A47,Filtro!$A$4:$AM$2264,28,FALSE),0) -> 0 | AE47: =IFERROR(VLOOKUP($A47,Filtro!$A$4:$AM$2264,29,FALSE),0) -> 0 | AF47: =IFERROR(VLOOKUP($A47,Filtro!$A$4:$AM$2264,30,FALSE),0) -> 0 | AG47: =IFERROR(VLOOKUP($A47,Filtro!$A$4:$AM$2264,31,FALSE),0) -> 0 | AH47: =IFERROR(VLOOKUP($A47,Filtro!$A$4:$AM$2264,32,FALSE),0) -> 0 | AI47: =IFERROR(VLOOKUP($A47,Filtro!$A$4:$AM$2264,33,FALSE),0) -> 0 | AJ47: =IFERROR(VLOOKUP($A47,Filtro!$A$4:$AM$2264,34,FALSE),0) -> 0 | AK47: =IFERROR(VLOOKUP($A47,Filtro!$A$4:$AM$2264,35,FALSE),0) -> 0 | CQ47: 0 | CR47: 0 | CS47: 0 | CU47: 0 | CV47: 0 | CW47: 0 | CY47: 0 | CZ47: 0
A48: 01014310 | B48: 0101323 | C48: Consulta Médica de Especialidad en Gastroenterología Adulto | D48: =IFERROR(VLOOKUP($A48,Filtro!$A$4:$AM$2264,2,FALSE),0) -> 5693 | E48: =IFERROR(VLOOKUP($A48,Filtro!$A$4:$AM$2264,3,FALSE),0) -> 5688 | F48: =IFERROR(VLOOKUP($A48,Filtro!$A$4:$AM$2264,4,FALSE),0) -> 5688 | G48: =IFERROR(VLOOKUP($A48,Filtro!$A$4:$AM$2264,5,FALSE),0) -> 0 | H48: =IFERROR(VLOOKUP($A48,Filtro!$A$4:$AM$2264,6,FALSE),0) -> 5 | AB48: =IFERROR(VLOOKUP($A48,Filtro!$A$4:$AM$2264,26,FALSE),0) -> 0 | AC48: =IFERROR(VLOOKUP($A48,Filtro!$A$4:$AM$2264,27,FALSE),0) -> 5693 | AD48: =IFERROR(VLOOKUP($A48,Filtro!$A$4:$AM$2264,28,FALSE),0) -> 0 | AE48: =IFERROR(VLOOKUP($A48,Filtro!$A$4:$AM$2264,29,FALSE),0) -> 0 | AF48: =IFERROR(VLOOKUP($A48,Filtro!$A$4:$AM$2264,30,FALSE),0) -> 24 | AG48: =IFERROR(VLOOKUP($A48,Filtro!$A$4:$AM$2264,31,FALSE),0) -> 0 | AH48: =IFERROR(VLOOKUP($A48,Filtro!$A$4:$AM$2264,32,FALSE),0) -> 0 | AI48: =IFERROR(VLOOKUP($A48,Filtro!$A$4:$AM$2264,33,FALSE),0) -> 0 | AJ48: =IFERROR(VLOOKUP($A48,Filtro!$A$4:$AM$2264,34,FALSE),0) -> 0 | AK48: =IFERROR(VLOOKUP($A48,Filtro!$A$4:$AM$2264,35,FALSE),0) -> 0 | CQ48: 0 | CR48: 0 | CS48: 0 | CU48: 0 | CV48: 0 | CW48: 0 | CY48: 0 | CZ48: 0
A49: 01014311 | B49: 0101324 | C49: Consulta Médica de Especialidad en Gastroenterología Pediátrico | D49: =IFERROR(VLOOKUP($A49,Filtro!$A$4:$AM$2264,2,FALSE),0) -> 3113 | E49: =IFERROR(VLOOKUP($A49,Filtro!$A$4:$AM$2264,3,FALSE),0) -> 3109 | F49: =IFERROR(VLOOKUP($A49,Filtro!$A$4:$AM$2264,4,FALSE),0) -> 3109 | G49: =IFERROR(VLOOKUP($A49,Filtro!$A$4:$AM$2264,5,FALSE),0) -> 0 | H49: =IFERROR(VLOOKUP($A49,Filtro!$A$4:$AM$2264,6,FALSE),0) -> 4 | AB49: =IFERROR(VLOOKUP($A49,Filtro!$A$4:$AM$2264,26,FALSE),0) -> 0 | AC49: =IFERROR(VLOOKUP($A49,Filtro!$A$4:$AM$2264,27,FALSE),0) -> 3113 | AD49: =IFERROR(VLOOKUP($A49,Filtro!$A$4:$AM$2264,28,FALSE),0) -> 0 | AE49: =IFERROR(VLOOKUP($A49,Filtro!$A$4:$AM$2264,29,FALSE),0) -> 0 | AF49: =IFERROR(VLOOKUP($A49,Filtro!$A$4:$AM$2264,30,FALSE),0) -> 0 | AG49: =IFERROR(VLOOKUP($A49,Filtro!$A$4:$AM$2264,31,FALSE),0) -> 0 | AH49: =IFERROR(VLOOKUP($A49,Filtro!$A$4:$AM$2264,32,FALSE),0) -> 0 | AI49: =IFERROR(VLOOKUP($A49,Filtro!$A$4:$AM$2264,33,FALSE),0) -> 0 | AJ49: =IFERROR(VLOOKUP($A49,Filtro!$A$4:$AM$2264,34,FALSE),0) -> 0 | AK49: =IFERROR(VLOOKUP($A49,Filtro!$A$4:$AM$2264,35,FALSE),0) -> 0 | CQ49: 0 | CR49: 0 | CS49: 0 | CU49: 0 | CV49: 0 | CW49: 0 | CY49: 0 | CZ49: 0
A50: 01014312 | B50: 0101325 | C50: Consulta Médica de Especialidad en Genética Clínica | D50: =IFERROR(VLOOKUP($A50,Filtro!$A$4:$AM$2264,2,FALSE),0) -> 248 | E50: =IFERROR(VLOOKUP($A50,Filtro!$A$4:$AM$2264,3,FALSE),0) -> 247 | F50: =IFERROR(VLOOKUP($A50,Filtro!$A$4:$AM$2264,4,FALSE),0) -> 247 | G50: =IFERROR(VLOOKUP($A50,Filtro!$A$4:$AM$2264,5,FALSE),0) -> 0 | H50: =IFERROR(VLOOKUP($A50,Filtro!$A$4:$AM$2264,6,FALSE),0) -> 1 | AB50: =IFERROR(VLOOKUP($A50,Filtro!$A$4:$AM$2264,26,FALSE),0) -> 0 | AC50: =IFERROR(VLOOKUP($A50,Filtro!$A$4:$AM$2264,27,FALSE),0) -> 248 | AD50: =IFERROR(VLOOKUP($A50,Filtro!$A$4:$AM$2264,28,FALSE),0) -> 0 | AE50: =IFERROR(VLOOKUP($A50,Filtro!$A$4:$AM$2264,29,FALSE),0) -> 0 | AF50: =IFERROR(VLOOKUP($A50,Filtro!$A$4:$AM$2264,30,FALSE),0) -> 0 | AG50: =IFERROR(VLOOKUP($A50,Filtro!$A$4:$AM$2264,31,FALSE),0) -> 0 | AH50: =IFERROR(VLOOKUP($A50,Filtro!$A$4:$AM$2264,32,FALSE),0) -> 0 | AI50: =IFERROR(VLOOKUP($A50,Filtro!$A$4:$AM$2264,33,FALSE),0) -> 0 | AJ50: =IFERROR(VLOOKUP($A50,Filtro!$A$4:$AM$2264,34,FALSE),0) -> 0 | AK50: =IFERROR(VLOOKUP($A50,Filtro!$A$4:$AM$2264,35,FALSE),0) -> 0 | CQ50: 0 | CR50: 0 | CS50: 0 | CU50: 0 | CV50: 0 | CW50: 0 | CY50: 0 | CZ50: 0
A51: 01014313 | B51: 0101326 | C51: Consulta Médica de Especialidad en Nefrología Adulto | D51: =IFERROR(VLOOKUP($A51,Filtro!$A$4:$AM$2264,2,FALSE),0) -> 8316 | E51: =IFERROR(VLOOKUP($A51,Filtro!$A$4:$AM$2264,3,FALSE),0) -> 8307 | F51: =IFERROR(VLOOKUP($A51,Filtro!$A$4:$AM$2264,4,FALSE),0) -> 8307 | G51: =IFERROR(VLOOKUP($A51,Filtro!$A$4:$AM$2264,5,FALSE),0) -> 0 | H51: =IFERROR(VLOOKUP($A51,Filtro!$A$4:$AM$2264,6,FALSE),0) -> 9 | AB51: =IFERROR(VLOOKUP($A51,Filtro!$A$4:$AM$2264,26,FALSE),0) -> 0 | AC51: =IFERROR(VLOOKUP($A51,Filtro!$A$4:$AM$2264,27,FALSE),0) -> 8316 | AD51: =IFERROR(VLOOKUP($A51,Filtro!$A$4:$AM$2264,28,FALSE),0) -> 0 | AE51: =IFERROR(VLOOKUP($A51,Filtro!$A$4:$AM$2264,29,FALSE),0) -> 139 | AF51: =IFERROR(VLOOKUP($A51,Filtro!$A$4:$AM$2264,30,FALSE),0) -> 0 | AG51: =IFERROR(VLOOKUP($A51,Filtro!$A$4:$AM$2264,31,FALSE),0) -> 0 | AH51: =IFERROR(VLOOKUP($A51,Filtro!$A$4:$AM$2264,32,FALSE),0) -> 0 | AI51: =IFERROR(VLOOKUP($A51,Filtro!$A$4:$AM$2264,33,FALSE),0) -> 0 | AJ51: =IFERROR(VLOOKUP($A51,Filtro!$A$4:$AM$2264,34,FALSE),0) -> 0 | AK51: =IFERROR(VLOOKUP($A51,Filtro!$A$4:$AM$2264,35,FALSE),0) -> 0 | CQ51: 0 | CR51: 0 | CS51: 0 | CU51: 0 | CV51: 0 | CW51: 0 | CY51: 0 | CZ51: 0
A52: 01014314 | B52: 0101327 | C52: Consulta Médica de Especialidad en Nefrología Pediátrico | D52: =IFERROR(VLOOKUP($A52,Filtro!$A$4:$AM$2264,2,FALSE),0) -> 1335 | E52: =IFERROR(VLOOKUP($A52,Filtro!$A$4:$AM$2264,3,FALSE),0) -> 1335 | F52: =IFERROR(VLOOKUP($A52,Filtro!$A$4:$AM$2264,4,FALSE),0) -> 1335 | G52: =IFERROR(VLOOKUP($A52,Filtro!$A$4:$AM$2264,5,FALSE),0) -> 0 | H52: =IFERROR(VLOOKUP($A52,Filtro!$A$4:$AM$2264,6,FALSE),0) -> 0 | AB52: =IFERROR(VLOOKUP($A52,Filtro!$A$4:$AM$2264,26,FALSE),0) -> 0 | AC52: =IFERROR(VLOOKUP($A52,Filtro!$A$4:$AM$2264,27,FALSE),0) -> 1335 | AD52: =IFERROR(VLOOKUP($A52,Filtro!$A$4:$AM$2264,28,FALSE),0) -> 0 | AE52: =IFERROR(VLOOKUP($A52,Filtro!$A$4:$AM$2264,29,FALSE),0) -> 0 | AF52: =IFERROR(VLOOKUP($A52,Filtro!$A$4:$AM$2264,30,FALSE),0) -> 0 | AG52: =IFERROR(VLOOKUP($A52,Filtro!$A$4:$AM$2264,31,FALSE),0) -> 0 | AH52: =IFERROR(VLOOKUP($A52,Filtro!$A$4:$AM$2264,32,FALSE),0) -> 0 | AI52: =IFERROR(VLOOKUP($A52,Filtro!$A$4:$AM$2264,33,FALSE),0) -> 0 | AJ52: =IFERROR(VLOOKUP($A52,Filtro!$A$4:$AM$2264,34,FALSE),0) -> 0 | AK52: =IFERROR(VLOOKUP($A52,Filtro!$A$4:$AM$2264,35,FALSE),0) -> 0 | CQ52: 0 | CR52: 0 | CS52: 0 | CU52: 0 | CV52: 0 | CW52: 0 | CY52: 0 | CZ52: 0
A53: 01014315 | B53: 0101328 | C53: Consulta Médica de Especialidad en Neonatología | D53: =IFERROR(VLOOKUP($A53,Filtro!$A$4:$AM$2264,2,FALSE),0) -> 2419 | E53: =IFERROR(VLOOKUP($A53,Filtro!$A$4:$AM$2264,3,FALSE),0) -> 2400 | F53: =IFERROR(VLOOKUP($A53,Filtro!$A$4:$AM$2264,4,FALSE),0) -> 2400 | G53: =IFERROR(VLOOKUP($A53,Filtro!$A$4:$AM$2264,5,FALSE),0) -> 0 | H53: =IFERROR(VLOOKUP($A53,Filtro!$A$4:$AM$2264,6,FALSE),0) -> 19 | AB53: =IFERROR(VLOOKUP($A53,Filtro!$A$4:$AM$2264,26,FALSE),0) -> 0 | AC53: =IFERROR(VLOOKUP($A53,Filtro!$A$4:$AM$2264,27,FALSE),0) -> 2419 | AD53: =IFERROR(VLOOKUP($A53,Filtro!$A$4:$AM$2264,28,FALSE),0) -> 0 | AE53: =IFERROR(VLOOKUP($A53,Filtro!$A$4:$AM$2264,29,FALSE),0) -> 0 | AF53: =IFERROR(VLOOKUP($A53,Filtro!$A$4:$AM$2264,30,FALSE),0) -> 0 | AG53: =IFERROR(VLOOKUP($A53,Filtro!$A$4:$AM$2264,31,FALSE),0) -> 0 | AH53: =IFERROR(VLOOKUP($A53,Filtro!$A$4:$AM$2264,32,FALSE),0) -> 0 | AI53: =IFERROR(VLOOKUP($A53,Filtro!$A$4:$AM$2264,33,FALSE),0) -> 0 | AJ53: =IFERROR(VLOOKUP($A53,Filtro!$A$4:$AM$2264,34,FALSE),0) -> 0 | AK53: =IFERROR(VLOOKUP($A53,Filtro!$A$4:$AM$2264,35,FALSE),0) -> 0 | CQ53: 0 | CR53: 0 | CS53: 0 | CU53: 0 | CV53: 0 | CW53: 0 | CY53: 0 | CZ53: 0
A54: 01014316 | B54: 0101329 | C54: Consulta Médica de Especialidad en Anestesiología | D54: =IFERROR(VLOOKUP($A54,Filtro!$A$4:$AM$2264,2,FALSE),0) -> 3821 | E54: =IFERROR(VLOOKUP($A54,Filtro!$A$4:$AM$2264,3,FALSE),0) -> 3820 | F54: =IFERROR(VLOOKUP($A54,Filtro!$A$4:$AM$2264,4,FALSE),0) -> 3820 | G54: =IFERROR(VLOOKUP($A54,Filtro!$A$4:$AM$2264,5,FALSE),0) -> 0 | H54: =IFERROR(VLOOKUP($A54,Filtro!$A$4:$AM$2264,6,FALSE),0) -> 1 | AB54: =IFERROR(VLOOKUP($A54,Filtro!$A$4:$AM$2264,26,FALSE),0) -> 0 | AC54: =IFERROR(VLOOKUP($A54,Filtro!$A$4:$AM$2264,27,FALSE),0) -> 3821 | AD54: =IFERROR(VLOOKUP($A54,Filtro!$A$4:$AM$2264,28,FALSE),0) -> 0 | AE54: =IFERROR(VLOOKUP($A54,Filtro!$A$4:$AM$2264,29,FALSE),0) -> 185 | AF54: =IFERROR(VLOOKUP($A54,Filtro!$A$4:$AM$2264,30,FALSE),0) -> 0 | AG54: =IFERROR(VLOOKUP($A54,Filtro!$A$4:$AM$2264,31,FALSE),0) -> 0 | AH54: =IFERROR(VLOOKUP($A54,Filtro!$A$4:$AM$2264,32,FALSE),0) -> 0 | AI54: =IFERROR(VLOOKUP($A54,Filtro!$A$4:$AM$2264,33,FALSE),0) -> 0 | AJ54: =IFERROR(VLOOKUP($A54,Filtro!$A$4:$AM$2264,34,FALSE),0) -> 1 | AK54: =IFERROR(VLOOKUP($A54,Filtro!$A$4:$AM$2264,35,FALSE),0) -> 0 | CQ54: 0 | CR54: 0 | CS54: 0 | CU54: 0 | CV54: 0 | CW54: 0 | CY54: 0 | CZ54: 0
A55: 01014317 | B55: 0101331 | C55: Consulta Médica de Especialidad en Radioterapia Oncológica | D55: =IFERROR(VLOOKUP($A55,Filtro!$A$4:$AM$2264,2,FALSE),0) -> 0 | E55: =IFERROR(VLOOKUP($A55,Filtro!$A$4:$AM$2264,3,FALSE),0) -> 0 | F55: =IFERROR(VLOOKUP($A55,Filtro!$A$4:$AM$2264,4,FALSE),0) -> 0 | G55: =IFERROR(VLOOKUP($A55,Filtro!$A$4:$AM$2264,5,FALSE),0) -> 0 | H55: =IFERROR(VLOOKUP($A55,Filtro!$A$4:$AM$2264,6,FALSE),0) -> 0 | AB55: =IFERROR(VLOOKUP($A55,Filtro!$A$4:$AM$2264,26,FALSE),0) -> 0 | AC55: =IFERROR(VLOOKUP($A55,Filtro!$A$4:$AM$2264,27,FALSE),0) -> 0 | AD55: =IFERROR(VLOOKUP($A55,Filtro!$A$4:$AM$2264,28,FALSE),0) -> 0 | AE55: =IFERROR(VLOOKUP($A55,Filtro!$A$4:$AM$2264,29,FALSE),0) -> 0 | AF55: =IFERROR(VLOOKUP($A55,Filtro!$A$4:$AM$2264,30,FALSE),0) -> 0 | AG55: =IFERROR(VLOOKUP($A55,Filtro!$A$4:$AM$2264,31,FALSE),0) -> 0 | AH55: =IFERROR(VLOOKUP($A55,Filtro!$A$4:$AM$2264,32,FALSE),0) -> 0 | AI55: =IFERROR(VLOOKUP($A55,Filtro!$A$4:$AM$2264,33,FALSE),0) -> 0 | AJ55: =IFERROR(VLOOKUP($A55,Filtro!$A$4:$AM$2264,34,FALSE),0) -> 0 | AK55: =IFERROR(VLOOKUP($A55,Filtro!$A$4:$AM$2264,35,FALSE),0) -> 0 | CQ55: 0 | CR55: 0 | CS55: 0 | CU55: 0 | CV55: 0 | CW55: 0 | CY55: 0 | CZ55: 0
A56: 01014318 | B56: 0101332 | C56: Consulta Médica de Especialidad en Ginecología Pediátrica y de la Adolescencia | D56: =IFERROR(VLOOKUP($A56,Filtro!$A$4:$AM$2264,2,FALSE),0) -> 928 | E56: =IFERROR(VLOOKUP($A56,Filtro!$A$4:$AM$2264,3,FALSE),0) -> 925 | F56: =IFERROR(VLOOKUP($A56,Filtro!$A$4:$AM$2264,4,FALSE),0) -> 925 | G56: =IFERROR(VLOOKUP($A56,Filtro!$A$4:$AM$2264,5,FALSE),0) -> 0 | H56: =IFERROR(VLOOKUP($A56,Filtro!$A$4:$AM$2264,6,FALSE),0) -> 3 | AB56: =IFERROR(VLOOKUP($A56,Filtro!$A$4:$AM$2264,26,FALSE),0) -> 0 | AC56: =IFERROR(VLOOKUP($A56,Filtro!$A$4:$AM$2264,27,FALSE),0) -> 928 | AD56: =IFERROR(VLOOKUP($A56,Filtro!$A$4:$AM$2264,28,FALSE),0) -> 0 | AE56: =IFERROR(VLOOKUP($A56,Filtro!$A$4:$AM$2264,29,FALSE),0) -> 0 | AF56: =IFERROR(VLOOKUP($A56,Filtro!$A$4:$AM$2264,30,FALSE),0) -> 0 | AG56: =IFERROR(VLOOKUP($A56,Filtro!$A$4:$AM$2264,31,FALSE),0) -> 0 | AH56: =IFERROR(VLOOKUP($A56,Filtro!$A$4:$AM$2264,32,FALSE),0) -> 0 | AI56: =IFERROR(VLOOKUP($A56,Filtro!$A$4:$AM$2264,33,FALSE),0) -> 0 | AJ56: =IFERROR(VLOOKUP($A56,Filtro!$A$4:$AM$2264,34,FALSE),0) -> 0 | AK56: =IFERROR(VLOOKUP($A56,Filtro!$A$4:$AM$2264,35,FALSE),0) -> 0 | CQ56: 0 | CR56: 0 | CS56: 0 | CU56: 0 | CV56: 0 | CW56: 0 | CY56: 0 | CZ56: 0
A57: 01014319 | B57: 0101334 | C57: Consulta Médica de Especialidad en Medicina Nuclear | D57: =IFERROR(VLOOKUP($A57,Filtro!$A$4:$AM$2264,2,FALSE),0) -> 0 | E57: =IFERROR(VLOOKUP($A57,Filtro!$A$4:$AM$2264,3,FALSE),0) -> 0 | F57: =IFERROR(VLOOKUP($A57,Filtro!$A$4:$AM$2264,4,FALSE),0) -> 0 | G57: =IFERROR(VLOOKUP($A57,Filtro!$A$4:$AM$2264,5,FALSE),0) -> 0 | H57: =IFERROR(VLOOKUP($A57,Filtro!$A$4:$AM$2264,6,FALSE),0) -> 0 | AB57: =IFERROR(VLOOKUP($A57,Filtro!$A$4:$AM$2264,26,FALSE),0) -> 0 | AC57: =IFERROR(VLOOKUP($A57,Filtro!$A$4:$AM$2264,27,FALSE),0) -> 0 | AD57: =IFERROR(VLOOKUP($A57,Filtro!$A$4:$AM$2264,28,FALSE),0) -> 0 | AE57: =IFERROR(VLOOKUP($A57,Filtro!$A$4:$AM$2264,29,FALSE),0) -> 0 | AF57: =IFERROR(VLOOKUP($A57,Filtro!$A$4:$AM$2264,30,FALSE),0) -> 0 | AG57: =IFERROR(VLOOKUP($A57,Filtro!$A$4:$AM$2264,31,FALSE),0) -> 0 | AH57: =IFERROR(VLOOKUP($A57,Filtro!$A$4:$AM$2264,32,FALSE),0) -> 0 | AI57: =IFERROR(VLOOKUP($A57,Filtro!$A$4:$AM$2264,33,FALSE),0) -> 0 | AJ57: =IFERROR(VLOOKUP($A57,Filtro!$A$4:$AM$2264,34,FALSE),0) -> 0 | AK57: =IFERROR(VLOOKUP($A57,Filtro!$A$4:$AM$2264,35,FALSE),0) -> 0 | CQ57: 0 | CR57: 0 | CS57: 0 | CU57: 0 | CV57: 0 | CW57: 0 | CY57: 0 | CZ57: 0
A58: 01010014 | B58: 0101001 | C58: Consulta Medicina General | D58: =IFERROR(VLOOKUP($A58,Filtro!$A$4:$AM$2264,2,FALSE),0) -> 75285 | E58: =IFERROR(VLOOKUP($A58,Filtro!$A$4:$AM$2264,3,FALSE),0) -> 75285 | F58: =IFERROR(VLOOKUP($A58,Filtro!$A$4:$AM$2264,4,FALSE),0) -> 75285 | G58: =IFERROR(VLOOKUP($A58,Filtro!$A$4:$AM$2264,5,FALSE),0) -> 0 | H58: =IFERROR(VLOOKUP($A58,Filtro!$A$4:$AM$2264,6,FALSE),0) -> 0 | AB58: =IFERROR(VLOOKUP($A58,Filtro!$A$4:$AM$2264,26,FALSE),0) -> 0 | AC58: =IFERROR(VLOOKUP($A58,Filtro!$A$4:$AM$2264,27,FALSE),0) -> 72841 | AD58: =IFERROR(VLOOKUP($A58,Filtro!$A$4:$AM$2264,28,FALSE),0) -> 2306 | AE58: =IFERROR(VLOOKUP($A58,Filtro!$A$4:$AM$2264,29,FALSE),0) -> 0 | AF58: =IFERROR(VLOOKUP($A58,Filtro!$A$4:$AM$2264,30,FALSE),0) -> 0 | AG58: =IFERROR(VLOOKUP($A58,Filtro!$A$4:$AM$2264,31,FALSE),0) -> 0 | AH58: =IFERROR(VLOOKUP($A58,Filtro!$A$4:$AM$2264,32,FALSE),0) -> 0 | AI58: =IFERROR(VLOOKUP($A58,Filtro!$A$4:$AM$2264,33,FALSE),0) -> 0 | AJ58: =IFERROR(VLOOKUP($A58,Filtro!$A$4:$AM$2264,34,FALSE),0) -> 54 | AK58: =IFERROR(VLOOKUP($A58,Filtro!$A$4:$AM$2264,35,FALSE),0) -> 0 | CQ58: 0 | CR58: 0 | CS58: 0 | CU58: 0 | CV58: 0 | CW58: 0 | CY58: 0 | CZ58: 0
A59: 01014320 | B59: 0101007 | C59: Atención médica del recién nacido en sala de parto o pabellón quirúrgico c/s reanimación cardio-respiratoria | D59: =IFERROR(VLOOKUP($A59,Filtro!$A$4:$AM$2264,2,FALSE),0) -> 1705 | E59: =IFERROR(VLOOKUP($A59,Filtro!$A$4:$AM$2264,3,FALSE),0) -> 1662 | F59: =IFERROR(VLOOKUP($A59,Filtro!$A$4:$AM$2264,4,FALSE),0) -> 1265 | G59: =IFERROR(VLOOKUP($A59,Filtro!$A$4:$AM$2264,5,FALSE),0) -> 397 | H59: =IFERROR(VLOOKUP($A59,Filtro!$A$4:$AM$2264,6,FALSE),0) -> 43 | AB59: =IFERROR(VLOOKUP($A59,Filtro!$A$4:$AM$2264,26,FALSE),0) -> 345 | AC59: =IFERROR(VLOOKUP($A59,Filtro!$A$4:$AM$2264,27,FALSE),0) -> 582 | AD59: =IFERROR(VLOOKUP($A59,Filtro!$A$4:$AM$2264,28,FALSE),0) -> 778 | AE59: =IFERROR(VLOOKUP($A59,Filtro!$A$4:$AM$2264,29,FALSE),0) -> 0 | AF59: =IFERROR(VLOOKUP($A59,Filtro!$A$4:$AM$2264,30,FALSE),0) -> 0 | AG59: =IFERROR(VLOOKUP($A59,Filtro!$A$4:$AM$2264,31,FALSE),0) -> 0 | AH59: =IFERROR(VLOOKUP($A59,Filtro!$A$4:$AM$2264,32,FALSE),0) -> 0 | AI59: =IFERROR(VLOOKUP($A59,Filtro!$A$4:$AM$2264,33,FALSE),0) -> 0 | AJ59: =IFERROR(VLOOKUP($A59,Filtro!$A$4:$AM$2264,34,FALSE),0) -> 0 | AK59: =IFERROR(VLOOKUP($A59,Filtro!$A$4:$AM$2264,35,FALSE),0) -> 0 | CQ59: 0 | CR59: 0 | CS59: 0 | CU59: 0 | CV59: 0 | CW59: 0 | CY59: 0 | CZ59: 0
A60: 01014321 | B60: 0101103 | C60: Consulta en Unidades de Urgencia Hospitalaria | D60: =IFERROR(VLOOKUP($A60,Filtro!$A$4:$AM$2264,2,FALSE),0) -> 305700 | E60: =IFERROR(VLOOKUP($A60,Filtro!$A$4:$AM$2264,3,FALSE),0) -> 297642 | F60: =IFERROR(VLOOKUP($A60,Filtro!$A$4:$AM$2264,4,FALSE),0) -> 297642 | G60: =IFERROR(VLOOKUP($A60,Filtro!$A$4:$AM$2264,5,FALSE),0) -> 0 | H60: =IFERROR(VLOOKUP($A60,Filtro!$A$4:$AM$2264,6,FALSE),0) -> 8058 | AB60: =IFERROR(VLOOKUP($A60,Filtro!$A$4:$AM$2264,26,FALSE),0) -> 0 | AC60: =IFERROR(VLOOKUP($A60,Filtro!$A$4:$AM$2264,27,FALSE),0) -> 6059 | AD60: =IFERROR(VLOOKUP($A60,Filtro!$A$4:$AM$2264,28,FALSE),0) -> 299641 | AE60: =IFERROR(VLOOKUP($A60,Filtro!$A$4:$AM$2264,29,FALSE),0) -> 0 | AF60: =IFERROR(VLOOKUP($A60,Filtro!$A$4:$AM$2264,30,FALSE),0) -> 0 | AG60: =IFERROR(VLOOKUP($A60,Filtro!$A$4:$AM$2264,31,FALSE),0) -> 0 | AH60: =IFERROR(VLOOKUP($A60,Filtro!$A$4:$AM$2264,32,FALSE),0) -> 0 | AI60: =IFERROR(VLOOKUP($A60,Filtro!$A$4:$AM$2264,33,FALSE),0) -> 0 | AJ60: =IFERROR(VLOOKUP($A60,Filtro!$A$4:$AM$2264,34,FALSE),0) -> 0 | AK60: =IFERROR(VLOOKUP($A60,Filtro!$A$4:$AM$2264,35,FALSE),0) -> 0 | CQ60: 0 | CR60: 0 | CS60: 0 | CU60: 0 | CV60: 0 | CW60: 0 | CY60: 0 | CZ60: 0
B61: TOTAL | D61: =SUM(D12:D60) -> 804716 | E61: =SUM(E12:E60) -> 795510 | F61: =SUM(F12:F60) -> 795113 | G61: =SUM(G12:G60) -> 397 | H61: =SUM(H12:H60) -> 9206 | AB61: =SUM(AB12:AB60) -> 345 | AC61: =SUM(AC12:AC60) -> 501505 | AD61: 302725 | AE61: 11141 | AF61: 2823 | AG61: 0 | AH61: 0 | AI61: 0 | AJ61: 58 | AK61: 0
B62: CONSULTAS POR OTROS PROFESIONALES DE LA SALUD
A63: 01010020 | B63: 0102002 | C63: Control de salud niño con EDP por enfermera | D63: =IFERROR(VLOOKUP($A63,Filtro!$A$4:$AM$2264,2,FALSE),0) -> 4535 | E63: =IFERROR(VLOOKUP($A63,Filtro!$A$4:$AM$2264,3,FALSE),0) -> 4535 | F63: =IFERROR(VLOOKUP($A63,Filtro!$A$4:$AM$2264,4,FALSE),0) -> 4535 | G63: =IFERROR(VLOOKUP($A63,Filtro!$A$4:$AM$2264,5,FALSE),0) -> 0 | H63: =IFERROR(VLOOKUP($A63,Filtro!$A$4:$AM$2264,6,FALSE),0) -> 0 | AB63: =IFERROR(VLOOKUP($A63,Filtro!$A$4:$AM$2264,26,FALSE),0) -> 0 | AC63: =IFERROR(VLOOKUP($A63,Filtro!$A$4:$AM$2264,27,FALSE),0) -> 2325 | AD63: =IFERROR(VLOOKUP($A63,Filtro!$A$4:$AM$2264,28,FALSE),0) -> 0 | AE63: =IFERROR(VLOOKUP($A63,Filtro!$A$4:$AM$2264,29,FALSE),0) -> 0 | AF63: =IFERROR(VLOOKUP($A63,Filtro!$A$4:$AM$2264,30,FALSE),0) -> 0 | AG63: =IFERROR(VLOOKUP($A63,Filtro!$A$4:$AM$2264,31,FALSE),0) -> 0 | AH63: =IFERROR(VLOOKUP($A63,Filtro!$A$4:$AM$2264,32,FALSE),0) -> 0 | AI63: =IFERROR(VLOOKUP($A63,Filtro!$A$4:$AM$2264,33,FALSE),0) -> 0 | AJ63: =IFERROR(VLOOKUP($A63,Filtro!$A$4:$AM$2264,34,FALSE),0) -> 0 | AK63: =IFERROR(VLOOKUP($A63,Filtro!$A$4:$AM$2264,35,FALSE),0) -> 0 | CQ63: 0 | CR63: 0 | CS63: 0 | CU63: 0 | CV63: 0 | CW63: 0 | CY63: 0 | CZ63: 0
A64: 01010021 | B64: 0102003 | C64: Consulta o control por auxiliar de enfermería | D64: =IFERROR(VLOOKUP($A64,Filtro!$A$4:$AM$2264,2,FALSE),0) -> 27210 | E64: =IFERROR(VLOOKUP($A64,Filtro!$A$4:$AM$2264,3,FALSE),0) -> 27209 | F64: =IFERROR(VLOOKUP($A64,Filtro!$A$4:$AM$2264,4,FALSE),0) -> 27209 | G64: =IFERROR(VLOOKUP($A64,Filtro!$A$4:$AM$2264,5,FALSE),0) -> 0 | H64: =IFERROR(VLOOKUP($A64,Filtro!$A$4:$AM$2264,6,FALSE),0) -> 1 | AB64: =IFERROR(VLOOKUP($A64,Filtro!$A$4:$AM$2264,26,FALSE),0) -> 1 | AC64: =IFERROR(VLOOKUP($A64,Filtro!$A$4:$AM$2264,27,FALSE),0) -> 2905 | AD64: =IFERROR(VLOOKUP($A64,Filtro!$A$4:$AM$2264,28,FALSE),0) -> 24304 | AE64: =IFERROR(VLOOKUP($A64,Filtro!$A$4:$AM$2264,29,FALSE),0) -> 0 | AF64: =IFERROR(VLOOKUP($A64,Filtro!$A$4:$AM$2264,30,FALSE),0) -> 0 | AG64: =IFERROR(VLOOKUP($A64,Filtro!$A$4:$AM$2264,31,FALSE),0) -> 0 | AH64: =IFERROR(VLOOKUP($A64,Filtro!$A$4:$AM$2264,32,FALSE),0) -> 0 | AI64: =IFERROR(VLOOKUP($A64,Filtro!$A$4:$AM$2264,33,FALSE),0) -> 0 | AJ64: =IFERROR(VLOOKUP($A64,Filtro!$A$4:$AM$2264,34,FALSE),0) -> 0 | AK64: =IFERROR(VLOOKUP($A64,Filtro!$A$4:$AM$2264,35,FALSE),0) -> 0 | CQ64: 0 | CR64: 0 | CS64: 0 | CU64: 0 | CV64: 0 | CW64: 0 | CY64: 0 | CZ64: 0
A65: 01010022 | B65: 0102005 | C65: Consulta por fonoaudiólogo | D65: =IFERROR(VLOOKUP($A65,Filtro!$A$4:$AM$2264,2,FALSE),0) -> 20862 | E65: =IFERROR(VLOOKUP($A65,Filtro!$A$4:$AM$2264,3,FALSE),0) -> 20854 | F65: =IFERROR(VLOOKUP($A65,Filtro!$A$4:$AM$2264,4,FALSE),0) -> 20854 | G65: =IFERROR(VLOOKUP($A65,Filtro!$A$4:$AM$2264,5,FALSE),0) -> 0 | H65: =IFERROR(VLOOKUP($A65,Filtro!$A$4:$AM$2264,6,FALSE),0) -> 8 | AB65: =IFERROR(VLOOKUP($A65,Filtro!$A$4:$AM$2264,26,FALSE),0) -> 9584 | AC65: =IFERROR(VLOOKUP($A65,Filtro!$A$4:$AM$2264,27,FALSE),0) -> 11044 | AD65: =IFERROR(VLOOKUP($A65,Filtro!$A$4:$AM$2264,28,FALSE),0) -> 159 | AE65: =IFERROR(VLOOKUP($A65,Filtro!$A$4:$AM$2264,29,FALSE),0) -> 0 | AF65: =IFERROR(VLOOKUP($A65,Filtro!$A$4:$AM$2264,30,FALSE),0) -> 0 | AG65: =IFERROR(VLOOKUP($A65,Filtro!$A$4:$AM$2264,31,FALSE),0) -> 0 | AH65: =IFERROR(VLOOKUP($A65,Filtro!$A$4:$AM$2264,32,FALSE),0) -> 0 | AI65: =IFERROR(VLOOKUP($A65,Filtro!$A$4:$AM$2264,33,FALSE),0) -> 0 | AJ65: =IFERROR(VLOOKUP($A65,Filtro!$A$4:$AM$2264,34,FALSE),0) -> 0 | AK65: =IFERROR(VLOOKUP($A65,Filtro!$A$4:$AM$2264,35,FALSE),0) -> 0 | CQ65: 0 | CR65: 0 | CS65: 0 | CU65: 0 | CV65: 0 | CW65: 0 | CY65: 0 | CZ65: 0
A66: 01014322 | B66: 0102008 | C66: Consulta o control por enfermera | D66: =IFERROR(VLOOKUP($A66,Filtro!$A$4:$AM$2264,2,FALSE),0) -> 119545 | E66: =IFERROR(VLOOKUP($A66,Filtro!$A$4:$AM$2264,3,FALSE),0) -> 118975 | F66: =IFERROR(VLOOKUP($A66,Filtro!$A$4:$AM$2264,4,FALSE),0) -> 118975 | G66: =IFERROR(VLOOKUP($A66,Filtro!$A$4:$AM$2264,5,FALSE),0) -> 0 | H66: =IFERROR(VLOOKUP($A66,Filtro!$A$4:$AM$2264,6,FALSE),0) -> 570 | AB66: =IFERROR(VLOOKUP($A66,Filtro!$A$4:$AM$2264,26,FALSE),0) -> 0 | AC66: =IFERROR(VLOOKUP($A66,Filtro!$A$4:$AM$2264,27,FALSE),0) -> 96450 | AD66: =IFERROR(VLOOKUP($A66,Filtro!$A$4:$AM$2264,28,FALSE),0) -> 22811 | AE66: =IFERROR(VLOOKUP($A66,Filtro!$A$4:$AM$2264,29,FALSE),0) -> 0 | AF66: =IFERROR(VLOOKUP($A66,Filtro!$A$4:$AM$2264,30,FALSE),0) -> 0 | AG66: =IFERROR(VLOOKUP($A66,Filtro!$A$4:$AM$2264,31,FALSE),0) -> 0 | AH66: =IFERROR(VLOOKUP($A66,Filtro!$A$4:$AM$2264,32,FALSE),0) -> 0 | AI66: =IFERROR(VLOOKUP($A66,Filtro!$A$4:$AM$2264,33,FALSE),0) -> 0 | AJ66: =IFERROR(VLOOKUP($A66,Filtro!$A$4:$AM$2264,34,FALSE),0) -> 0 | AK66: =IFERROR(VLOOKUP($A66,Filtro!$A$4:$AM$2264,35,FALSE),0) -> 0 | CQ66: 0 | CR66: 0 | CS66: 0 | CU66: 0 | CV66: 0 | CW66: 0 | CY66: 0 | CZ66: 0
A67: 01014323 | B67: 0102009 | C67: Consulta o control por matrona | D67: =IFERROR(VLOOKUP($A67,Filtro!$A$4:$AM$2264,2,FALSE),0) -> 66469 | E67: =IFERROR(VLOOKUP($A67,Filtro!$A$4:$AM$2264,3,FALSE),0) -> 66218 | F67: =IFERROR(VLOOKUP($A67,Filtro!$A$4:$AM$2264,4,FALSE),0) -> 66218 | G67: =IFERROR(VLOOKUP($A67,Filtro!$A$4:$AM$2264,5,FALSE),0) -> 0 | H67: =IFERROR(VLOOKUP($A67,Filtro!$A$4:$AM$2264,6,FALSE),0) -> 251 | AB67: =IFERROR(VLOOKUP($A67,Filtro!$A$4:$AM$2264,26,FALSE),0) -> 0 | AC67: =IFERROR(VLOOKUP($A67,Filtro!$A$4:$AM$2264,27,FALSE),0) -> 60679 | AD67: =IFERROR(VLOOKUP($A67,Filtro!$A$4:$AM$2264,28,FALSE),0) -> 5483 | AE67: =IFERROR(VLOOKUP($A67,Filtro!$A$4:$AM$2264,29,FALSE),0) -> 0 | AF67: =IFERROR(VLOOKUP($A67,Filtro!$A$4:$AM$2264,30,FALSE),0) -> 0 | AG67: =IFERROR(VLOOKUP($A67,Filtro!$A$4:$AM$2264,31,FALSE),0) -> 0 | AH67: =IFERROR(VLOOKUP($A67,Filtro!$A$4:$AM$2264,32,FALSE),0) -> 0 | AI67: =IFERROR(VLOOKUP($A67,Filtro!$A$4:$AM$2264,33,FALSE),0) -> 0 | AJ67: =IFERROR(VLOOKUP($A67,Filtro!$A$4:$AM$2264,34,FALSE),0) -> 0 | AK67: =IFERROR(VLOOKUP($A67,Filtro!$A$4:$AM$2264,35,FALSE),0) -> 0 | CQ67: 0 | CR67: 0 | CS67: 0 | CU67: 0 | CV67: 0 | CW67: 0 | CY67: 0 | CZ67: 0
A68: 01014324 | B68: 0102010 | C68: Consulta o control por nutricionista | D68: =IFERROR(VLOOKUP($A68,Filtro!$A$4:$AM$2264,2,FALSE),0) -> 33635 | E68: =IFERROR(VLOOKUP($A68,Filtro!$A$4:$AM$2264,3,FALSE),0) -> 33548 | F68: =IFERROR(VLOOKUP($A68,Filtro!$A$4:$AM$2264,4,FALSE),0) -> 33548 | G68: =IFERROR(VLOOKUP($A68,Filtro!$A$4:$AM$2264,5,FALSE),0) -> 0 | H68: =IFERROR(VLOOKUP($A68,Filtro!$A$4:$AM$2264,6,FALSE),0) -> 87 | AB68: =IFERROR(VLOOKUP($A68,Filtro!$A$4:$AM$2264,26,FALSE),0) -> 0 | AC68: =IFERROR(VLOOKUP($A68,Filtro!$A$4:$AM$2264,27,FALSE),0) -> 33448 | AD68: =IFERROR(VLOOKUP($A68,Filtro!$A$4:$AM$2264,28,FALSE),0) -> 0 | AE68: =IFERROR(VLOOKUP($A68,Filtro!$A$4:$AM$2264,29,FALSE),0) -> 0 | AF68: =IFERROR(VLOOKUP($A68,Filtro!$A$4:$AM$2264,30,FALSE),0) -> 0 | AG68: =IFERROR(VLOOKUP($A68,Filtro!$A$4:$AM$2264,31,FALSE),0) -> 0 | AH68: =IFERROR(VLOOKUP($A68,Filtro!$A$4:$AM$2264,32,FALSE),0) -> 0 | AI68: =IFERROR(VLOOKUP($A68,Filtro!$A$4:$AM$2264,33,FALSE),0) -> 0 | AJ68: =IFERROR(VLOOKUP($A68,Filtro!$A$4:$AM$2264,34,FALSE),0) -> 0 | AK68: =IFERROR(VLOOKUP($A68,Filtro!$A$4:$AM$2264,35,FALSE),0) -> 0 | CQ68: 0 | CR68: 0 | CS68: 0 | CU68: 0 | CV68: 0 | CW68: 0 | CY68: 0 | CZ68: 0
A69: 01015010 | B69: 0102011 | C69: Consulta quimico farmacéutico | D69: =IFERROR(VLOOKUP($A69,Filtro!$A$4:$AM$2264,2,FALSE),0) -> 1394 | E69: =IFERROR(VLOOKUP($A69,Filtro!$A$4:$AM$2264,3,FALSE),0) -> 1376 | F69: =IFERROR(VLOOKUP($A69,Filtro!$A$4:$AM$2264,4,FALSE),0) -> 1376 | G69: =IFERROR(VLOOKUP($A69,Filtro!$A$4:$AM$2264,5,FALSE),0) -> 0 | H69: =IFERROR(VLOOKUP($A69,Filtro!$A$4:$AM$2264,6,FALSE),0) -> 18 | AB69: =IFERROR(VLOOKUP($A69,Filtro!$A$4:$AM$2264,26,FALSE),0) -> 0 | AC69: =IFERROR(VLOOKUP($A69,Filtro!$A$4:$AM$2264,27,FALSE),0) -> 1394 | AD69: =IFERROR(VLOOKUP($A69,Filtro!$A$4:$AM$2264,28,FALSE),0) -> 0 | AE69: =IFERROR(VLOOKUP($A69,Filtro!$A$4:$AM$2264,29,FALSE),0) -> 0 | AF69: =IFERROR(VLOOKUP($A69,Filtro!$A$4:$AM$2264,30,FALSE),0) -> 0 | AG69: =IFERROR(VLOOKUP($A69,Filtro!$A$4:$AM$2264,31,FALSE),0) -> 0 | AH69: =IFERROR(VLOOKUP($A69,Filtro!$A$4:$AM$2264,32,FALSE),0) -> 0 | AI69: =IFERROR(VLOOKUP($A69,Filtro!$A$4:$AM$2264,33,FALSE),0) -> 0 | AJ69: =IFERROR(VLOOKUP($A69,Filtro!$A$4:$AM$2264,34,FALSE),0) -> 0 | AK69: =IFERROR(VLOOKUP($A69,Filtro!$A$4:$AM$2264,35,FALSE),0) -> 0 | CQ69: 0 | CR69: 0 | CS69: 0 | CU69: 0 | CV69: 0 | CW69: 0 | CY69: 0 | CZ69: 0
A70: 01010025 | B70: 01010025 | C70: Consulta por otros profesionales | D70: =IFERROR(VLOOKUP($A70,Filtro!$A$4:$AM$2264,2,FALSE),0) -> 33312 | E70: =IFERROR(VLOOKUP($A70,Filtro!$A$4:$AM$2264,3,FALSE),0) -> 33062 | F70: =IFERROR(VLOOKUP($A70,Filtro!$A$4:$AM$2264,4,FALSE),0) -> 33062 | G70: =IFERROR(VLOOKUP($A70,Filtro!$A$4:$AM$2264,5,FALSE),0) -> 0 | H70: =IFERROR(VLOOKUP($A70,Filtro!$A$4:$AM$2264,6,FALSE),0) -> 250 | AB70: =IFERROR(VLOOKUP($A70,Filtro!$A$4:$AM$2264,26,FALSE),0) -> 565 | AC70: =IFERROR(VLOOKUP($A70,Filtro!$A$4:$AM$2264,27,FALSE),0) -> 30775 | AD70: =IFERROR(VLOOKUP($A70,Filtro!$A$4:$AM$2264,28,FALSE),0) -> 1950 | AE70: =IFERROR(VLOOKUP($A70,Filtro!$A$4:$AM$2264,29,FALSE),0) -> 1400 | AF70: =IFERROR(VLOOKUP($A70,Filtro!$A$4:$AM$2264,30,FALSE),0) -> 0 | AG70: =IFERROR(VLOOKUP($A70,Filtro!$A$4:$AM$2264,31,FALSE),0) -> 0 | AH70: =IFERROR(VLOOKUP($A70,Filtro!$A$4:$AM$2264,32,FALSE),0) -> 0 | AI70: =IFERROR(VLOOKUP($A70,Filtro!$A$4:$AM$2264,33,FALSE),0) -> 0 | AJ70: =IFERROR(VLOOKUP($A70,Filtro!$A$4:$AM$2264,34,FALSE),0) -> 0 | AK70: =IFERROR(VLOOKUP($A70,Filtro!$A$4:$AM$2264,35,FALSE),0) -> 0 | CQ70: 0 | CR70: 0 | CS70: 0 | CU70: 0 | CV70: 0 | CW70: 0 | CY70: 0 | CZ70: 0
A71: 01012817 | B71: 01012817 | C71: Consulta por Trabajador(a) Social | D71: =IFERROR(VLOOKUP($A71,Filtro!$A$4:$AM$2264,2,FALSE),0) -> 16822 | E71: =IFERROR(VLOOKUP($A71,Filtro!$A$4:$AM$2264,3,FALSE),0) -> 16442 | F71: =IFERROR(VLOOKUP($A71,Filtro!$A$4:$AM$2264,4,FALSE),0) -> 16442 | G71: =IFERROR(VLOOKUP($A71,Filtro!$A$4:$AM$2264,5,FALSE),0) -> 0 | H71: =IFERROR(VLOOKUP($A71,Filtro!$A$4:$AM$2264,6,FALSE),0) -> 380 | AB71: =IFERROR(VLOOKUP($A71,Filtro!$A$4:$AM$2264,26,FALSE),0) -> 1591 | AC71: =IFERROR(VLOOKUP($A71,Filtro!$A$4:$AM$2264,27,FALSE),0) -> 14951 | AD71: =IFERROR(VLOOKUP($A71,Filtro!$A$4:$AM$2264,28,FALSE),0) -> 1 | AE71: =IFERROR(VLOOKUP($A71,Filtro!$A$4:$AM$2264,29,FALSE),0) -> 0 | AF71: =IFERROR(VLOOKUP($A71,Filtro!$A$4:$AM$2264,30,FALSE),0) -> 0 | AG71: =IFERROR(VLOOKUP($A71,Filtro!$A$4:$AM$2264,31,FALSE),0) -> 0 | AH71: =IFERROR(VLOOKUP($A71,Filtro!$A$4:$AM$2264,32,FALSE),0) -> 0 | AI71: =IFERROR(VLOOKUP($A71,Filtro!$A$4:$AM$2264,33,FALSE),0) -> 0 | AJ71: =IFERROR(VLOOKUP($A71,Filtro!$A$4:$AM$2264,34,FALSE),0) -> 0 | AK71: =IFERROR(VLOOKUP($A71,Filtro!$A$4:$AM$2264,35,FALSE),0) -> 0 | CQ71: 0 | CR71: 0 | CS71: 0 | CU71: 0 | CV71: 0 | CW71: 0 | CY71: 0 | CZ71: 0
B72: TOTAL | D72: =SUM(D63:D71) -> 323784 | E72: =SUM(E63:E71) -> 322219 | F72: =SUM(F63:F71) -> 322219 | G72: =SUM(G63:G71) -> 0 | H72: =SUM(H63:H71) -> 1565 | AB72: =SUM(AB63:AB71) -> 11741 | AC72: =SUM(AC63:AC71) -> 253971 | AD72: 54708 | AE72: 1400 | AF72: 0 | AG72: 0 | AH72: 0 | AI72: 0 | AJ72: 0 | AK72: 0
B73: TELEMEDICINA
B74: TELECONSULTAS
A75: 01013100 | B75: 0108001 | C75: Teleconsulta Medicina General | D75: =IFERROR(VLOOKUP($A75,Filtro!$A$4:$AM$2264,2,FALSE),0) -> 776 | E75: =IFERROR(VLOOKUP($A75,Filtro!$A$4:$AM$2264,3,FALSE),0) -> 776 | F75: =IFERROR(VLOOKUP($A75,Filtro!$A$4:$AM$2264,4,FALSE),0) -> 776 | G75: =IFERROR(VLOOKUP($A75,Filtro!$A$4:$AM$2264,5,FALSE),0) -> 0 | H75: =IFERROR(VLOOKUP($A75,Filtro!$A$4:$AM$2264,6,FALSE),0) -> 0 | AB75: =IFERROR(VLOOKUP($A75,Filtro!$A$4:$AM$2264,26,FALSE),0) -> 0 | AC75: =IFERROR(VLOOKUP($A75,Filtro!$A$4:$AM$2264,27,FALSE),0) -> 776 | AD75: =IFERROR(VLOOKUP($A75,Filtro!$A$4:$AM$2264,28,FALSE),0) -> 0 | AE75: =IFERROR(VLOOKUP($A75,Filtro!$A$4:$AM$2264,29,FALSE),0) -> 0 | AF75: =IFERROR(VLOOKUP($A75,Filtro!$A$4:$AM$2264,30,FALSE),0) -> 0 | AG75: =IFERROR(VLOOKUP($A75,Filtro!$A$4:$AM$2264,31,FALSE),0) -> 0 | AH75: =IFERROR(VLOOKUP($A75,Filtro!$A$4:$AM$2264,32,FALSE),0) -> 0 | AI75: =IFERROR(VLOOKUP($A75,Filtro!$A$4:$AM$2264,33,FALSE),0) -> 0 | AJ75: =IFERROR(VLOOKUP($A75,Filtro!$A$4:$AM$2264,34,FALSE),0) -> 0 | AK75: =IFERROR(VLOOKUP($A75,Filtro!$A$4:$AM$2264,35,FALSE),0) -> 0 | CQ75: 0 | CR75: 0 | CS75: 0 | CU75: 0 | CV75: 0 | CW75: 0 | CY75: 0 | CZ75: 0
A76: 01014325 | B76: 0108201 | C76: Teleconsulta Médica de Especialidad en Dermatología | D76: =IFERROR(VLOOKUP($A76,Filtro!$A$4:$AM$2264,2,FALSE),0) -> 172 | E76: =IFERROR(VLOOKUP($A76,Filtro!$A$4:$AM$2264,3,FALSE),0) -> 172 | F76: =IFERROR(VLOOKUP($A76,Filtro!$A$4:$AM$2264,4,FALSE),0) -> 172 | G76: =IFERROR(VLOOKUP($A76,Filtro!$A$4:$AM$2264,5,FALSE),0) -> 0 | H76: =IFERROR(VLOOKUP($A76,Filtro!$A$4:$AM$2264,6,FALSE),0) -> 0 | AB76: =IFERROR(VLOOKUP($A76,Filtro!$A$4:$AM$2264,26,FALSE),0) -> 0 | AC76: =IFERROR(VLOOKUP($A76,Filtro!$A$4:$AM$2264,27,FALSE),0) -> 172 | AD76: =IFERROR(VLOOKUP($A76,Filtro!$A$4:$AM$2264,28,FALSE),0) -> 0 | AE76: =IFERROR(VLOOKUP($A76,Filtro!$A$4:$AM$2264,29,FALSE),0) -> 0 | AF76: =IFERROR(VLOOKUP($A76,Filtro!$A$4:$AM$2264,30,FALSE),0) -> 0 | AG76: =IFERROR(VLOOKUP($A76,Filtro!$A$4:$AM$2264,31,FALSE),0) -> 0 | AH76: =IFERROR(VLOOKUP($A76,Filtro!$A$4:$AM$2264,32,FALSE),0) -> 0 | AI76: =IFERROR(VLOOKUP($A76,Filtro!$A$4:$AM$2264,33,FALSE),0) -> 0 | AJ76: =IFERROR(VLOOKUP($A76,Filtro!$A$4:$AM$2264,34,FALSE),0) -> 0 | AK76: =IFERROR(VLOOKUP($A76,Filtro!$A$4:$AM$2264,35,FALSE),0) -> 0 | CQ76: 0 | CR76: 0 | CS76: 0 | CU76: 0 | CV76: 0 | CW76: 0 | CY76: 0 | CZ76: 0
A77: 01014326 | B77: 0108202 | C77: Teleconsulta Médica de Especialidad en Geriatría | D77: =IFERROR(VLOOKUP($A77,Filtro!$A$4:$AM$2264,2,FALSE),0) -> 4 | E77: =IFERROR(VLOOKUP($A77,Filtro!$A$4:$AM$2264,3,FALSE),0) -> 4 | F77: =IFERROR(VLOOKUP($A77,Filtro!$A$4:$AM$2264,4,FALSE),0) -> 4 | G77: =IFERROR(VLOOKUP($A77,Filtro!$A$4:$AM$2264,5,FALSE),0) -> 0 | H77: =IFERROR(VLOOKUP($A77,Filtro!$A$4:$AM$2264,6,FALSE),0) -> 0 | AB77: =IFERROR(VLOOKUP($A77,Filtro!$A$4:$AM$2264,26,FALSE),0) -> 0 | AC77: =IFERROR(VLOOKUP($A77,Filtro!$A$4:$AM$2264,27,FALSE),0) -> 4 | AD77: =IFERROR(VLOOKUP($A77,Filtro!$A$4:$AM$2264,28,FALSE),0) -> 0 | AE77: =IFERROR(VLOOKUP($A77,Filtro!$A$4:$AM$2264,29,FALSE),0) -> 0 | AF77: =IFERROR(VLOOKUP($A77,Filtro!$A$4:$AM$2264,30,FALSE),0) -> 0 | AG77: =IFERROR(VLOOKUP($A77,Filtro!$A$4:$AM$2264,31,FALSE),0) -> 0 | AH77: =IFERROR(VLOOKUP($A77,Filtro!$A$4:$AM$2264,32,FALSE),0) -> 0 | AI77: =IFERROR(VLOOKUP($A77,Filtro!$A$4:$AM$2264,33,FALSE),0) -> 0 | AJ77: =IFERROR(VLOOKUP($A77,Filtro!$A$4:$AM$2264,34,FALSE),0) -> 1 | AK77: =IFERROR(VLOOKUP($A77,Filtro!$A$4:$AM$2264,35,FALSE),0) -> 0 | CQ77: 0 | CR77: 0 | CS77: 0 | CU77: 0 | CV77: 0 | CW77: 0 | CY77: 0 | CZ77: 0
A78: 01014327 | B78: 0108206 | C78: Teleconsulta Médica de Especialidad en Reumatología | D78: =IFERROR(VLOOKUP($A78,Filtro!$A$4:$AM$2264,2,FALSE),0) -> 323 | E78: =IFERROR(VLOOKUP($A78,Filtro!$A$4:$AM$2264,3,FALSE),0) -> 323 | F78: =IFERROR(VLOOKUP($A78,Filtro!$A$4:$AM$2264,4,FALSE),0) -> 323 | G78: =IFERROR(VLOOKUP($A78,Filtro!$A$4:$AM$2264,5,FALSE),0) -> 0 | H78: =IFERROR(VLOOKUP($A78,Filtro!$A$4:$AM$2264,6,FALSE),0) -> 0 | AB78: =IFERROR(VLOOKUP($A78,Filtro!$A$4:$AM$2264,26,FALSE),0) -> 0 | AC78: =IFERROR(VLOOKUP($A78,Filtro!$A$4:$AM$2264,27,FALSE),0) -> 323 | AD78: =IFERROR(VLOOKUP($A78,Filtro!$A$4:$AM$2264,28,FALSE),0) -> 0 | AE78: =IFERROR(VLOOKUP($A78,Filtro!$A$4:$AM$2264,29,FALSE),0) -> 0 | AF78: =IFERROR(VLOOKUP($A78,Filtro!$A$4:$AM$2264,30,FALSE),0) -> 0 | AG78: =IFERROR(VLOOKUP($A78,Filtro!$A$4:$AM$2264,31,FALSE),0) -> 0 | AH78: =IFERROR(VLOOKUP($A78,Filtro!$A$4:$AM$2264,32,FALSE),0) -> 0 | AI78: =IFERROR(VLOOKUP($A78,Filtro!$A$4:$AM$2264,33,FALSE),0) -> 0 | AJ78: =IFERROR(VLOOKUP($A78,Filtro!$A$4:$AM$2264,34,FALSE),0) -> 0 | AK78: =IFERROR(VLOOKUP($A78,Filtro!$A$4:$AM$2264,35,FALSE),0) -> 0 | CQ78: 0 | CR78: 0 | CS78: 0 | CU78: 0 | CV78: 0 | CW78: 0 | CY78: 0 | CZ78: 0
A79: 01014328 | B79: 0108207 | C79: Teleconsulta Médica de Especialidad en Endocrinología Adulto | D79: =IFERROR(VLOOKUP($A79,Filtro!$A$4:$AM$2264,2,FALSE),0) -> 179 | E79: =IFERROR(VLOOKUP($A79,Filtro!$A$4:$AM$2264,3,FALSE),0) -> 179 | F79: =IFERROR(VLOOKUP($A79,Filtro!$A$4:$AM$2264,4,FALSE),0) -> 179 | G79: =IFERROR(VLOOKUP($A79,Filtro!$A$4:$AM$2264,5,FALSE),0) -> 0 | H79: =IFERROR(VLOOKUP($A79,Filtro!$A$4:$AM$2264,6,FALSE),0) -> 0 | AB79: =IFERROR(VLOOKUP($A79,Filtro!$A$4:$AM$2264,26,FALSE),0) -> 0 | AC79: =IFERROR(VLOOKUP($A79,Filtro!$A$4:$AM$2264,27,FALSE),0) -> 179 | AD79: =IFERROR(VLOOKUP($A79,Filtro!$A$4:$AM$2264,28,FALSE),0) -> 0 | AE79: =IFERROR(VLOOKUP($A79,Filtro!$A$4:$AM$2264,29,FALSE),0) -> 0 | AF79: =IFERROR(VLOOKUP($A79,Filtro!$A$4:$AM$2264,30,FALSE),0) -> 0 | AG79: =IFERROR(VLOOKUP($A79,Filtro!$A$4:$AM$2264,31,FALSE),0) -> 0 | AH79: =IFERROR(VLOOKUP($A79,Filtro!$A$4:$AM$2264,32,FALSE),0) -> 0 | AI79: =IFERROR(VLOOKUP($A79,Filtro!$A$4:$AM$2264,33,FALSE),0) -> 0 | AJ79: =IFERROR(VLOOKUP($A79,Filtro!$A$4:$AM$2264,34,FALSE),0) -> 0 | AK79: =IFERROR(VLOOKUP($A79,Filtro!$A$4:$AM$2264,35,FALSE),0) -> 0 | CQ79: 0 | CR79: 0 | CS79: 0 | CU79: 0 | CV79: 0 | CW79: 0 | CY79: 0 | CZ79: 0
A80: 01014329 | B80: 0108208 | C80: Teleconsulta Médica de Especialidad en Endocrinología Pediátrica | D80: =IFERROR(VLOOKUP($A80,Filtro!$A$4:$AM$2264,2,FALSE),0) -> 324 | E80: =IFERROR(VLOOKUP($A80,Filtro!$A$4:$AM$2264,3,FALSE),0) -> 324 | F80: =IFERROR(VLOOKUP($A80,Filtro!$A$4:$AM$2264,4,FALSE),0) -> 324 | G80: =IFERROR(VLOOKUP($A80,Filtro!$A$4:$AM$2264,5,FALSE),0) -> 0 | H80: =IFERROR(VLOOKUP($A80,Filtro!$A$4:$AM$2264,6,FALSE),0) -> 0 | AB80: =IFERROR(VLOOKUP($A80,Filtro!$A$4:$AM$2264,26,FALSE),0) -> 0 | AC80: =IFERROR(VLOOKUP($A80,Filtro!$A$4:$AM$2264,27,FALSE),0) -> 324 | AD80: =IFERROR(VLOOKUP($A80,Filtro!$A$4:$AM$2264,28,FALSE),0) -> 0 | AE80: =IFERROR(VLOOKUP($A80,Filtro!$A$4:$AM$2264,29,FALSE),0) -> 0 | AF80: =IFERROR(VLOOKUP($A80,Filtro!$A$4:$AM$2264,30,FALSE),0) -> 0 | AG80: =IFERROR(VLOOKUP($A80,Filtro!$A$4:$AM$2264,31,FALSE),0) -> 0 | AH80: =IFERROR(VLOOKUP($A80,Filtro!$A$4:$AM$2264,32,FALSE),0) -> 0 | AI80: =IFERROR(VLOOKUP($A80,Filtro!$A$4:$AM$2264,33,FALSE),0) -> 0 | AJ80: =IFERROR(VLOOKUP($A80,Filtro!$A$4:$AM$2264,34,FALSE),0) -> 0 | AK80: =IFERROR(VLOOKUP($A80,Filtro!$A$4:$AM$2264,35,FALSE),0) -> 0 | CQ80: 0 | CR80: 0 | CS80: 0 | CU80: 0 | CV80: 0 | CW80: 0 | CY80: 0 | CZ80: 0
A81: 01014330 | B81: 0108209 | C81: Teleconsulta Médica de Especialidad en Neurología Adultos | D81: =IFERROR(VLOOKUP($A81,Filtro!$A$4:$AM$2264,2,FALSE),0) -> 222 | E81: =IFERROR(VLOOKUP($A81,Filtro!$A$4:$AM$2264,3,FALSE),0) -> 209 | F81: =IFERROR(VLOOKUP($A81,Filtro!$A$4:$AM$2264,4,FALSE),0) -> 209 | G81: =IFERROR(VLOOKUP($A81,Filtro!$A$4:$AM$2264,5,FALSE),0) -> 0 | H81: =IFERROR(VLOOKUP($A81,Filtro!$A$4:$AM$2264,6,FALSE),0) -> 13 | AB81: =IFERROR(VLOOKUP($A81,Filtro!$A$4:$AM$2264,26,FALSE),0) -> 0 | AC81: =IFERROR(VLOOKUP($A81,Filtro!$A$4:$AM$2264,27,FALSE),0) -> 222 | AD81: =IFERROR(VLOOKUP($A81,Filtro!$A$4:$AM$2264,28,FALSE),0) -> 0 | AE81: =IFERROR(VLOOKUP($A81,Filtro!$A$4:$AM$2264,29,FALSE),0) -> 0 | AF81: =IFERROR(VLOOKUP($A81,Filtro!$A$4:$AM$2264,30,FALSE),0) -> 0 | AG81: =IFERROR(VLOOKUP($A81,Filtro!$A$4:$AM$2264,31,FALSE),0) -> 0 | AH81: =IFERROR(VLOOKUP($A81,Filtro!$A$4:$AM$2264,32,FALSE),0) -> 0 | AI81: =IFERROR(VLOOKUP($A81,Filtro!$A$4:$AM$2264,33,FALSE),0) -> 0 | AJ81: =IFERROR(VLOOKUP($A81,Filtro!$A$4:$AM$2264,34,FALSE),0) -> 0 | AK81: =IFERROR(VLOOKUP($A81,Filtro!$A$4:$AM$2264,35,FALSE),0) -> 0 | CQ81: 0 | CR81: 0 | CS81: 0 | CU81: 0 | CV81: 0 | CW81: 0 | CY81: 0 | CZ81: 0
A82: 01014331 | B82: 0108210 | C82: Teleconsulta Médica de Especialidad en Neurología Pediátrica | D82: =IFERROR(VLOOKUP($A82,Filtro!$A$4:$AM$2264,2,FALSE),0) -> 110 | E82: =IFERROR(VLOOKUP($A82,Filtro!$A$4:$AM$2264,3,FALSE),0) -> 110 | F82: =IFERROR(VLOOKUP($A82,Filtro!$A$4:$AM$2264,4,FALSE),0) -> 110 | G82: =IFERROR(VLOOKUP($A82,Filtro!$A$4:$AM$2264,5,FALSE),0) -> 0 | H82: =IFERROR(VLOOKUP($A82,Filtro!$A$4:$AM$2264,6,FALSE),0) -> 0 | AB82: =IFERROR(VLOOKUP($A82,Filtro!$A$4:$AM$2264,26,FALSE),0) -> 0 | AC82: =IFERROR(VLOOKUP($A82,Filtro!$A$4:$AM$2264,27,FALSE),0) -> 110 | AD82: =IFERROR(VLOOKUP($A82,Filtro!$A$4:$AM$2264,28,FALSE),0) -> 0 | AE82: =IFERROR(VLOOKUP($A82,Filtro!$A$4:$AM$2264,29,FALSE),0) -> 0 | AF82: =IFERROR(VLOOKUP($A82,Filtro!$A$4:$AM$2264,30,FALSE),0) -> 0 | AG82: =IFERROR(VLOOKUP($A82,Filtro!$A$4:$AM$2264,31,FALSE),0) -> 0 | AH82: =IFERROR(VLOOKUP($A82,Filtro!$A$4:$AM$2264,32,FALSE),0) -> 0 | AI82: =IFERROR(VLOOKUP($A82,Filtro!$A$4:$AM$2264,33,FALSE),0) -> 0 | AJ82: =IFERROR(VLOOKUP($A82,Filtro!$A$4:$AM$2264,34,FALSE),0) -> 0 | AK82: =IFERROR(VLOOKUP($A82,Filtro!$A$4:$AM$2264,35,FALSE),0) -> 0 | CQ82: 0 | CR82: 0 | CS82: 0 | CU82: 0 | CV82: 0 | CW82: 0 | CY82: 0 | CZ82: 0
A83: 01014332 | B83: 0108211 | C83: Teleconsulta Médica de Especialidad en Oncología Médica | D83: =IFERROR(VLOOKUP($A83,Filtro!$A$4:$AM$2264,2,FALSE),0) -> 6325 | E83: =IFERROR(VLOOKUP($A83,Filtro!$A$4:$AM$2264,3,FALSE),0) -> 6325 | F83: =IFERROR(VLOOKUP($A83,Filtro!$A$4:$AM$2264,4,FALSE),0) -> 6325 | G83: =IFERROR(VLOOKUP($A83,Filtro!$A$4:$AM$2264,5,FALSE),0) -> 0 | H83: =IFERROR(VLOOKUP($A83,Filtro!$A$4:$AM$2264,6,FALSE),0) -> 0 | AB83: =IFERROR(VLOOKUP($A83,Filtro!$A$4:$AM$2264,26,FALSE),0) -> 0 | AC83: =IFERROR(VLOOKUP($A83,Filtro!$A$4:$AM$2264,27,FALSE),0) -> 6325 | AD83: =IFERROR(VLOOKUP($A83,Filtro!$A$4:$AM$2264,28,FALSE),0) -> 0 | AE83: =IFERROR(VLOOKUP($A83,Filtro!$A$4:$AM$2264,29,FALSE),0) -> 0 | AF83: =IFERROR(VLOOKUP($A83,Filtro!$A$4:$AM$2264,30,FALSE),0) -> 0 | AG83: =IFERROR(VLOOKUP($A83,Filtro!$A$4:$AM$2264,31,FALSE),0) -> 0 | AH83: =IFERROR(VLOOKUP($A83,Filtro!$A$4:$AM$2264,32,FALSE),0) -> 0 | AI83: =IFERROR(VLOOKUP($A83,Filtro!$A$4:$AM$2264,33,FALSE),0) -> 0 | AJ83: =IFERROR(VLOOKUP($A83,Filtro!$A$4:$AM$2264,34,FALSE),0) -> 0 | AK83: =IFERROR(VLOOKUP($A83,Filtro!$A$4:$AM$2264,35,FALSE),0) -> 0 | CQ83: 0 | CR83: 0 | CS83: 0 | CU83: 0 | CV83: 0 | CW83: 0 | CY83: 0 | CZ83: 0
A84: 01014333 | B84: 0108212 | C84: Teleconsulta Médica de Especialidad en Psiquiatría adultos | D84: =IFERROR(VLOOKUP($A84,Filtro!$A$4:$AM$2264,2,FALSE),0) -> 397 | E84: =IFERROR(VLOOKUP($A84,Filtro!$A$4:$AM$2264,3,FALSE),0) -> 397 | F84: =IFERROR(VLOOKUP($A84,Filtro!$A$4:$AM$2264,4,FALSE),0) -> 397 | G84: =IFERROR(VLOOKUP($A84,Filtro!$A$4:$AM$2264,5,FALSE),0) -> 0 | H84: =IFERROR(VLOOKUP($A84,Filtro!$A$4:$AM$2264,6,FALSE),0) -> 0 | AB84: =IFERROR(VLOOKUP($A84,Filtro!$A$4:$AM$2264,26,FALSE),0) -> 0 | AC84: =IFERROR(VLOOKUP($A84,Filtro!$A$4:$AM$2264,27,FALSE),0) -> 398 | AD84: =IFERROR(VLOOKUP($A84,Filtro!$A$4:$AM$2264,28,FALSE),0) -> 0 | AE84: =IFERROR(VLOOKUP($A84,Filtro!$A$4:$AM$2264,29,FALSE),0) -> 0 | AF84: =IFERROR(VLOOKUP($A84,Filtro!$A$4:$AM$2264,30,FALSE),0) -> 0 | AG84: =IFERROR(VLOOKUP($A84,Filtro!$A$4:$AM$2264,31,FALSE),0) -> 0 | AH84: =IFERROR(VLOOKUP($A84,Filtro!$A$4:$AM$2264,32,FALSE),0) -> 0 | AI84: =IFERROR(VLOOKUP($A84,Filtro!$A$4:$AM$2264,33,FALSE),0) -> 0 | AJ84: =IFERROR(VLOOKUP($A84,Filtro!$A$4:$AM$2264,34,FALSE),0) -> 0 | AK84: =IFERROR(VLOOKUP($A84,Filtro!$A$4:$AM$2264,35,FALSE),0) -> 0 | CQ84: 0 | CR84: 0 | CS84: 0 | CU84: 0 | CV84: 0 | CW84: 0 | CY84: 0 | CZ84: 0
A85: 01014334 | B85: 0108213 | C85: Teleconsulta Médica de Especialidad en Psiquiatría pediátrica y de la adolescencia | D85: =IFERROR(VLOOKUP($A85,Filtro!$A$4:$AM$2264,2,FALSE),0) -> 141 | E85: =IFERROR(VLOOKUP($A85,Filtro!$A$4:$AM$2264,3,FALSE),0) -> 141 | F85: =IFERROR(VLOOKUP($A85,Filtro!$A$4:$AM$2264,4,FALSE),0) -> 141 | G85: =IFERROR(VLOOKUP($A85,Filtro!$A$4:$AM$2264,5,FALSE),0) -> 0 | H85: =IFERROR(VLOOKUP($A85,Filtro!$A$4:$AM$2264,6,FALSE),0) -> 0 | AB85: =IFERROR(VLOOKUP($A85,Filtro!$A$4:$AM$2264,26,FALSE),0) -> 0 | AC85: =IFERROR(VLOOKUP($A85,Filtro!$A$4:$AM$2264,27,FALSE),0) -> 106 | AD85: =IFERROR(VLOOKUP($A85,Filtro!$A$4:$AM$2264,28,FALSE),0) -> 0 | AE85: =IFERROR(VLOOKUP($A85,Filtro!$A$4:$AM$2264,29,FALSE),0) -> 0 | AF85: =IFERROR(VLOOKUP($A85,Filtro!$A$4:$AM$2264,30,FALSE),0) -> 0 | AG85: =IFERROR(VLOOKUP($A85,Filtro!$A$4:$AM$2264,31,FALSE),0) -> 0 | AH85: =IFERROR(VLOOKUP($A85,Filtro!$A$4:$AM$2264,32,FALSE),0) -> 0 | AI85: =IFERROR(VLOOKUP($A85,Filtro!$A$4:$AM$2264,33,FALSE),0) -> 0 | AJ85: =IFERROR(VLOOKUP($A85,Filtro!$A$4:$AM$2264,34,FALSE),0) -> 35 | AK85: =IFERROR(VLOOKUP($A85,Filtro!$A$4:$AM$2264,35,FALSE),0) -> 0 | CQ85: 0 | CR85: 0 | CS85: 0 | CU85: 0 | CV85: 0 | CW85: 0 | CY85: 0 | CZ85: 0
A86: 01014335 | B86: 0108301 | C86: Teleconsulta Médica de Especialidad en Cardiología | D86: =IFERROR(VLOOKUP($A86,Filtro!$A$4:$AM$2264,2,FALSE),0) -> 4 | E86: =IFERROR(VLOOKUP($A86,Filtro!$A$4:$AM$2264,3,FALSE),0) -> 4 | F86: =IFERROR(VLOOKUP($A86,Filtro!$A$4:$AM$2264,4,FALSE),0) -> 4 | G86: =IFERROR(VLOOKUP($A86,Filtro!$A$4:$AM$2264,5,FALSE),0) -> 0 | H86: =IFERROR(VLOOKUP($A86,Filtro!$A$4:$AM$2264,6,FALSE),0) -> 0 | AB86: =IFERROR(VLOOKUP($A86,Filtro!$A$4:$AM$2264,26,FALSE),0) -> 0 | AC86: =IFERROR(VLOOKUP($A86,Filtro!$A$4:$AM$2264,27,FALSE),0) -> 4 | AD86: =IFERROR(VLOOKUP($A86,Filtro!$A$4:$AM$2264,28,FALSE),0) -> 0 | AE86: =IFERROR(VLOOKUP($A86,Filtro!$A$4:$AM$2264,29,FALSE),0) -> 0 | AF86: =IFERROR(VLOOKUP($A86,Filtro!$A$4:$AM$2264,30,FALSE),0) -> 0 | AG86: =IFERROR(VLOOKUP($A86,Filtro!$A$4:$AM$2264,31,FALSE),0) -> 0 | AH86: =IFERROR(VLOOKUP($A86,Filtro!$A$4:$AM$2264,32,FALSE),0) -> 0 | AI86: =IFERROR(VLOOKUP($A86,Filtro!$A$4:$AM$2264,33,FALSE),0) -> 0 | AJ86: =IFERROR(VLOOKUP($A86,Filtro!$A$4:$AM$2264,34,FALSE),0) -> 0 | AK86: =IFERROR(VLOOKUP($A86,Filtro!$A$4:$AM$2264,35,FALSE),0) -> 0 | CQ86: 0 | CR86: 0 | CS86: 0 | CU86: 0 | CV86: 0 | CW86: 0 | CY86: 0 | CZ86: 0
A87: 01014336 | B87: 0108302 | C87: Teleconsulta Médica de Especialidad en Hematología | D87: =IFERROR(VLOOKUP($A87,Filtro!$A$4:$AM$2264,2,FALSE),0) -> 201 | E87: =IFERROR(VLOOKUP($A87,Filtro!$A$4:$AM$2264,3,FALSE),0) -> 201 | F87: =IFERROR(VLOOKUP($A87,Filtro!$A$4:$AM$2264,4,FALSE),0) -> 201 | G87: =IFERROR(VLOOKUP($A87,Filtro!$A$4:$AM$2264,5,FALSE),0) -> 0 | H87: =IFERROR(VLOOKUP($A87,Filtro!$A$4:$AM$2264,6,FALSE),0) -> 0 | AB87: =IFERROR(VLOOKUP($A87,Filtro!$A$4:$AM$2264,26,FALSE),0) -> 0 | AC87: =IFERROR(VLOOKUP($A87,Filtro!$A$4:$AM$2264,27,FALSE),0) -> 201 | AD87: =IFERROR(VLOOKUP($A87,Filtro!$A$4:$AM$2264,28,FALSE),0) -> 0 | AE87: =IFERROR(VLOOKUP($A87,Filtro!$A$4:$AM$2264,29,FALSE),0) -> 0 | AF87: =IFERROR(VLOOKUP($A87,Filtro!$A$4:$AM$2264,30,FALSE),0) -> 0 | AG87: =IFERROR(VLOOKUP($A87,Filtro!$A$4:$AM$2264,31,FALSE),0) -> 0 | AH87: =IFERROR(VLOOKUP($A87,Filtro!$A$4:$AM$2264,32,FALSE),0) -> 0 | AI87: =IFERROR(VLOOKUP($A87,Filtro!$A$4:$AM$2264,33,FALSE),0) -> 0 | AJ87: =IFERROR(VLOOKUP($A87,Filtro!$A$4:$AM$2264,34,FALSE),0) -> 0 | AK87: =IFERROR(VLOOKUP($A87,Filtro!$A$4:$AM$2264,35,FALSE),0) -> 0 | CQ87: 0 | CR87: 0 | CS87: 0 | CU87: 0 | CV87: 0 | CW87: 0 | CY87: 0 | CZ87: 0
A88: 01014337 | B88: 0108303 | C88: Teleconsulta Médica de Especialidad en Infectología | D88: =IFERROR(VLOOKUP($A88,Filtro!$A$4:$AM$2264,2,FALSE),0) -> 35 | E88: =IFERROR(VLOOKUP($A88,Filtro!$A$4:$AM$2264,3,FALSE),0) -> 35 | F88: =IFERROR(VLOOKUP($A88,Filtro!$A$4:$AM$2264,4,FALSE),0) -> 35 | G88: =IFERROR(VLOOKUP($A88,Filtro!$A$4:$AM$2264,5,FALSE),0) -> 0 | H88: =IFERROR(VLOOKUP($A88,Filtro!$A$4:$AM$2264,6,FALSE),0) -> 0 | AB88: =IFERROR(VLOOKUP($A88,Filtro!$A$4:$AM$2264,26,FALSE),0) -> 0 | AC88: =IFERROR(VLOOKUP($A88,Filtro!$A$4:$AM$2264,27,FALSE),0) -> 35 | AD88: =IFERROR(VLOOKUP($A88,Filtro!$A$4:$AM$2264,28,FALSE),0) -> 0 | AE88: =IFERROR(VLOOKUP($A88,Filtro!$A$4:$AM$2264,29,FALSE),0) -> 0 | AF88: =IFERROR(VLOOKUP($A88,Filtro!$A$4:$AM$2264,30,FALSE),0) -> 0 | AG88: =IFERROR(VLOOKUP($A88,Filtro!$A$4:$AM$2264,31,FALSE),0) -> 0 | AH88: =IFERROR(VLOOKUP($A88,Filtro!$A$4:$AM$2264,32,FALSE),0) -> 0 | AI88: =IFERROR(VLOOKUP($A88,Filtro!$A$4:$AM$2264,33,FALSE),0) -> 0 | AJ88: =IFERROR(VLOOKUP($A88,Filtro!$A$4:$AM$2264,34,FALSE),0) -> 0 | AK88: =IFERROR(VLOOKUP($A88,Filtro!$A$4:$AM$2264,35,FALSE),0) -> 0 | CQ88: 0 | CR88: 0 | CS88: 0 | CU88: 0 | CV88: 0 | CW88: 0 | CY88: 0 | CZ88: 0
A89: 01014338 | B89: 0108304 | C89: Teleconsulta Médica de Especialidad en Inmunología | D89: =IFERROR(VLOOKUP($A89,Filtro!$A$4:$AM$2264,2,FALSE),0) -> 442 | E89: =IFERROR(VLOOKUP($A89,Filtro!$A$4:$AM$2264,3,FALSE),0) -> 430 | F89: =IFERROR(VLOOKUP($A89,Filtro!$A$4:$AM$2264,4,FALSE),0) -> 430 | G89: =IFERROR(VLOOKUP($A89,Filtro!$A$4:$AM$2264,5,FALSE),0) -> 0 | H89: =IFERROR(VLOOKUP($A89,Filtro!$A$4:$AM$2264,6,FALSE),0) -> 12 | AB89: =IFERROR(VLOOKUP($A89,Filtro!$A$4:$AM$2264,26,FALSE),0) -> 0 | AC89: =IFERROR(VLOOKUP($A89,Filtro!$A$4:$AM$2264,27,FALSE),0) -> 442 | AD89: =IFERROR(VLOOKUP($A89,Filtro!$A$4:$AM$2264,28,FALSE),0) -> 0 | AE89: =IFERROR(VLOOKUP($A89,Filtro!$A$4:$AM$2264,29,FALSE),0) -> 0 | AF89: =IFERROR(VLOOKUP($A89,Filtro!$A$4:$AM$2264,30,FALSE),0) -> 0 | AG89: =IFERROR(VLOOKUP($A89,Filtro!$A$4:$AM$2264,31,FALSE),0) -> 0 | AH89: =IFERROR(VLOOKUP($A89,Filtro!$A$4:$AM$2264,32,FALSE),0) -> 0 | AI89: =IFERROR(VLOOKUP($A89,Filtro!$A$4:$AM$2264,33,FALSE),0) -> 0 | AJ89: =IFERROR(VLOOKUP($A89,Filtro!$A$4:$AM$2264,34,FALSE),0) -> 0 | AK89: =IFERROR(VLOOKUP($A89,Filtro!$A$4:$AM$2264,35,FALSE),0) -> 0 | CQ89: 0 | CR89: 0 | CS89: 0 | CU89: 0 | CV89: 0 | CW89: 0 | CY89: 0 | CZ89: 0
A90: 01014339 | B90: 0108305 | C90: Teleconsulta Médica de Especialidad en Medicina Familiar | D90: =IFERROR(VLOOKUP($A90,Filtro!$A$4:$AM$2264,2,FALSE),0) -> 1 | E90: =IFERROR(VLOOKUP($A90,Filtro!$A$4:$AM$2264,3,FALSE),0) -> 1 | F90: =IFERROR(VLOOKUP($A90,Filtro!$A$4:$AM$2264,4,FALSE),0) -> 1 | G90: =IFERROR(VLOOKUP($A90,Filtro!$A$4:$AM$2264,5,FALSE),0) -> 0 | H90: =IFERROR(VLOOKUP($A90,Filtro!$A$4:$AM$2264,6,FALSE),0) -> 0 | AB90: =IFERROR(VLOOKUP($A90,Filtro!$A$4:$AM$2264,26,FALSE),0) -> 0 | AC90: =IFERROR(VLOOKUP($A90,Filtro!$A$4:$AM$2264,27,FALSE),0) -> 1 | AD90: =IFERROR(VLOOKUP($A90,Filtro!$A$4:$AM$2264,28,FALSE),0) -> 0 | AE90: =IFERROR(VLOOKUP($A90,Filtro!$A$4:$AM$2264,29,FALSE),0) -> 0 | AF90: =IFERROR(VLOOKUP($A90,Filtro!$A$4:$AM$2264,30,FALSE),0) -> 0 | AG90: =IFERROR(VLOOKUP($A90,Filtro!$A$4:$AM$2264,31,FALSE),0) -> 0 | AH90: =IFERROR(VLOOKUP($A90,Filtro!$A$4:$AM$2264,32,FALSE),0) -> 0 | AI90: =IFERROR(VLOOKUP($A90,Filtro!$A$4:$AM$2264,33,FALSE),0) -> 0 | AJ90: =IFERROR(VLOOKUP($A90,Filtro!$A$4:$AM$2264,34,FALSE),0) -> 0 | AK90: =IFERROR(VLOOKUP($A90,Filtro!$A$4:$AM$2264,35,FALSE),0) -> 0 | CQ90: 0 | CR90: 0 | CS90: 0 | CU90: 0 | CV90: 0 | CW90: 0 | CY90: 0 | CZ90: 0
A91: 01014340 | B91: 0108306 | C91: Teleconsulta Médica de Especialidad en Medicina Física y Rehabilitación | D91: =IFERROR(VLOOKUP($A91,Filtro!$A$4:$AM$2264,2,FALSE),0) -> 337 | E91: =IFERROR(VLOOKUP($A91,Filtro!$A$4:$AM$2264,3,FALSE),0) -> 336 | F91: =IFERROR(VLOOKUP($A91,Filtro!$A$4:$AM$2264,4,FALSE),0) -> 336 | G91: =IFERROR(VLOOKUP($A91,Filtro!$A$4:$AM$2264,5,FALSE),0) -> 0 | H91: =IFERROR(VLOOKUP($A91,Filtro!$A$4:$AM$2264,6,FALSE),0) -> 1 | AB91: =IFERROR(VLOOKUP($A91,Filtro!$A$4:$AM$2264,26,FALSE),0) -> 0 | AC91: =IFERROR(VLOOKUP($A91,Filtro!$A$4:$AM$2264,27,FALSE),0) -> 337 | AD91: =IFERROR(VLOOKUP($A91,Filtro!$A$4:$AM$2264,28,FALSE),0) -> 0 | AE91: =IFERROR(VLOOKUP($A91,Filtro!$A$4:$AM$2264,29,FALSE),0) -> 0 | AF91: =IFERROR(VLOOKUP($A91,Filtro!$A$4:$AM$2264,30,FALSE),0) -> 0 | AG91: =IFERROR(VLOOKUP($A91,Filtro!$A$4:$AM$2264,31,FALSE),0) -> 0 | AH91: =IFERROR(VLOOKUP($A91,Filtro!$A$4:$AM$2264,32,FALSE),0) -> 0 | AI91: =IFERROR(VLOOKUP($A91,Filtro!$A$4:$AM$2264,33,FALSE),0) -> 0 | AJ91: =IFERROR(VLOOKUP($A91,Filtro!$A$4:$AM$2264,34,FALSE),0) -> 0 | AK91: =IFERROR(VLOOKUP($A91,Filtro!$A$4:$AM$2264,35,FALSE),0) -> 0 | CQ91: 0 | CR91: 0 | CS91: 0 | CU91: 0 | CV91: 0 | CW91: 0 | CY91: 0 | CZ91: 0
A92: 01014341 | B92: 0108307 | C92: Teleconsulta Médica de Especialidad en Medicina Interna | D92: =IFERROR(VLOOKUP($A92,Filtro!$A$4:$AM$2264,2,FALSE),0) -> 2290 | E92: =IFERROR(VLOOKUP($A92,Filtro!$A$4:$AM$2264,3,FALSE),0) -> 2194 | F92: =IFERROR(VLOOKUP($A92,Filtro!$A$4:$AM$2264,4,FALSE),0) -> 2194 | G92: =IFERROR(VLOOKUP($A92,Filtro!$A$4:$AM$2264,5,FALSE),0) -> 0 | H92: =IFERROR(VLOOKUP($A92,Filtro!$A$4:$AM$2264,6,FALSE),0) -> 96 | AB92: =IFERROR(VLOOKUP($A92,Filtro!$A$4:$AM$2264,26,FALSE),0) -> 0 | AC92: =IFERROR(VLOOKUP($A92,Filtro!$A$4:$AM$2264,27,FALSE),0) -> 2290 | AD92: =IFERROR(VLOOKUP($A92,Filtro!$A$4:$AM$2264,28,FALSE),0) -> 0 | AE92: =IFERROR(VLOOKUP($A92,Filtro!$A$4:$AM$2264,29,FALSE),0) -> 1 | AF92: =IFERROR(VLOOKUP($A92,Filtro!$A$4:$AM$2264,30,FALSE),0) -> 0 | AG92: =IFERROR(VLOOKUP($A92,Filtro!$A$4:$AM$2264,31,FALSE),0) -> 0 | AH92: =IFERROR(VLOOKUP($A92,Filtro!$A$4:$AM$2264,32,FALSE),0) -> 0 | AI92: =IFERROR(VLOOKUP($A92,Filtro!$A$4:$AM$2264,33,FALSE),0) -> 0 | AJ92: =IFERROR(VLOOKUP($A92,Filtro!$A$4:$AM$2264,34,FALSE),0) -> 0 | AK92: =IFERROR(VLOOKUP($A92,Filtro!$A$4:$AM$2264,35,FALSE),0) -> 0 | CQ92: 0 | CR92: 0 | CS92: 0 | CU92: 0 | CV92: 0 | CW92: 0 | CY92: 0 | CZ92: 0
A93: 01014342 | B93: 0108308 | C93: Teleconsulta Médica de Especialidad en Obstetricia y Ginecología | D93: =IFERROR(VLOOKUP($A93,Filtro!$A$4:$AM$2264,2,FALSE),0) -> 111 | E93: =IFERROR(VLOOKUP($A93,Filtro!$A$4:$AM$2264,3,FALSE),0) -> 111 | F93: =IFERROR(VLOOKUP($A93,Filtro!$A$4:$AM$2264,4,FALSE),0) -> 111 | G93: =IFERROR(VLOOKUP($A93,Filtro!$A$4:$AM$2264,5,FALSE),0) -> 0 | H93: =IFERROR(VLOOKUP($A93,Filtro!$A$4:$AM$2264,6,FALSE),0) -> 0 | AB93: =IFERROR(VLOOKUP($A93,Filtro!$A$4:$AM$2264,26,FALSE),0) -> 0 | AC93: =IFERROR(VLOOKUP($A93,Filtro!$A$4:$AM$2264,27,FALSE),0) -> 111 | AD93: =IFERROR(VLOOKUP($A93,Filtro!$A$4:$AM$2264,28,FALSE),0) -> 0 | AE93: =IFERROR(VLOOKUP($A93,Filtro!$A$4:$AM$2264,29,FALSE),0) -> 0 | AF93: =IFERROR(VLOOKUP($A93,Filtro!$A$4:$AM$2264,30,FALSE),0) -> 0 | AG93: =IFERROR(VLOOKUP($A93,Filtro!$A$4:$AM$2264,31,FALSE),0) -> 0 | AH93: =IFERROR(VLOOKUP($A93,Filtro!$A$4:$AM$2264,32,FALSE),0) -> 0 | AI93: =IFERROR(VLOOKUP($A93,Filtro!$A$4:$AM$2264,33,FALSE),0) -> 0 | AJ93: =IFERROR(VLOOKUP($A93,Filtro!$A$4:$AM$2264,34,FALSE),0) -> 0 | AK93: =IFERROR(VLOOKUP($A93,Filtro!$A$4:$AM$2264,35,FALSE),0) -> 0 | CQ93: 0 | CR93: 0 | CS93: 0 | CU93: 0 | CV93: 0 | CW93: 0 | CY93: 0 | CZ93: 0
A94: 01014343 | B94: 0108309 | C94: Teleconsulta Médica de Especialidad en Pediatría | D94: =IFERROR(VLOOKUP($A94,Filtro!$A$4:$AM$2264,2,FALSE),0) -> 277 | E94: =IFERROR(VLOOKUP($A94,Filtro!$A$4:$AM$2264,3,FALSE),0) -> 277 | F94: =IFERROR(VLOOKUP($A94,Filtro!$A$4:$AM$2264,4,FALSE),0) -> 277 | G94: =IFERROR(VLOOKUP($A94,Filtro!$A$4:$AM$2264,5,FALSE),0) -> 0 | H94: =IFERROR(VLOOKUP($A94,Filtro!$A$4:$AM$2264,6,FALSE),0) -> 0 | AB94: =IFERROR(VLOOKUP($A94,Filtro!$A$4:$AM$2264,26,FALSE),0) -> 0 | AC94: =IFERROR(VLOOKUP($A94,Filtro!$A$4:$AM$2264,27,FALSE),0) -> 277 | AD94: =IFERROR(VLOOKUP($A94,Filtro!$A$4:$AM$2264,28,FALSE),0) -> 0 | AE94: =IFERROR(VLOOKUP($A94,Filtro!$A$4:$AM$2264,29,FALSE),0) -> 0 | AF94: =IFERROR(VLOOKUP($A94,Filtro!$A$4:$AM$2264,30,FALSE),0) -> 0 | AG94: =IFERROR(VLOOKUP($A94,Filtro!$A$4:$AM$2264,31,FALSE),0) -> 0 | AH94: =IFERROR(VLOOKUP($A94,Filtro!$A$4:$AM$2264,32,FALSE),0) -> 0 | AI94: =IFERROR(VLOOKUP($A94,Filtro!$A$4:$AM$2264,33,FALSE),0) -> 0 | AJ94: =IFERROR(VLOOKUP($A94,Filtro!$A$4:$AM$2264,34,FALSE),0) -> 0 | AK94: =IFERROR(VLOOKUP($A94,Filtro!$A$4:$AM$2264,35,FALSE),0) -> 0 | CQ94: 0 | CR94: 0 | CS94: 0 | CU94: 0 | CV94: 0 | CW94: 0 | CY94: 0 | CZ94: 0
A95: 01014344 | B95: 0108310 | C95: Teleconsulta Médica de Especialidad en Traumatología y Ortopedia | D95: =IFERROR(VLOOKUP($A95,Filtro!$A$4:$AM$2264,2,FALSE),0) -> 7 | E95: =IFERROR(VLOOKUP($A95,Filtro!$A$4:$AM$2264,3,FALSE),0) -> 7 | F95: =IFERROR(VLOOKUP($A95,Filtro!$A$4:$AM$2264,4,FALSE),0) -> 7 | G95: =IFERROR(VLOOKUP($A95,Filtro!$A$4:$AM$2264,5,FALSE),0) -> 0 | H95: =IFERROR(VLOOKUP($A95,Filtro!$A$4:$AM$2264,6,FALSE),0) -> 0 | AB95: =IFERROR(VLOOKUP($A95,Filtro!$A$4:$AM$2264,26,FALSE),0) -> 0 | AC95: =IFERROR(VLOOKUP($A95,Filtro!$A$4:$AM$2264,27,FALSE),0) -> 7 | AD95: =IFERROR(VLOOKUP($A95,Filtro!$A$4:$AM$2264,28,FALSE),0) -> 0 | AE95: =IFERROR(VLOOKUP($A95,Filtro!$A$4:$AM$2264,29,FALSE),0) -> 0 | AF95: =IFERROR(VLOOKUP($A95,Filtro!$A$4:$AM$2264,30,FALSE),0) -> 0 | AG95: =IFERROR(VLOOKUP($A95,Filtro!$A$4:$AM$2264,31,FALSE),0) -> 0 | AH95: =IFERROR(VLOOKUP($A95,Filtro!$A$4:$AM$2264,32,FALSE),0) -> 0 | AI95: =IFERROR(VLOOKUP($A95,Filtro!$A$4:$AM$2264,33,FALSE),0) -> 0 | AJ95: =IFERROR(VLOOKUP($A95,Filtro!$A$4:$AM$2264,34,FALSE),0) -> 0 | AK95: =IFERROR(VLOOKUP($A95,Filtro!$A$4:$AM$2264,35,FALSE),0) -> 0 | CQ95: 0 | CR95: 0 | CS95: 0 | CU95: 0 | CV95: 0 | CW95: 0 | CY95: 0 | CZ95: 0
A96: 01014345 | B96: 0108311 | C96: Teleconsulta Médica de Especialidad en Urología | D96: =IFERROR(VLOOKUP($A96,Filtro!$A$4:$AM$2264,2,FALSE),0) -> 4 | E96: =IFERROR(VLOOKUP($A96,Filtro!$A$4:$AM$2264,3,FALSE),0) -> 4 | F96: =IFERROR(VLOOKUP($A96,Filtro!$A$4:$AM$2264,4,FALSE),0) -> 4 | G96: =IFERROR(VLOOKUP($A96,Filtro!$A$4:$AM$2264,5,FALSE),0) -> 0 | H96: =IFERROR(VLOOKUP($A96,Filtro!$A$4:$AM$2264,6,FALSE),0) -> 0 | AB96: =IFERROR(VLOOKUP($A96,Filtro!$A$4:$AM$2264,26,FALSE),0) -> 0 | AC96: =IFERROR(VLOOKUP($A96,Filtro!$A$4:$AM$2264,27,FALSE),0) -> 4 | AD96: =IFERROR(VLOOKUP($A96,Filtro!$A$4:$AM$2264,28,FALSE),0) -> 0 | AE96: =IFERROR(VLOOKUP($A96,Filtro!$A$4:$AM$2264,29,FALSE),0) -> 0 | AF96: =IFERROR(VLOOKUP($A96,Filtro!$A$4:$AM$2264,30,FALSE),0) -> 0 | AG96: =IFERROR(VLOOKUP($A96,Filtro!$A$4:$AM$2264,31,FALSE),0) -> 0 | AH96: =IFERROR(VLOOKUP($A96,Filtro!$A$4:$AM$2264,32,FALSE),0) -> 0 | AI96: =IFERROR(VLOOKUP($A96,Filtro!$A$4:$AM$2264,33,FALSE),0) -> 0 | AJ96: =IFERROR(VLOOKUP($A96,Filtro!$A$4:$AM$2264,34,FALSE),0) -> 0 | AK96: =IFERROR(VLOOKUP($A96,Filtro!$A$4:$AM$2264,35,FALSE),0) -> 0 | CQ96: 0 | CR96: 0 | CS96: 0 | CU96: 0 | CV96: 0 | CW96: 0 | CY96: 0 | CZ96: 0
A97: 01014346 | B97: 0108319 | C97: Teleconsulta Médica de Especialidad en Coloproctología | D97: =IFERROR(VLOOKUP($A97,Filtro!$A$4:$AM$2264,2,FALSE),0) -> 50 | E97: =IFERROR(VLOOKUP($A97,Filtro!$A$4:$AM$2264,3,FALSE),0) -> 50 | F97: =IFERROR(VLOOKUP($A97,Filtro!$A$4:$AM$2264,4,FALSE),0) -> 50 | G97: =IFERROR(VLOOKUP($A97,Filtro!$A$4:$AM$2264,5,FALSE),0) -> 0 | H97: =IFERROR(VLOOKUP($A97,Filtro!$A$4:$AM$2264,6,FALSE),0) -> 0 | AB97: =IFERROR(VLOOKUP($A97,Filtro!$A$4:$AM$2264,26,FALSE),0) -> 0 | AC97: =IFERROR(VLOOKUP($A97,Filtro!$A$4:$AM$2264,27,FALSE),0) -> 50 | AD97: =IFERROR(VLOOKUP($A97,Filtro!$A$4:$AM$2264,28,FALSE),0) -> 0 | AE97: =IFERROR(VLOOKUP($A97,Filtro!$A$4:$AM$2264,29,FALSE),0) -> 0 | AF97: =IFERROR(VLOOKUP($A97,Filtro!$A$4:$AM$2264,30,FALSE),0) -> 0 | AG97: =IFERROR(VLOOKUP($A97,Filtro!$A$4:$AM$2264,31,FALSE),0) -> 0 | AH97: =IFERROR(VLOOKUP($A97,Filtro!$A$4:$AM$2264,32,FALSE),0) -> 0 | AI97: =IFERROR(VLOOKUP($A97,Filtro!$A$4:$AM$2264,33,FALSE),0) -> 0 | AJ97: =IFERROR(VLOOKUP($A97,Filtro!$A$4:$AM$2264,34,FALSE),0) -> 0 | AK97: =IFERROR(VLOOKUP($A97,Filtro!$A$4:$AM$2264,35,FALSE),0) -> 0 | CQ97: 0 | CR97: 0 | CS97: 0 | CU97: 0 | CV97: 0 | CW97: 0 | CY97: 0 | CZ97: 0
A98: 01014347 | B98: 0108320 | C98: Teleconsulta Médica de Especialidad en Diabetología | D98: =IFERROR(VLOOKUP($A98,Filtro!$A$4:$AM$2264,2,FALSE),0) -> 21 | E98: =IFERROR(VLOOKUP($A98,Filtro!$A$4:$AM$2264,3,FALSE),0) -> 21 | F98: =IFERROR(VLOOKUP($A98,Filtro!$A$4:$AM$2264,4,FALSE),0) -> 21 | G98: =IFERROR(VLOOKUP($A98,Filtro!$A$4:$AM$2264,5,FALSE),0) -> 0 | H98: =IFERROR(VLOOKUP($A98,Filtro!$A$4:$AM$2264,6,FALSE),0) -> 0 | AB98: =IFERROR(VLOOKUP($A98,Filtro!$A$4:$AM$2264,26,FALSE),0) -> 0 | AC98: =IFERROR(VLOOKUP($A98,Filtro!$A$4:$AM$2264,27,FALSE),0) -> 21 | AD98: =IFERROR(VLOOKUP($A98,Filtro!$A$4:$AM$2264,28,FALSE),0) -> 0 | AE98: =IFERROR(VLOOKUP($A98,Filtro!$A$4:$AM$2264,29,FALSE),0) -> 0 | AF98: =IFERROR(VLOOKUP($A98,Filtro!$A$4:$AM$2264,30,FALSE),0) -> 0 | AG98: =IFERROR(VLOOKUP($A98,Filtro!$A$4:$AM$2264,31,FALSE),0) -> 0 | AH98: =IFERROR(VLOOKUP($A98,Filtro!$A$4:$AM$2264,32,FALSE),0) -> 0 | AI98: =IFERROR(VLOOKUP($A98,Filtro!$A$4:$AM$2264,33,FALSE),0) -> 0 | AJ98: =IFERROR(VLOOKUP($A98,Filtro!$A$4:$AM$2264,34,FALSE),0) -> 0 | AK98: =IFERROR(VLOOKUP($A98,Filtro!$A$4:$AM$2264,35,FALSE),0) -> 0 | CQ98: 0 | CR98: 0 | CS98: 0 | CU98: 0 | CV98: 0 | CW98: 0 | CY98: 0 | CZ98: 0
A99: 01014348 | B99: 0108321 | C99: Teleconsulta Médica de Especialidad en Enfermedades Respiratorias Adulto | D99: =IFERROR(VLOOKUP($A99,Filtro!$A$4:$AM$2264,2,FALSE),0) -> 50 | E99: =IFERROR(VLOOKUP($A99,Filtro!$A$4:$AM$2264,3,FALSE),0) -> 50 | F99: =IFERROR(VLOOKUP($A99,Filtro!$A$4:$AM$2264,4,FALSE),0) -> 50 | G99: =IFERROR(VLOOKUP($A99,Filtro!$A$4:$AM$2264,5,FALSE),0) -> 0 | H99: =IFERROR(VLOOKUP($A99,Filtro!$A$4:$AM$2264,6,FALSE),0) -> 0 | AB99: =IFERROR(VLOOKUP($A99,Filtro!$A$4:$AM$2264,26,FALSE),0) -> 0 | AC99: =IFERROR(VLOOKUP($A99,Filtro!$A$4:$AM$2264,27,FALSE),0) -> 50 | AD99: =IFERROR(VLOOKUP($A99,Filtro!$A$4:$AM$2264,28,FALSE),0) -> 0 | AE99: =IFERROR(VLOOKUP($A99,Filtro!$A$4:$AM$2264,29,FALSE),0) -> 0 | AF99: =IFERROR(VLOOKUP($A99,Filtro!$A$4:$AM$2264,30,FALSE),0) -> 0 | AG99: =IFERROR(VLOOKUP($A99,Filtro!$A$4:$AM$2264,31,FALSE),0) -> 0 | AH99: =IFERROR(VLOOKUP($A99,Filtro!$A$4:$AM$2264,32,FALSE),0) -> 0 | AI99: =IFERROR(VLOOKUP($A99,Filtro!$A$4:$AM$2264,33,FALSE),0) -> 0 | AJ99: =IFERROR(VLOOKUP($A99,Filtro!$A$4:$AM$2264,34,FALSE),0) -> 0 | AK99: =IFERROR(VLOOKUP($A99,Filtro!$A$4:$AM$2264,35,FALSE),0) -> 0 | CQ99: 0 | CR99: 0 | CS99: 0 | CU99: 0 | CV99: 0 | CW99: 0 | CY99: 0 | CZ99: 0
A100: 01014349 | B100: 0108322 | C100: Teleconsulta Médica de Especialidad en Enfermedades Respiratorias Pediátricas | D100: =IFERROR(VLOOKUP($A100,Filtro!$A$4:$AM$2264,2,FALSE),0) -> 259 | E100: =IFERROR(VLOOKUP($A100,Filtro!$A$4:$AM$2264,3,FALSE),0) -> 259 | F100: =IFERROR(VLOOKUP($A100,Filtro!$A$4:$AM$2264,4,FALSE),0) -> 259 | G100: =IFERROR(VLOOKUP($A100,Filtro!$A$4:$AM$2264,5,FALSE),0) -> 0 | H100: =IFERROR(VLOOKUP($A100,Filtro!$A$4:$AM$2264,6,FALSE),0) -> 0 | AB100: =IFERROR(VLOOKUP($A100,Filtro!$A$4:$AM$2264,26,FALSE),0) -> 0 | AC100: =IFERROR(VLOOKUP($A100,Filtro!$A$4:$AM$2264,27,FALSE),0) -> 259 | AD100: =IFERROR(VLOOKUP($A100,Filtro!$A$4:$AM$2264,28,FALSE),0) -> 0 | AE100: =IFERROR(VLOOKUP($A100,Filtro!$A$4:$AM$2264,29,FALSE),0) -> 0 | AF100: =IFERROR(VLOOKUP($A100,Filtro!$A$4:$AM$2264,30,FALSE),0) -> 0 | AG100: =IFERROR(VLOOKUP($A100,Filtro!$A$4:$AM$2264,31,FALSE),0) -> 0 | AH100: =IFERROR(VLOOKUP($A100,Filtro!$A$4:$AM$2264,32,FALSE),0) -> 0 | AI100: =IFERROR(VLOOKUP($A100,Filtro!$A$4:$AM$2264,33,FALSE),0) -> 0 | AJ100: =IFERROR(VLOOKUP($A100,Filtro!$A$4:$AM$2264,34,FALSE),0) -> 0 | AK100: =IFERROR(VLOOKUP($A100,Filtro!$A$4:$AM$2264,35,FALSE),0) -> 0 | CQ100: 0 | CR100: 0 | CS100: 0 | CU100: 0 | CV100: 0 | CW100: 0 | CY100: 0 | CZ100: 0
A101: 01014350 | B101: 0108323 | C101: Teleconsulta Médica de Especialidad en Gastroenterología Adulto | D101: =IFERROR(VLOOKUP($A101,Filtro!$A$4:$AM$2264,2,FALSE),0) -> 43 | E101: =IFERROR(VLOOKUP($A101,Filtro!$A$4:$AM$2264,3,FALSE),0) -> 43 | F101: =IFERROR(VLOOKUP($A101,Filtro!$A$4:$AM$2264,4,FALSE),0) -> 43 | G101: =IFERROR(VLOOKUP($A101,Filtro!$A$4:$AM$2264,5,FALSE),0) -> 0 | H101: =IFERROR(VLOOKUP($A101,Filtro!$A$4:$AM$2264,6,FALSE),0) -> 0 | AB101: =IFERROR(VLOOKUP($A101,Filtro!$A$4:$AM$2264,26,FALSE),0) -> 0 | AC101: =IFERROR(VLOOKUP($A101,Filtro!$A$4:$AM$2264,27,FALSE),0) -> 43 | AD101: =IFERROR(VLOOKUP($A101,Filtro!$A$4:$AM$2264,28,FALSE),0) -> 0 | AE101: =IFERROR(VLOOKUP($A101,Filtro!$A$4:$AM$2264,29,FALSE),0) -> 0 | AF101: =IFERROR(VLOOKUP($A101,Filtro!$A$4:$AM$2264,30,FALSE),0) -> 0 | AG101: =IFERROR(VLOOKUP($A101,Filtro!$A$4:$AM$2264,31,FALSE),0) -> 0 | AH101: =IFERROR(VLOOKUP($A101,Filtro!$A$4:$AM$2264,32,FALSE),0) -> 0 | AI101: =IFERROR(VLOOKUP($A101,Filtro!$A$4:$AM$2264,33,FALSE),0) -> 0 | AJ101: =IFERROR(VLOOKUP($A101,Filtro!$A$4:$AM$2264,34,FALSE),0) -> 0 | AK101: =IFERROR(VLOOKUP($A101,Filtro!$A$4:$AM$2264,35,FALSE),0) -> 0 | CQ101: 0 | CR101: 0 | CS101: 0 | CU101: 0 | CV101: 0 | CW101: 0 | CY101: 0 | CZ101: 0
A102: 01014351 | B102: 0108324 | C102: Teleconsulta Médica de Especialidad en Gastroenterología Pediátrico | D102: =IFERROR(VLOOKUP($A102,Filtro!$A$4:$AM$2264,2,FALSE),0) -> 148 | E102: =IFERROR(VLOOKUP($A102,Filtro!$A$4:$AM$2264,3,FALSE),0) -> 148 | F102: =IFERROR(VLOOKUP($A102,Filtro!$A$4:$AM$2264,4,FALSE),0) -> 148 | G102: =IFERROR(VLOOKUP($A102,Filtro!$A$4:$AM$2264,5,FALSE),0) -> 0 | H102: =IFERROR(VLOOKUP($A102,Filtro!$A$4:$AM$2264,6,FALSE),0) -> 0 | AB102: =IFERROR(VLOOKUP($A102,Filtro!$A$4:$AM$2264,26,FALSE),0) -> 0 | AC102: =IFERROR(VLOOKUP($A102,Filtro!$A$4:$AM$2264,27,FALSE),0) -> 148 | AD102: =IFERROR(VLOOKUP($A102,Filtro!$A$4:$AM$2264,28,FALSE),0) -> 0 | AE102: =IFERROR(VLOOKUP($A102,Filtro!$A$4:$AM$2264,29,FALSE),0) -> 0 | AF102: =IFERROR(VLOOKUP($A102,Filtro!$A$4:$AM$2264,30,FALSE),0) -> 0 | AG102: =IFERROR(VLOOKUP($A102,Filtro!$A$4:$AM$2264,31,FALSE),0) -> 0 | AH102: =IFERROR(VLOOKUP($A102,Filtro!$A$4:$AM$2264,32,FALSE),0) -> 0 | AI102: =IFERROR(VLOOKUP($A102,Filtro!$A$4:$AM$2264,33,FALSE),0) -> 0 | AJ102: =IFERROR(VLOOKUP($A102,Filtro!$A$4:$AM$2264,34,FALSE),0) -> 0 | AK102: =IFERROR(VLOOKUP($A102,Filtro!$A$4:$AM$2264,35,FALSE),0) -> 0 | CQ102: 0 | CR102: 0 | CS102: 0 | CU102: 0 | CV102: 0 | CW102: 0 | CY102: 0 | CZ102: 0
A103: 01014352 | B103: 0108325 | C103: Teleconsulta Médica de Especialidad en Genética Clínica | D103: =IFERROR(VLOOKUP($A103,Filtro!$A$4:$AM$2264,2,FALSE),0) -> 36 | E103: =IFERROR(VLOOKUP($A103,Filtro!$A$4:$AM$2264,3,FALSE),0) -> 36 | F103: =IFERROR(VLOOKUP($A103,Filtro!$A$4:$AM$2264,4,FALSE),0) -> 36 | G103: =IFERROR(VLOOKUP($A103,Filtro!$A$4:$AM$2264,5,FALSE),0) -> 0 | H103: =IFERROR(VLOOKUP($A103,Filtro!$A$4:$AM$2264,6,FALSE),0) -> 0 | AB103: =IFERROR(VLOOKUP($A103,Filtro!$A$4:$AM$2264,26,FALSE),0) -> 0 | AC103: =IFERROR(VLOOKUP($A103,Filtro!$A$4:$AM$2264,27,FALSE),0) -> 36 | AD103: =IFERROR(VLOOKUP($A103,Filtro!$A$4:$AM$2264,28,FALSE),0) -> 0 | AE103: =IFERROR(VLOOKUP($A103,Filtro!$A$4:$AM$2264,29,FALSE),0) -> 0 | AF103: =IFERROR(VLOOKUP($A103,Filtro!$A$4:$AM$2264,30,FALSE),0) -> 0 | AG103: =IFERROR(VLOOKUP($A103,Filtro!$A$4:$AM$2264,31,FALSE),0) -> 0 | AH103: =IFERROR(VLOOKUP($A103,Filtro!$A$4:$AM$2264,32,FALSE),0) -> 0 | AI103: =IFERROR(VLOOKUP($A103,Filtro!$A$4:$AM$2264,33,FALSE),0) -> 0 | AJ103: =IFERROR(VLOOKUP($A103,Filtro!$A$4:$AM$2264,34,FALSE),0) -> 0 | AK103: =IFERROR(VLOOKUP($A103,Filtro!$A$4:$AM$2264,35,FALSE),0) -> 0 | CQ103: 0 | CR103: 0 | CS103: 0 | CU103: 0 | CV103: 0 | CW103: 0 | CY103: 0 | CZ103: 0
A104: 01014353 | B104: 0108326 | C104: Teleconsulta Médica de Especialidad en Nefrología Adulto | D104: =IFERROR(VLOOKUP($A104,Filtro!$A$4:$AM$2264,2,FALSE),0) -> 87 | E104: =IFERROR(VLOOKUP($A104,Filtro!$A$4:$AM$2264,3,FALSE),0) -> 87 | F104: =IFERROR(VLOOKUP($A104,Filtro!$A$4:$AM$2264,4,FALSE),0) -> 87 | G104: =IFERROR(VLOOKUP($A104,Filtro!$A$4:$AM$2264,5,FALSE),0) -> 0 | H104: =IFERROR(VLOOKUP($A104,Filtro!$A$4:$AM$2264,6,FALSE),0) -> 0 | AB104: =IFERROR(VLOOKUP($A104,Filtro!$A$4:$AM$2264,26,FALSE),0) -> 0 | AC104: =IFERROR(VLOOKUP($A104,Filtro!$A$4:$AM$2264,27,FALSE),0) -> 87 | AD104: =IFERROR(VLOOKUP($A104,Filtro!$A$4:$AM$2264,28,FALSE),0) -> 0 | AE104: =IFERROR(VLOOKUP($A104,Filtro!$A$4:$AM$2264,29,FALSE),0) -> 0 | AF104: =IFERROR(VLOOKUP($A104,Filtro!$A$4:$AM$2264,30,FALSE),0) -> 0 | AG104: =IFERROR(VLOOKUP($A104,Filtro!$A$4:$AM$2264,31,FALSE),0) -> 0 | AH104: =IFERROR(VLOOKUP($A104,Filtro!$A$4:$AM$2264,32,FALSE),0) -> 0 | AI104: =IFERROR(VLOOKUP($A104,Filtro!$A$4:$AM$2264,33,FALSE),0) -> 0 | AJ104: =IFERROR(VLOOKUP($A104,Filtro!$A$4:$AM$2264,34,FALSE),0) -> 0 | AK104: =IFERROR(VLOOKUP($A104,Filtro!$A$4:$AM$2264,35,FALSE),0) -> 0 | CQ104: 0 | CR104: 0 | CS104: 0 | CU104: 0 | CV104: 0 | CW104: 0 | CY104: 0 | CZ104: 0
A105: 01014354 | B105: 0108327 | C105: Teleconsulta Médica de Especialidad en Nefrología Pediátrico | D105: =IFERROR(VLOOKUP($A105,Filtro!$A$4:$AM$2264,2,FALSE),0) -> 0 | E105: =IFERROR(VLOOKUP($A105,Filtro!$A$4:$AM$2264,3,FALSE),0) -> 0 | F105: =IFERROR(VLOOKUP($A105,Filtro!$A$4:$AM$2264,4,FALSE),0) -> 0 | G105: =IFERROR(VLOOKUP($A105,Filtro!$A$4:$AM$2264,5,FALSE),0) -> 0 | H105: =IFERROR(VLOOKUP($A105,Filtro!$A$4:$AM$2264,6,FALSE),0) -> 0 | AB105: =IFERROR(VLOOKUP($A105,Filtro!$A$4:$AM$2264,26,FALSE),0) -> 0 | AC105: =IFERROR(VLOOKUP($A105,Filtro!$A$4:$AM$2264,27,FALSE),0) -> 0 | AD105: =IFERROR(VLOOKUP($A105,Filtro!$A$4:$AM$2264,28,FALSE),0) -> 0 | AE105: =IFERROR(VLOOKUP($A105,Filtro!$A$4:$AM$2264,29,FALSE),0) -> 0 | AF105: =IFERROR(VLOOKUP($A105,Filtro!$A$4:$AM$2264,30,FALSE),0) -> 0 | AG105: =IFERROR(VLOOKUP($A105,Filtro!$A$4:$AM$2264,31,FALSE),0) -> 0 | AH105: =IFERROR(VLOOKUP($A105,Filtro!$A$4:$AM$2264,32,FALSE),0) -> 0 | AI105: =IFERROR(VLOOKUP($A105,Filtro!$A$4:$AM$2264,33,FALSE),0) -> 0 | AJ105: =IFERROR(VLOOKUP($A105,Filtro!$A$4:$AM$2264,34,FALSE),0) -> 0 | AK105: =IFERROR(VLOOKUP($A105,Filtro!$A$4:$AM$2264,35,FALSE),0) -> 0 | CQ105: 0 | CR105: 0 | CS105: 0 | CU105: 0 | CV105: 0 | CW105: 0 | CY105: 0 | CZ105: 0
A106: 01014355 | B106: 0108331 | C106: Teleconsulta Médica de Especialidad en Radioterapia Oncológica | D106: =IFERROR(VLOOKUP($A106,Filtro!$A$4:$AM$2264,2,FALSE),0) -> 0 | E106: =IFERROR(VLOOKUP($A106,Filtro!$A$4:$AM$2264,3,FALSE),0) -> 0 | F106: =IFERROR(VLOOKUP($A106,Filtro!$A$4:$AM$2264,4,FALSE),0) -> 0 | G106: =IFERROR(VLOOKUP($A106,Filtro!$A$4:$AM$2264,5,FALSE),0) -> 0 | H106: =IFERROR(VLOOKUP($A106,Filtro!$A$4:$AM$2264,6,FALSE),0) -> 0 | AB106: =IFERROR(VLOOKUP($A106,Filtro!$A$4:$AM$2264,26,FALSE),0) -> 0 | AC106: =IFERROR(VLOOKUP($A106,Filtro!$A$4:$AM$2264,27,FALSE),0) -> 0 | AD106: =IFERROR(VLOOKUP($A106,Filtro!$A$4:$AM$2264,28,FALSE),0) -> 0 | AE106: =IFERROR(VLOOKUP($A106,Filtro!$A$4:$AM$2264,29,FALSE),0) -> 0 | AF106: =IFERROR(VLOOKUP($A106,Filtro!$A$4:$AM$2264,30,FALSE),0) -> 0 | AG106: =IFERROR(VLOOKUP($A106,Filtro!$A$4:$AM$2264,31,FALSE),0) -> 0 | AH106: =IFERROR(VLOOKUP($A106,Filtro!$A$4:$AM$2264,32,FALSE),0) -> 0 | AI106: =IFERROR(VLOOKUP($A106,Filtro!$A$4:$AM$2264,33,FALSE),0) -> 0 | AJ106: =IFERROR(VLOOKUP($A106,Filtro!$A$4:$AM$2264,34,FALSE),0) -> 0 | AK106: =IFERROR(VLOOKUP($A106,Filtro!$A$4:$AM$2264,35,FALSE),0) -> 0 | CQ106: 0 | CR106: 0 | CS106: 0 | CU106: 0 | CV106: 0 | CW106: 0 | CY106: 0 | CZ106: 0
A107: 01014356 | B107: 0108203 | C107: Teleconsulta Médica de Especialidad en Neurocirugía | D107: =IFERROR(VLOOKUP($A107,Filtro!$A$4:$AM$2264,2,FALSE),0) -> 0 | E107: =IFERROR(VLOOKUP($A107,Filtro!$A$4:$AM$2264,3,FALSE),0) -> 0 | F107: =IFERROR(VLOOKUP($A107,Filtro!$A$4:$AM$2264,4,FALSE),0) -> 0 | G107: =IFERROR(VLOOKUP($A107,Filtro!$A$4:$AM$2264,5,FALSE),0) -> 0 | H107: =IFERROR(VLOOKUP($A107,Filtro!$A$4:$AM$2264,6,FALSE),0) -> 0 | AB107: =IFERROR(VLOOKUP($A107,Filtro!$A$4:$AM$2264,26,FALSE),0) -> 0 | AC107: =IFERROR(VLOOKUP($A107,Filtro!$A$4:$AM$2264,27,FALSE),0) -> 0 | AD107: =IFERROR(VLOOKUP($A107,Filtro!$A$4:$AM$2264,28,FALSE),0) -> 0 | AE107: =IFERROR(VLOOKUP($A107,Filtro!$A$4:$AM$2264,29,FALSE),0) -> 0 | AF107: =IFERROR(VLOOKUP($A107,Filtro!$A$4:$AM$2264,30,FALSE),0) -> 0 | AG107: =IFERROR(VLOOKUP($A107,Filtro!$A$4:$AM$2264,31,FALSE),0) -> 0 | AH107: =IFERROR(VLOOKUP($A107,Filtro!$A$4:$AM$2264,32,FALSE),0) -> 0 | AI107: =IFERROR(VLOOKUP($A107,Filtro!$A$4:$AM$2264,33,FALSE),0) -> 0 | AJ107: =IFERROR(VLOOKUP($A107,Filtro!$A$4:$AM$2264,34,FALSE),0) -> 0 | AK107: =IFERROR(VLOOKUP($A107,Filtro!$A$4:$AM$2264,35,FALSE),0) -> 0 | CQ107: 0 | CR107: 0 | CS107: 0 | CU107: 0 | CV107: 0 | CW107: 0 | CY107: 0 | CZ107: 0
A108: 01014357 | B108: 0108204 | C108: Teleconsulta Médica de Especialidad en Oftalmología | D108: =IFERROR(VLOOKUP($A108,Filtro!$A$4:$AM$2264,2,FALSE),0) -> 143 | E108: =IFERROR(VLOOKUP($A108,Filtro!$A$4:$AM$2264,3,FALSE),0) -> 143 | F108: =IFERROR(VLOOKUP($A108,Filtro!$A$4:$AM$2264,4,FALSE),0) -> 143 | G108: =IFERROR(VLOOKUP($A108,Filtro!$A$4:$AM$2264,5,FALSE),0) -> 0 | H108: =IFERROR(VLOOKUP($A108,Filtro!$A$4:$AM$2264,6,FALSE),0) -> 0 | AB108: =IFERROR(VLOOKUP($A108,Filtro!$A$4:$AM$2264,26,FALSE),0) -> 0 | AC108: =IFERROR(VLOOKUP($A108,Filtro!$A$4:$AM$2264,27,FALSE),0) -> 143 | AD108: =IFERROR(VLOOKUP($A108,Filtro!$A$4:$AM$2264,28,FALSE),0) -> 0 | AE108: =IFERROR(VLOOKUP($A108,Filtro!$A$4:$AM$2264,29,FALSE),0) -> 0 | AF108: =IFERROR(VLOOKUP($A108,Filtro!$A$4:$AM$2264,30,FALSE),0) -> 0 | AG108: =IFERROR(VLOOKUP($A108,Filtro!$A$4:$AM$2264,31,FALSE),0) -> 0 | AH108: =IFERROR(VLOOKUP($A108,Filtro!$A$4:$AM$2264,32,FALSE),0) -> 0 | AI108: =IFERROR(VLOOKUP($A108,Filtro!$A$4:$AM$2264,33,FALSE),0) -> 0 | AJ108: =IFERROR(VLOOKUP($A108,Filtro!$A$4:$AM$2264,34,FALSE),0) -> 0 | AK108: =IFERROR(VLOOKUP($A108,Filtro!$A$4:$AM$2264,35,FALSE),0) -> 0 | CQ108: 0 | CR108: 0 | CS108: 0 | CU108: 0 | CV108: 0 | CW108: 0 | CY108: 0 | CZ108: 0
A109: 01014358 | B109: 0108205 | C109: Teleconsulta Médica de Especialidad en Otorrinolaringología | D109: =IFERROR(VLOOKUP($A109,Filtro!$A$4:$AM$2264,2,FALSE),0) -> 23 | E109: =IFERROR(VLOOKUP($A109,Filtro!$A$4:$AM$2264,3,FALSE),0) -> 23 | F109: =IFERROR(VLOOKUP($A109,Filtro!$A$4:$AM$2264,4,FALSE),0) -> 23 | G109: =IFERROR(VLOOKUP($A109,Filtro!$A$4:$AM$2264,5,FALSE),0) -> 0 | H109: =IFERROR(VLOOKUP($A109,Filtro!$A$4:$AM$2264,6,FALSE),0) -> 0 | AB109: =IFERROR(VLOOKUP($A109,Filtro!$A$4:$AM$2264,26,FALSE),0) -> 0 | AC109: =IFERROR(VLOOKUP($A109,Filtro!$A$4:$AM$2264,27,FALSE),0) -> 23 | AD109: =IFERROR(VLOOKUP($A109,Filtro!$A$4:$AM$2264,28,FALSE),0) -> 0 | AE109: =IFERROR(VLOOKUP($A109,Filtro!$A$4:$AM$2264,29,FALSE),0) -> 0 | AF109: =IFERROR(VLOOKUP($A109,Filtro!$A$4:$AM$2264,30,FALSE),0) -> 0 | AG109: =IFERROR(VLOOKUP($A109,Filtro!$A$4:$AM$2264,31,FALSE),0) -> 0 | AH109: =IFERROR(VLOOKUP($A109,Filtro!$A$4:$AM$2264,32,FALSE),0) -> 0 | AI109: =IFERROR(VLOOKUP($A109,Filtro!$A$4:$AM$2264,33,FALSE),0) -> 0 | AJ109: =IFERROR(VLOOKUP($A109,Filtro!$A$4:$AM$2264,34,FALSE),0) -> 0 | AK109: =IFERROR(VLOOKUP($A109,Filtro!$A$4:$AM$2264,35,FALSE),0) -> 0 | CQ109: 0 | CR109: 0 | CS109: 0 | CU109: 0 | CV109: 0 | CW109: 0 | CY109: 0 | CZ109: 0
A110: 01014359 | B110: 0108312 | C110: Teleconsulta Médica de Especialidad en Cirugía General | D110: =IFERROR(VLOOKUP($A110,Filtro!$A$4:$AM$2264,2,FALSE),0) -> 180 | E110: =IFERROR(VLOOKUP($A110,Filtro!$A$4:$AM$2264,3,FALSE),0) -> 180 | F110: =IFERROR(VLOOKUP($A110,Filtro!$A$4:$AM$2264,4,FALSE),0) -> 180 | G110: =IFERROR(VLOOKUP($A110,Filtro!$A$4:$AM$2264,5,FALSE),0) -> 0 | H110: =IFERROR(VLOOKUP($A110,Filtro!$A$4:$AM$2264,6,FALSE),0) -> 0 | AB110: =IFERROR(VLOOKUP($A110,Filtro!$A$4:$AM$2264,26,FALSE),0) -> 0 | AC110: =IFERROR(VLOOKUP($A110,Filtro!$A$4:$AM$2264,27,FALSE),0) -> 180 | AD110: =IFERROR(VLOOKUP($A110,Filtro!$A$4:$AM$2264,28,FALSE),0) -> 0 | AE110: =IFERROR(VLOOKUP($A110,Filtro!$A$4:$AM$2264,29,FALSE),0) -> 0 | AF110: =IFERROR(VLOOKUP($A110,Filtro!$A$4:$AM$2264,30,FALSE),0) -> 0 | AG110: =IFERROR(VLOOKUP($A110,Filtro!$A$4:$AM$2264,31,FALSE),0) -> 0 | AH110: =IFERROR(VLOOKUP($A110,Filtro!$A$4:$AM$2264,32,FALSE),0) -> 0 | AI110: =IFERROR(VLOOKUP($A110,Filtro!$A$4:$AM$2264,33,FALSE),0) -> 0 | AJ110: =IFERROR(VLOOKUP($A110,Filtro!$A$4:$AM$2264,34,FALSE),0) -> 0 | AK110: =IFERROR(VLOOKUP($A110,Filtro!$A$4:$AM$2264,35,FALSE),0) -> 0 | CQ110: 0 | CR110: 0 | CS110: 0 | CU110: 0 | CV110: 0 | CW110: 0 | CY110: 0 | CZ110: 0
A111: 01014360 | B111: 0108313 | C111: Teleconsulta Médica de Especialidad en Cirugía de Cabeza, Cuello y Maxilofacial | D111: =IFERROR(VLOOKUP($A111,Filtro!$A$4:$AM$2264,2,FALSE),0) -> 0 | E111: =IFERROR(VLOOKUP($A111,Filtro!$A$4:$AM$2264,3,FALSE),0) -> 0 | F111: =IFERROR(VLOOKUP($A111,Filtro!$A$4:$AM$2264,4,FALSE),0) -> 0 | G111: =IFERROR(VLOOKUP($A111,Filtro!$A$4:$AM$2264,5,FALSE),0) -> 0 | H111: =IFERROR(VLOOKUP($A111,Filtro!$A$4:$AM$2264,6,FALSE),0) -> 0 | AB111: =IFERROR(VLOOKUP($A111,Filtro!$A$4:$AM$2264,26,FALSE),0) -> 0 | AC111: =IFERROR(VLOOKUP($A111,Filtro!$A$4:$AM$2264,27,FALSE),0) -> 0 | AD111: =IFERROR(VLOOKUP($A111,Filtro!$A$4:$AM$2264,28,FALSE),0) -> 0 | AE111: =IFERROR(VLOOKUP($A111,Filtro!$A$4:$AM$2264,29,FALSE),0) -> 0 | AF111: =IFERROR(VLOOKUP($A111,Filtro!$A$4:$AM$2264,30,FALSE),0) -> 0 | AG111: =IFERROR(VLOOKUP($A111,Filtro!$A$4:$AM$2264,31,FALSE),0) -> 0 | AH111: =IFERROR(VLOOKUP($A111,Filtro!$A$4:$AM$2264,32,FALSE),0) -> 0 | AI111: =IFERROR(VLOOKUP($A111,Filtro!$A$4:$AM$2264,33,FALSE),0) -> 0 | AJ111: =IFERROR(VLOOKUP($A111,Filtro!$A$4:$AM$2264,34,FALSE),0) -> 0 | AK111: =IFERROR(VLOOKUP($A111,Filtro!$A$4:$AM$2264,35,FALSE),0) -> 0 | CQ111: 0 | CR111: 0 | CS111: 0 | CU111: 0 | CV111: 0 | CW111: 0 | CY111: 0 | CZ111: 0
A112: 01014361 | B112: 0108314 | C112: Teleconsulta Médica de Especialidad en Cirugía Cardiovascular | D112: =IFERROR(VLOOKUP($A112,Filtro!$A$4:$AM$2264,2,FALSE),0) -> 0 | E112: =IFERROR(VLOOKUP($A112,Filtro!$A$4:$AM$2264,3,FALSE),0) -> 0 | F112: =IFERROR(VLOOKUP($A112,Filtro!$A$4:$AM$2264,4,FALSE),0) -> 0 | G112: =IFERROR(VLOOKUP($A112,Filtro!$A$4:$AM$2264,5,FALSE),0) -> 0 | H112: =IFERROR(VLOOKUP($A112,Filtro!$A$4:$AM$2264,6,FALSE),0) -> 0 | AB112: =IFERROR(VLOOKUP($A112,Filtro!$A$4:$AM$2264,26,FALSE),0) -> 0 | AC112: =IFERROR(VLOOKUP($A112,Filtro!$A$4:$AM$2264,27,FALSE),0) -> 0 | AD112: =IFERROR(VLOOKUP($A112,Filtro!$A$4:$AM$2264,28,FALSE),0) -> 0 | AE112: =IFERROR(VLOOKUP($A112,Filtro!$A$4:$AM$2264,29,FALSE),0) -> 0 | AF112: =IFERROR(VLOOKUP($A112,Filtro!$A$4:$AM$2264,30,FALSE),0) -> 0 | AG112: =IFERROR(VLOOKUP($A112,Filtro!$A$4:$AM$2264,31,FALSE),0) -> 0 | AH112: =IFERROR(VLOOKUP($A112,Filtro!$A$4:$AM$2264,32,FALSE),0) -> 0 | AI112: =IFERROR(VLOOKUP($A112,Filtro!$A$4:$AM$2264,33,FALSE),0) -> 0 | AJ112: =IFERROR(VLOOKUP($A112,Filtro!$A$4:$AM$2264,34,FALSE),0) -> 0 | AK112: =IFERROR(VLOOKUP($A112,Filtro!$A$4:$AM$2264,35,FALSE),0) -> 0 | CQ112: 0 | CR112: 0 | CS112: 0 | CU112: 0 | CV112: 0 | CW112: 0 | CY112: 0 | CZ112: 0
A113: 01014362 | B113: 0108315 | C113: Teleconsulta Médica de Especialidad en Cirugía de Tórax | D113: =IFERROR(VLOOKUP($A113,Filtro!$A$4:$AM$2264,2,FALSE),0) -> 0 | E113: =IFERROR(VLOOKUP($A113,Filtro!$A$4:$AM$2264,3,FALSE),0) -> 0 | F113: =IFERROR(VLOOKUP($A113,Filtro!$A$4:$AM$2264,4,FALSE),0) -> 0 | G113: =IFERROR(VLOOKUP($A113,Filtro!$A$4:$AM$2264,5,FALSE),0) -> 0 | H113: =IFERROR(VLOOKUP($A113,Filtro!$A$4:$AM$2264,6,FALSE),0) -> 0 | AB113: =IFERROR(VLOOKUP($A113,Filtro!$A$4:$AM$2264,26,FALSE),0) -> 0 | AC113: =IFERROR(VLOOKUP($A113,Filtro!$A$4:$AM$2264,27,FALSE),0) -> 0 | AD113: =IFERROR(VLOOKUP($A113,Filtro!$A$4:$AM$2264,28,FALSE),0) -> 0 | AE113: =IFERROR(VLOOKUP($A113,Filtro!$A$4:$AM$2264,29,FALSE),0) -> 0 | AF113: =IFERROR(VLOOKUP($A113,Filtro!$A$4:$AM$2264,30,FALSE),0) -> 0 | AG113: =IFERROR(VLOOKUP($A113,Filtro!$A$4:$AM$2264,31,FALSE),0) -> 0 | AH113: =IFERROR(VLOOKUP($A113,Filtro!$A$4:$AM$2264,32,FALSE),0) -> 0 | AI113: =IFERROR(VLOOKUP($A113,Filtro!$A$4:$AM$2264,33,FALSE),0) -> 0 | AJ113: =IFERROR(VLOOKUP($A113,Filtro!$A$4:$AM$2264,34,FALSE),0) -> 0 | AK113: =IFERROR(VLOOKUP($A113,Filtro!$A$4:$AM$2264,35,FALSE),0) -> 0 | CQ113: 0 | CR113: 0 | CS113: 0 | CU113: 0 | CV113: 0 | CW113: 0 | CY113: 0 | CZ113: 0
A114: 01014363 | B114: 0108316 | C114: Teleconsulta Médica de Especialidad en Cirugía Plástica y Reparadora | D114: =IFERROR(VLOOKUP($A114,Filtro!$A$4:$AM$2264,2,FALSE),0) -> 0 | E114: =IFERROR(VLOOKUP($A114,Filtro!$A$4:$AM$2264,3,FALSE),0) -> 0 | F114: =IFERROR(VLOOKUP($A114,Filtro!$A$4:$AM$2264,4,FALSE),0) -> 0 | G114: =IFERROR(VLOOKUP($A114,Filtro!$A$4:$AM$2264,5,FALSE),0) -> 0 | H114: =IFERROR(VLOOKUP($A114,Filtro!$A$4:$AM$2264,6,FALSE),0) -> 0 | AB114: =IFERROR(VLOOKUP($A114,Filtro!$A$4:$AM$2264,26,FALSE),0) -> 0 | AC114: =IFERROR(VLOOKUP($A114,Filtro!$A$4:$AM$2264,27,FALSE),0) -> 0 | AD114: =IFERROR(VLOOKUP($A114,Filtro!$A$4:$AM$2264,28,FALSE),0) -> 0 | AE114: =IFERROR(VLOOKUP($A114,Filtro!$A$4:$AM$2264,29,FALSE),0) -> 0 | AF114: =IFERROR(VLOOKUP($A114,Filtro!$A$4:$AM$2264,30,FALSE),0) -> 0 | AG114: =IFERROR(VLOOKUP($A114,Filtro!$A$4:$AM$2264,31,FALSE),0) -> 0 | AH114: =IFERROR(VLOOKUP($A114,Filtro!$A$4:$AM$2264,32,FALSE),0) -> 0 | AI114: =IFERROR(VLOOKUP($A114,Filtro!$A$4:$AM$2264,33,FALSE),0) -> 0 | AJ114: =IFERROR(VLOOKUP($A114,Filtro!$A$4:$AM$2264,34,FALSE),0) -> 0 | AK114: =IFERROR(VLOOKUP($A114,Filtro!$A$4:$AM$2264,35,FALSE),0) -> 0 | CQ114: 0 | CR114: 0 | CS114: 0 | CU114: 0 | CV114: 0 | CW114: 0 | CY114: 0 | CZ114: 0
A115: 01014364 | B115: 0108317 | C115: Teleconsulta Médica de Especialidad en Cirugía Pediátrica | D115: =IFERROR(VLOOKUP($A115,Filtro!$A$4:$AM$2264,2,FALSE),0) -> 26 | E115: =IFERROR(VLOOKUP($A115,Filtro!$A$4:$AM$2264,3,FALSE),0) -> 26 | F115: =IFERROR(VLOOKUP($A115,Filtro!$A$4:$AM$2264,4,FALSE),0) -> 26 | G115: =IFERROR(VLOOKUP($A115,Filtro!$A$4:$AM$2264,5,FALSE),0) -> 0 | H115: =IFERROR(VLOOKUP($A115,Filtro!$A$4:$AM$2264,6,FALSE),0) -> 0 | AB115: =IFERROR(VLOOKUP($A115,Filtro!$A$4:$AM$2264,26,FALSE),0) -> 0 | AC115: =IFERROR(VLOOKUP($A115,Filtro!$A$4:$AM$2264,27,FALSE),0) -> 26 | AD115: =IFERROR(VLOOKUP($A115,Filtro!$A$4:$AM$2264,28,FALSE),0) -> 0 | AE115: =IFERROR(VLOOKUP($A115,Filtro!$A$4:$AM$2264,29,FALSE),0) -> 0 | AF115: =IFERROR(VLOOKUP($A115,Filtro!$A$4:$AM$2264,30,FALSE),0) -> 0 | AG115: =IFERROR(VLOOKUP($A115,Filtro!$A$4:$AM$2264,31,FALSE),0) -> 0 | AH115: =IFERROR(VLOOKUP($A115,Filtro!$A$4:$AM$2264,32,FALSE),0) -> 0 | AI115: =IFERROR(VLOOKUP($A115,Filtro!$A$4:$AM$2264,33,FALSE),0) -> 0 | AJ115: =IFERROR(VLOOKUP($A115,Filtro!$A$4:$AM$2264,34,FALSE),0) -> 0 | AK115: =IFERROR(VLOOKUP($A115,Filtro!$A$4:$AM$2264,35,FALSE),0) -> 0 | CQ115: 0 | CR115: 0 | CS115: 0 | CU115: 0 | CV115: 0 | CW115: 0 | CY115: 0 | CZ115: 0
A116: 01014365 | B116: 0108318 | C116: Teleconsulta Médica de Especialidad en Cirugía Vascular Periférica | D116: =IFERROR(VLOOKUP($A116,Filtro!$A$4:$AM$2264,2,FALSE),0) -> 0 | E116: =IFERROR(VLOOKUP($A116,Filtro!$A$4:$AM$2264,3,FALSE),0) -> 0 | F116: =IFERROR(VLOOKUP($A116,Filtro!$A$4:$AM$2264,4,FALSE),0) -> 0 | G116: =IFERROR(VLOOKUP($A116,Filtro!$A$4:$AM$2264,5,FALSE),0) -> 0 | H116: =IFERROR(VLOOKUP($A116,Filtro!$A$4:$AM$2264,6,FALSE),0) -> 0 | AB116: =IFERROR(VLOOKUP($A116,Filtro!$A$4:$AM$2264,26,FALSE),0) -> 0 | AC116: =IFERROR(VLOOKUP($A116,Filtro!$A$4:$AM$2264,27,FALSE),0) -> 0 | AD116: =IFERROR(VLOOKUP($A116,Filtro!$A$4:$AM$2264,28,FALSE),0) -> 0 | AE116: =IFERROR(VLOOKUP($A116,Filtro!$A$4:$AM$2264,29,FALSE),0) -> 0 | AF116: =IFERROR(VLOOKUP($A116,Filtro!$A$4:$AM$2264,30,FALSE),0) -> 0 | AG116: =IFERROR(VLOOKUP($A116,Filtro!$A$4:$AM$2264,31,FALSE),0) -> 0 | AH116: =IFERROR(VLOOKUP($A116,Filtro!$A$4:$AM$2264,32,FALSE),0) -> 0 | AI116: =IFERROR(VLOOKUP($A116,Filtro!$A$4:$AM$2264,33,FALSE),0) -> 0 | AJ116: =IFERROR(VLOOKUP($A116,Filtro!$A$4:$AM$2264,34,FALSE),0) -> 0 | AK116: =IFERROR(VLOOKUP($A116,Filtro!$A$4:$AM$2264,35,FALSE),0) -> 0 | CQ116: 0 | CR116: 0 | CS116: 0 | CU116: 0 | CV116: 0 | CW116: 0 | CY116: 0 | CZ116: 0
A117: 01014366 | B117: 0108329 | C117: Teleconsulta Médica de Especialidad en Anestesiología | D117: =IFERROR(VLOOKUP($A117,Filtro!$A$4:$AM$2264,2,FALSE),0) -> 3064 | E117: =IFERROR(VLOOKUP($A117,Filtro!$A$4:$AM$2264,3,FALSE),0) -> 2999 | F117: =IFERROR(VLOOKUP($A117,Filtro!$A$4:$AM$2264,4,FALSE),0) -> 2999 | G117: =IFERROR(VLOOKUP($A117,Filtro!$A$4:$AM$2264,5,FALSE),0) -> 0 | H117: =IFERROR(VLOOKUP($A117,Filtro!$A$4:$AM$2264,6,FALSE),0) -> 65 | AB117: =IFERROR(VLOOKUP($A117,Filtro!$A$4:$AM$2264,26,FALSE),0) -> 0 | AC117: =IFERROR(VLOOKUP($A117,Filtro!$A$4:$AM$2264,27,FALSE),0) -> 3064 | AD117: =IFERROR(VLOOKUP($A117,Filtro!$A$4:$AM$2264,28,FALSE),0) -> 0 | AE117: =IFERROR(VLOOKUP($A117,Filtro!$A$4:$AM$2264,29,FALSE),0) -> 1207 | AF117: =IFERROR(VLOOKUP($A117,Filtro!$A$4:$AM$2264,30,FALSE),0) -> 0 | AG117: =IFERROR(VLOOKUP($A117,Filtro!$A$4:$AM$2264,31,FALSE),0) -> 0 | AH117: =IFERROR(VLOOKUP($A117,Filtro!$A$4:$AM$2264,32,FALSE),0) -> 0 | AI117: =IFERROR(VLOOKUP($A117,Filtro!$A$4:$AM$2264,33,FALSE),0) -> 0 | AJ117: =IFERROR(VLOOKUP($A117,Filtro!$A$4:$AM$2264,34,FALSE),0) -> 0 | AK117: =IFERROR(VLOOKUP($A117,Filtro!$A$4:$AM$2264,35,FALSE),0) -> 0 | CQ117: 0 | CR117: 0 | CS117: 0 | CU117: 0 | CV117: 0 | CW117: 0 | CY117: 0 | CZ117: 0
A118: 01014367 | B118: 0108332 | C118: Teleconsulta Médica de Especialidad en Ginecología Pediátrica y de la Adolescencia | D118: =IFERROR(VLOOKUP($A118,Filtro!$A$4:$AM$2264,2,FALSE),0) -> 0 | E118: =IFERROR(VLOOKUP($A118,Filtro!$A$4:$AM$2264,3,FALSE),0) -> 0 | F118: =IFERROR(VLOOKUP($A118,Filtro!$A$4:$AM$2264,4,FALSE),0) -> 0 | G118: =IFERROR(VLOOKUP($A118,Filtro!$A$4:$AM$2264,5,FALSE),0) -> 0 | H118: =IFERROR(VLOOKUP($A118,Filtro!$A$4:$AM$2264,6,FALSE),0) -> 0 | AB118: =IFERROR(VLOOKUP($A118,Filtro!$A$4:$AM$2264,26,FALSE),0) -> 0 | AC118: =IFERROR(VLOOKUP($A118,Filtro!$A$4:$AM$2264,27,FALSE),0) -> 0 | AD118: =IFERROR(VLOOKUP($A118,Filtro!$A$4:$AM$2264,28,FALSE),0) -> 0 | AE118: =IFERROR(VLOOKUP($A118,Filtro!$A$4:$AM$2264,29,FALSE),0) -> 0 | AF118: =IFERROR(VLOOKUP($A118,Filtro!$A$4:$AM$2264,30,FALSE),0) -> 0 | AG118: =IFERROR(VLOOKUP($A118,Filtro!$A$4:$AM$2264,31,FALSE),0) -> 0 | AH118: =IFERROR(VLOOKUP($A118,Filtro!$A$4:$AM$2264,32,FALSE),0) -> 0 | AI118: =IFERROR(VLOOKUP($A118,Filtro!$A$4:$AM$2264,33,FALSE),0) -> 0 | AJ118: =IFERROR(VLOOKUP($A118,Filtro!$A$4:$AM$2264,34,FALSE),0) -> 0 | AK118: =IFERROR(VLOOKUP($A118,Filtro!$A$4:$AM$2264,35,FALSE),0) -> 0 | CQ118: 0 | CR118: 0 | CS118: 0 | CU118: 0 | CV118: 0 | CW118: 0 | CY118: 0 | CZ118: 0
A119: 01014368 | B119: 0108333 | C119: Teleconsulta Médica de Especialidad en Medicina Materno Fetal | D119: =IFERROR(VLOOKUP($A119,Filtro!$A$4:$AM$2264,2,FALSE),0) -> 0 | E119: =IFERROR(VLOOKUP($A119,Filtro!$A$4:$AM$2264,3,FALSE),0) -> 0 | F119: =IFERROR(VLOOKUP($A119,Filtro!$A$4:$AM$2264,4,FALSE),0) -> 0 | G119: =IFERROR(VLOOKUP($A119,Filtro!$A$4:$AM$2264,5,FALSE),0) -> 0 | H119: =IFERROR(VLOOKUP($A119,Filtro!$A$4:$AM$2264,6,FALSE),0) -> 0 | AB119: =IFERROR(VLOOKUP($A119,Filtro!$A$4:$AM$2264,26,FALSE),0) -> 0 | AC119: =IFERROR(VLOOKUP($A119,Filtro!$A$4:$AM$2264,27,FALSE),0) -> 0 | AD119: =IFERROR(VLOOKUP($A119,Filtro!$A$4:$AM$2264,28,FALSE),0) -> 0 | AE119: =IFERROR(VLOOKUP($A119,Filtro!$A$4:$AM$2264,29,FALSE),0) -> 0 | AF119: =IFERROR(VLOOKUP($A119,Filtro!$A$4:$AM$2264,30,FALSE),0) -> 0 | AG119: =IFERROR(VLOOKUP($A119,Filtro!$A$4:$AM$2264,31,FALSE),0) -> 0 | AH119: =IFERROR(VLOOKUP($A119,Filtro!$A$4:$AM$2264,32,FALSE),0) -> 0 | AI119: =IFERROR(VLOOKUP($A119,Filtro!$A$4:$AM$2264,33,FALSE),0) -> 0 | AJ119: =IFERROR(VLOOKUP($A119,Filtro!$A$4:$AM$2264,34,FALSE),0) -> 0 | AK119: =IFERROR(VLOOKUP($A119,Filtro!$A$4:$AM$2264,35,FALSE),0) -> 0 | CQ119: 0 | CR119: 0 | CS119: 0 | CU119: 0 | CV119: 0 | CW119: 0 | CY119: 0 | CZ119: 0
A120: 01014369 | B120: 0108334 | C120: Teleconsulta Médica de Especialidad en Medicina Nuclear | D120: =IFERROR(VLOOKUP($A120,Filtro!$A$4:$AM$2264,2,FALSE),0) -> 0 | E120: =IFERROR(VLOOKUP($A120,Filtro!$A$4:$AM$2264,3,FALSE),0) -> 0 | F120: =IFERROR(VLOOKUP($A120,Filtro!$A$4:$AM$2264,4,FALSE),0) -> 0 | G120: =IFERROR(VLOOKUP($A120,Filtro!$A$4:$AM$2264,5,FALSE),0) -> 0 | H120: =IFERROR(VLOOKUP($A120,Filtro!$A$4:$AM$2264,6,FALSE),0) -> 0 | AB120: =IFERROR(VLOOKUP($A120,Filtro!$A$4:$AM$2264,26,FALSE),0) -> 0 | AC120: =IFERROR(VLOOKUP($A120,Filtro!$A$4:$AM$2264,27,FALSE),0) -> 0 | AD120: =IFERROR(VLOOKUP($A120,Filtro!$A$4:$AM$2264,28,FALSE),0) -> 0 | AE120: =IFERROR(VLOOKUP($A120,Filtro!$A$4:$AM$2264,29,FALSE),0) -> 0 | AF120: =IFERROR(VLOOKUP($A120,Filtro!$A$4:$AM$2264,30,FALSE),0) -> 0 | AG120: =IFERROR(VLOOKUP($A120,Filtro!$A$4:$AM$2264,31,FALSE),0) -> 0 | AH120: =IFERROR(VLOOKUP($A120,Filtro!$A$4:$AM$2264,32,FALSE),0) -> 0 | AI120: =IFERROR(VLOOKUP($A120,Filtro!$A$4:$AM$2264,33,FALSE),0) -> 0 | AJ120: =IFERROR(VLOOKUP($A120,Filtro!$A$4:$AM$2264,34,FALSE),0) -> 0 | AK120: =IFERROR(VLOOKUP($A120,Filtro!$A$4:$AM$2264,35,FALSE),0) -> 0 | CQ120: 0 | CR120: 0 | CS120: 0 | CU120: 0 | CV120: 0 | CW120: 0 | CY120: 0 | CZ120: 0
A121: 01014370 | B121: 0108400 | C121: Teleconsulta: Atención Integral de Nutricionista (incluye 3 sesiones) | D121: =IFERROR(VLOOKUP($A121,Filtro!$A$4:$AM$2264,2,FALSE),0) -> 0 | E121: =IFERROR(VLOOKUP($A121,Filtro!$A$4:$AM$2264,3,FALSE),0) -> 0 | F121: =IFERROR(VLOOKUP($A121,Filtro!$A$4:$AM$2264,4,FALSE),0) -> 0 | G121: =IFERROR(VLOOKUP($A121,Filtro!$A$4:$AM$2264,5,FALSE),0) -> 0 | H121: =IFERROR(VLOOKUP($A121,Filtro!$A$4:$AM$2264,6,FALSE),0) -> 0 | AB121: =IFERROR(VLOOKUP($A121,Filtro!$A$4:$AM$2264,26,FALSE),0) -> 0 | AC121: =IFERROR(VLOOKUP($A121,Filtro!$A$4:$AM$2264,27,FALSE),0) -> 0 | AD121: =IFERROR(VLOOKUP($A121,Filtro!$A$4:$AM$2264,28,FALSE),0) -> 0 | AE121: =IFERROR(VLOOKUP($A121,Filtro!$A$4:$AM$2264,29,FALSE),0) -> 0 | AF121: =IFERROR(VLOOKUP($A121,Filtro!$A$4:$AM$2264,30,FALSE),0) -> 0 | AG121: =IFERROR(VLOOKUP($A121,Filtro!$A$4:$AM$2264,31,FALSE),0) -> 0 | AH121: =IFERROR(VLOOKUP($A121,Filtro!$A$4:$AM$2264,32,FALSE),0) -> 0 | AI121: =IFERROR(VLOOKUP($A121,Filtro!$A$4:$AM$2264,33,FALSE),0) -> 0 | AJ121: =IFERROR(VLOOKUP($A121,Filtro!$A$4:$AM$2264,34,FALSE),0) -> 0 | AK121: =IFERROR(VLOOKUP($A121,Filtro!$A$4:$AM$2264,35,FALSE),0) -> 0 | CQ121: 0 | CR121: 0 | CS121: 0 | CU121: 0 | CV121: 0 | CW121: 0 | CY121: 0 | CZ121: 0
B122: TOTAL | D122: =IFERROR(VLOOKUP($A122,Filtro!$A$4:$AM$2264,2,FALSE),0) -> 0 | E122: =IFERROR(VLOOKUP($A122,Filtro!$A$4:$AM$2264,3,FALSE),0) -> 0 | F122: =IFERROR(VLOOKUP($A122,Filtro!$A$4:$AM$2264,4,FALSE),0) -> 0 | G122: =IFERROR(VLOOKUP($A122,Filtro!$A$4:$AM$2264,5,FALSE),0) -> 0 | H122: =IFERROR(VLOOKUP($A122,Filtro!$A$4:$AM$2264,6,FALSE),0) -> 0 | I122: =IFERROR(VLOOKUP($A122,Filtro!$A$4:$AM$2264,7,FALSE),0) -> 0 | AB122: =SUM(AB75:AB121) -> 0 | AC122: 16778 | AD122: 0 | AE122: 1208 | AF122: 0 | AG122: 0 | AH122: 0 | AI122: 0 | AJ122: 36 | AK122: 0
B123: TELEINTERCONSULTA (TELEMEDICINA) | D123: =IFERROR(VLOOKUP($A123,Filtro!$A$4:$AM$2264,2,FALSE),0) -> 0
A124: 01014371 | B124: 0109001 | C124: Teleinterconsulta médica | D124: =IFERROR(VLOOKUP($A124,Filtro!$A$4:$AM$2264,2,FALSE),0) -> 218 | E124: =IFERROR(VLOOKUP($A124,Filtro!$A$4:$AM$2264,3,FALSE),0) -> 218 | F124: =IFERROR(VLOOKUP($A124,Filtro!$A$4:$AM$2264,4,FALSE),0) -> 218 | G124: =IFERROR(VLOOKUP($A124,Filtro!$A$4:$AM$2264,5,FALSE),0) -> 0 | H124: =IFERROR(VLOOKUP($A124,Filtro!$A$4:$AM$2264,6,FALSE),0) -> 0 | I124: =IFERROR(VLOOKUP($A124,Filtro!$A$4:$AM$2264,7,FALSE),0) -> 0 | J124: =IFERROR(VLOOKUP($A124,Filtro!$A$4:$AM$2264,8,FALSE),0) -> 0 | K124: =IFERROR(VLOOKUP($A124,Filtro!$A$4:$AM$2264,9,FALSE),0) -> 0 | L124: =IFERROR(VLOOKUP($A124,Filtro!$A$4:$AM$2264,10,FALSE),0) -> 0 | M124: =IFERROR(VLOOKUP($A124,Filtro!$A$4:$AM$2264,11,FALSE),0) -> 0 | N124: =IFERROR(VLOOKUP($A124,Filtro!$A$4:$AM$2264,12,FALSE),0) -> 0 | O124: =IFERROR(VLOOKUP($A124,Filtro!$A$4:$AM$2264,13,FALSE),0) -> 0 | P124: =IFERROR(VLOOKUP($A124,Filtro!$A$4:$AM$2264,14,FALSE),0) -> 0 | Q124: =IFERROR(VLOOKUP($A124,Filtro!$A$4:$AM$2264,15,FALSE),0) -> 0 | R124: =IFERROR(VLOOKUP($A124,Filtro!$A$4:$AM$2264,16,FALSE),0) -> 0 | AB124: =IFERROR(VLOOKUP($A124,Filtro!$A$4:$AM$2264,26,FALSE),0) -> 0 | AC124: =IFERROR(VLOOKUP($A124,Filtro!$A$4:$AM$2264,27,FALSE),0) -> 218 | AD124: =IFERROR(VLOOKUP($A124,Filtro!$A$4:$AM$2264,28,FALSE),0) -> 0 | AE124: =IFERROR(VLOOKUP($A124,Filtro!$A$4:$AM$2264,29,FALSE),0) -> 0 | AF124: =IFERROR(VLOOKUP($A124,Filtro!$A$4:$AM$2264,30,FALSE),0) -> 0 | AG124: =IFERROR(VLOOKUP($A124,Filtro!$A$4:$AM$2264,31,FALSE),0) -> 0 | AH124: =IFERROR(VLOOKUP($A124,Filtro!$A$4:$AM$2264,32,FALSE),0) -> 0 | AI124: =IFERROR(VLOOKUP($A124,Filtro!$A$4:$AM$2264,33,FALSE),0) -> 0 | AJ124: =IFERROR(VLOOKUP($A124,Filtro!$A$4:$AM$2264,34,FALSE),0) -> 0 | AK124: =IFERROR(VLOOKUP($A124,Filtro!$A$4:$AM$2264,35,FALSE),0) -> 0 | CQ124: 0 | CR124: 0 | CS124: 0 | CU124: 0 | CV124: 0 | CW124: 0 | CY124: 0 | CZ124: 0
A125: 01014372 | B125: 0109002 | C125: Teleinterconsulta no médica | D125: =IFERROR(VLOOKUP($A125,Filtro!$A$4:$AM$2264,2,FALSE),0) -> 0 | E125: =IFERROR(VLOOKUP($A125,Filtro!$A$4:$AM$2264,3,FALSE),0) -> 0 | F125: =IFERROR(VLOOKUP($A125,Filtro!$A$4:$AM$2264,4,FALSE),0) -> 0 | G125: =IFERROR(VLOOKUP($A125,Filtro!$A$4:$AM$2264,5,FALSE),0) -> 0 | H125: =IFERROR(VLOOKUP($A125,Filtro!$A$4:$AM$2264,6,FALSE),0) -> 0 | I125: =IFERROR(VLOOKUP($A125,Filtro!$A$4:$AM$2264,7,FALSE),0) -> 0 | J125: =IFERROR(VLOOKUP($A125,Filtro!$A$4:$AM$2264,8,FALSE),0) -> 0 | K125: =IFERROR(VLOOKUP($A125,Filtro!$A$4:$AM$2264,9,FALSE),0) -> 0 | L125: =IFERROR(VLOOKUP($A125,Filtro!$A$4:$AM$2264,10,FALSE),0) -> 0 | M125: =IFERROR(VLOOKUP($A125,Filtro!$A$4:$AM$2264,11,FALSE),0) -> 0 | N125: =IFERROR(VLOOKUP($A125,Filtro!$A$4:$AM$2264,12,FALSE),0) -> 0 | O125: =IFERROR(VLOOKUP($A125,Filtro!$A$4:$AM$2264,13,FALSE),0) -> 0 | P125: =IFERROR(VLOOKUP($A125,Filtro!$A$4:$AM$2264,14,FALSE),0) -> 0 | Q125: =IFERROR(VLOOKUP($A125,Filtro!$A$4:$AM$2264,15,FALSE),0) -> 0 | R125: =IFERROR(VLOOKUP($A125,Filtro!$A$4:$AM$2264,16,FALSE),0) -> 0 | S125: =IFERROR(VLOOKUP($A125,Filtro!$A$4:$AM$2264,17,FALSE),0) -> 0 | AB125: =IFERROR(VLOOKUP($A125,Filtro!$A$4:$AM$2264,26,FALSE),0) -> 0 | AC125: =IFERROR(VLOOKUP($A125,Filtro!$A$4:$AM$2264,27,FALSE),0) -> 0 | AD125: =IFERROR(VLOOKUP($A125,Filtro!$A$4:$AM$2264,28,FALSE),0) -> 0 | AE125: =IFERROR(VLOOKUP($A125,Filtro!$A$4:$AM$2264,29,FALSE),0) -> 0 | AF125: =IFERROR(VLOOKUP($A125,Filtro!$A$4:$AM$2264,30,FALSE),0) -> 0 | AG125: =IFERROR(VLOOKUP($A125,Filtro!$A$4:$AM$2264,31,FALSE),0) -> 0 | AH125: =IFERROR(VLOOKUP($A125,Filtro!$A$4:$AM$2264,32,FALSE),0) -> 0 | AI125: =IFERROR(VLOOKUP($A125,Filtro!$A$4:$AM$2264,33,FALSE),0) -> 0 | AJ125: =IFERROR(VLOOKUP($A125,Filtro!$A$4:$AM$2264,34,FALSE),0) -> 0 | AK125: =IFERROR(VLOOKUP($A125,Filtro!$A$4:$AM$2264,35,FALSE),0) -> 0 | CQ125: 0 | CR125: 0 | CS125: 0 | CU125: 0 | CV125: 0 | CW125: 0 | CY125: 0 | CZ125: 0
B126: TOTAL | D126: =IFERROR(VLOOKUP($A126,Filtro!$A$4:$AM$2264,2,FALSE),0) -> 0 | E126: =IFERROR(VLOOKUP($A126,Filtro!$A$4:$AM$2264,3,FALSE),0) -> 0 | F126: =IFERROR(VLOOKUP($A126,Filtro!$A$4:$AM$2264,4,FALSE),0) -> 0 | G126: =IFERROR(VLOOKUP($A126,Filtro!$A$4:$AM$2264,5,FALSE),0) -> 0 | H126: =IFERROR(VLOOKUP($A126,Filtro!$A$4:$AM$2264,6,FALSE),0) -> 0 | I126: =IFERROR(VLOOKUP($A126,Filtro!$A$4:$AM$2264,7,FALSE),0) -> 0 | AB126: =SUM(AB124:AB125) -> 0 | AC126: =SUM(AC124:AC125) -> 218 | AD126: 0 | AE126: 0 | AF126: 0 | AG126: 0 | AH126: 0 | AI126: 0 | AJ126: 0 | AK126: 0
B127: EDUCACIÓN DE GRUPO
A128: 01010029 | B128: 0103001 | C128: Educación de grupo por médico | D128: =IFERROR(VLOOKUP($A128,Filtro!$A$4:$AM$2264,2,FALSE),0) -> 246 | E128: =IFERROR(VLOOKUP($A128,Filtro!$A$4:$AM$2264,3,FALSE),0) -> 246 | F128: =IFERROR(VLOOKUP($A128,Filtro!$A$4:$AM$2264,4,FALSE),0) -> 246 | G128: =IFERROR(VLOOKUP($A128,Filtro!$A$4:$AM$2264,5,FALSE),0) -> 0 | H128: =IFERROR(VLOOKUP($A128,Filtro!$A$4:$AM$2264,6,FALSE),0) -> 0 | I128: =IFERROR(VLOOKUP($A128,Filtro!$A$4:$AM$2264,7,FALSE),0) -> 0 | J128: =IFERROR(VLOOKUP($A128,Filtro!$A$4:$AM$2264,8,FALSE),0) -> 0 | K128: =IFERROR(VLOOKUP($A128,Filtro!$A$4:$AM$2264,9,FALSE),0) -> 0 | L128: =IFERROR(VLOOKUP($A128,Filtro!$A$4:$AM$2264,10,FALSE),0) -> 0 | M128: =IFERROR(VLOOKUP($A128,Filtro!$A$4:$AM$2264,11,FALSE),0) -> 0 | N128: =IFERROR(VLOOKUP($A128,Filtro!$A$4:$AM$2264,12,FALSE),0) -> 0 | O128: =IFERROR(VLOOKUP($A128,Filtro!$A$4:$AM$2264,13,FALSE),0) -> 0 | P128: =IFERROR(VLOOKUP($A128,Filtro!$A$4:$AM$2264,14,FALSE),0) -> 0 | Q128: =IFERROR(VLOOKUP($A128,Filtro!$A$4:$AM$2264,15,FALSE),0) -> 0 | R128: =IFERROR(VLOOKUP($A128,Filtro!$A$4:$AM$2264,16,FALSE),0) -> 0 | AB128: =IFERROR(VLOOKUP($A128,Filtro!$A$4:$AM$2264,26,FALSE),0) -> 4 | AC128: =IFERROR(VLOOKUP($A128,Filtro!$A$4:$AM$2264,27,FALSE),0) -> 238 | AD128: =IFERROR(VLOOKUP($A128,Filtro!$A$4:$AM$2264,28,FALSE),0) -> 4 | AE128: =IFERROR(VLOOKUP($A128,Filtro!$A$4:$AM$2264,29,FALSE),0) -> 4 | AF128: =IFERROR(VLOOKUP($A128,Filtro!$A$4:$AM$2264,30,FALSE),0) -> 4 | AG128: =IFERROR(VLOOKUP($A128,Filtro!$A$4:$AM$2264,31,FALSE),0) -> 4 | AH128: =IFERROR(VLOOKUP($A128,Filtro!$A$4:$AM$2264,32,FALSE),0) -> 4 | AI128: =IFERROR(VLOOKUP($A128,Filtro!$A$4:$AM$2264,33,FALSE),0) -> 4 | AJ128: =IFERROR(VLOOKUP($A128,Filtro!$A$4:$AM$2264,34,FALSE),0) -> 4 | AK128: =IFERROR(VLOOKUP($A128,Filtro!$A$4:$AM$2264,35,FALSE),0) -> 4 | CQ128: 0 | CR128: 0 | CS128: 0 | CU128: 0 | CV128: 0 | CW128: 0 | CY128: 0 | CZ128: 0
A129: 01010031 | B129: 0103003 | C129: Educación de grupo por trabajador/a social | D129: =IFERROR(VLOOKUP($A129,Filtro!$A$4:$AM$2264,2,FALSE),0) -> 289 | E129: =IFERROR(VLOOKUP($A129,Filtro!$A$4:$AM$2264,3,FALSE),0) -> 289 | F129: =IFERROR(VLOOKUP($A129,Filtro!$A$4:$AM$2264,4,FALSE),0) -> 289 | G129: =IFERROR(VLOOKUP($A129,Filtro!$A$4:$AM$2264,5,FALSE),0) -> 0 | H129: =IFERROR(VLOOKUP($A129,Filtro!$A$4:$AM$2264,6,FALSE),0) -> 0 | I129: =IFERROR(VLOOKUP($A129,Filtro!$A$4:$AM$2264,7,FALSE),0) -> 0 | J129: =IFERROR(VLOOKUP($A129,Filtro!$A$4:$AM$2264,8,FALSE),0) -> 0 | K129: =IFERROR(VLOOKUP($A129,Filtro!$A$4:$AM$2264,9,FALSE),0) -> 0 | L129: =IFERROR(VLOOKUP($A129,Filtro!$A$4:$AM$2264,10,FALSE),0) -> 0 | M129: =IFERROR(VLOOKUP($A129,Filtro!$A$4:$AM$2264,11,FALSE),0) -> 0 | N129: =IFERROR(VLOOKUP($A129,Filtro!$A$4:$AM$2264,12,FALSE),0) -> 0 | O129: =IFERROR(VLOOKUP($A129,Filtro!$A$4:$AM$2264,13,FALSE),0) -> 0 | P129: =IFERROR(VLOOKUP($A129,Filtro!$A$4:$AM$2264,14,FALSE),0) -> 0 | Q129: =IFERROR(VLOOKUP($A129,Filtro!$A$4:$AM$2264,15,FALSE),0) -> 0 | R129: =IFERROR(VLOOKUP($A129,Filtro!$A$4:$AM$2264,16,FALSE),0) -> 0 | AB129: =IFERROR(VLOOKUP($A129,Filtro!$A$4:$AM$2264,26,FALSE),0) -> 0 | AC129: =IFERROR(VLOOKUP($A129,Filtro!$A$4:$AM$2264,27,FALSE),0) -> 287 | AD129: =IFERROR(VLOOKUP($A129,Filtro!$A$4:$AM$2264,28,FALSE),0) -> 0 | AE129: =IFERROR(VLOOKUP($A129,Filtro!$A$4:$AM$2264,29,FALSE),0) -> 0 | AF129: =IFERROR(VLOOKUP($A129,Filtro!$A$4:$AM$2264,30,FALSE),0) -> 0 | AG129: =IFERROR(VLOOKUP($A129,Filtro!$A$4:$AM$2264,31,FALSE),0) -> 0 | AH129: =IFERROR(VLOOKUP($A129,Filtro!$A$4:$AM$2264,32,FALSE),0) -> 0 | AI129: =IFERROR(VLOOKUP($A129,Filtro!$A$4:$AM$2264,33,FALSE),0) -> 0 | AJ129: =IFERROR(VLOOKUP($A129,Filtro!$A$4:$AM$2264,34,FALSE),0) -> 0 | AK129: =IFERROR(VLOOKUP($A129,Filtro!$A$4:$AM$2264,35,FALSE),0) -> 0 | CQ129: 0 | CR129: 0 | CS129: 0 | CU129: 0 | CV129: 0 | CW129: 0 | CY129: 0 | CZ129: 0
A130: 01010032 | B130: 0103004 | C130: Educación de grupo por auxiliar de enfermería | D130: =IFERROR(VLOOKUP($A130,Filtro!$A$4:$AM$2264,2,FALSE),0) -> 238 | E130: =IFERROR(VLOOKUP($A130,Filtro!$A$4:$AM$2264,3,FALSE),0) -> 238 | F130: =IFERROR(VLOOKUP($A130,Filtro!$A$4:$AM$2264,4,FALSE),0) -> 238 | G130: =IFERROR(VLOOKUP($A130,Filtro!$A$4:$AM$2264,5,FALSE),0) -> 0 | H130: =IFERROR(VLOOKUP($A130,Filtro!$A$4:$AM$2264,6,FALSE),0) -> 0 | I130: =IFERROR(VLOOKUP($A130,Filtro!$A$4:$AM$2264,7,FALSE),0) -> 0 | J130: =IFERROR(VLOOKUP($A130,Filtro!$A$4:$AM$2264,8,FALSE),0) -> 0 | K130: =IFERROR(VLOOKUP($A130,Filtro!$A$4:$AM$2264,9,FALSE),0) -> 0 | L130: =IFERROR(VLOOKUP($A130,Filtro!$A$4:$AM$2264,10,FALSE),0) -> 0 | M130: =IFERROR(VLOOKUP($A130,Filtro!$A$4:$AM$2264,11,FALSE),0) -> 0 | N130: =IFERROR(VLOOKUP($A130,Filtro!$A$4:$AM$2264,12,FALSE),0) -> 0 | O130: =IFERROR(VLOOKUP($A130,Filtro!$A$4:$AM$2264,13,FALSE),0) -> 0 | P130: =IFERROR(VLOOKUP($A130,Filtro!$A$4:$AM$2264,14,FALSE),0) -> 0 | Q130: =IFERROR(VLOOKUP($A130,Filtro!$A$4:$AM$2264,15,FALSE),0) -> 0 | R130: =IFERROR(VLOOKUP($A130,Filtro!$A$4:$AM$2264,16,FALSE),0) -> 0 | AB130: =IFERROR(VLOOKUP($A130,Filtro!$A$4:$AM$2264,26,FALSE),0) -> 0 | AC130: =IFERROR(VLOOKUP($A130,Filtro!$A$4:$AM$2264,27,FALSE),0) -> 238 | AD130: =IFERROR(VLOOKUP($A130,Filtro!$A$4:$AM$2264,28,FALSE),0) -> 0 | AE130: =IFERROR(VLOOKUP($A130,Filtro!$A$4:$AM$2264,29,FALSE),0) -> 0 | AF130: =IFERROR(VLOOKUP($A130,Filtro!$A$4:$AM$2264,30,FALSE),0) -> 0 | AG130: =IFERROR(VLOOKUP($A130,Filtro!$A$4:$AM$2264,31,FALSE),0) -> 0 | AH130: =IFERROR(VLOOKUP($A130,Filtro!$A$4:$AM$2264,32,FALSE),0) -> 0 | AI130: =IFERROR(VLOOKUP($A130,Filtro!$A$4:$AM$2264,33,FALSE),0) -> 0 | AJ130: =IFERROR(VLOOKUP($A130,Filtro!$A$4:$AM$2264,34,FALSE),0) -> 0 | AK130: =IFERROR(VLOOKUP($A130,Filtro!$A$4:$AM$2264,35,FALSE),0) -> 0 | CQ130: 0 | CR130: 0 | CS130: 0 | CU130: 0 | CV130: 0 | CW130: 0 | CY130: 0 | CZ130: 0
A131: 01014373 | B131: 0103005 | C131: Educación de grupo por enfermera | D131: =IFERROR(VLOOKUP($A131,Filtro!$A$4:$AM$2264,2,FALSE),0) -> 38861 | E131: =IFERROR(VLOOKUP($A131,Filtro!$A$4:$AM$2264,3,FALSE),0) -> 38861 | F131: =IFERROR(VLOOKUP($A131,Filtro!$A$4:$AM$2264,4,FALSE),0) -> 38724 | G131: =IFERROR(VLOOKUP($A131,Filtro!$A$4:$AM$2264,5,FALSE),0) -> 137 | H131: =IFERROR(VLOOKUP($A131,Filtro!$A$4:$AM$2264,6,FALSE),0) -> 0 | I131: =IFERROR(VLOOKUP($A131,Filtro!$A$4:$AM$2264,7,FALSE),0) -> 0 | J131: =IFERROR(VLOOKUP($A131,Filtro!$A$4:$AM$2264,8,FALSE),0) -> 0 | K131: =IFERROR(VLOOKUP($A131,Filtro!$A$4:$AM$2264,9,FALSE),0) -> 0 | L131: =IFERROR(VLOOKUP($A131,Filtro!$A$4:$AM$2264,10,FALSE),0) -> 0 | M131: =IFERROR(VLOOKUP($A131,Filtro!$A$4:$AM$2264,11,FALSE),0) -> 0 | N131: =IFERROR(VLOOKUP($A131,Filtro!$A$4:$AM$2264,12,FALSE),0) -> 0 | O131: =IFERROR(VLOOKUP($A131,Filtro!$A$4:$AM$2264,13,FALSE),0) -> 0 | P131: =IFERROR(VLOOKUP($A131,Filtro!$A$4:$AM$2264,14,FALSE),0) -> 0 | Q131: =IFERROR(VLOOKUP($A131,Filtro!$A$4:$AM$2264,15,FALSE),0) -> 0 | R131: =IFERROR(VLOOKUP($A131,Filtro!$A$4:$AM$2264,16,FALSE),0) -> 0 | AB131: =IFERROR(VLOOKUP($A131,Filtro!$A$4:$AM$2264,26,FALSE),0) -> 34733 | AC131: =IFERROR(VLOOKUP($A131,Filtro!$A$4:$AM$2264,27,FALSE),0) -> 4124 | AD131: =IFERROR(VLOOKUP($A131,Filtro!$A$4:$AM$2264,28,FALSE),0) -> 4 | AE131: =IFERROR(VLOOKUP($A131,Filtro!$A$4:$AM$2264,29,FALSE),0) -> 4 | AF131: =IFERROR(VLOOKUP($A131,Filtro!$A$4:$AM$2264,30,FALSE),0) -> 4 | AG131: =IFERROR(VLOOKUP($A131,Filtro!$A$4:$AM$2264,31,FALSE),0) -> 4 | AH131: =IFERROR(VLOOKUP($A131,Filtro!$A$4:$AM$2264,32,FALSE),0) -> 4 | AI131: =IFERROR(VLOOKUP($A131,Filtro!$A$4:$AM$2264,33,FALSE),0) -> 4 | AJ131: =IFERROR(VLOOKUP($A131,Filtro!$A$4:$AM$2264,34,FALSE),0) -> 4 | AK131: =IFERROR(VLOOKUP($A131,Filtro!$A$4:$AM$2264,35,FALSE),0) -> 4 | CQ131: 0 | CR131: 0 | CS131: 0 | CU131: 0 | CV131: 0 | CW131: 0 | CY131: 0 | CZ131: 0
A132: 01014374 | B132: 0103006 | C132: Educación de grupo por matrona | D132: =IFERROR(VLOOKUP($A132,Filtro!$A$4:$AM$2264,2,FALSE),0) -> 1115 | E132: =IFERROR(VLOOKUP($A132,Filtro!$A$4:$AM$2264,3,FALSE),0) -> 1115 | F132: =IFERROR(VLOOKUP($A132,Filtro!$A$4:$AM$2264,4,FALSE),0) -> 1115 | G132: =IFERROR(VLOOKUP($A132,Filtro!$A$4:$AM$2264,5,FALSE),0) -> 0 | H132: =IFERROR(VLOOKUP($A132,Filtro!$A$4:$AM$2264,6,FALSE),0) -> 0 | I132: =IFERROR(VLOOKUP($A132,Filtro!$A$4:$AM$2264,7,FALSE),0) -> 0 | J132: =IFERROR(VLOOKUP($A132,Filtro!$A$4:$AM$2264,8,FALSE),0) -> 0 | K132: =IFERROR(VLOOKUP($A132,Filtro!$A$4:$AM$2264,9,FALSE),0) -> 0 | L132: =IFERROR(VLOOKUP($A132,Filtro!$A$4:$AM$2264,10,FALSE),0) -> 0 | M132: =IFERROR(VLOOKUP($A132,Filtro!$A$4:$AM$2264,11,FALSE),0) -> 0 | N132: =IFERROR(VLOOKUP($A132,Filtro!$A$4:$AM$2264,12,FALSE),0) -> 0 | O132: =IFERROR(VLOOKUP($A132,Filtro!$A$4:$AM$2264,13,FALSE),0) -> 0 | P132: =IFERROR(VLOOKUP($A132,Filtro!$A$4:$AM$2264,14,FALSE),0) -> 0 | Q132: =IFERROR(VLOOKUP($A132,Filtro!$A$4:$AM$2264,15,FALSE),0) -> 0 | R132: =IFERROR(VLOOKUP($A132,Filtro!$A$4:$AM$2264,16,FALSE),0) -> 0 | AB132: =IFERROR(VLOOKUP($A132,Filtro!$A$4:$AM$2264,26,FALSE),0) -> 277 | AC132: =IFERROR(VLOOKUP($A132,Filtro!$A$4:$AM$2264,27,FALSE),0) -> 838 | AD132: =IFERROR(VLOOKUP($A132,Filtro!$A$4:$AM$2264,28,FALSE),0) -> 1 | AE132: =IFERROR(VLOOKUP($A132,Filtro!$A$4:$AM$2264,29,FALSE),0) -> 0 | AF132: =IFERROR(VLOOKUP($A132,Filtro!$A$4:$AM$2264,30,FALSE),0) -> 0 | AG132: =IFERROR(VLOOKUP($A132,Filtro!$A$4:$AM$2264,31,FALSE),0) -> 0 | AH132: =IFERROR(VLOOKUP($A132,Filtro!$A$4:$AM$2264,32,FALSE),0) -> 0 | AI132: =IFERROR(VLOOKUP($A132,Filtro!$A$4:$AM$2264,33,FALSE),0) -> 0 | AJ132: =IFERROR(VLOOKUP($A132,Filtro!$A$4:$AM$2264,34,FALSE),0) -> 0 | AK132: =IFERROR(VLOOKUP($A132,Filtro!$A$4:$AM$2264,35,FALSE),0) -> 0 | CQ132: 0 | CR132: 0 | CS132: 0 | CU132: 0 | CV132: 0 | CW132: 0 | CY132: 0 | CZ132: 0
A133: 01014375 | B133: 0103007 | C133: Educación de grupo por nutricionista | D133: =IFERROR(VLOOKUP($A133,Filtro!$A$4:$AM$2264,2,FALSE),0) -> 173 | E133: =IFERROR(VLOOKUP($A133,Filtro!$A$4:$AM$2264,3,FALSE),0) -> 173 | F133: =IFERROR(VLOOKUP($A133,Filtro!$A$4:$AM$2264,4,FALSE),0) -> 173 | G133: =IFERROR(VLOOKUP($A133,Filtro!$A$4:$AM$2264,5,FALSE),0) -> 0 | H133: =IFERROR(VLOOKUP($A133,Filtro!$A$4:$AM$2264,6,FALSE),0) -> 0 | I133: =IFERROR(VLOOKUP($A133,Filtro!$A$4:$AM$2264,7,FALSE),0) -> 0 | J133: =IFERROR(VLOOKUP($A133,Filtro!$A$4:$AM$2264,8,FALSE),0) -> 0 | K133: =IFERROR(VLOOKUP($A133,Filtro!$A$4:$AM$2264,9,FALSE),0) -> 0 | L133: =IFERROR(VLOOKUP($A133,Filtro!$A$4:$AM$2264,10,FALSE),0) -> 0 | M133: =IFERROR(VLOOKUP($A133,Filtro!$A$4:$AM$2264,11,FALSE),0) -> 0 | N133: =IFERROR(VLOOKUP($A133,Filtro!$A$4:$AM$2264,12,FALSE),0) -> 0 | O133: =IFERROR(VLOOKUP($A133,Filtro!$A$4:$AM$2264,13,FALSE),0) -> 0 | P133: =IFERROR(VLOOKUP($A133,Filtro!$A$4:$AM$2264,14,FALSE),0) -> 0 | Q133: =IFERROR(VLOOKUP($A133,Filtro!$A$4:$AM$2264,15,FALSE),0) -> 0 | R133: =IFERROR(VLOOKUP($A133,Filtro!$A$4:$AM$2264,16,FALSE),0) -> 0 | AB133: =IFERROR(VLOOKUP($A133,Filtro!$A$4:$AM$2264,26,FALSE),0) -> 4 | AC133: =IFERROR(VLOOKUP($A133,Filtro!$A$4:$AM$2264,27,FALSE),0) -> 159 | AD133: =IFERROR(VLOOKUP($A133,Filtro!$A$4:$AM$2264,28,FALSE),0) -> 4 | AE133: =IFERROR(VLOOKUP($A133,Filtro!$A$4:$AM$2264,29,FALSE),0) -> 4 | AF133: =IFERROR(VLOOKUP($A133,Filtro!$A$4:$AM$2264,30,FALSE),0) -> 4 | AG133: =IFERROR(VLOOKUP($A133,Filtro!$A$4:$AM$2264,31,FALSE),0) -> 4 | AH133: =IFERROR(VLOOKUP($A133,Filtro!$A$4:$AM$2264,32,FALSE),0) -> 4 | AI133: =IFERROR(VLOOKUP($A133,Filtro!$A$4:$AM$2264,33,FALSE),0) -> 4 | AJ133: =IFERROR(VLOOKUP($A133,Filtro!$A$4:$AM$2264,34,FALSE),0) -> 4 | AK133: =IFERROR(VLOOKUP($A133,Filtro!$A$4:$AM$2264,35,FALSE),0) -> 4 | CQ133: 0 | CR133: 0 | CS133: 0 | CU133: 0 | CV133: 0 | CW133: 0 | CY133: 0 | CZ133: 0
A134: 01010033 | B134: 01010033 | C134: Educación de grupo por otro integrante del equipo de salud | D134: =IFERROR(VLOOKUP($A134,Filtro!$A$4:$AM$2264,2,FALSE),0) -> 3352 | E134: =IFERROR(VLOOKUP($A134,Filtro!$A$4:$AM$2264,3,FALSE),0) -> 3352 | F134: =IFERROR(VLOOKUP($A134,Filtro!$A$4:$AM$2264,4,FALSE),0) -> 3352 | G134: =IFERROR(VLOOKUP($A134,Filtro!$A$4:$AM$2264,5,FALSE),0) -> 0 | H134: =IFERROR(VLOOKUP($A134,Filtro!$A$4:$AM$2264,6,FALSE),0) -> 0 | AB134: =IFERROR(VLOOKUP($A134,Filtro!$A$4:$AM$2264,26,FALSE),0) -> 570 | AC134: =IFERROR(VLOOKUP($A134,Filtro!$A$4:$AM$2264,27,FALSE),0) -> 2773 | AD134: =IFERROR(VLOOKUP($A134,Filtro!$A$4:$AM$2264,28,FALSE),0) -> 4 | AE134: =IFERROR(VLOOKUP($A134,Filtro!$A$4:$AM$2264,29,FALSE),0) -> 4 | AF134: =IFERROR(VLOOKUP($A134,Filtro!$A$4:$AM$2264,30,FALSE),0) -> 4 | AG134: =IFERROR(VLOOKUP($A134,Filtro!$A$4:$AM$2264,31,FALSE),0) -> 4 | AH134: =IFERROR(VLOOKUP($A134,Filtro!$A$4:$AM$2264,32,FALSE),0) -> 4 | AI134: =IFERROR(VLOOKUP($A134,Filtro!$A$4:$AM$2264,33,FALSE),0) -> 4 | AJ134: =IFERROR(VLOOKUP($A134,Filtro!$A$4:$AM$2264,34,FALSE),0) -> 4 | AK134: =IFERROR(VLOOKUP($A134,Filtro!$A$4:$AM$2264,35,FALSE),0) -> 4 | CQ134: 0 | CR134: 0 | CS134: 0 | CU134: 0 | CV134: 0 | CW134: 0 | CY134: 0 | CZ134: 0
B135: TOTAL | D135: =IFERROR(VLOOKUP($A135,Filtro!$A$4:$AM$2264,2,FALSE),0) -> 0 | E135: =IFERROR(VLOOKUP($A135,Filtro!$A$4:$AM$2264,3,FALSE),0) -> 0 | F135: =IFERROR(VLOOKUP($A135,Filtro!$A$4:$AM$2264,4,FALSE),0) -> 0 | G135: =IFERROR(VLOOKUP($A135,Filtro!$A$4:$AM$2264,5,FALSE),0) -> 0 | H135: =IFERROR(VLOOKUP($A135,Filtro!$A$4:$AM$2264,6,FALSE),0) -> 0 | I135: =IFERROR(VLOOKUP($A135,Filtro!$A$4:$AM$2264,7,FALSE),0) -> 0 | AB135: =SUM(AB128:AB134) -> 35588 | AC135: =SUM(AC128:AC134) -> 8657 | AD135: 17 | AE135: 16 | AF135: 16 | AG135: 16 | AH135: 16 | AI135: 16 | AJ135: 16 | AK135: =SUM(AK128:AK134) -> 16
B136: VISITAS DOMICILIARIAS | D136: =IFERROR(VLOOKUP($A136,Filtro!$A$4:$AM$2264,2,FALSE),0) -> 0
A137: 01010035 | B137: 0104002 | C137: Visita a domicilio por trabajador/a social | D137: =IFERROR(VLOOKUP($A137,Filtro!$A$4:$AM$2264,2,FALSE),0) -> 2666 | E137: =IFERROR(VLOOKUP($A137,Filtro!$A$4:$AM$2264,3,FALSE),0) -> 2663 | F137: =IFERROR(VLOOKUP($A137,Filtro!$A$4:$AM$2264,4,FALSE),0) -> 2663 | G137: =IFERROR(VLOOKUP($A137,Filtro!$A$4:$AM$2264,5,FALSE),0) -> 0 | H137: =IFERROR(VLOOKUP($A137,Filtro!$A$4:$AM$2264,6,FALSE),0) -> 3 | I137: =IFERROR(VLOOKUP($A137,Filtro!$A$4:$AM$2264,7,FALSE),0) -> 0 | J137: =IFERROR(VLOOKUP($A137,Filtro!$A$4:$AM$2264,8,FALSE),0) -> 0 | K137: =IFERROR(VLOOKUP($A137,Filtro!$A$4:$AM$2264,9,FALSE),0) -> 0 | L137: =IFERROR(VLOOKUP($A137,Filtro!$A$4:$AM$2264,10,FALSE),0) -> 0 | M137: =IFERROR(VLOOKUP($A137,Filtro!$A$4:$AM$2264,11,FALSE),0) -> 0 | N137: =IFERROR(VLOOKUP($A137,Filtro!$A$4:$AM$2264,12,FALSE),0) -> 0 | O137: =IFERROR(VLOOKUP($A137,Filtro!$A$4:$AM$2264,13,FALSE),0) -> 0 | P137: =IFERROR(VLOOKUP($A137,Filtro!$A$4:$AM$2264,14,FALSE),0) -> 0 | Q137: =IFERROR(VLOOKUP($A137,Filtro!$A$4:$AM$2264,15,FALSE),0) -> 0 | R137: =IFERROR(VLOOKUP($A137,Filtro!$A$4:$AM$2264,16,FALSE),0) -> 0 | S137: =IFERROR(VLOOKUP($A137,Filtro!$A$4:$AM$2264,17,FALSE),0) -> 0 | AB137: =IFERROR(VLOOKUP($A137,Filtro!$A$4:$AM$2264,26,FALSE),0) -> 105 | AC137: =IFERROR(VLOOKUP($A137,Filtro!$A$4:$AM$2264,27,FALSE),0) -> 2561 | AD137: =IFERROR(VLOOKUP($A137,Filtro!$A$4:$AM$2264,28,FALSE),0) -> 0 | AE137: =IFERROR(VLOOKUP($A137,Filtro!$A$4:$AM$2264,29,FALSE),0) -> 0 | AF137: =IFERROR(VLOOKUP($A137,Filtro!$A$4:$AM$2264,30,FALSE),0) -> 0 | AG137: =IFERROR(VLOOKUP($A137,Filtro!$A$4:$AM$2264,31,FALSE),0) -> 0 | AH137: =IFERROR(VLOOKUP($A137,Filtro!$A$4:$AM$2264,32,FALSE),0) -> 0 | AI137: =IFERROR(VLOOKUP($A137,Filtro!$A$4:$AM$2264,33,FALSE),0) -> 0 | AJ137: =IFERROR(VLOOKUP($A137,Filtro!$A$4:$AM$2264,34,FALSE),0) -> 0 | AK137: =IFERROR(VLOOKUP($A137,Filtro!$A$4:$AM$2264,35,FALSE),0) -> 0 | CQ137: 0 | CR137: 0 | CS137: 0 | CU137: 0 | CV137: 0 | CW137: 0 | CY137: 0 | CZ137: 0
A138: 01010036 | B138: 0104003 | C138: Visita a domicilio por auxiliar de enfermería | D138: =IFERROR(VLOOKUP($A138,Filtro!$A$4:$AM$2264,2,FALSE),0) -> 13223 | E138: =IFERROR(VLOOKUP($A138,Filtro!$A$4:$AM$2264,3,FALSE),0) -> 13223 | F138: =IFERROR(VLOOKUP($A138,Filtro!$A$4:$AM$2264,4,FALSE),0) -> 13223 | G138: =IFERROR(VLOOKUP($A138,Filtro!$A$4:$AM$2264,5,FALSE),0) -> 0 | H138: =IFERROR(VLOOKUP($A138,Filtro!$A$4:$AM$2264,6,FALSE),0) -> 0 | AB138: =IFERROR(VLOOKUP($A138,Filtro!$A$4:$AM$2264,26,FALSE),0) -> 11424 | AC138: =IFERROR(VLOOKUP($A138,Filtro!$A$4:$AM$2264,27,FALSE),0) -> 1799 | AD138: =IFERROR(VLOOKUP($A138,Filtro!$A$4:$AM$2264,28,FALSE),0) -> 0 | AE138: =IFERROR(VLOOKUP($A138,Filtro!$A$4:$AM$2264,29,FALSE),0) -> 0 | AF138: =IFERROR(VLOOKUP($A138,Filtro!$A$4:$AM$2264,30,FALSE),0) -> 0 | AG138: =IFERROR(VLOOKUP($A138,Filtro!$A$4:$AM$2264,31,FALSE),0) -> 0 | AH138: =IFERROR(VLOOKUP($A138,Filtro!$A$4:$AM$2264,32,FALSE),0) -> 0 | AI138: =IFERROR(VLOOKUP($A138,Filtro!$A$4:$AM$2264,33,FALSE),0) -> 0 | AJ138: =IFERROR(VLOOKUP($A138,Filtro!$A$4:$AM$2264,34,FALSE),0) -> 0 | AK138: =IFERROR(VLOOKUP($A138,Filtro!$A$4:$AM$2264,35,FALSE),0) -> 0 | CQ138: 0 | CR138: 0 | CS138: 0 | CU138: 0 | CV138: 0 | CW138: 0 | CY138: 0 | CZ138: 0
A139: 01014376 | B139: 0104004 | C139: Visita a domicilio por enfermera | D139: =IFERROR(VLOOKUP($A139,Filtro!$A$4:$AM$2264,2,FALSE),0) -> 28616 | E139: =IFERROR(VLOOKUP($A139,Filtro!$A$4:$AM$2264,3,FALSE),0) -> 28567 | F139: =IFERROR(VLOOKUP($A139,Filtro!$A$4:$AM$2264,4,FALSE),0) -> 28567 | G139: =IFERROR(VLOOKUP($A139,Filtro!$A$4:$AM$2264,5,FALSE),0) -> 0 | H139: =IFERROR(VLOOKUP($A139,Filtro!$A$4:$AM$2264,6,FALSE),0) -> 49 | I139: =IFERROR(VLOOKUP($A139,Filtro!$A$4:$AM$2264,7,FALSE),0) -> 0 | J139: =IFERROR(VLOOKUP($A139,Filtro!$A$4:$AM$2264,8,FALSE),0) -> 0 | K139: =IFERROR(VLOOKUP($A139,Filtro!$A$4:$AM$2264,9,FALSE),0) -> 0 | L139: =IFERROR(VLOOKUP($A139,Filtro!$A$4:$AM$2264,10,FALSE),0) -> 0 | M139: =IFERROR(VLOOKUP($A139,Filtro!$A$4:$AM$2264,11,FALSE),0) -> 0 | N139: =IFERROR(VLOOKUP($A139,Filtro!$A$4:$AM$2264,12,FALSE),0) -> 0 | O139: =IFERROR(VLOOKUP($A139,Filtro!$A$4:$AM$2264,13,FALSE),0) -> 0 | P139: =IFERROR(VLOOKUP($A139,Filtro!$A$4:$AM$2264,14,FALSE),0) -> 0 | Q139: =IFERROR(VLOOKUP($A139,Filtro!$A$4:$AM$2264,15,FALSE),0) -> 0 | R139: =IFERROR(VLOOKUP($A139,Filtro!$A$4:$AM$2264,16,FALSE),0) -> 0 | S139: =IFERROR(VLOOKUP($A139,Filtro!$A$4:$AM$2264,17,FALSE),0) -> 0 | AB139: =IFERROR(VLOOKUP($A139,Filtro!$A$4:$AM$2264,26,FALSE),0) -> 19679 | AC139: =IFERROR(VLOOKUP($A139,Filtro!$A$4:$AM$2264,27,FALSE),0) -> 8254 | AD139: =IFERROR(VLOOKUP($A139,Filtro!$A$4:$AM$2264,28,FALSE),0) -> 0 | AE139: =IFERROR(VLOOKUP($A139,Filtro!$A$4:$AM$2264,29,FALSE),0) -> 0 | AF139: =IFERROR(VLOOKUP($A139,Filtro!$A$4:$AM$2264,30,FALSE),0) -> 0 | AG139: =IFERROR(VLOOKUP($A139,Filtro!$A$4:$AM$2264,31,FALSE),0) -> 0 | AH139: =IFERROR(VLOOKUP($A139,Filtro!$A$4:$AM$2264,32,FALSE),0) -> 0 | AI139: =IFERROR(VLOOKUP($A139,Filtro!$A$4:$AM$2264,33,FALSE),0) -> 0 | AJ139: =IFERROR(VLOOKUP($A139,Filtro!$A$4:$AM$2264,34,FALSE),0) -> 0 | AK139: =IFERROR(VLOOKUP($A139,Filtro!$A$4:$AM$2264,35,FALSE),0) -> 0 | CQ139: 0 | CR139: 0 | CS139: 0 | CU139: 0 | CV139: 0 | CW139: 0 | CY139: 0 | CZ139: 0
A140: 01014377 | B140: 0104005 | C140: Visita a domicilio por matrona | D140: =IFERROR(VLOOKUP($A140,Filtro!$A$4:$AM$2264,2,FALSE),0) -> 161 | E140: =IFERROR(VLOOKUP($A140,Filtro!$A$4:$AM$2264,3,FALSE),0) -> 161 | F140: =IFERROR(VLOOKUP($A140,Filtro!$A$4:$AM$2264,4,FALSE),0) -> 161 | G140: =IFERROR(VLOOKUP($A140,Filtro!$A$4:$AM$2264,5,FALSE),0) -> 0 | H140: =IFERROR(VLOOKUP($A140,Filtro!$A$4:$AM$2264,6,FALSE),0) -> 0 | I140: =IFERROR(VLOOKUP($A140,Filtro!$A$4:$AM$2264,7,FALSE),0) -> 0 | J140: =IFERROR(VLOOKUP($A140,Filtro!$A$4:$AM$2264,8,FALSE),0) -> 0 | K140: =IFERROR(VLOOKUP($A140,Filtro!$A$4:$AM$2264,9,FALSE),0) -> 0 | L140: =IFERROR(VLOOKUP($A140,Filtro!$A$4:$AM$2264,10,FALSE),0) -> 0 | M140: =IFERROR(VLOOKUP($A140,Filtro!$A$4:$AM$2264,11,FALSE),0) -> 0 | N140: =IFERROR(VLOOKUP($A140,Filtro!$A$4:$AM$2264,12,FALSE),0) -> 0 | O140: =IFERROR(VLOOKUP($A140,Filtro!$A$4:$AM$2264,13,FALSE),0) -> 0 | P140: =IFERROR(VLOOKUP($A140,Filtro!$A$4:$AM$2264,14,FALSE),0) -> 0 | Q140: =IFERROR(VLOOKUP($A140,Filtro!$A$4:$AM$2264,15,FALSE),0) -> 0 | R140: =IFERROR(VLOOKUP($A140,Filtro!$A$4:$AM$2264,16,FALSE),0) -> 0 | S140: =IFERROR(VLOOKUP($A140,Filtro!$A$4:$AM$2264,17,FALSE),0) -> 0 | AB140: =IFERROR(VLOOKUP($A140,Filtro!$A$4:$AM$2264,26,FALSE),0) -> 0 | AC140: =IFERROR(VLOOKUP($A140,Filtro!$A$4:$AM$2264,27,FALSE),0) -> 161 | AD140: =IFERROR(VLOOKUP($A140,Filtro!$A$4:$AM$2264,28,FALSE),0) -> 0 | AE140: =IFERROR(VLOOKUP($A140,Filtro!$A$4:$AM$2264,29,FALSE),0) -> 0 | AF140: =IFERROR(VLOOKUP($A140,Filtro!$A$4:$AM$2264,30,FALSE),0) -> 0 | AG140: =IFERROR(VLOOKUP($A140,Filtro!$A$4:$AM$2264,31,FALSE),0) -> 0 | AH140: =IFERROR(VLOOKUP($A140,Filtro!$A$4:$AM$2264,32,FALSE),0) -> 0 | AI140: =IFERROR(VLOOKUP($A140,Filtro!$A$4:$AM$2264,33,FALSE),0) -> 0 | AJ140: =IFERROR(VLOOKUP($A140,Filtro!$A$4:$AM$2264,34,FALSE),0) -> 0 | AK140: =IFERROR(VLOOKUP($A140,Filtro!$A$4:$AM$2264,35,FALSE),0) -> 0 | CQ140: 0 | CR140: 0 | CS140: 0 | CU140: 0 | CV140: 0 | CW140: 0 | CY140: 0 | CZ140: 0
A141: 01014378 | B141: 0104006 | C141: Visita a domicilio por nutricionista | D141: =IFERROR(VLOOKUP($A141,Filtro!$A$4:$AM$2264,2,FALSE),0) -> 1210 | E141: =IFERROR(VLOOKUP($A141,Filtro!$A$4:$AM$2264,3,FALSE),0) -> 1210 | F141: =IFERROR(VLOOKUP($A141,Filtro!$A$4:$AM$2264,4,FALSE),0) -> 1210 | G141: =IFERROR(VLOOKUP($A141,Filtro!$A$4:$AM$2264,5,FALSE),0) -> 0 | H141: =IFERROR(VLOOKUP($A141,Filtro!$A$4:$AM$2264,6,FALSE),0) -> 0 | I141: =IFERROR(VLOOKUP($A141,Filtro!$A$4:$AM$2264,7,FALSE),0) -> 0 | J141: =IFERROR(VLOOKUP($A141,Filtro!$A$4:$AM$2264,8,FALSE),0) -> 0 | K141: =IFERROR(VLOOKUP($A141,Filtro!$A$4:$AM$2264,9,FALSE),0) -> 0 | L141: =IFERROR(VLOOKUP($A141,Filtro!$A$4:$AM$2264,10,FALSE),0) -> 0 | M141: =IFERROR(VLOOKUP($A141,Filtro!$A$4:$AM$2264,11,FALSE),0) -> 0 | N141: =IFERROR(VLOOKUP($A141,Filtro!$A$4:$AM$2264,12,FALSE),0) -> 0 | O141: =IFERROR(VLOOKUP($A141,Filtro!$A$4:$AM$2264,13,FALSE),0) -> 0 | P141: =IFERROR(VLOOKUP($A141,Filtro!$A$4:$AM$2264,14,FALSE),0) -> 0 | Q141: =IFERROR(VLOOKUP($A141,Filtro!$A$4:$AM$2264,15,FALSE),0) -> 0 | R141: =IFERROR(VLOOKUP($A141,Filtro!$A$4:$AM$2264,16,FALSE),0) -> 0 | S141: =IFERROR(VLOOKUP($A141,Filtro!$A$4:$AM$2264,17,FALSE),0) -> 0 | AB141: =IFERROR(VLOOKUP($A141,Filtro!$A$4:$AM$2264,26,FALSE),0) -> 550 | AC141: =IFERROR(VLOOKUP($A141,Filtro!$A$4:$AM$2264,27,FALSE),0) -> 660 | AD141: =IFERROR(VLOOKUP($A141,Filtro!$A$4:$AM$2264,28,FALSE),0) -> 0 | AE141: =IFERROR(VLOOKUP($A141,Filtro!$A$4:$AM$2264,29,FALSE),0) -> 0 | AF141: =IFERROR(VLOOKUP($A141,Filtro!$A$4:$AM$2264,30,FALSE),0) -> 0 | AG141: =IFERROR(VLOOKUP($A141,Filtro!$A$4:$AM$2264,31,FALSE),0) -> 0 | AH141: =IFERROR(VLOOKUP($A141,Filtro!$A$4:$AM$2264,32,FALSE),0) -> 0 | AI141: =IFERROR(VLOOKUP($A141,Filtro!$A$4:$AM$2264,33,FALSE),0) -> 0 | AJ141: =IFERROR(VLOOKUP($A141,Filtro!$A$4:$AM$2264,34,FALSE),0) -> 0 | AK141: =IFERROR(VLOOKUP($A141,Filtro!$A$4:$AM$2264,35,FALSE),0) -> 0 | CQ141: 0 | CR141: 0 | CS141: 0 | CU141: 0 | CV141: 0 | CW141: 0 | CY141: 0 | CZ141: 0
A142: 01010037 | B142: 01010037 | C142: Visita a domicilio por otro integrante del equipo de salud | D142: =IFERROR(VLOOKUP($A142,Filtro!$A$4:$AM$2264,2,FALSE),0) -> 25122 | E142: =IFERROR(VLOOKUP($A142,Filtro!$A$4:$AM$2264,3,FALSE),0) -> 25113 | F142: =IFERROR(VLOOKUP($A142,Filtro!$A$4:$AM$2264,4,FALSE),0) -> 25058 | G142: =IFERROR(VLOOKUP($A142,Filtro!$A$4:$AM$2264,5,FALSE),0) -> 55 | H142: =IFERROR(VLOOKUP($A142,Filtro!$A$4:$AM$2264,6,FALSE),0) -> 9 | I142: =IFERROR(VLOOKUP($A142,Filtro!$A$4:$AM$2264,7,FALSE),0) -> 0 | J142: =IFERROR(VLOOKUP($A142,Filtro!$A$4:$AM$2264,8,FALSE),0) -> 0 | K142: =IFERROR(VLOOKUP($A142,Filtro!$A$4:$AM$2264,9,FALSE),0) -> 0 | L142: =IFERROR(VLOOKUP($A142,Filtro!$A$4:$AM$2264,10,FALSE),0) -> 0 | M142: =IFERROR(VLOOKUP($A142,Filtro!$A$4:$AM$2264,11,FALSE),0) -> 0 | N142: =IFERROR(VLOOKUP($A142,Filtro!$A$4:$AM$2264,12,FALSE),0) -> 0 | O142: =IFERROR(VLOOKUP($A142,Filtro!$A$4:$AM$2264,13,FALSE),0) -> 0 | P142: =IFERROR(VLOOKUP($A142,Filtro!$A$4:$AM$2264,14,FALSE),0) -> 0 | Q142: =IFERROR(VLOOKUP($A142,Filtro!$A$4:$AM$2264,15,FALSE),0) -> 0 | R142: =IFERROR(VLOOKUP($A142,Filtro!$A$4:$AM$2264,16,FALSE),0) -> 0 | S142: =IFERROR(VLOOKUP($A142,Filtro!$A$4:$AM$2264,17,FALSE),0) -> 0 | AB142: =IFERROR(VLOOKUP($A142,Filtro!$A$4:$AM$2264,26,FALSE),0) -> 14957 | AC142: =IFERROR(VLOOKUP($A142,Filtro!$A$4:$AM$2264,27,FALSE),0) -> 10165 | AD142: =IFERROR(VLOOKUP($A142,Filtro!$A$4:$AM$2264,28,FALSE),0) -> 0 | AE142: =IFERROR(VLOOKUP($A142,Filtro!$A$4:$AM$2264,29,FALSE),0) -> 0 | AF142: =IFERROR(VLOOKUP($A142,Filtro!$A$4:$AM$2264,30,FALSE),0) -> 0 | AG142: =IFERROR(VLOOKUP($A142,Filtro!$A$4:$AM$2264,31,FALSE),0) -> 0 | AH142: =IFERROR(VLOOKUP($A142,Filtro!$A$4:$AM$2264,32,FALSE),0) -> 0 | AI142: =IFERROR(VLOOKUP($A142,Filtro!$A$4:$AM$2264,33,FALSE),0) -> 0 | AJ142: =IFERROR(VLOOKUP($A142,Filtro!$A$4:$AM$2264,34,FALSE),0) -> 0 | AK142: =IFERROR(VLOOKUP($A142,Filtro!$A$4:$AM$2264,35,FALSE),0) -> 0 | CQ142: 0 | CR142: 0 | CS142: 0 | CU142: 0 | CV142: 0 | CW142: 0 | CY142: 0 | CZ142: 0
A143: 01010038 | B143: 01010038 | C143: Visita domiciaria por otro profesional y técnicos paramédico | D143: =IFERROR(VLOOKUP($A143,Filtro!$A$4:$AM$2264,2,FALSE),0) -> 15984 | E143: =IFERROR(VLOOKUP($A143,Filtro!$A$4:$AM$2264,3,FALSE),0) -> 15984 | F143: =IFERROR(VLOOKUP($A143,Filtro!$A$4:$AM$2264,4,FALSE),0) -> 15959 | G143: =IFERROR(VLOOKUP($A143,Filtro!$A$4:$AM$2264,5,FALSE),0) -> 25 | H143: =IFERROR(VLOOKUP($A143,Filtro!$A$4:$AM$2264,6,FALSE),0) -> 0 | I143: =IFERROR(VLOOKUP($A143,Filtro!$A$4:$AM$2264,7,FALSE),0) -> 0 | J143: =IFERROR(VLOOKUP($A143,Filtro!$A$4:$AM$2264,8,FALSE),0) -> 0 | K143: =IFERROR(VLOOKUP($A143,Filtro!$A$4:$AM$2264,9,FALSE),0) -> 0 | L143: =IFERROR(VLOOKUP($A143,Filtro!$A$4:$AM$2264,10,FALSE),0) -> 0 | M143: =IFERROR(VLOOKUP($A143,Filtro!$A$4:$AM$2264,11,FALSE),0) -> 0 | N143: =IFERROR(VLOOKUP($A143,Filtro!$A$4:$AM$2264,12,FALSE),0) -> 0 | O143: =IFERROR(VLOOKUP($A143,Filtro!$A$4:$AM$2264,13,FALSE),0) -> 0 | P143: =IFERROR(VLOOKUP($A143,Filtro!$A$4:$AM$2264,14,FALSE),0) -> 0 | Q143: =IFERROR(VLOOKUP($A143,Filtro!$A$4:$AM$2264,15,FALSE),0) -> 0 | R143: =IFERROR(VLOOKUP($A143,Filtro!$A$4:$AM$2264,16,FALSE),0) -> 0 | AB143: =IFERROR(VLOOKUP($A143,Filtro!$A$4:$AM$2264,26,FALSE),0) -> 12449 | AC143: =IFERROR(VLOOKUP($A143,Filtro!$A$4:$AM$2264,27,FALSE),0) -> 1760 | AD143: =IFERROR(VLOOKUP($A143,Filtro!$A$4:$AM$2264,28,FALSE),0) -> 0 | AE143: =IFERROR(VLOOKUP($A143,Filtro!$A$4:$AM$2264,29,FALSE),0) -> 0 | AF143: =IFERROR(VLOOKUP($A143,Filtro!$A$4:$AM$2264,30,FALSE),0) -> 0 | AG143: =IFERROR(VLOOKUP($A143,Filtro!$A$4:$AM$2264,31,FALSE),0) -> 0 | AH143: =IFERROR(VLOOKUP($A143,Filtro!$A$4:$AM$2264,32,FALSE),0) -> 0 | AI143: =IFERROR(VLOOKUP($A143,Filtro!$A$4:$AM$2264,33,FALSE),0) -> 0 | AJ143: =IFERROR(VLOOKUP($A143,Filtro!$A$4:$AM$2264,34,FALSE),0) -> 0 | AK143: =IFERROR(VLOOKUP($A143,Filtro!$A$4:$AM$2264,35,FALSE),0) -> 0 | CQ143: 0 | CR143: 0 | CS143: 0 | CU143: 0 | CV143: 0 | CW143: 0 | CY143: 0 | CZ143: 0
B144: TOTAL | D144: =IFERROR(VLOOKUP($A144,Filtro!$A$4:$AM$2264,2,FALSE),0) -> 0 | E144: =IFERROR(VLOOKUP($A144,Filtro!$A$4:$AM$2264,3,FALSE),0) -> 0 | F144: =IFERROR(VLOOKUP($A144,Filtro!$A$4:$AM$2264,4,FALSE),0) -> 0 | G144: =IFERROR(VLOOKUP($A144,Filtro!$A$4:$AM$2264,5,FALSE),0) -> 0 | H144: =IFERROR(VLOOKUP($A144,Filtro!$A$4:$AM$2264,6,FALSE),0) -> 0 | I144: =IFERROR(VLOOKUP($A144,Filtro!$A$4:$AM$2264,7,FALSE),0) -> 0 | AB144: =SUM(AB137:AB143) -> 59164 | AC144: =SUM(AC137:AC143) -> 25360 | AD144: 0 | AE144: 0 | AF144: 0 | AG144: 0 | AH144: 0 | AI144: 0 | AJ144: 0 | AK144: 0
B145: MISCELÁNEOS | D145: =IFERROR(VLOOKUP($A145,Filtro!$A$4:$AM$2264,2,FALSE),0) -> 0
A146: 01010042 | B146: 0106002 | C146: Curación simple ambulatoria | D146: =IFERROR(VLOOKUP($A146,Filtro!$A$4:$AM$2264,2,FALSE),0) -> 36280 | E146: =IFERROR(VLOOKUP($A146,Filtro!$A$4:$AM$2264,3,FALSE),0) -> 36225 | F146: =IFERROR(VLOOKUP($A146,Filtro!$A$4:$AM$2264,4,FALSE),0) -> 36221 | G146: =IFERROR(VLOOKUP($A146,Filtro!$A$4:$AM$2264,5,FALSE),0) -> 4 | H146: =IFERROR(VLOOKUP($A146,Filtro!$A$4:$AM$2264,6,FALSE),0) -> 55 | AB146: =IFERROR(VLOOKUP($A146,Filtro!$A$4:$AM$2264,26,FALSE),0) -> 6372 | AC146: =IFERROR(VLOOKUP($A146,Filtro!$A$4:$AM$2264,27,FALSE),0) -> 25930 | AD146: =IFERROR(VLOOKUP($A146,Filtro!$A$4:$AM$2264,28,FALSE),0) -> 3708 | AE146: =IFERROR(VLOOKUP($A146,Filtro!$A$4:$AM$2264,29,FALSE),0) -> 11 | AF146: =IFERROR(VLOOKUP($A146,Filtro!$A$4:$AM$2264,30,FALSE),0) -> 0 | AG146: =IFERROR(VLOOKUP($A146,Filtro!$A$4:$AM$2264,31,FALSE),0) -> 0 | AH146: =IFERROR(VLOOKUP($A146,Filtro!$A$4:$AM$2264,32,FALSE),0) -> 0 | AI146: =IFERROR(VLOOKUP($A146,Filtro!$A$4:$AM$2264,33,FALSE),0) -> 0 | AJ146: =IFERROR(VLOOKUP($A146,Filtro!$A$4:$AM$2264,34,FALSE),0) -> 0 | AK146: =IFERROR(VLOOKUP($A146,Filtro!$A$4:$AM$2264,35,FALSE),0) -> 0 | CQ146: 0 | CR146: 0 | CS146: 0 | CU146: 0 | CV146: 0 | CW146: 0 | CY146: 0 | CZ146: 0
A147: 01014379 | B147: 0106007 | C147: Oxigenoterapia Hiperbárica (1 sesión) | D147: =IFERROR(VLOOKUP($A147,Filtro!$A$4:$AM$2264,2,FALSE),0) -> 1481 | E147: =IFERROR(VLOOKUP($A147,Filtro!$A$4:$AM$2264,3,FALSE),0) -> 1481 | F147: =IFERROR(VLOOKUP($A147,Filtro!$A$4:$AM$2264,4,FALSE),0) -> 1481 | G147: =IFERROR(VLOOKUP($A147,Filtro!$A$4:$AM$2264,5,FALSE),0) -> 0 | H147: =IFERROR(VLOOKUP($A147,Filtro!$A$4:$AM$2264,6,FALSE),0) -> 0 | AB147: =IFERROR(VLOOKUP($A147,Filtro!$A$4:$AM$2264,26,FALSE),0) -> 172 | AC147: =IFERROR(VLOOKUP($A147,Filtro!$A$4:$AM$2264,27,FALSE),0) -> 1309 | AD147: =IFERROR(VLOOKUP($A147,Filtro!$A$4:$AM$2264,28,FALSE),0) -> 0 | AE147: =IFERROR(VLOOKUP($A147,Filtro!$A$4:$AM$2264,29,FALSE),0) -> 0 | AF147: =IFERROR(VLOOKUP($A147,Filtro!$A$4:$AM$2264,30,FALSE),0) -> 0 | AG147: =IFERROR(VLOOKUP($A147,Filtro!$A$4:$AM$2264,31,FALSE),0) -> 0 | AH147: =IFERROR(VLOOKUP($A147,Filtro!$A$4:$AM$2264,32,FALSE),0) -> 0 | AI147: =IFERROR(VLOOKUP($A147,Filtro!$A$4:$AM$2264,33,FALSE),0) -> 0 | AJ147: =IFERROR(VLOOKUP($A147,Filtro!$A$4:$AM$2264,34,FALSE),0) -> 0 | AK147: =IFERROR(VLOOKUP($A147,Filtro!$A$4:$AM$2264,35,FALSE),0) -> 0 | CQ147: 0 | CR147: 0 | CS147: 0 | CU147: 0 | CV147: 0 | CW147: 0 | CY147: 0 | CZ147: 0
A148: 01014705 | B148: 0106101 | C148: Atención Integral de Acupuntura | D148: =IFERROR(VLOOKUP($A148,Filtro!$A$4:$AM$2264,2,FALSE),0) -> 353 | E148: =IFERROR(VLOOKUP($A148,Filtro!$A$4:$AM$2264,3,FALSE),0) -> 353 | F148: =IFERROR(VLOOKUP($A148,Filtro!$A$4:$AM$2264,4,FALSE),0) -> 353 | G148: =IFERROR(VLOOKUP($A148,Filtro!$A$4:$AM$2264,5,FALSE),0) -> 0 | H148: =IFERROR(VLOOKUP($A148,Filtro!$A$4:$AM$2264,6,FALSE),0) -> 0 | AB148: =IFERROR(VLOOKUP($A148,Filtro!$A$4:$AM$2264,26,FALSE),0) -> 0 | AC148: =IFERROR(VLOOKUP($A148,Filtro!$A$4:$AM$2264,27,FALSE),0) -> 353 | AD148: =IFERROR(VLOOKUP($A148,Filtro!$A$4:$AM$2264,28,FALSE),0) -> 0 | AE148: =IFERROR(VLOOKUP($A148,Filtro!$A$4:$AM$2264,29,FALSE),0) -> 0 | AF148: =IFERROR(VLOOKUP($A148,Filtro!$A$4:$AM$2264,30,FALSE),0) -> 0 | AG148: =IFERROR(VLOOKUP($A148,Filtro!$A$4:$AM$2264,31,FALSE),0) -> 0 | AH148: =IFERROR(VLOOKUP($A148,Filtro!$A$4:$AM$2264,32,FALSE),0) -> 0 | AI148: =IFERROR(VLOOKUP($A148,Filtro!$A$4:$AM$2264,33,FALSE),0) -> 0 | AJ148: =IFERROR(VLOOKUP($A148,Filtro!$A$4:$AM$2264,34,FALSE),0) -> 0 | AK148: =IFERROR(VLOOKUP($A148,Filtro!$A$4:$AM$2264,35,FALSE),0) -> 0 | CQ148: 0 | CR148: 0 | CS148: 0 | CU148: 0 | CV148: 0 | CW148: 0 | CY148: 0 | CZ148: 0
A149: 01014706 | B149: 01010043 | C149: Autocontrol pacientes Diabetico insulino dependiente (D.I.D. mensual) | D149: =IFERROR(VLOOKUP($A149,Filtro!$A$4:$AM$2264,2,FALSE),0) -> 14384 | E149: =IFERROR(VLOOKUP($A149,Filtro!$A$4:$AM$2264,3,FALSE),0) -> 14384 | F149: =IFERROR(VLOOKUP($A149,Filtro!$A$4:$AM$2264,4,FALSE),0) -> 14384 | G149: =IFERROR(VLOOKUP($A149,Filtro!$A$4:$AM$2264,5,FALSE),0) -> 0 | H149: =IFERROR(VLOOKUP($A149,Filtro!$A$4:$AM$2264,6,FALSE),0) -> 0 | AB149: =IFERROR(VLOOKUP($A149,Filtro!$A$4:$AM$2264,26,FALSE),0) -> 0 | AC149: =IFERROR(VLOOKUP($A149,Filtro!$A$4:$AM$2264,27,FALSE),0) -> 14384 | AD149: =IFERROR(VLOOKUP($A149,Filtro!$A$4:$AM$2264,28,FALSE),0) -> 0 | AE149: =IFERROR(VLOOKUP($A149,Filtro!$A$4:$AM$2264,29,FALSE),0) -> 0 | AF149: =IFERROR(VLOOKUP($A149,Filtro!$A$4:$AM$2264,30,FALSE),0) -> 0 | AG149: =IFERROR(VLOOKUP($A149,Filtro!$A$4:$AM$2264,31,FALSE),0) -> 0 | AH149: =IFERROR(VLOOKUP($A149,Filtro!$A$4:$AM$2264,32,FALSE),0) -> 0 | AI149: =IFERROR(VLOOKUP($A149,Filtro!$A$4:$AM$2264,33,FALSE),0) -> 0 | AJ149: =IFERROR(VLOOKUP($A149,Filtro!$A$4:$AM$2264,34,FALSE),0) -> 0 | AK149: =IFERROR(VLOOKUP($A149,Filtro!$A$4:$AM$2264,35,FALSE),0) -> 0 | CQ149: 0 | CR149: 0 | CS149: 0 | CU149: 0 | CV149: 0 | CW149: 0 | CY149: 0 | CZ149: 0
A150: 01014707 | B150: 01010044 | C150: Oxigenoterapia domiciliaria (pacientes oxígeno dependientes) | D150: =IFERROR(VLOOKUP($A150,Filtro!$A$4:$AM$2264,2,FALSE),0) -> 610 | E150: =IFERROR(VLOOKUP($A150,Filtro!$A$4:$AM$2264,3,FALSE),0) -> 610 | F150: =IFERROR(VLOOKUP($A150,Filtro!$A$4:$AM$2264,4,FALSE),0) -> 610 | G150: =IFERROR(VLOOKUP($A150,Filtro!$A$4:$AM$2264,5,FALSE),0) -> 0 | H150: =IFERROR(VLOOKUP($A150,Filtro!$A$4:$AM$2264,6,FALSE),0) -> 0 | I150: =IFERROR(VLOOKUP($A150,Filtro!$A$4:$AM$2264,7,FALSE),0) -> 0 | J150: =IFERROR(VLOOKUP($A150,Filtro!$A$4:$AM$2264,8,FALSE),0) -> 0 | K150: =IFERROR(VLOOKUP($A150,Filtro!$A$4:$AM$2264,9,FALSE),0) -> 0 | L150: =IFERROR(VLOOKUP($A150,Filtro!$A$4:$AM$2264,10,FALSE),0) -> 0 | M150: =IFERROR(VLOOKUP($A150,Filtro!$A$4:$AM$2264,11,FALSE),0) -> 0 | N150: =IFERROR(VLOOKUP($A150,Filtro!$A$4:$AM$2264,12,FALSE),0) -> 0 | O150: =IFERROR(VLOOKUP($A150,Filtro!$A$4:$AM$2264,13,FALSE),0) -> 0 | P150: =IFERROR(VLOOKUP($A150,Filtro!$A$4:$AM$2264,14,FALSE),0) -> 0 | Q150: =IFERROR(VLOOKUP($A150,Filtro!$A$4:$AM$2264,15,FALSE),0) -> 0 | R150: =IFERROR(VLOOKUP($A150,Filtro!$A$4:$AM$2264,16,FALSE),0) -> 0 | S150: =IFERROR(VLOOKUP($A150,Filtro!$A$4:$AM$2264,16,FALSE),0) -> 0 | AB150: =IFERROR(VLOOKUP($A150,Filtro!$A$4:$AM$2264,26,FALSE),0) -> 0 | AC150: =IFERROR(VLOOKUP($A150,Filtro!$A$4:$AM$2264,27,FALSE),0) -> 596 | AD150: =IFERROR(VLOOKUP($A150,Filtro!$A$4:$AM$2264,28,FALSE),0) -> 0 | AE150: =IFERROR(VLOOKUP($A150,Filtro!$A$4:$AM$2264,29,FALSE),0) -> 0 | AF150: =IFERROR(VLOOKUP($A150,Filtro!$A$4:$AM$2264,30,FALSE),0) -> 0 | AG150: =IFERROR(VLOOKUP($A150,Filtro!$A$4:$AM$2264,31,FALSE),0) -> 0 | AH150: =IFERROR(VLOOKUP($A150,Filtro!$A$4:$AM$2264,32,FALSE),0) -> 0 | AI150: =IFERROR(VLOOKUP($A150,Filtro!$A$4:$AM$2264,33,FALSE),0) -> 0 | AJ150: =IFERROR(VLOOKUP($A150,Filtro!$A$4:$AM$2264,34,FALSE),0) -> 0 | AK150: =IFERROR(VLOOKUP($A150,Filtro!$A$4:$AM$2264,35,FALSE),0) -> 0 | CQ150: 0 | CR150: 0 | CS150: 0 | CU150: 0 | CV150: 0 | CW150: 0 | CY150: 0 | CZ150: 0
A151: 01010047 | B151: 01010047 | C151: Procedimientos de podología | D151: =IFERROR(VLOOKUP($A151,Filtro!$A$4:$AM$2264,2,FALSE),0) -> 1575 | E151: =IFERROR(VLOOKUP($A151,Filtro!$A$4:$AM$2264,3,FALSE),0) -> 1575 | F151: =IFERROR(VLOOKUP($A151,Filtro!$A$4:$AM$2264,4,FALSE),0) -> 1575 | G151: =IFERROR(VLOOKUP($A151,Filtro!$A$4:$AM$2264,5,FALSE),0) -> 0 | H151: =IFERROR(VLOOKUP($A151,Filtro!$A$4:$AM$2264,6,FALSE),0) -> 0 | I151: =IFERROR(VLOOKUP($A151,Filtro!$A$4:$AM$2264,7,FALSE),0) -> 0 | J151: =IFERROR(VLOOKUP($A151,Filtro!$A$4:$AM$2264,8,FALSE),0) -> 0 | K151: =IFERROR(VLOOKUP($A151,Filtro!$A$4:$AM$2264,9,FALSE),0) -> 0 | L151: =IFERROR(VLOOKUP($A151,Filtro!$A$4:$AM$2264,10,FALSE),0) -> 0 | M151: =IFERROR(VLOOKUP($A151,Filtro!$A$4:$AM$2264,11,FALSE),0) -> 0 | N151: =IFERROR(VLOOKUP($A151,Filtro!$A$4:$AM$2264,12,FALSE),0) -> 0 | O151: =IFERROR(VLOOKUP($A151,Filtro!$A$4:$AM$2264,13,FALSE),0) -> 0 | P151: =IFERROR(VLOOKUP($A151,Filtro!$A$4:$AM$2264,14,FALSE),0) -> 0 | Q151: =IFERROR(VLOOKUP($A151,Filtro!$A$4:$AM$2264,15,FALSE),0) -> 0 | R151: =IFERROR(VLOOKUP($A151,Filtro!$A$4:$AM$2264,16,FALSE),0) -> 0 | S151: =IFERROR(VLOOKUP($A151,Filtro!$A$4:$AM$2264,15,FALSE),0) -> 0 | AB151: =IFERROR(VLOOKUP($A151,Filtro!$A$4:$AM$2264,26,FALSE),0) -> 0 | AC151: =IFERROR(VLOOKUP($A151,Filtro!$A$4:$AM$2264,27,FALSE),0) -> 1575 | AD151: =IFERROR(VLOOKUP($A151,Filtro!$A$4:$AM$2264,28,FALSE),0) -> 0 | AE151: =IFERROR(VLOOKUP($A151,Filtro!$A$4:$AM$2264,29,FALSE),0) -> 0 | AF151: =IFERROR(VLOOKUP($A151,Filtro!$A$4:$AM$2264,30,FALSE),0) -> 0 | AG151: =IFERROR(VLOOKUP($A151,Filtro!$A$4:$AM$2264,31,FALSE),0) -> 0 | AH151: =IFERROR(VLOOKUP($A151,Filtro!$A$4:$AM$2264,32,FALSE),0) -> 0 | AI151: =IFERROR(VLOOKUP($A151,Filtro!$A$4:$AM$2264,33,FALSE),0) -> 0 | AJ151: =IFERROR(VLOOKUP($A151,Filtro!$A$4:$AM$2264,34,FALSE),0) -> 0 | AK151: =IFERROR(VLOOKUP($A151,Filtro!$A$4:$AM$2264,35,FALSE),0) -> 0 | CQ151: 0 | CR151: 0 | CS151: 0 | CU151: 0 | CV151: 0 | CW151: 0 | CY151: 0 | CZ151: 0
A152: 01010048 | B152: 5099048 | C152: Hemoglucotest instantáneo | D152: =IFERROR(VLOOKUP($A152,Filtro!$A$4:$AM$2264,2,FALSE),0) -> 1107467 | E152: =IFERROR(VLOOKUP($A152,Filtro!$A$4:$AM$2264,3,FALSE),0) -> 1107467 | F152: =IFERROR(VLOOKUP($A152,Filtro!$A$4:$AM$2264,4,FALSE),0) -> 1107467 | G152: =IFERROR(VLOOKUP($A152,Filtro!$A$4:$AM$2264,5,FALSE),0) -> 0 | H152: =IFERROR(VLOOKUP($A152,Filtro!$A$4:$AM$2264,6,FALSE),0) -> 0 | I152: =IFERROR(VLOOKUP($A152,Filtro!$A$4:$AM$2264,7,FALSE),0) -> 0 | J152: =IFERROR(VLOOKUP($A152,Filtro!$A$4:$AM$2264,8,FALSE),0) -> 0 | K152: =IFERROR(VLOOKUP($A152,Filtro!$A$4:$AM$2264,9,FALSE),0) -> 0 | L152: =IFERROR(VLOOKUP($A152,Filtro!$A$4:$AM$2264,10,FALSE),0) -> 0 | M152: =IFERROR(VLOOKUP($A152,Filtro!$A$4:$AM$2264,11,FALSE),0) -> 0 | N152: =IFERROR(VLOOKUP($A152,Filtro!$A$4:$AM$2264,12,FALSE),0) -> 0 | O152: =IFERROR(VLOOKUP($A152,Filtro!$A$4:$AM$2264,13,FALSE),0) -> 0 | P152: =IFERROR(VLOOKUP($A152,Filtro!$A$4:$AM$2264,14,FALSE),0) -> 0 | Q152: =IFERROR(VLOOKUP($A152,Filtro!$A$4:$AM$2264,15,FALSE),0) -> 0 | R152: =IFERROR(VLOOKUP($A152,Filtro!$A$4:$AM$2264,16,FALSE),0) -> 0 | AB152: =IFERROR(VLOOKUP($A152,Filtro!$A$4:$AM$2264,26,FALSE),0) -> 171750 | AC152: =IFERROR(VLOOKUP($A152,Filtro!$A$4:$AM$2264,27,FALSE),0) -> 886840 | AD152: =IFERROR(VLOOKUP($A152,Filtro!$A$4:$AM$2264,28,FALSE),0) -> 48877 | AE152: =IFERROR(VLOOKUP($A152,Filtro!$A$4:$AM$2264,29,FALSE),0) -> 0 | AF152: =IFERROR(VLOOKUP($A152,Filtro!$A$4:$AM$2264,30,FALSE),0) -> 0 | AG152: =IFERROR(VLOOKUP($A152,Filtro!$A$4:$AM$2264,31,FALSE),0) -> 0 | AH152: =IFERROR(VLOOKUP($A152,Filtro!$A$4:$AM$2264,32,FALSE),0) -> 0 | AI152: =IFERROR(VLOOKUP($A152,Filtro!$A$4:$AM$2264,33,FALSE),0) -> 0 | AJ152: =IFERROR(VLOOKUP($A152,Filtro!$A$4:$AM$2264,34,FALSE),0) -> 0 | AK152: =IFERROR(VLOOKUP($A152,Filtro!$A$4:$AM$2264,35,FALSE),0) -> 0 | CQ152: 0 | CR152: 0 | CS152: 0 | CU152: 0 | CV152: 0 | CW152: 0 | CY152: 0 | CZ152: 0
A153: 01010049 | B153: 5099008 | C153: Actividad Básica | D153: =IFERROR(VLOOKUP($A153,Filtro!$A$4:$AM$2264,2,FALSE),0) -> 1626 | E153: =IFERROR(VLOOKUP($A153,Filtro!$A$4:$AM$2264,3,FALSE),0) -> 1626 | F153: =IFERROR(VLOOKUP($A153,Filtro!$A$4:$AM$2264,4,FALSE),0) -> 1626 | G153: =IFERROR(VLOOKUP($A153,Filtro!$A$4:$AM$2264,5,FALSE),0) -> 0 | H153: =IFERROR(VLOOKUP($A153,Filtro!$A$4:$AM$2264,6,FALSE),0) -> 0 | I153: =IFERROR(VLOOKUP($A153,Filtro!$A$4:$AM$2264,7,FALSE),0) -> 0 | J153: =IFERROR(VLOOKUP($A153,Filtro!$A$4:$AM$2264,8,FALSE),0) -> 0 | K153: =IFERROR(VLOOKUP($A153,Filtro!$A$4:$AM$2264,9,FALSE),0) -> 0 | L153: =IFERROR(VLOOKUP($A153,Filtro!$A$4:$AM$2264,10,FALSE),0) -> 0 | M153: =IFERROR(VLOOKUP($A153,Filtro!$A$4:$AM$2264,11,FALSE),0) -> 0 | N153: =IFERROR(VLOOKUP($A153,Filtro!$A$4:$AM$2264,12,FALSE),0) -> 0 | O153: =IFERROR(VLOOKUP($A153,Filtro!$A$4:$AM$2264,13,FALSE),0) -> 0 | P153: =IFERROR(VLOOKUP($A153,Filtro!$A$4:$AM$2264,14,FALSE),0) -> 0 | Q153: =IFERROR(VLOOKUP($A153,Filtro!$A$4:$AM$2264,15,FALSE),0) -> 0 | R153: =IFERROR(VLOOKUP($A153,Filtro!$A$4:$AM$2264,16,FALSE),0) -> 0 | AB153: =IFERROR(VLOOKUP($A153,Filtro!$A$4:$AM$2264,26,FALSE),0) -> 0 | AC153: =IFERROR(VLOOKUP($A153,Filtro!$A$4:$AM$2264,27,FALSE),0) -> 1626 | AD153: =IFERROR(VLOOKUP($A153,Filtro!$A$4:$AM$2264,28,FALSE),0) -> 0 | AE153: =IFERROR(VLOOKUP($A153,Filtro!$A$4:$AM$2264,29,FALSE),0) -> 0 | AF153: =IFERROR(VLOOKUP($A153,Filtro!$A$4:$AM$2264,30,FALSE),0) -> 0 | AG153: =IFERROR(VLOOKUP($A153,Filtro!$A$4:$AM$2264,31,FALSE),0) -> 0 | AH153: =IFERROR(VLOOKUP($A153,Filtro!$A$4:$AM$2264,32,FALSE),0) -> 0 | AI153: =IFERROR(VLOOKUP($A153,Filtro!$A$4:$AM$2264,33,FALSE),0) -> 0 | AJ153: =IFERROR(VLOOKUP($A153,Filtro!$A$4:$AM$2264,34,FALSE),0) -> 0 | AK153: =IFERROR(VLOOKUP($A153,Filtro!$A$4:$AM$2264,35,FALSE),0) -> 0 | CQ153: 0 | CR153: 0 | CS153: 0 | CU153: 0 | CV153: 0 | CW153: 0 | CY153: 0 | CZ153: 0
A154: 01010050 | B154: 5099009 | C154: Actividad Terapeutica | D154: =IFERROR(VLOOKUP($A154,Filtro!$A$4:$AM$2264,2,FALSE),0) -> 3942 | E154: =IFERROR(VLOOKUP($A154,Filtro!$A$4:$AM$2264,3,FALSE),0) -> 3942 | F154: =IFERROR(VLOOKUP($A154,Filtro!$A$4:$AM$2264,4,FALSE),0) -> 3942 | G154: =IFERROR(VLOOKUP($A154,Filtro!$A$4:$AM$2264,5,FALSE),0) -> 0 | H154: =IFERROR(VLOOKUP($A154,Filtro!$A$4:$AM$2264,6,FALSE),0) -> 0 | I154: =IFERROR(VLOOKUP($A154,Filtro!$A$4:$AM$2264,7,FALSE),0) -> 0 | J154: =IFERROR(VLOOKUP($A154,Filtro!$A$4:$AM$2264,8,FALSE),0) -> 0 | K154: =IFERROR(VLOOKUP($A154,Filtro!$A$4:$AM$2264,9,FALSE),0) -> 0 | L154: =IFERROR(VLOOKUP($A154,Filtro!$A$4:$AM$2264,10,FALSE),0) -> 0 | M154: =IFERROR(VLOOKUP($A154,Filtro!$A$4:$AM$2264,11,FALSE),0) -> 0 | N154: =IFERROR(VLOOKUP($A154,Filtro!$A$4:$AM$2264,12,FALSE),0) -> 0 | O154: =IFERROR(VLOOKUP($A154,Filtro!$A$4:$AM$2264,13,FALSE),0) -> 0 | P154: =IFERROR(VLOOKUP($A154,Filtro!$A$4:$AM$2264,14,FALSE),0) -> 0 | Q154: =IFERROR(VLOOKUP($A154,Filtro!$A$4:$AM$2264,15,FALSE),0) -> 0 | R154: =IFERROR(VLOOKUP($A154,Filtro!$A$4:$AM$2264,16,FALSE),0) -> 0 | AB154: =IFERROR(VLOOKUP($A154,Filtro!$A$4:$AM$2264,26,FALSE),0) -> 793 | AC154: =IFERROR(VLOOKUP($A154,Filtro!$A$4:$AM$2264,27,FALSE),0) -> 3149 | AD154: =IFERROR(VLOOKUP($A154,Filtro!$A$4:$AM$2264,28,FALSE),0) -> 0 | AE154: =IFERROR(VLOOKUP($A154,Filtro!$A$4:$AM$2264,29,FALSE),0) -> 0 | AF154: =IFERROR(VLOOKUP($A154,Filtro!$A$4:$AM$2264,30,FALSE),0) -> 0 | AG154: =IFERROR(VLOOKUP($A154,Filtro!$A$4:$AM$2264,31,FALSE),0) -> 0 | AH154: =IFERROR(VLOOKUP($A154,Filtro!$A$4:$AM$2264,32,FALSE),0) -> 0 | AI154: =IFERROR(VLOOKUP($A154,Filtro!$A$4:$AM$2264,33,FALSE),0) -> 0 | AJ154: =IFERROR(VLOOKUP($A154,Filtro!$A$4:$AM$2264,34,FALSE),0) -> 0 | AK154: =IFERROR(VLOOKUP($A154,Filtro!$A$4:$AM$2264,35,FALSE),0) -> 0 | CQ154: 0 | CR154: 0 | CS154: 0 | CU154: 0 | CV154: 0 | CW154: 0 | CY154: 0 | CZ154: 0
A155: 01010051 | B155: 5099010 | C155: Evaluación Actividad | D155: =IFERROR(VLOOKUP($A155,Filtro!$A$4:$AM$2264,2,FALSE),0) -> 641 | E155: =IFERROR(VLOOKUP($A155,Filtro!$A$4:$AM$2264,3,FALSE),0) -> 641 | F155: =IFERROR(VLOOKUP($A155,Filtro!$A$4:$AM$2264,4,FALSE),0) -> 641 | G155: =IFERROR(VLOOKUP($A155,Filtro!$A$4:$AM$2264,5,FALSE),0) -> 0 | H155: =IFERROR(VLOOKUP($A155,Filtro!$A$4:$AM$2264,6,FALSE),0) -> 0 | AB155: =IFERROR(VLOOKUP($A155,Filtro!$A$4:$AM$2264,26,FALSE),0) -> 0 | AC155: =IFERROR(VLOOKUP($A155,Filtro!$A$4:$AM$2264,27,FALSE),0) -> 641 | AD155: =IFERROR(VLOOKUP($A155,Filtro!$A$4:$AM$2264,28,FALSE),0) -> 0 | AE155: =IFERROR(VLOOKUP($A155,Filtro!$A$4:$AM$2264,29,FALSE),0) -> 0 | AF155: =IFERROR(VLOOKUP($A155,Filtro!$A$4:$AM$2264,30,FALSE),0) -> 0 | AG155: =IFERROR(VLOOKUP($A155,Filtro!$A$4:$AM$2264,31,FALSE),0) -> 0 | AH155: =IFERROR(VLOOKUP($A155,Filtro!$A$4:$AM$2264,32,FALSE),0) -> 0 | AI155: =IFERROR(VLOOKUP($A155,Filtro!$A$4:$AM$2264,33,FALSE),0) -> 0 | AJ155: =IFERROR(VLOOKUP($A155,Filtro!$A$4:$AM$2264,34,FALSE),0) -> 0 | AK155: =IFERROR(VLOOKUP($A155,Filtro!$A$4:$AM$2264,35,FALSE),0) -> 0 | CQ155: 0 | CR155: 0 | CS155: 0 | CU155: 0 | CV155: 0 | CW155: 0 | CY155: 0 | CZ155: 0
A156: 01010052 | B156: 5099011 | C156: Evaluación prevocaciónal | D156: =IFERROR(VLOOKUP($A156,Filtro!$A$4:$AM$2264,2,FALSE),0) -> 0 | E156: =IFERROR(VLOOKUP($A156,Filtro!$A$4:$AM$2264,3,FALSE),0) -> 0 | F156: =IFERROR(VLOOKUP($A156,Filtro!$A$4:$AM$2264,4,FALSE),0) -> 0 | G156: =IFERROR(VLOOKUP($A156,Filtro!$A$4:$AM$2264,5,FALSE),0) -> 0 | H156: =IFERROR(VLOOKUP($A156,Filtro!$A$4:$AM$2264,6,FALSE),0) -> 0 | AB156: =IFERROR(VLOOKUP($A156,Filtro!$A$4:$AM$2264,26,FALSE),0) -> 0 | AC156: =IFERROR(VLOOKUP($A156,Filtro!$A$4:$AM$2264,27,FALSE),0) -> 0 | AD156: =IFERROR(VLOOKUP($A156,Filtro!$A$4:$AM$2264,28,FALSE),0) -> 0 | AE156: =IFERROR(VLOOKUP($A156,Filtro!$A$4:$AM$2264,29,FALSE),0) -> 0 | AF156: =IFERROR(VLOOKUP($A156,Filtro!$A$4:$AM$2264,30,FALSE),0) -> 0 | AG156: =IFERROR(VLOOKUP($A156,Filtro!$A$4:$AM$2264,31,FALSE),0) -> 0 | AH156: =IFERROR(VLOOKUP($A156,Filtro!$A$4:$AM$2264,32,FALSE),0) -> 0 | AI156: =IFERROR(VLOOKUP($A156,Filtro!$A$4:$AM$2264,33,FALSE),0) -> 0 | AJ156: =IFERROR(VLOOKUP($A156,Filtro!$A$4:$AM$2264,34,FALSE),0) -> 0 | AK156: =IFERROR(VLOOKUP($A156,Filtro!$A$4:$AM$2264,35,FALSE),0) -> 0 | CQ156: 0 | CR156: 0 | CS156: 0 | CU156: 0 | CV156: 0 | CW156: 0 | CY156: 0 | CZ156: 0
A157: 01010053 | B157: 5099063 | C157: Evaluación cognitiva | D157: =IFERROR(VLOOKUP($A157,Filtro!$A$4:$AM$2264,2,FALSE),0) -> 509 | E157: =IFERROR(VLOOKUP($A157,Filtro!$A$4:$AM$2264,3,FALSE),0) -> 509 | F157: =IFERROR(VLOOKUP($A157,Filtro!$A$4:$AM$2264,4,FALSE),0) -> 509 | G157: =IFERROR(VLOOKUP($A157,Filtro!$A$4:$AM$2264,5,FALSE),0) -> 0 | H157: =IFERROR(VLOOKUP($A157,Filtro!$A$4:$AM$2264,6,FALSE),0) -> 0 | AB157: =IFERROR(VLOOKUP($A157,Filtro!$A$4:$AM$2264,26,FALSE),0) -> 299 | AC157: =IFERROR(VLOOKUP($A157,Filtro!$A$4:$AM$2264,27,FALSE),0) -> 210 | AD157: =IFERROR(VLOOKUP($A157,Filtro!$A$4:$AM$2264,28,FALSE),0) -> 0 | AE157: =IFERROR(VLOOKUP($A157,Filtro!$A$4:$AM$2264,29,FALSE),0) -> 0 | AF157: =IFERROR(VLOOKUP($A157,Filtro!$A$4:$AM$2264,30,FALSE),0) -> 0 | AG157: =IFERROR(VLOOKUP($A157,Filtro!$A$4:$AM$2264,31,FALSE),0) -> 0 | AH157: =IFERROR(VLOOKUP($A157,Filtro!$A$4:$AM$2264,32,FALSE),0) -> 0 | AI157: =IFERROR(VLOOKUP($A157,Filtro!$A$4:$AM$2264,33,FALSE),0) -> 0 | AJ157: =IFERROR(VLOOKUP($A157,Filtro!$A$4:$AM$2264,34,FALSE),0) -> 0 | AK157: =IFERROR(VLOOKUP($A157,Filtro!$A$4:$AM$2264,35,FALSE),0) -> 0 | CQ157: 0 | CR157: 0 | CS157: 0 | CU157: 0 | CV157: 0 | CW157: 0 | CY157: 0 | CZ157: 0
A158: 01010054 | B158: 5099064 | C158: Estimulación cognitiva | D158: =IFERROR(VLOOKUP($A158,Filtro!$A$4:$AM$2264,2,FALSE),0) -> 2499 | E158: =IFERROR(VLOOKUP($A158,Filtro!$A$4:$AM$2264,3,FALSE),0) -> 2499 | F158: =IFERROR(VLOOKUP($A158,Filtro!$A$4:$AM$2264,4,FALSE),0) -> 2499 | G158: =IFERROR(VLOOKUP($A158,Filtro!$A$4:$AM$2264,5,FALSE),0) -> 0 | H158: =IFERROR(VLOOKUP($A158,Filtro!$A$4:$AM$2264,6,FALSE),0) -> 0 | AB158: =IFERROR(VLOOKUP($A158,Filtro!$A$4:$AM$2264,26,FALSE),0) -> 1238 | AC158: =IFERROR(VLOOKUP($A158,Filtro!$A$4:$AM$2264,27,FALSE),0) -> 1246 | AD158: =IFERROR(VLOOKUP($A158,Filtro!$A$4:$AM$2264,28,FALSE),0) -> 15 | AE158: =IFERROR(VLOOKUP($A158,Filtro!$A$4:$AM$2264,29,FALSE),0) -> 0 | AF158: =IFERROR(VLOOKUP($A158,Filtro!$A$4:$AM$2264,30,FALSE),0) -> 0 | AG158: =IFERROR(VLOOKUP($A158,Filtro!$A$4:$AM$2264,31,FALSE),0) -> 0 | AH158: =IFERROR(VLOOKUP($A158,Filtro!$A$4:$AM$2264,32,FALSE),0) -> 0 | AI158: =IFERROR(VLOOKUP($A158,Filtro!$A$4:$AM$2264,33,FALSE),0) -> 0 | AJ158: =IFERROR(VLOOKUP($A158,Filtro!$A$4:$AM$2264,34,FALSE),0) -> 0 | AK158: =IFERROR(VLOOKUP($A158,Filtro!$A$4:$AM$2264,35,FALSE),0) -> 0 | CQ158: 0 | CR158: 0 | CS158: 0 | CU158: 0 | CV158: 0 | CW158: 0 | CY158: 0 | CZ158: 0
A159: 01010055 | B159: 5099111 | C159: Curación avanzada de herida | D159: =IFERROR(VLOOKUP($A159,Filtro!$A$4:$AM$2264,2,FALSE),0) -> 20298 | E159: =IFERROR(VLOOKUP($A159,Filtro!$A$4:$AM$2264,3,FALSE),0) -> 20237 | F159: =IFERROR(VLOOKUP($A159,Filtro!$A$4:$AM$2264,4,FALSE),0) -> 20237 | G159: =IFERROR(VLOOKUP($A159,Filtro!$A$4:$AM$2264,5,FALSE),0) -> 0 | H159: =IFERROR(VLOOKUP($A159,Filtro!$A$4:$AM$2264,6,FALSE),0) -> 61 | AB159: =IFERROR(VLOOKUP($A159,Filtro!$A$4:$AM$2264,26,FALSE),0) -> 885 | AC159: =IFERROR(VLOOKUP($A159,Filtro!$A$4:$AM$2264,27,FALSE),0) -> 18487 | AD159: =IFERROR(VLOOKUP($A159,Filtro!$A$4:$AM$2264,28,FALSE),0) -> 640 | AE159: =IFERROR(VLOOKUP($A159,Filtro!$A$4:$AM$2264,29,FALSE),0) -> 0 | AF159: =IFERROR(VLOOKUP($A159,Filtro!$A$4:$AM$2264,30,FALSE),0) -> 0 | AG159: =IFERROR(VLOOKUP($A159,Filtro!$A$4:$AM$2264,31,FALSE),0) -> 0 | AH159: =IFERROR(VLOOKUP($A159,Filtro!$A$4:$AM$2264,32,FALSE),0) -> 0 | AI159: =IFERROR(VLOOKUP($A159,Filtro!$A$4:$AM$2264,33,FALSE),0) -> 0 | AJ159: =IFERROR(VLOOKUP($A159,Filtro!$A$4:$AM$2264,34,FALSE),0) -> 0 | AK159: =IFERROR(VLOOKUP($A159,Filtro!$A$4:$AM$2264,35,FALSE),0) -> 0 | CQ159: 0 | CR159: 0 | CS159: 0 | CU159: 0 | CV159: 0 | CW159: 0 | CY159: 0 | CZ159: 0
A160: 01010056 | B160: 0102701 | C160: Evaluación Motriz Funcional | D160: =IFERROR(VLOOKUP($A160,Filtro!$A$4:$AM$2264,2,FALSE),0) -> 478 | E160: =IFERROR(VLOOKUP($A160,Filtro!$A$4:$AM$2264,3,FALSE),0) -> 478 | F160: =IFERROR(VLOOKUP($A160,Filtro!$A$4:$AM$2264,4,FALSE),0) -> 478 | G160: =IFERROR(VLOOKUP($A160,Filtro!$A$4:$AM$2264,5,FALSE),0) -> 0 | H160: =IFERROR(VLOOKUP($A160,Filtro!$A$4:$AM$2264,6,FALSE),0) -> 0 | I160: =IFERROR(VLOOKUP($A160,Filtro!$A$4:$AM$2264,7,FALSE),0) -> 0 | J160: =IFERROR(VLOOKUP($A160,Filtro!$A$4:$AM$2264,8,FALSE),0) -> 0 | K160: =IFERROR(VLOOKUP($A160,Filtro!$A$4:$AM$2264,9,FALSE),0) -> 0 | L160: =IFERROR(VLOOKUP($A160,Filtro!$A$4:$AM$2264,10,FALSE),0) -> 0 | M160: =IFERROR(VLOOKUP($A160,Filtro!$A$4:$AM$2264,11,FALSE),0) -> 0 | N160: =IFERROR(VLOOKUP($A160,Filtro!$A$4:$AM$2264,12,FALSE),0) -> 0 | O160: =IFERROR(VLOOKUP($A160,Filtro!$A$4:$AM$2264,13,FALSE),0) -> 0 | P160: =IFERROR(VLOOKUP($A160,Filtro!$A$4:$AM$2264,14,FALSE),0) -> 0 | Q160: =IFERROR(VLOOKUP($A160,Filtro!$A$4:$AM$2264,15,FALSE),0) -> 0 | R160: =IFERROR(VLOOKUP($A160,Filtro!$A$4:$AM$2264,16,FALSE),0) -> 0 | AB160: =IFERROR(VLOOKUP($A160,Filtro!$A$4:$AM$2264,26,FALSE),0) -> 253 | AC160: =IFERROR(VLOOKUP($A160,Filtro!$A$4:$AM$2264,27,FALSE),0) -> 225 | AD160: =IFERROR(VLOOKUP($A160,Filtro!$A$4:$AM$2264,28,FALSE),0) -> 0 | AE160: =IFERROR(VLOOKUP($A160,Filtro!$A$4:$AM$2264,29,FALSE),0) -> 0 | AF160: =IFERROR(VLOOKUP($A160,Filtro!$A$4:$AM$2264,30,FALSE),0) -> 0 | AG160: =IFERROR(VLOOKUP($A160,Filtro!$A$4:$AM$2264,31,FALSE),0) -> 0 | AH160: =IFERROR(VLOOKUP($A160,Filtro!$A$4:$AM$2264,32,FALSE),0) -> 0 | AI160: =IFERROR(VLOOKUP($A160,Filtro!$A$4:$AM$2264,33,FALSE),0) -> 0 | AJ160: =IFERROR(VLOOKUP($A160,Filtro!$A$4:$AM$2264,34,FALSE),0) -> 0 | AK160: =IFERROR(VLOOKUP($A160,Filtro!$A$4:$AM$2264,35,FALSE),0) -> 0 | CQ160: 0 | CR160: 0 | CS160: 0 | CU160: 0 | CV160: 0 | CW160: 0 | CY160: 0 | CZ160: 0
A161: 01010057 | B161: 0102702 | C161: Evaluación cognitiva-perceptual | D161: =IFERROR(VLOOKUP($A161,Filtro!$A$4:$AM$2264,2,FALSE),0) -> 468 | E161: =IFERROR(VLOOKUP($A161,Filtro!$A$4:$AM$2264,3,FALSE),0) -> 468 | F161: =IFERROR(VLOOKUP($A161,Filtro!$A$4:$AM$2264,4,FALSE),0) -> 468 | G161: =IFERROR(VLOOKUP($A161,Filtro!$A$4:$AM$2264,5,FALSE),0) -> 0 | H161: =IFERROR(VLOOKUP($A161,Filtro!$A$4:$AM$2264,6,FALSE),0) -> 0 | I161: =IFERROR(VLOOKUP($A161,Filtro!$A$4:$AM$2264,7,FALSE),0) -> 0 | J161: =IFERROR(VLOOKUP($A161,Filtro!$A$4:$AM$2264,8,FALSE),0) -> 0 | K161: =IFERROR(VLOOKUP($A161,Filtro!$A$4:$AM$2264,9,FALSE),0) -> 0 | L161: =IFERROR(VLOOKUP($A161,Filtro!$A$4:$AM$2264,10,FALSE),0) -> 0 | M161: =IFERROR(VLOOKUP($A161,Filtro!$A$4:$AM$2264,11,FALSE),0) -> 0 | N161: =IFERROR(VLOOKUP($A161,Filtro!$A$4:$AM$2264,12,FALSE),0) -> 0 | O161: =IFERROR(VLOOKUP($A161,Filtro!$A$4:$AM$2264,13,FALSE),0) -> 0 | P161: =IFERROR(VLOOKUP($A161,Filtro!$A$4:$AM$2264,14,FALSE),0) -> 0 | Q161: =IFERROR(VLOOKUP($A161,Filtro!$A$4:$AM$2264,15,FALSE),0) -> 0 | R161: =IFERROR(VLOOKUP($A161,Filtro!$A$4:$AM$2264,16,FALSE),0) -> 0 | AB161: =IFERROR(VLOOKUP($A161,Filtro!$A$4:$AM$2264,26,FALSE),0) -> 268 | AC161: =IFERROR(VLOOKUP($A161,Filtro!$A$4:$AM$2264,27,FALSE),0) -> 200 | AD161: =IFERROR(VLOOKUP($A161,Filtro!$A$4:$AM$2264,28,FALSE),0) -> 0 | AE161: =IFERROR(VLOOKUP($A161,Filtro!$A$4:$AM$2264,29,FALSE),0) -> 0 | AF161: =IFERROR(VLOOKUP($A161,Filtro!$A$4:$AM$2264,30,FALSE),0) -> 0 | AG161: =IFERROR(VLOOKUP($A161,Filtro!$A$4:$AM$2264,31,FALSE),0) -> 0 | AH161: =IFERROR(VLOOKUP($A161,Filtro!$A$4:$AM$2264,32,FALSE),0) -> 0 | AI161: =IFERROR(VLOOKUP($A161,Filtro!$A$4:$AM$2264,33,FALSE),0) -> 0 | AJ161: =IFERROR(VLOOKUP($A161,Filtro!$A$4:$AM$2264,34,FALSE),0) -> 0 | AK161: =IFERROR(VLOOKUP($A161,Filtro!$A$4:$AM$2264,35,FALSE),0) -> 0 | CQ161: 0 | CR161: 0 | CS161: 0 | CU161: 0 | CV161: 0 | CW161: 0 | CY161: 0 | CZ161: 0
A162: 01010058 | B162: 0102703 | C162: Evaluación independencia en actividades de la vida diaria | D162: =IFERROR(VLOOKUP($A162,Filtro!$A$4:$AM$2264,2,FALSE),0) -> 522 | E162: =IFERROR(VLOOKUP($A162,Filtro!$A$4:$AM$2264,3,FALSE),0) -> 522 | F162: =IFERROR(VLOOKUP($A162,Filtro!$A$4:$AM$2264,4,FALSE),0) -> 522 | G162: =IFERROR(VLOOKUP($A162,Filtro!$A$4:$AM$2264,5,FALSE),0) -> 0 | H162: =IFERROR(VLOOKUP($A162,Filtro!$A$4:$AM$2264,6,FALSE),0) -> 0 | I162: =IFERROR(VLOOKUP($A162,Filtro!$A$4:$AM$2264,7,FALSE),0) -> 0 | J162: =IFERROR(VLOOKUP($A162,Filtro!$A$4:$AM$2264,8,FALSE),0) -> 0 | K162: =IFERROR(VLOOKUP($A162,Filtro!$A$4:$AM$2264,9,FALSE),0) -> 0 | L162: =IFERROR(VLOOKUP($A162,Filtro!$A$4:$AM$2264,10,FALSE),0) -> 0 | M162: =IFERROR(VLOOKUP($A162,Filtro!$A$4:$AM$2264,11,FALSE),0) -> 0 | N162: =IFERROR(VLOOKUP($A162,Filtro!$A$4:$AM$2264,12,FALSE),0) -> 0 | O162: =IFERROR(VLOOKUP($A162,Filtro!$A$4:$AM$2264,13,FALSE),0) -> 0 | P162: =IFERROR(VLOOKUP($A162,Filtro!$A$4:$AM$2264,14,FALSE),0) -> 0 | Q162: =IFERROR(VLOOKUP($A162,Filtro!$A$4:$AM$2264,15,FALSE),0) -> 0 | R162: =IFERROR(VLOOKUP($A162,Filtro!$A$4:$AM$2264,16,FALSE),0) -> 0 | AB162: =IFERROR(VLOOKUP($A162,Filtro!$A$4:$AM$2264,26,FALSE),0) -> 280 | AC162: =IFERROR(VLOOKUP($A162,Filtro!$A$4:$AM$2264,27,FALSE),0) -> 242 | AD162: =IFERROR(VLOOKUP($A162,Filtro!$A$4:$AM$2264,28,FALSE),0) -> 0 | AE162: =IFERROR(VLOOKUP($A162,Filtro!$A$4:$AM$2264,29,FALSE),0) -> 0 | AF162: =IFERROR(VLOOKUP($A162,Filtro!$A$4:$AM$2264,30,FALSE),0) -> 0 | AG162: =IFERROR(VLOOKUP($A162,Filtro!$A$4:$AM$2264,31,FALSE),0) -> 0 | AH162: =IFERROR(VLOOKUP($A162,Filtro!$A$4:$AM$2264,32,FALSE),0) -> 0 | AI162: =IFERROR(VLOOKUP($A162,Filtro!$A$4:$AM$2264,33,FALSE),0) -> 0 | AJ162: =IFERROR(VLOOKUP($A162,Filtro!$A$4:$AM$2264,34,FALSE),0) -> 0 | AK162: =IFERROR(VLOOKUP($A162,Filtro!$A$4:$AM$2264,35,FALSE),0) -> 0 | CQ162: 0 | CR162: 0 | CS162: 0 | CU162: 0 | CV162: 0 | CW162: 0 | CY162: 0 | CZ162: 0
A163: 01010059 | B163: 0102704 | C163: Evaluación barreras arquitectónicas | D163: =IFERROR(VLOOKUP($A163,Filtro!$A$4:$AM$2264,2,FALSE),0) -> 0 | E163: =IFERROR(VLOOKUP($A163,Filtro!$A$4:$AM$2264,3,FALSE),0) -> 0 | F163: =IFERROR(VLOOKUP($A163,Filtro!$A$4:$AM$2264,4,FALSE),0) -> 0 | G163: =IFERROR(VLOOKUP($A163,Filtro!$A$4:$AM$2264,5,FALSE),0) -> 0 | H163: =IFERROR(VLOOKUP($A163,Filtro!$A$4:$AM$2264,6,FALSE),0) -> 0 | I163: =IFERROR(VLOOKUP($A163,Filtro!$A$4:$AM$2264,7,FALSE),0) -> 0 | J163: =IFERROR(VLOOKUP($A163,Filtro!$A$4:$AM$2264,8,FALSE),0) -> 0 | K163: =IFERROR(VLOOKUP($A163,Filtro!$A$4:$AM$2264,9,FALSE),0) -> 0 | L163: =IFERROR(VLOOKUP($A163,Filtro!$A$4:$AM$2264,10,FALSE),0) -> 0 | M163: =IFERROR(VLOOKUP($A163,Filtro!$A$4:$AM$2264,11,FALSE),0) -> 0 | N163: =IFERROR(VLOOKUP($A163,Filtro!$A$4:$AM$2264,12,FALSE),0) -> 0 | O163: =IFERROR(VLOOKUP($A163,Filtro!$A$4:$AM$2264,13,FALSE),0) -> 0 | P163: =IFERROR(VLOOKUP($A163,Filtro!$A$4:$AM$2264,14,FALSE),0) -> 0 | Q163: =IFERROR(VLOOKUP($A163,Filtro!$A$4:$AM$2264,15,FALSE),0) -> 0 | R163: =IFERROR(VLOOKUP($A163,Filtro!$A$4:$AM$2264,16,FALSE),0) -> 0 | AB163: =IFERROR(VLOOKUP($A163,Filtro!$A$4:$AM$2264,26,FALSE),0) -> 0 | AC163: =IFERROR(VLOOKUP($A163,Filtro!$A$4:$AM$2264,27,FALSE),0) -> 0 | AD163: =IFERROR(VLOOKUP($A163,Filtro!$A$4:$AM$2264,28,FALSE),0) -> 0 | AE163: =IFERROR(VLOOKUP($A163,Filtro!$A$4:$AM$2264,29,FALSE),0) -> 0 | AF163: =IFERROR(VLOOKUP($A163,Filtro!$A$4:$AM$2264,30,FALSE),0) -> 0 | AG163: =IFERROR(VLOOKUP($A163,Filtro!$A$4:$AM$2264,31,FALSE),0) -> 0 | AH163: =IFERROR(VLOOKUP($A163,Filtro!$A$4:$AM$2264,32,FALSE),0) -> 0 | AI163: =IFERROR(VLOOKUP($A163,Filtro!$A$4:$AM$2264,33,FALSE),0) -> 0 | AJ163: =IFERROR(VLOOKUP($A163,Filtro!$A$4:$AM$2264,34,FALSE),0) -> 0 | AK163: =IFERROR(VLOOKUP($A163,Filtro!$A$4:$AM$2264,35,FALSE),0) -> 0 | CQ163: 0 | CR163: 0 | CS163: 0 | CU163: 0 | CV163: 0 | CW163: 0 | CY163: 0 | CZ163: 0
A164: 01010060 | B164: 0102705 | C164: Evaluación puesto de trabajo | D164: =IFERROR(VLOOKUP($A164,Filtro!$A$4:$AM$2264,2,FALSE),0) -> 0 | E164: =IFERROR(VLOOKUP($A164,Filtro!$A$4:$AM$2264,3,FALSE),0) -> 0 | F164: =IFERROR(VLOOKUP($A164,Filtro!$A$4:$AM$2264,4,FALSE),0) -> 0 | G164: =IFERROR(VLOOKUP($A164,Filtro!$A$4:$AM$2264,5,FALSE),0) -> 0 | H164: =IFERROR(VLOOKUP($A164,Filtro!$A$4:$AM$2264,6,FALSE),0) -> 0 | I164: =IFERROR(VLOOKUP($A164,Filtro!$A$4:$AM$2264,7,FALSE),0) -> 0 | J164: =IFERROR(VLOOKUP($A164,Filtro!$A$4:$AM$2264,8,FALSE),0) -> 0 | K164: =IFERROR(VLOOKUP($A164,Filtro!$A$4:$AM$2264,9,FALSE),0) -> 0 | L164: =IFERROR(VLOOKUP($A164,Filtro!$A$4:$AM$2264,10,FALSE),0) -> 0 | M164: =IFERROR(VLOOKUP($A164,Filtro!$A$4:$AM$2264,11,FALSE),0) -> 0 | N164: =IFERROR(VLOOKUP($A164,Filtro!$A$4:$AM$2264,12,FALSE),0) -> 0 | O164: =IFERROR(VLOOKUP($A164,Filtro!$A$4:$AM$2264,13,FALSE),0) -> 0 | P164: =IFERROR(VLOOKUP($A164,Filtro!$A$4:$AM$2264,14,FALSE),0) -> 0 | Q164: =IFERROR(VLOOKUP($A164,Filtro!$A$4:$AM$2264,15,FALSE),0) -> 0 | R164: =IFERROR(VLOOKUP($A164,Filtro!$A$4:$AM$2264,16,FALSE),0) -> 0 | AB164: =IFERROR(VLOOKUP($A164,Filtro!$A$4:$AM$2264,26,FALSE),0) -> 0 | AC164: =IFERROR(VLOOKUP($A164,Filtro!$A$4:$AM$2264,27,FALSE),0) -> 0 | AD164: =IFERROR(VLOOKUP($A164,Filtro!$A$4:$AM$2264,28,FALSE),0) -> 0 | AE164: =IFERROR(VLOOKUP($A164,Filtro!$A$4:$AM$2264,29,FALSE),0) -> 0 | AF164: =IFERROR(VLOOKUP($A164,Filtro!$A$4:$AM$2264,30,FALSE),0) -> 0 | AG164: =IFERROR(VLOOKUP($A164,Filtro!$A$4:$AM$2264,31,FALSE),0) -> 0 | AH164: =IFERROR(VLOOKUP($A164,Filtro!$A$4:$AM$2264,32,FALSE),0) -> 0 | AI164: =IFERROR(VLOOKUP($A164,Filtro!$A$4:$AM$2264,33,FALSE),0) -> 0 | AJ164: =IFERROR(VLOOKUP($A164,Filtro!$A$4:$AM$2264,34,FALSE),0) -> 0 | AK164: =IFERROR(VLOOKUP($A164,Filtro!$A$4:$AM$2264,35,FALSE),0) -> 0 | CQ164: 0 | CR164: 0 | CS164: 0 | CU164: 0 | CV164: 0 | CW164: 0 | CY164: 0 | CZ164: 0
A165: 01010061 | B165: 0102706 | C165: Evaluación del desarrollo Psicomotor | D165: =IFERROR(VLOOKUP($A165,Filtro!$A$4:$AM$2264,2,FALSE),0) -> 505 | E165: =IFERROR(VLOOKUP($A165,Filtro!$A$4:$AM$2264,3,FALSE),0) -> 505 | F165: =IFERROR(VLOOKUP($A165,Filtro!$A$4:$AM$2264,4,FALSE),0) -> 505 | G165: =IFERROR(VLOOKUP($A165,Filtro!$A$4:$AM$2264,5,FALSE),0) -> 0 | H165: =IFERROR(VLOOKUP($A165,Filtro!$A$4:$AM$2264,6,FALSE),0) -> 0 | I165: =IFERROR(VLOOKUP($A165,Filtro!$A$4:$AM$2264,7,FALSE),0) -> 0 | J165: =IFERROR(VLOOKUP($A165,Filtro!$A$4:$AM$2264,8,FALSE),0) -> 0 | K165: =IFERROR(VLOOKUP($A165,Filtro!$A$4:$AM$2264,9,FALSE),0) -> 0 | L165: =IFERROR(VLOOKUP($A165,Filtro!$A$4:$AM$2264,10,FALSE),0) -> 0 | M165: =IFERROR(VLOOKUP($A165,Filtro!$A$4:$AM$2264,11,FALSE),0) -> 0 | N165: =IFERROR(VLOOKUP($A165,Filtro!$A$4:$AM$2264,12,FALSE),0) -> 0 | O165: =IFERROR(VLOOKUP($A165,Filtro!$A$4:$AM$2264,13,FALSE),0) -> 0 | P165: =IFERROR(VLOOKUP($A165,Filtro!$A$4:$AM$2264,14,FALSE),0) -> 0 | Q165: =IFERROR(VLOOKUP($A165,Filtro!$A$4:$AM$2264,15,FALSE),0) -> 0 | R165: =IFERROR(VLOOKUP($A165,Filtro!$A$4:$AM$2264,16,FALSE),0) -> 0 | AB165: =IFERROR(VLOOKUP($A165,Filtro!$A$4:$AM$2264,26,FALSE),0) -> 35 | AC165: =IFERROR(VLOOKUP($A165,Filtro!$A$4:$AM$2264,27,FALSE),0) -> 470 | AD165: =IFERROR(VLOOKUP($A165,Filtro!$A$4:$AM$2264,28,FALSE),0) -> 0 | AE165: =IFERROR(VLOOKUP($A165,Filtro!$A$4:$AM$2264,29,FALSE),0) -> 0 | AF165: =IFERROR(VLOOKUP($A165,Filtro!$A$4:$AM$2264,30,FALSE),0) -> 0 | AG165: =IFERROR(VLOOKUP($A165,Filtro!$A$4:$AM$2264,31,FALSE),0) -> 0 | AH165: =IFERROR(VLOOKUP($A165,Filtro!$A$4:$AM$2264,32,FALSE),0) -> 0 | AI165: =IFERROR(VLOOKUP($A165,Filtro!$A$4:$AM$2264,33,FALSE),0) -> 0 | AJ165: =IFERROR(VLOOKUP($A165,Filtro!$A$4:$AM$2264,34,FALSE),0) -> 0 | AK165: =IFERROR(VLOOKUP($A165,Filtro!$A$4:$AM$2264,35,FALSE),0) -> 0 | CQ165: 0 | CR165: 0 | CS165: 0 | CU165: 0 | CV165: 0 | CW165: 0 | CY165: 0 | CZ165: 0
A166: 01010062 | B166: 0102707 | C166: Reentrenamiento de las funciones cognitiva-perceptual | D166: =IFERROR(VLOOKUP($A166,Filtro!$A$4:$AM$2264,2,FALSE),0) -> 168 | E166: =IFERROR(VLOOKUP($A166,Filtro!$A$4:$AM$2264,3,FALSE),0) -> 168 | F166: =IFERROR(VLOOKUP($A166,Filtro!$A$4:$AM$2264,4,FALSE),0) -> 168 | G166: =IFERROR(VLOOKUP($A166,Filtro!$A$4:$AM$2264,5,FALSE),0) -> 0 | H166: =IFERROR(VLOOKUP($A166,Filtro!$A$4:$AM$2264,6,FALSE),0) -> 0 | I166: =IFERROR(VLOOKUP($A166,Filtro!$A$4:$AM$2264,7,FALSE),0) -> 0 | J166: =IFERROR(VLOOKUP($A166,Filtro!$A$4:$AM$2264,8,FALSE),0) -> 0 | K166: =IFERROR(VLOOKUP($A166,Filtro!$A$4:$AM$2264,9,FALSE),0) -> 0 | L166: =IFERROR(VLOOKUP($A166,Filtro!$A$4:$AM$2264,10,FALSE),0) -> 0 | M166: =IFERROR(VLOOKUP($A166,Filtro!$A$4:$AM$2264,11,FALSE),0) -> 0 | N166: =IFERROR(VLOOKUP($A166,Filtro!$A$4:$AM$2264,12,FALSE),0) -> 0 | O166: =IFERROR(VLOOKUP($A166,Filtro!$A$4:$AM$2264,13,FALSE),0) -> 0 | P166: =IFERROR(VLOOKUP($A166,Filtro!$A$4:$AM$2264,14,FALSE),0) -> 0 | Q166: =IFERROR(VLOOKUP($A166,Filtro!$A$4:$AM$2264,15,FALSE),0) -> 0 | R166: =IFERROR(VLOOKUP($A166,Filtro!$A$4:$AM$2264,16,FALSE),0) -> 0 | AB166: =IFERROR(VLOOKUP($A166,Filtro!$A$4:$AM$2264,26,FALSE),0) -> 119 | AC166: =IFERROR(VLOOKUP($A166,Filtro!$A$4:$AM$2264,27,FALSE),0) -> 49 | AD166: =IFERROR(VLOOKUP($A166,Filtro!$A$4:$AM$2264,28,FALSE),0) -> 0 | AE166: =IFERROR(VLOOKUP($A166,Filtro!$A$4:$AM$2264,29,FALSE),0) -> 0 | AF166: =IFERROR(VLOOKUP($A166,Filtro!$A$4:$AM$2264,30,FALSE),0) -> 0 | AG166: =IFERROR(VLOOKUP($A166,Filtro!$A$4:$AM$2264,31,FALSE),0) -> 0 | AH166: =IFERROR(VLOOKUP($A166,Filtro!$A$4:$AM$2264,32,FALSE),0) -> 0 | AI166: =IFERROR(VLOOKUP($A166,Filtro!$A$4:$AM$2264,33,FALSE),0) -> 0 | AJ166: =IFERROR(VLOOKUP($A166,Filtro!$A$4:$AM$2264,34,FALSE),0) -> 0 | AK166: =IFERROR(VLOOKUP($A166,Filtro!$A$4:$AM$2264,35,FALSE),0) -> 0 | CQ166: 0 | CR166: 0 | CS166: 0 | CU166: 0 | CV166: 0 | CW166: 0 | CY166: 0 | CZ166: 0
A167: 01010063 | B167: 0102708 | C167: Reentrenamiento de las actividades de la vida diaria | D167: =IFERROR(VLOOKUP($A167,Filtro!$A$4:$AM$2264,2,FALSE),0) -> 1195 | E167: =IFERROR(VLOOKUP($A167,Filtro!$A$4:$AM$2264,3,FALSE),0) -> 1195 | F167: =IFERROR(VLOOKUP($A167,Filtro!$A$4:$AM$2264,4,FALSE),0) -> 1195 | G167: =IFERROR(VLOOKUP($A167,Filtro!$A$4:$AM$2264,5,FALSE),0) -> 0 | H167: =IFERROR(VLOOKUP($A167,Filtro!$A$4:$AM$2264,6,FALSE),0) -> 0 | I167: =IFERROR(VLOOKUP($A167,Filtro!$A$4:$AM$2264,7,FALSE),0) -> 0 | J167: =IFERROR(VLOOKUP($A167,Filtro!$A$4:$AM$2264,8,FALSE),0) -> 0 | K167: =IFERROR(VLOOKUP($A167,Filtro!$A$4:$AM$2264,9,FALSE),0) -> 0 | L167: =IFERROR(VLOOKUP($A167,Filtro!$A$4:$AM$2264,10,FALSE),0) -> 0 | M167: =IFERROR(VLOOKUP($A167,Filtro!$A$4:$AM$2264,11,FALSE),0) -> 0 | N167: =IFERROR(VLOOKUP($A167,Filtro!$A$4:$AM$2264,12,FALSE),0) -> 0 | O167: =IFERROR(VLOOKUP($A167,Filtro!$A$4:$AM$2264,13,FALSE),0) -> 0 | P167: =IFERROR(VLOOKUP($A167,Filtro!$A$4:$AM$2264,14,FALSE),0) -> 0 | Q167: =IFERROR(VLOOKUP($A167,Filtro!$A$4:$AM$2264,15,FALSE),0) -> 0 | R167: =IFERROR(VLOOKUP($A167,Filtro!$A$4:$AM$2264,16,FALSE),0) -> 0 | AB167: =IFERROR(VLOOKUP($A167,Filtro!$A$4:$AM$2264,26,FALSE),0) -> 364 | AC167: =IFERROR(VLOOKUP($A167,Filtro!$A$4:$AM$2264,27,FALSE),0) -> 831 | AD167: =IFERROR(VLOOKUP($A167,Filtro!$A$4:$AM$2264,28,FALSE),0) -> 0 | AE167: =IFERROR(VLOOKUP($A167,Filtro!$A$4:$AM$2264,29,FALSE),0) -> 0 | AF167: =IFERROR(VLOOKUP($A167,Filtro!$A$4:$AM$2264,30,FALSE),0) -> 0 | AG167: =IFERROR(VLOOKUP($A167,Filtro!$A$4:$AM$2264,31,FALSE),0) -> 0 | AH167: =IFERROR(VLOOKUP($A167,Filtro!$A$4:$AM$2264,32,FALSE),0) -> 0 | AI167: =IFERROR(VLOOKUP($A167,Filtro!$A$4:$AM$2264,33,FALSE),0) -> 0 | AJ167: =IFERROR(VLOOKUP($A167,Filtro!$A$4:$AM$2264,34,FALSE),0) -> 0 | AK167: =IFERROR(VLOOKUP($A167,Filtro!$A$4:$AM$2264,35,FALSE),0) -> 0 | CQ167: 0 | CR167: 0 | CS167: 0 | CU167: 0 | CV167: 0 | CW167: 0 | CY167: 0 | CZ167: 0
A168: 01010064 | B168: 0102709 | C168: Reentrenamiento laboral | D168: =IFERROR(VLOOKUP($A168,Filtro!$A$4:$AM$2264,2,FALSE),0) -> 0 | E168: =IFERROR(VLOOKUP($A168,Filtro!$A$4:$AM$2264,3,FALSE),0) -> 0 | F168: =IFERROR(VLOOKUP($A168,Filtro!$A$4:$AM$2264,4,FALSE),0) -> 0 | G168: =IFERROR(VLOOKUP($A168,Filtro!$A$4:$AM$2264,5,FALSE),0) -> 0 | H168: =IFERROR(VLOOKUP($A168,Filtro!$A$4:$AM$2264,6,FALSE),0) -> 0 | I168: =IFERROR(VLOOKUP($A168,Filtro!$A$4:$AM$2264,7,FALSE),0) -> 0 | J168: =IFERROR(VLOOKUP($A168,Filtro!$A$4:$AM$2264,8,FALSE),0) -> 0 | K168: =IFERROR(VLOOKUP($A168,Filtro!$A$4:$AM$2264,9,FALSE),0) -> 0 | L168: =IFERROR(VLOOKUP($A168,Filtro!$A$4:$AM$2264,10,FALSE),0) -> 0 | M168: =IFERROR(VLOOKUP($A168,Filtro!$A$4:$AM$2264,11,FALSE),0) -> 0 | N168: =IFERROR(VLOOKUP($A168,Filtro!$A$4:$AM$2264,12,FALSE),0) -> 0 | O168: =IFERROR(VLOOKUP($A168,Filtro!$A$4:$AM$2264,13,FALSE),0) -> 0 | P168: =IFERROR(VLOOKUP($A168,Filtro!$A$4:$AM$2264,14,FALSE),0) -> 0 | Q168: =IFERROR(VLOOKUP($A168,Filtro!$A$4:$AM$2264,15,FALSE),0) -> 0 | R168: =IFERROR(VLOOKUP($A168,Filtro!$A$4:$AM$2264,16,FALSE),0) -> 0 | AB168: =IFERROR(VLOOKUP($A168,Filtro!$A$4:$AM$2264,26,FALSE),0) -> 0 | AC168: =IFERROR(VLOOKUP($A168,Filtro!$A$4:$AM$2264,27,FALSE),0) -> 0 | AD168: =IFERROR(VLOOKUP($A168,Filtro!$A$4:$AM$2264,28,FALSE),0) -> 0 | AE168: =IFERROR(VLOOKUP($A168,Filtro!$A$4:$AM$2264,29,FALSE),0) -> 0 | AF168: =IFERROR(VLOOKUP($A168,Filtro!$A$4:$AM$2264,30,FALSE),0) -> 0 | AG168: =IFERROR(VLOOKUP($A168,Filtro!$A$4:$AM$2264,31,FALSE),0) -> 0 | AH168: =IFERROR(VLOOKUP($A168,Filtro!$A$4:$AM$2264,32,FALSE),0) -> 0 | AI168: =IFERROR(VLOOKUP($A168,Filtro!$A$4:$AM$2264,33,FALSE),0) -> 0 | AJ168: =IFERROR(VLOOKUP($A168,Filtro!$A$4:$AM$2264,34,FALSE),0) -> 0 | AK168: =IFERROR(VLOOKUP($A168,Filtro!$A$4:$AM$2264,35,FALSE),0) -> 0 | CQ168: 0 | CR168: 0 | CS168: 0 | CU168: 0 | CV168: 0 | CW168: 0 | CY168: 0 | CZ168: 0
A169: 01010065 | B169: 01010065 | C169: Comité junta médica | D169: =IFERROR(VLOOKUP($A169,Filtro!$A$4:$AM$2264,2,FALSE),0) -> 279 | E169: =IFERROR(VLOOKUP($A169,Filtro!$A$4:$AM$2264,3,FALSE),0) -> 279 | F169: =IFERROR(VLOOKUP($A169,Filtro!$A$4:$AM$2264,4,FALSE),0) -> 279 | G169: =IFERROR(VLOOKUP($A169,Filtro!$A$4:$AM$2264,5,FALSE),0) -> 0 | H169: =IFERROR(VLOOKUP($A169,Filtro!$A$4:$AM$2264,6,FALSE),0) -> 0 | AB169: =IFERROR(VLOOKUP($A169,Filtro!$A$4:$AM$2264,26,FALSE),0) -> 0 | AC169: =IFERROR(VLOOKUP($A169,Filtro!$A$4:$AM$2264,27,FALSE),0) -> 279 | AD169: =IFERROR(VLOOKUP($A169,Filtro!$A$4:$AM$2264,28,FALSE),0) -> 0 | AE169: =IFERROR(VLOOKUP($A169,Filtro!$A$4:$AM$2264,29,FALSE),0) -> 0 | AF169: =IFERROR(VLOOKUP($A169,Filtro!$A$4:$AM$2264,30,FALSE),0) -> 0 | AG169: =IFERROR(VLOOKUP($A169,Filtro!$A$4:$AM$2264,31,FALSE),0) -> 0 | AH169: =IFERROR(VLOOKUP($A169,Filtro!$A$4:$AM$2264,32,FALSE),0) -> 0 | AI169: =IFERROR(VLOOKUP($A169,Filtro!$A$4:$AM$2264,33,FALSE),0) -> 0 | AJ169: =IFERROR(VLOOKUP($A169,Filtro!$A$4:$AM$2264,34,FALSE),0) -> 0 | AK169: =IFERROR(VLOOKUP($A169,Filtro!$A$4:$AM$2264,35,FALSE),0) -> 0 | CQ169: 0 | CR169: 0 | CS169: 0 | CU169: 0 | CV169: 0 | CW169: 0 | CY169: 0 | CZ169: 0
A170: 01010066 | B170: 01010066 | C170: Consultorías médicas de especialidades | D170: =IFERROR(VLOOKUP($A170,Filtro!$A$4:$AM$2264,2,FALSE),0) -> 3006 | E170: =IFERROR(VLOOKUP($A170,Filtro!$A$4:$AM$2264,3,FALSE),0) -> 2958 | F170: =IFERROR(VLOOKUP($A170,Filtro!$A$4:$AM$2264,4,FALSE),0) -> 2958 | G170: =IFERROR(VLOOKUP($A170,Filtro!$A$4:$AM$2264,5,FALSE),0) -> 0 | H170: =IFERROR(VLOOKUP($A170,Filtro!$A$4:$AM$2264,6,FALSE),0) -> 48 | AB170: =IFERROR(VLOOKUP($A170,Filtro!$A$4:$AM$2264,26,FALSE),0) -> 0 | AC170: =IFERROR(VLOOKUP($A170,Filtro!$A$4:$AM$2264,27,FALSE),0) -> 82 | AD170: =IFERROR(VLOOKUP($A170,Filtro!$A$4:$AM$2264,28,FALSE),0) -> 2924 | AE170: =IFERROR(VLOOKUP($A170,Filtro!$A$4:$AM$2264,29,FALSE),0) -> 1590 | AF170: =IFERROR(VLOOKUP($A170,Filtro!$A$4:$AM$2264,30,FALSE),0) -> 0 | AG170: =IFERROR(VLOOKUP($A170,Filtro!$A$4:$AM$2264,31,FALSE),0) -> 0 | AH170: =IFERROR(VLOOKUP($A170,Filtro!$A$4:$AM$2264,32,FALSE),0) -> 0 | AI170: =IFERROR(VLOOKUP($A170,Filtro!$A$4:$AM$2264,33,FALSE),0) -> 0 | AJ170: =IFERROR(VLOOKUP($A170,Filtro!$A$4:$AM$2264,34,FALSE),0) -> 0 | AK170: =IFERROR(VLOOKUP($A170,Filtro!$A$4:$AM$2264,35,FALSE),0) -> 0 | CQ170: 0 | CR170: 0 | CS170: 0 | CU170: 0 | CV170: 0 | CW170: 0 | CY170: 0 | CZ170: 0
A171: 01010067 | B171: 01010067 | C171: Consultorías odontólogos | D171: =IFERROR(VLOOKUP($A171,Filtro!$A$4:$AM$2264,2,FALSE),0) -> 0 | E171: =IFERROR(VLOOKUP($A171,Filtro!$A$4:$AM$2264,3,FALSE),0) -> 0 | F171: =IFERROR(VLOOKUP($A171,Filtro!$A$4:$AM$2264,4,FALSE),0) -> 0 | G171: =IFERROR(VLOOKUP($A171,Filtro!$A$4:$AM$2264,5,FALSE),0) -> 0 | H171: =IFERROR(VLOOKUP($A171,Filtro!$A$4:$AM$2264,6,FALSE),0) -> 0 | AB171: =IFERROR(VLOOKUP($A171,Filtro!$A$4:$AM$2264,26,FALSE),0) -> 0 | AC171: =IFERROR(VLOOKUP($A171,Filtro!$A$4:$AM$2264,27,FALSE),0) -> 0 | AD171: =IFERROR(VLOOKUP($A171,Filtro!$A$4:$AM$2264,28,FALSE),0) -> 0 | AE171: =IFERROR(VLOOKUP($A171,Filtro!$A$4:$AM$2264,29,FALSE),0) -> 0 | AF171: =IFERROR(VLOOKUP($A171,Filtro!$A$4:$AM$2264,30,FALSE),0) -> 0 | AG171: =IFERROR(VLOOKUP($A171,Filtro!$A$4:$AM$2264,31,FALSE),0) -> 0 | AH171: =IFERROR(VLOOKUP($A171,Filtro!$A$4:$AM$2264,32,FALSE),0) -> 0 | AI171: =IFERROR(VLOOKUP($A171,Filtro!$A$4:$AM$2264,33,FALSE),0) -> 0 | AJ171: =IFERROR(VLOOKUP($A171,Filtro!$A$4:$AM$2264,34,FALSE),0) -> 0 | AK171: =IFERROR(VLOOKUP($A171,Filtro!$A$4:$AM$2264,35,FALSE),0) -> 0 | CQ171: 0 | CR171: 0 | CS171: 0 | CU171: 0 | CV171: 0 | CW171: 0 | CY171: 0 | CZ171: 0
A172: 01010068 | B172: 01010068 | C172: Consejeria Individual por profesional de salud | D172: =IFERROR(VLOOKUP($A172,Filtro!$A$4:$AM$2264,2,FALSE),0) -> 37162 | E172: =IFERROR(VLOOKUP($A172,Filtro!$A$4:$AM$2264,3,FALSE),0) -> 37162 | F172: =IFERROR(VLOOKUP($A172,Filtro!$A$4:$AM$2264,4,FALSE),0) -> 37148 | G172: =IFERROR(VLOOKUP($A172,Filtro!$A$4:$AM$2264,5,FALSE),0) -> 14 | H172: =IFERROR(VLOOKUP($A172,Filtro!$A$4:$AM$2264,6,FALSE),0) -> 0 | AB172: =IFERROR(VLOOKUP($A172,Filtro!$A$4:$AM$2264,26,FALSE),0) -> 9992 | AC172: =IFERROR(VLOOKUP($A172,Filtro!$A$4:$AM$2264,27,FALSE),0) -> 20275 | AD172: =IFERROR(VLOOKUP($A172,Filtro!$A$4:$AM$2264,28,FALSE),0) -> 0 | AE172: =IFERROR(VLOOKUP($A172,Filtro!$A$4:$AM$2264,29,FALSE),0) -> 0 | AF172: =IFERROR(VLOOKUP($A172,Filtro!$A$4:$AM$2264,30,FALSE),0) -> 0 | AG172: =IFERROR(VLOOKUP($A172,Filtro!$A$4:$AM$2264,31,FALSE),0) -> 0 | AH172: =IFERROR(VLOOKUP($A172,Filtro!$A$4:$AM$2264,32,FALSE),0) -> 0 | AI172: =IFERROR(VLOOKUP($A172,Filtro!$A$4:$AM$2264,33,FALSE),0) -> 0 | AJ172: =IFERROR(VLOOKUP($A172,Filtro!$A$4:$AM$2264,34,FALSE),0) -> 0 | AK172: =IFERROR(VLOOKUP($A172,Filtro!$A$4:$AM$2264,35,FALSE),0) -> 0 | CQ172: 0 | CR172: 0 | CS172: 0 | CU172: 0 | CV172: 0 | CW172: 0 | CY172: 0 | CZ172: 0
A173: 01010069 | B173: 01010069 | C173: Consejeria Familiar por profesionales de salud | D173: =IFERROR(VLOOKUP($A173,Filtro!$A$4:$AM$2264,2,FALSE),0) -> 394 | E173: =IFERROR(VLOOKUP($A173,Filtro!$A$4:$AM$2264,3,FALSE),0) -> 394 | F173: =IFERROR(VLOOKUP($A173,Filtro!$A$4:$AM$2264,4,FALSE),0) -> 394 | G173: =IFERROR(VLOOKUP($A173,Filtro!$A$4:$AM$2264,5,FALSE),0) -> 0 | H173: =IFERROR(VLOOKUP($A173,Filtro!$A$4:$AM$2264,6,FALSE),0) -> 0 | AB173: =IFERROR(VLOOKUP($A173,Filtro!$A$4:$AM$2264,26,FALSE),0) -> 0 | AC173: =IFERROR(VLOOKUP($A173,Filtro!$A$4:$AM$2264,27,FALSE),0) -> 394 | AD173: =IFERROR(VLOOKUP($A173,Filtro!$A$4:$AM$2264,28,FALSE),0) -> 0 | AE173: =IFERROR(VLOOKUP($A173,Filtro!$A$4:$AM$2264,29,FALSE),0) -> 0 | AF173: =IFERROR(VLOOKUP($A173,Filtro!$A$4:$AM$2264,30,FALSE),0) -> 0 | AG173: =IFERROR(VLOOKUP($A173,Filtro!$A$4:$AM$2264,31,FALSE),0) -> 0 | AH173: =IFERROR(VLOOKUP($A173,Filtro!$A$4:$AM$2264,32,FALSE),0) -> 0 | AI173: =IFERROR(VLOOKUP($A173,Filtro!$A$4:$AM$2264,33,FALSE),0) -> 0 | AJ173: =IFERROR(VLOOKUP($A173,Filtro!$A$4:$AM$2264,34,FALSE),0) -> 0 | AK173: =IFERROR(VLOOKUP($A173,Filtro!$A$4:$AM$2264,35,FALSE),0) -> 0 | CQ173: 0 | CR173: 0 | CS173: 0 | CU173: 0 | CV173: 0 | CW173: 0 | CY173: 0 | CZ173: 0
A174: 01010071 | B174: 01010071 | C174: Instalación vendaje compresivo (Coban) | D174: =IFERROR(VLOOKUP($A174,Filtro!$A$4:$AM$2264,2,FALSE),0) -> 45 | E174: =IFERROR(VLOOKUP($A174,Filtro!$A$4:$AM$2264,3,FALSE),0) -> 45 | F174: =IFERROR(VLOOKUP($A174,Filtro!$A$4:$AM$2264,4,FALSE),0) -> 45 | G174: =IFERROR(VLOOKUP($A174,Filtro!$A$4:$AM$2264,5,FALSE),0) -> 0 | H174: =IFERROR(VLOOKUP($A174,Filtro!$A$4:$AM$2264,6,FALSE),0) -> 0 | I174: =IFERROR(VLOOKUP($A174,Filtro!$A$4:$AM$2264,7,FALSE),0) -> 0 | J174: =IFERROR(VLOOKUP($A174,Filtro!$A$4:$AM$2264,8,FALSE),0) -> 0 | K174: =IFERROR(VLOOKUP($A174,Filtro!$A$4:$AM$2264,9,FALSE),0) -> 0 | L174: =IFERROR(VLOOKUP($A174,Filtro!$A$4:$AM$2264,10,FALSE),0) -> 0 | M174: =IFERROR(VLOOKUP($A174,Filtro!$A$4:$AM$2264,11,FALSE),0) -> 0 | N174: =IFERROR(VLOOKUP($A174,Filtro!$A$4:$AM$2264,12,FALSE),0) -> 0 | O174: =IFERROR(VLOOKUP($A174,Filtro!$A$4:$AM$2264,13,FALSE),0) -> 0 | P174: =IFERROR(VLOOKUP($A174,Filtro!$A$4:$AM$2264,14,FALSE),0) -> 0 | Q174: =IFERROR(VLOOKUP($A174,Filtro!$A$4:$AM$2264,15,FALSE),0) -> 0 | R174: =IFERROR(VLOOKUP($A174,Filtro!$A$4:$AM$2264,16,FALSE),0) -> 0 | S174: =IFERROR(VLOOKUP($A174,Filtro!$A$4:$AM$2264,17,FALSE),0) -> 0 | AB174: =IFERROR(VLOOKUP($A174,Filtro!$A$4:$AM$2264,26,FALSE),0) -> 0 | AC174: =IFERROR(VLOOKUP($A174,Filtro!$A$4:$AM$2264,27,FALSE),0) -> 45 | AD174: =IFERROR(VLOOKUP($A174,Filtro!$A$4:$AM$2264,28,FALSE),0) -> 0 | AE174: =IFERROR(VLOOKUP($A174,Filtro!$A$4:$AM$2264,29,FALSE),0) -> 0 | AF174: =IFERROR(VLOOKUP($A174,Filtro!$A$4:$AM$2264,30,FALSE),0) -> 0 | AG174: =IFERROR(VLOOKUP($A174,Filtro!$A$4:$AM$2264,31,FALSE),0) -> 0 | AH174: =IFERROR(VLOOKUP($A174,Filtro!$A$4:$AM$2264,32,FALSE),0) -> 0 | AI174: =IFERROR(VLOOKUP($A174,Filtro!$A$4:$AM$2264,33,FALSE),0) -> 0 | AJ174: =IFERROR(VLOOKUP($A174,Filtro!$A$4:$AM$2264,34,FALSE),0) -> 0 | AK174: =IFERROR(VLOOKUP($A174,Filtro!$A$4:$AM$2264,35,FALSE),0) -> 0 | CQ174: 0 | CR174: 0 | CS174: 0 | CU174: 0 | CV174: 0 | CW174: 0 | CY174: 0 | CZ174: 0
B175: TOTAL | D175: =IFERROR(VLOOKUP($A175,Filtro!$A$4:$AM$2264,2,FALSE),0) -> 0 | E175: =IFERROR(VLOOKUP($A175,Filtro!$A$4:$AM$2264,3,FALSE),0) -> 0 | F175: =IFERROR(VLOOKUP($A175,Filtro!$A$4:$AM$2264,4,FALSE),0) -> 0 | G175: =IFERROR(VLOOKUP($A175,Filtro!$A$4:$AM$2264,5,FALSE),0) -> 0 | H175: =IFERROR(VLOOKUP($A175,Filtro!$A$4:$AM$2264,6,FALSE),0) -> 0 | I175: =IFERROR(VLOOKUP($A175,Filtro!$A$4:$AM$2264,7,FALSE),0) -> 0 | AB175: =SUM(AB146:AB174) -> 192820 | AC175: 979438 | AD175: 56164 | AE175: 1601 | AF175: 0 | AG175: 0 | AH175: 0 | AI175: 0 | AJ175: 0 | AK175: 0
B176: TRASPLANTES | D176: =IFERROR(VLOOKUP($A176,Filtro!$A$4:$AM$2264,2,FALSE),0) -> 0
A177: 01010072 | B177: 01010072 | C177: Estudio receptor donante cadáver | D177: =IFERROR(VLOOKUP($A177,Filtro!$A$4:$AM$2264,2,FALSE),0) -> 0 | E177: =IFERROR(VLOOKUP($A177,Filtro!$A$4:$AM$2264,3,FALSE),0) -> 0 | F177: =IFERROR(VLOOKUP($A177,Filtro!$A$4:$AM$2264,4,FALSE),0) -> 0 | G177: =IFERROR(VLOOKUP($A177,Filtro!$A$4:$AM$2264,5,FALSE),0) -> 0 | H177: =IFERROR(VLOOKUP($A177,Filtro!$A$4:$AM$2264,6,FALSE),0) -> 0 | I177: =IFERROR(VLOOKUP($A177,Filtro!$A$4:$AM$2264,7,FALSE),0) -> 0 | J177: =IFERROR(VLOOKUP($A177,Filtro!$A$4:$AM$2264,8,FALSE),0) -> 0 | K177: =IFERROR(VLOOKUP($A177,Filtro!$A$4:$AM$2264,9,FALSE),0) -> 0 | L177: =IFERROR(VLOOKUP($A177,Filtro!$A$4:$AM$2264,10,FALSE),0) -> 0 | M177: =IFERROR(VLOOKUP($A177,Filtro!$A$4:$AM$2264,11,FALSE),0) -> 0 | N177: =IFERROR(VLOOKUP($A177,Filtro!$A$4:$AM$2264,12,FALSE),0) -> 0 | O177: =IFERROR(VLOOKUP($A177,Filtro!$A$4:$AM$2264,13,FALSE),0) -> 0 | P177: =IFERROR(VLOOKUP($A177,Filtro!$A$4:$AM$2264,14,FALSE),0) -> 0 | Q177: =IFERROR(VLOOKUP($A177,Filtro!$A$4:$AM$2264,15,FALSE),0) -> 0 | R177: =IFERROR(VLOOKUP($A177,Filtro!$A$4:$AM$2264,16,FALSE),0) -> 0 | S177: =IFERROR(VLOOKUP($A177,Filtro!$A$4:$AM$2264,17,FALSE),0) -> 0 | AB177: =IFERROR(VLOOKUP($A177,Filtro!$A$4:$AM$2264,26,FALSE),0) -> 0 | AC177: =IFERROR(VLOOKUP($A177,Filtro!$A$4:$AM$2264,27,FALSE),0) -> 0 | AD177: =IFERROR(VLOOKUP($A177,Filtro!$A$4:$AM$2264,28,FALSE),0) -> 0 | AE177: =IFERROR(VLOOKUP($A177,Filtro!$A$4:$AM$2264,29,FALSE),0) -> 0 | AF177: =IFERROR(VLOOKUP($A177,Filtro!$A$4:$AM$2264,30,FALSE),0) -> 0 | AG177: =IFERROR(VLOOKUP($A177,Filtro!$A$4:$AM$2264,31,FALSE),0) -> 0 | AH177: =IFERROR(VLOOKUP($A177,Filtro!$A$4:$AM$2264,32,FALSE),0) -> 0 | AI177: =IFERROR(VLOOKUP($A177,Filtro!$A$4:$AM$2264,33,FALSE),0) -> 0 | AJ177: =IFERROR(VLOOKUP($A177,Filtro!$A$4:$AM$2264,34,FALSE),0) -> 0 | AK177: =IFERROR(VLOOKUP($A177,Filtro!$A$4:$AM$2264,35,FALSE),0) -> 0 | CQ177: 0 | CR177: 0 | CS177: 0 | CU177: 0 | CV177: 0 | CW177: 0 | CY177: 0 | CZ177: 0
A178: 01010073 | B178: 01010073 | C178: Estudio receptor donante vivo | D178: =IFERROR(VLOOKUP($A178,Filtro!$A$4:$AM$2264,2,FALSE),0) -> 0 | E178: =IFERROR(VLOOKUP($A178,Filtro!$A$4:$AM$2264,3,FALSE),0) -> 0 | F178: =IFERROR(VLOOKUP($A178,Filtro!$A$4:$AM$2264,4,FALSE),0) -> 0 | G178: =IFERROR(VLOOKUP($A178,Filtro!$A$4:$AM$2264,5,FALSE),0) -> 0 | H178: =IFERROR(VLOOKUP($A178,Filtro!$A$4:$AM$2264,6,FALSE),0) -> 0 | I178: =IFERROR(VLOOKUP($A178,Filtro!$A$4:$AM$2264,7,FALSE),0) -> 0 | J178: =IFERROR(VLOOKUP($A178,Filtro!$A$4:$AM$2264,8,FALSE),0) -> 0 | K178: =IFERROR(VLOOKUP($A178,Filtro!$A$4:$AM$2264,9,FALSE),0) -> 0 | L178: =IFERROR(VLOOKUP($A178,Filtro!$A$4:$AM$2264,10,FALSE),0) -> 0 | M178: =IFERROR(VLOOKUP($A178,Filtro!$A$4:$AM$2264,11,FALSE),0) -> 0 | N178: =IFERROR(VLOOKUP($A178,Filtro!$A$4:$AM$2264,12,FALSE),0) -> 0 | O178: =IFERROR(VLOOKUP($A178,Filtro!$A$4:$AM$2264,13,FALSE),0) -> 0 | P178: =IFERROR(VLOOKUP($A178,Filtro!$A$4:$AM$2264,14,FALSE),0) -> 0 | Q178: =IFERROR(VLOOKUP($A178,Filtro!$A$4:$AM$2264,15,FALSE),0) -> 0 | R178: =IFERROR(VLOOKUP($A178,Filtro!$A$4:$AM$2264,16,FALSE),0) -> 0 | S178: =IFERROR(VLOOKUP($A178,Filtro!$A$4:$AM$2264,17,FALSE),0) -> 0 | AB178: =IFERROR(VLOOKUP($A178,Filtro!$A$4:$AM$2264,26,FALSE),0) -> 0 | AC178: =IFERROR(VLOOKUP($A178,Filtro!$A$4:$AM$2264,27,FALSE),0) -> 0 | AD178: =IFERROR(VLOOKUP($A178,Filtro!$A$4:$AM$2264,28,FALSE),0) -> 0 | AE178: =IFERROR(VLOOKUP($A178,Filtro!$A$4:$AM$2264,29,FALSE),0) -> 0 | AF178: =IFERROR(VLOOKUP($A178,Filtro!$A$4:$AM$2264,30,FALSE),0) -> 0 | AG178: =IFERROR(VLOOKUP($A178,Filtro!$A$4:$AM$2264,31,FALSE),0) -> 0 | AH178: =IFERROR(VLOOKUP($A178,Filtro!$A$4:$AM$2264,32,FALSE),0) -> 0 | AI178: =IFERROR(VLOOKUP($A178,Filtro!$A$4:$AM$2264,33,FALSE),0) -> 0 | AJ178: =IFERROR(VLOOKUP($A178,Filtro!$A$4:$AM$2264,34,FALSE),0) -> 0 | AK178: =IFERROR(VLOOKUP($A178,Filtro!$A$4:$AM$2264,35,FALSE),0) -> 0 | CQ178: 0 | CR178: 0 | CS178: 0 | CU178: 0 | CV178: 0 | CW178: 0 | CY178: 0 | CZ178: 0
